Workbook

Sheet Trade Journal
B1: Ship Trading Sheet
A2: Ship Name: | B2: Tin Lizzie | C2: Ship Type: | D2: Type-A Free Trader
A4: Armor / Hull / Structure: | B4: 4 / 4 / 4 = 12 | C4: Agility/Maneuver:
A5: Turret 1 (Laser/Sand): | C5: Turret 2 (Missile/Missile):
A6: Cargo Capacity: | B6: 80-88 tons | C6: Life Support
A7: -2 tons Aux-Tankage (mty) | B7: -4 tons AirRaft | C7: High/Medium (Cr2000) | D7: 8000
A8: -2 tons Weapon Controls | B8: Available-Capacity: | C8: Low Passage (Cr100) | D8: 2000
A9: -2 tons Missile Storage | B9: 78 tons | C9: Crew (Cr2000) | D9: 12000
A10: Ships Locker: | B10: Shotgun x6 | C10: Total LLS Cost | D10: 22000
A11: Std. Vacc Suit x10 | B11: Medkit x6 | C11: Fuel Tonnage: | D11: 22
A12: SnubPistol x6 | B12: Toolkit x2 | C12: Fuel Cost Refined (Cr500) | D12: 11000
A13: RescueBall x10 | B13: Wilderness Survivalkit x2 | C13: Fuel Cost Unrefined (Cr100) | D13: 2200
A14: Crew List | C14: Berthing Cost (Cr100) | D14: 100
A15: Name: | B15: Tarlon Rhaan (46) | C15: Total Cost per Trip | D15: =D14+D10 -> 22100
A16: Position: | B16: Pilot/Mechanic | D16: (+Fuel)
A17: Details: | B17: ex-Scout | C17: Crew Salaries
A18: UPP: | B18: 468BC8 | C18: Captain (Cr6000) | D18: 6000
A19: Salary&Skills: 6000 Cr | B19: Pilot-3, Electronics-3, Mechanic-2 | C19: Pilot (Cr6000) | D19: 6000
A20: Relationships: | C20: Navigator (Cr5000) | D20: 5000
C21: Medic (Cr4000) | D21: 0
A22: Name: | B22: Burl Belley (42) | C22: Engineer (Cr4000) | D22: 4000
A23: Position: | B23: Captain/Steward | C23: Steward/Gunner (Cr2000) | D23: 4000
A24: Details: | B24: ex-Bureucrate | C24: Salary Total (monthly): | D24: =SUM(D18:D23) -> 25000
A25: UPP: | B25: 978CFC
A26: Salary&Skills: 6000 Cr | B26: Accounting-5, Liaison-3, Recht-2 | C26: Mortgage (monthly): | D26: 31666.67
A27: Relationships: | B27: Marquis Serk (Khouth/Corridor) | C27: Maintenance (monthly): | D27: 3048
A29: Name: | B29: Dr Ruce Brenkenhoff (42) | C29: Name: | D29: Lady Valerie Ducote (38)
A30: Position: | B30: Medic/Sensors | C30: Position: | D30: Gunner
A31: Details: | B31: Doctor | C31: Details: | D31: ex-Navy
A32: UPP: | B32: 9799D9 | C32: UPP: | D32: CA4BAA
A33: Salary&Skills: 4000 Cr | B33: Medic-7, Sensors-3 | C33: Salary&Skills: 2000 Cr | D33: Gunner-3, Screens-1, Gun Cbt.-1
A34: Relationships: | C34: Relationships: | D34: Knight of the Imperium
A36: Name: | B36: Ancyl Campbins (34) | C36: Name: | D36: Joseph Saco (58)
A37: Position: | B37: Engineer/Navigator | C37: Position: | D37: Gunner
A38: Details: | B38: ex-Scout | C38: Details: | D38: ex-Navy
A39: UPP: | B39: 8B3AD5 | C39: UPP: | D39: 77785B
A40: Salary&Skills: 5000 Cr | B40: Engineering-2, Navigation-1, Pilot-1 | C40: Salary&Skills: 2000 Cr | D40: Gunner-2, Survival-2, ZeroG-1
A41: Relationships: | C41: Relationships: | D41: Baron of Shofrete, Urnian
D42: (Foreven 3232)
A43: Notes: | B43: All Crew in multirole positions, as money is tight only highest paying occupation is actual salary!
B44: Whenever possible the ship will refuel in the wilderness or skim Gas Giants
B45: Refining costs +10 hours per 20 tons of fuel (30min per ton)
A48: Journal: | B48: 035-1110 | C48: Ship Account (Cr): | D48: =175100+D70 -> 234100 | F48: Current UWP | G48: C | H48: 6 | I48: 8 | J48: 6 | K48: 8 | L48: 5 | M48: 4 | N48: – | O48: 5
A49: Week 6: Jump | C49: Next Stops:
A50: Week 7: Vanejen | C50: 457-973 | D50: gas giant skimming, no docking | F50: Next1 UWP | G50: X | H50: 5 | I50: 7 | J50: 2 | K50: 7 | L50: 7 | M50: 6 | N50: – | O50: 5
A51: Current World | B51: Vanejen | C51: Somem | D51: gas giant skimming | F51: Next2 UWP | G51: C | H51: 3 | I51: 0 | J51: 1 | K51: 3 | L51: 4 | M51: 0 | N51: – | O51: B
C52: Brodie | D52: gas giant skimming | F52: Next3 UWP | G52: C | H52: 4 | I52: 1 | J52: 0 | K52: 4 | L52: 6 | M52: 8 | N52: – | O52: 7
A53: Destination World (autocalc) | B53: Somem | C53: =CONCATENATE("Distance to ",B53," (pc)") -> Distance to Somem (pc) | D53: 2
A54: =CONCATENATE("Low Passage (avail.): ",Trade!C6) -> Low Passage (avail.): 28 | B54: =Trade!A6 -> 6 | C54: Einnahmen Low Passage (auto) | D54: =Trade!AT6 -> 7200 | F54: Enter
A55: =CONCATENATE("Lmid Passage (avail.): ",Trade!C7) -> Lmid Passage (avail.): 20 | B55: =Trade!A7 -> 2 | C55: Einnahmen Mid Passage (auto) | D55: =Trade!AT7 -> 12000 | F55: Desination | G55: Ag | H55: As | I55: Ba | J55: De | K55: Fl | L55: Ga | M55: Hi | N55: Ht | O55: IC | P55: In | Q55: Lo | R55: Lt | S55: Na | T55: NI | U55: Po | V55: Ri | W55: Wa | X55: Va
A56: =CONCATENATE("High Passage (avail.): ",Trade!C8) -> High Passage (avail.): 9 | B56: =Trade!A8 -> 1 | C56: Einnahmen High Passage (auto) | D56: =Trade!AT8 -> 12000 | F56: Trade Codes: | G56: 0 | H56: 0 | I56: 0 | J56: 0 | K56: 0 | L56: 1 | M56: 0 | N56: 0 | O56: 0 | P56: 0 | Q56: 0 | R56: 0 | S56: 0 | T56: 0 | U56: 0 | V56: 1 | W56: 0 | X56: 0
A57: Freight Incidental (avail.) | B57: =Trade!A10 -> 0
A58: Freight Minor (available) | B58: =Trade!A11 -> 25
A59: Freight Major (available) | B59: =Trade!A12 -> 60 | F59: LowBerth total | G59: 20
A60: Freight aboard (undevided lots): | B60: =Trade!AQ20 -> 60 | C60: Frachteinnahmen (auto) | D60: =Trade!AT11 -> 72000 | F60: LowBerth defect. | G60: 3
A61: Destination World (manual entries) | B61: Somem | C61: Kosten für obere Destination | D61: =D15*D53 -> 44200 | F61: LowBerth occup. | G61: =B62 -> 11
A62: Low Passage (aboard): | B62: 11 | C62: Einnahmen Low Passage | D62: 6000 | F62: Low Berth avail. | G62: =G59-G60-G61 -> 6
A63: Mid Passage (aboard): | B63: 0 | C63: Einnahmen Mid Passage | D63: 9000
A64: High Passage (aboard): | B64: 1 | C64: Einnahmen High Passage | D64: 0 | F64: Stateroom total | G64: 4
A65: Freight Incidental (avail.) | B65: 2 | F65: HiPas avail. | G65: 1
A66: Freight Minor (available) | B66: 55 | F66: HiPas occup. | G66: =B64 -> 1
A67: Freight Major (available) | B67: 100 | F67: HiPas avail. | G67: =G65-G66 -> 0
A68: Freight aboard (undevided lots): | B68: 2 | C68: Frachteinnahmen (manual entries) | D68: 55000 | F68: MidPas occup. | G68: =B63 -> 0
C69: Kosten für untere Destination | D69: =D15 -> 22100 | F69: MidPas avail. | G69: =G64-G66-G68 -> 3
A70: prepaid lots (fromprev. Trip) | B70: =D62+D63+D64+D68-D69 -> 47900 | C70: Gesamteinnahmen | D70: =D54+D55+D56+D60-D61+D62+D63+D64+D68-D69-B70 -> 59000
A71: We decide to pump 20 tons | D71: =CONCATENATE("Leaving ",B51," on Day ",D76*2+1," for") -> Leaving Vanejen on Day 3 for | F71: Freight total | G71: =Trade!AQ16 -> 78
A72: of refined hydrogen back into | D72: Jump in 100 diameter Distance of | F72: Freight avail. | G72: =G71-B68 -> 76
A73: MainTank (leaving 21tons) | D73: =CONCATENATE(ROUND(World!C9*100,2)," km") -> 1036626,76 km
A76: Press F9 ONCE for every 2 days of Freight/Psgr. aquisition on and note number of keypresses here: | D76: 1

Sheet Trade
B1: Paste Current UWP: | C1: ='Trade Journal'!G48 -> C | D1: ='Trade Journal'!H48 -> 6 | E1: ='Trade Journal'!I48 -> 8 | F1: ='Trade Journal'!J48 -> 6 | G1: ='Trade Journal'!K48 -> 8 | H1: ='Trade Journal'!L48 -> 5 | I1: ='Trade Journal'!M48 -> 4 | J1: – | K1: ='Trade Journal'!O48 -> 5
B2: Passengers and Freight looking for a ship | AP2: ShipType | AQ2: Revenue
A3: Distance (PC) | C3: Ag | D3: As | E3: Ba | F3: De | G3: Fl | H3: Ga | I3: Hi | J3: Ht | K3: IC | L3: In | M3: Lo | N3: Lt | O3: Na | P3: NI | Q3: Po | R3: Ri | S3: Wa | T3: Va | AP3: Type-A | AQ3: =B5+B9 -> 103200
A4: ='Trade Journal'!D53 -> 2 | B4: Enter Desination Trade Codes: | C4: ='Trade Journal'!G56 -> 0 | D4: ='Trade Journal'!H56 -> 0 | E4: ='Trade Journal'!I56 -> 0 | F4: ='Trade Journal'!J56 -> 0 | G4: ='Trade Journal'!K56 -> 0 | H4: ='Trade Journal'!L56 -> 1 | I4: ='Trade Journal'!M56 -> 0 | J4: ='Trade Journal'!N56 -> 0 | K4: ='Trade Journal'!O56 -> 0 | L4: ='Trade Journal'!P56 -> 0 | M4: ='Trade Journal'!Q56 -> 0 | N4: ='Trade Journal'!R56 -> 0 | O4: ='Trade Journal'!S56 -> 0 | P4: ='Trade Journal'!T56 -> 0 | Q4: ='Trade Journal'!U56 -> 0 | R4: ='Trade Journal'!V56 -> 1 | S4: ='Trade Journal'!W56 -> 0 | T4: ='Trade Journal'!X56 -> 0 | AN4: Passage Rates
A5: Passengers | B5: =A6*AS6+A7*AS7+A8*AS8 -> 31200 | C5: Cr | AN5: Parsecs Travelled | AO5: High | AP5: Middle | AQ5: Low
A6: =IF(OR(C6<AN18,C6=AN18),C6,AN18) -> 6 | B6: Low Passages: | C6: =IF(VLOOKUP(Rolls!C44,'Trade Tables'!F4:L20,2)-VLOOKUP(Rolls!C44,'Trade Tables'!F4:L20,3)<0,0,VLOOKUP(Rolls!C44,'Trade Tables'!F4:L20,2)-VLOOKUP(Rolls!C44,'Trade Tables'!F4:L20,3)) -> 28 | AN6: 1 | AO6: 6000 | AP6: 3000 | AQ6: 1000 | AS6: =VLOOKUP(A4,AN6:AQ11,4,TRUE) -> 1200 | AT6: =AS6*A6 -> 7200
A7: =IF(OR(C7+A8>AO18,C7+A8=AO18),AO18-1,C7) -> 2 | B7: Middle Passages: | C7: =IF(VLOOKUP(Rolls!C44,'Trade Tables'!F4:L20,4)-VLOOKUP(Rolls!C44,'Trade Tables'!F4:L20,5)<0,0,VLOOKUP(Rolls!C44,'Trade Tables'!F4:L20,4)-VLOOKUP(Rolls!C44,'Trade Tables'!F4:L20,5)) -> 20 | AN7: 2 | AO7: 12000 | AP7: 6000 | AQ7: 1200 | AS7: =VLOOKUP(A4,AN6:AQ11,3,TRUE) -> 6000 | AT7: =AS7*A7 -> 12000
A8: =IF(OR(C8<AP18,C8=AP18),C8,AP18) -> 1 | B8: High Passages: | C8: =IF(VLOOKUP(Rolls!C44,'Trade Tables'!F4:L20,6)-VLOOKUP(Rolls!C44,'Trade Tables'!F4:L20,7)<0,0,VLOOKUP(Rolls!C44,'Trade Tables'!F4:L20,6)-VLOOKUP(Rolls!C44,'Trade Tables'!F4:L20,7)) -> 9 | AN8: 3 | AO8: 20000 | AP8: 10000 | AQ8: 1400 | AS8: =VLOOKUP(A4,AN6:AQ11,2,TRUE) -> 12000 | AT8: =AS8*A8 -> 12000
A9: Freight (dt) | B9: =AS11*AS12 -> 72000 | C9: Cr | AN9: 4 | AO9: 30000 | AP9: 15000 | AQ9: 1600
A10: =C10 -> 0 | B10: Incidental Freights: | C10: =IF(VLOOKUP(Rolls!E44,'Trade Tables'!F26:L42,2)+VLOOKUP(Rolls!E44,'Trade Tables'!F26:L42,3)<0,0,VLOOKUP(Rolls!E44,'Trade Tables'!F26:L42,2)+VLOOKUP(Rolls!E44,'Trade Tables'!F26:L42,3)) -> 0 | AN10: 5 | AO10: 40000 | AP10: 20000 | AQ10: 1800
A11: =C11*5 -> 25 | B11: Minor Freights: | C11: =IF(VLOOKUP(Rolls!E44,'Trade Tables'!F26:L42,4)+VLOOKUP(Rolls!E44,'Trade Tables'!F26:L42,5)<0,0,VLOOKUP(Rolls!E44,'Trade Tables'!F26:L42,4)+VLOOKUP(Rolls!E44,'Trade Tables'!F26:L42,5)) -> 5 | AN11: 6 | AO11: 50000 | AP11: 25000 | AQ11: 2000 | AS11: =IF(OR(A10+A11+A12<AQ18,A10+A11+A12=AQ18),A10+A11+A12,IF(OR(A11+A12<AQ18,A11+A12=AQ18),A11+A12,IF(OR(A10+A12<AQ18,A10+A12=AQ18),A10+A12,IF(OR(A12<AQ18,A12=AQ18),A12,IF(OR(A10+A11<AQ18,A10+A11=AQ18),A10+A11,IF(OR(A11<AQ18,A11=AQ18),A11,A10)))))) -> 60 | AT11: =AS11*AS12 -> 72000
A12: =C12*10 -> 60 | B12: Major Freights: | C12: =IF(VLOOKUP(Rolls!E44,'Trade Tables'!F26:L42,6)+VLOOKUP(Rolls!E44,'Trade Tables'!F26:L42,7)<0,0,VLOOKUP(Rolls!E44,'Trade Tables'!F26:L42,6)+VLOOKUP(Rolls!E44,'Trade Tables'!F26:L42,7)) -> 6 | AN12: Freight Rates: | AO12: 1000/ton + 200/ton/parsec beyond 1st | AS12: =(A4-1)*200+1000 -> 1200
AW13: Passenger Info | AZ13: Freight Info (tons)
B14: Mail Transport Application Form | AW14: Low | AX14: Middle | AY14: High | AZ14: Incidental | BA14: Minor | BB14: Major
B15: Ship Armed: Y/N? | AN15: LowBerth | AO15: Passengers | AP15: max HiPas. | AQ15: Total Cargo | AW15: =IF($C$6>0,LOOKUP(Rolls!B46,'Trade Tables'!B$88:C$123),"") -> Wide-eyed yokel | AX15: =IF($C$7>0,LOOKUP(Rolls!C46,'Trade Tables'!B$88:C$123),"") -> Wants to stowaway or join the crew | AY15: =IF($C$8>0,LOOKUP(Rolls!D46,'Trade Tables'!B$88:C$123),"") -> Rich noble - raconteur | AZ15: =IF($C$10>0,Rolls!E46,"") ->  | BA15: =IF($C$11>0,Rolls!F46,"") -> 10 | BB15: =IF($C$12>0,Rolls!G46,"") -> 50
B16: Highest Naval or Scout Rank among your crew? | AN16: 17 | AO16: 4 | AP16: 1 | AQ16: 78 | AW16: =IF($C$6>1,LOOKUP(Rolls!B47,'Trade Tables'!B$88:C$123),"") -> Journalist or researcher | AX16: =IF($C$7>1,LOOKUP(Rolls!C47,'Trade Tables'!B$88:C$123),"") -> Expectant mother | AY16: =IF($C$8>1,LOOKUP(Rolls!D47,'Trade Tables'!B$88:C$123),"") -> Explorer | AZ16: =IF($C$10>1,Rolls!E47,"") ->  | BA16: =IF($C$11>1,Rolls!F47,"") -> 10 | BB16: =IF($C$12>1,Rolls!G47,"") -> 60
B17: Notability of Ship(highest Soc DM)? | AN17: Free Low | AO17: Free Mid | AP17: Free High | AQ17: FreeCargo | AW17: =IF($C$6>2,LOOKUP(Rolls!B48,'Trade Tables'!B$88:C$123),"") -> Expectant mother | AX17: =IF($C$7>2,LOOKUP(Rolls!C48,'Trade Tables'!B$88:C$123),"") -> Unusually pretty or handsome | AY17: =IF($C$8>2,LOOKUP(Rolls!D48,'Trade Tables'!B$88:C$123),"") -> Tourist | AZ17: =IF($C$10>2,Rolls!E48,"") ->  | BA17: =IF($C$11>2,Rolls!F48,"") -> 20 | BB17: =IF($C$12>2,Rolls!G48,"") -> 20
B18: =IF(Rolls!G25+LOOKUP(Rolls!F24,'Trade Tables'!N4:O24)+IF(Trade!C15="Y",2,0)+Trade!C16+Trade!C17>=12,"Approved","Denied") -> Denied | AN18: ='Trade Journal'!G62 -> 6 | AO18: ='Trade Journal'!G69 -> 3 | AP18: ='Trade Journal'!G65 -> 1 | AQ18: ='Trade Journal'!G72 -> 76 | AW18: =IF($C$6>3,LOOKUP(Rolls!B49,'Trade Tables'!B$88:C$123),"") -> Wants to stowaway or join the crew | AX18: =IF($C$7>3,LOOKUP(Rolls!C49,'Trade Tables'!B$88:C$123),"") -> Ex-Scout | AY18: =IF($C$8>3,LOOKUP(Rolls!D49,'Trade Tables'!B$88:C$123),"") -> Theif or other Criminal | AZ18: =IF($C$10>3,Rolls!E49,"") ->  | BA18: =IF($C$11>3,Rolls!F49,"") -> 15 | BB18: =IF($C$12>3,Rolls!G49,"") -> 10
AN19: New Low | AO19: New Mid | AP19: New High | AQ19: New Cargo | AW19: =IF($C$6>4,LOOKUP(Rolls!B50,'Trade Tables'!B$88:C$123),"") -> Rich noble - complains a lot | AX19: =IF($C$7>4,LOOKUP(Rolls!C50,'Trade Tables'!B$88:C$123),"") -> Wanderer | AY19: =IF($C$8>4,LOOKUP(Rolls!D50,'Trade Tables'!B$88:C$123),"") -> Expectant mother | AZ19: =IF($C$10>4,Rolls!E50,"") ->  | BA19: =IF($C$11>4,Rolls!F50,"") -> 5 | BB19: =IF($C$12>4,Rolls!G50,"") -> 30
B20: Good | C20: Tons Avaliable | I20: Base Price | AQ20: =AS11 -> 60 | AW20: =IF($C$6>5,LOOKUP(Rolls!B51,'Trade Tables'!B$88:C$123),"") -> Tourist | AX20: =IF($C$7>5,LOOKUP(Rolls!C51,'Trade Tables'!B$88:C$123),"") -> Tourist | AY20: =IF($C$8>5,LOOKUP(Rolls!D51,'Trade Tables'!B$88:C$123),"") -> Expectant mother | AZ20: =IF($C$10>5,Rolls!E51,"") ->  | BA20: =IF($C$11>5,Rolls!F51,"") ->  | BB20: =IF($C$12>5,Rolls!G51,"") -> 40
B21: Basic Electronics | E21: =IF(OR(U21:AF21),CEILING(6*RAND(),1)*'Trade Tables'!D48,0)+IF(AG21,CEILING(6*RAND(),1)*'Trade Tables'!D48,0)+IF(AH21,CEILING(6*RAND(),1)*'Trade Tables'!D48,0)+IF(AI21,CEILING(6*RAND(),1)*'Trade Tables'!D48,0)+IF(AJ21,CEILING(6*RAND(),1)*'Trade Tables'!D48,0)+IF(AK21,CEILING(6*RAND(),1)*'Trade Tables'!D48,0)+IF(AL21,CEILING(6*RAND(),1)*'Trade Tables'!D48,0) -> 80 | J21: 10000 | U21: =IF(AND(World!$G$22="yes",HLOOKUP(Trade!$B21,'Trade Tables'!$G$47:$AP$59,2,FALSE())=1),TRUE(),FALSE()) -> FALSE | V21: =IF(AND(World!$G$23="yes",HLOOKUP(Trade!$B21,'Trade Tables'!$G$47:$AP$59,3,FALSE())=1),TRUE(),FALSE()) -> FALSE | W21: =IF(AND(World!$G$25="yes",HLOOKUP(Trade!$B21,'Trade Tables'!$G$47:$AP$59,4,FALSE())=1),TRUE(),FALSE()) -> FALSE | X21: =IF(AND(World!$G$26="yes",HLOOKUP(Trade!$B21,'Trade Tables'!$G$47:$AP$59,5,FALSE())=1),TRUE(),FALSE()) -> FALSE | Y21: =IF(AND(World!$G$27="yes",HLOOKUP(Trade!$B21,'Trade Tables'!$G$47:$AP$59,6,FALSE())=1),TRUE(),FALSE()) -> TRUE | Z21: =IF(AND(World!$G$28="yes",HLOOKUP(Trade!$B21,'Trade Tables'!$G$47:$AP$59,7,FALSE())=1),TRUE(),FALSE()) -> TRUE | AA21: =IF(AND(World!$G$29="yes",HLOOKUP(Trade!$B21,'Trade Tables'!$G$47:$AP$59,8,FALSE())=1),TRUE(),FALSE()) -> FALSE | AB21: =IF(AND(World!$G$30="yes",HLOOKUP(Trade!$B21,'Trade Tables'!$G$47:$AP$59,9,FALSE())=1),TRUE(),FALSE()) -> FALSE | AC21: =IF(AND(World!$G$31="yes",HLOOKUP(Trade!$B21,'Trade Tables'!$G$47:$AP$59,10,FALSE())=1),TRUE(),FALSE()) -> FALSE | AD21: =IF(AND(World!$G$32="yes",HLOOKUP(Trade!$B21,'Trade Tables'!$G$47:$AP$59,11,FALSE())=1),TRUE(),FALSE()) -> FALSE | AE21: =IF(AND(World!$G$35="yes",HLOOKUP(Trade!$B21,'Trade Tables'!$G$47:$AP$59,12,FALSE())=1),TRUE(),FALSE()) -> FALSE | AF21: =IF(AND(World!$G$38="yes",HLOOKUP(Trade!$B21,'Trade Tables'!$G$47:$AP$59,13,FALSE())=1),TRUE(),FALSE()) -> FALSE | AG21: =IF(Rolls!$G$28='Trade Tables'!$B48,TRUE(),FALSE()) -> FALSE | AH21: =IF(Rolls!$G$29='Trade Tables'!$B48,TRUE(),FALSE()) -> FALSE | AI21: =IF(Rolls!$G$30='Trade Tables'!$B48,TRUE(),FALSE()) -> FALSE | AJ21: =IF(Rolls!$G$31='Trade Tables'!$B48,TRUE(),FALSE()) -> TRUE | AK21: =IF(Rolls!$G$32='Trade Tables'!$B48,TRUE(),FALSE()) -> FALSE | AL21: =IF(Rolls!$G$33='Trade Tables'!$B48,TRUE(),FALSE()) -> FALSE | AW21: =IF($C$6>6,LOOKUP(Rolls!B52,'Trade Tables'!B$88:C$123),"") -> Diplomat on a mission | AX21: =IF($C$7>6,LOOKUP(Rolls!C52,'Trade Tables'!B$88:C$123),"") -> Wants to be on board the PC's ship for some reason | AY21: =IF($C$8>6,LOOKUP(Rolls!D52,'Trade Tables'!B$88:C$123),"") -> Wide-eyed yokel | AZ21: =IF($C$10>6,Rolls!E52,"") ->  | BA21: =IF($C$11>6,Rolls!F52,"") ->  | BB21: =IF($C$12>6,Rolls!G52,"") -> 
B22: Basic Machine Parts | E22: =IF(OR(U22:AF22),CEILING(6*RAND(),1)*'Trade Tables'!D49,0)+IF(AG22,CEILING(6*RAND(),1)*'Trade Tables'!D49,0)+IF(AH22,CEILING(6*RAND(),1)*'Trade Tables'!D49,0)+IF(AI22,CEILING(6*RAND(),1)*'Trade Tables'!D49,0)+IF(AJ22,CEILING(6*RAND(),1)*'Trade Tables'!D49,0)+IF(AK22,CEILING(6*RAND(),1)*'Trade Tables'!D49,0)+IF(AL22,CEILING(6*RAND(),1)*'Trade Tables'!D49,0) -> 60 | J22: 10000 | U22: =IF(AND(World!$G$22="yes",HLOOKUP(Trade!$B22,'Trade Tables'!$G$47:$AP$59,2,FALSE())=1),TRUE(),FALSE()) -> FALSE | V22: =IF(AND(World!$G$23="yes",HLOOKUP(Trade!$B22,'Trade Tables'!$G$47:$AP$59,3,FALSE())=1),TRUE(),FALSE()) -> FALSE | W22: =IF(AND(World!$G$25="yes",HLOOKUP(Trade!$B22,'Trade Tables'!$G$47:$AP$59,4,FALSE())=1),TRUE(),FALSE()) -> FALSE | X22: =IF(AND(World!$G$26="yes",HLOOKUP(Trade!$B22,'Trade Tables'!$G$47:$AP$59,5,FALSE())=1),TRUE(),FALSE()) -> FALSE | Y22: =IF(AND(World!$G$27="yes",HLOOKUP(Trade!$B22,'Trade Tables'!$G$47:$AP$59,6,FALSE())=1),TRUE(),FALSE()) -> TRUE | Z22: =IF(AND(World!$G$28="yes",HLOOKUP(Trade!$B22,'Trade Tables'!$G$47:$AP$59,7,FALSE())=1),TRUE(),FALSE()) -> TRUE | AA22: =IF(AND(World!$G$29="yes",HLOOKUP(Trade!$B22,'Trade Tables'!$G$47:$AP$59,8,FALSE())=1),TRUE(),FALSE()) -> FALSE | AB22: =IF(AND(World!$G$30="yes",HLOOKUP(Trade!$B22,'Trade Tables'!$G$47:$AP$59,9,FALSE())=1),TRUE(),FALSE()) -> FALSE | AC22: =IF(AND(World!$G$31="yes",HLOOKUP(Trade!$B22,'Trade Tables'!$G$47:$AP$59,10,FALSE())=1),TRUE(),FALSE()) -> FALSE | AD22: =IF(AND(World!$G$32="yes",HLOOKUP(Trade!$B22,'Trade Tables'!$G$47:$AP$59,11,FALSE())=1),TRUE(),FALSE()) -> FALSE | AE22: =IF(AND(World!$G$35="yes",HLOOKUP(Trade!$B22,'Trade Tables'!$G$47:$AP$59,12,FALSE())=1),TRUE(),FALSE()) -> FALSE | AF22: =IF(AND(World!$G$38="yes",HLOOKUP(Trade!$B22,'Trade Tables'!$G$47:$AP$59,13,FALSE())=1),TRUE(),FALSE()) -> FALSE | AG22: =IF(Rolls!$G$28='Trade Tables'!$B49,TRUE(),FALSE()) -> FALSE | AH22: =IF(Rolls!$G$29='Trade Tables'!$B49,TRUE(),FALSE()) -> FALSE | AI22: =IF(Rolls!$G$30='Trade Tables'!$B49,TRUE(),FALSE()) -> FALSE | AJ22: =IF(Rolls!$G$31='Trade Tables'!$B49,TRUE(),FALSE()) -> FALSE | AK22: =IF(Rolls!$G$32='Trade Tables'!$B49,TRUE(),FALSE()) -> FALSE | AL22: =IF(Rolls!$G$33='Trade Tables'!$B49,TRUE(),FALSE()) -> FALSE | AW22: =IF($C$6>7,LOOKUP(Rolls!B53,'Trade Tables'!B$88:C$123),"") -> Unusually pretty or handsome | AX22: =IF($C$7>7,LOOKUP(Rolls!C53,'Trade Tables'!B$88:C$123),"") -> Claustrophobic | AY22: =IF($C$8>7,LOOKUP(Rolls!D53,'Trade Tables'!B$88:C$123),"") -> Expectant mother | AZ22: =IF($C$10>7,Rolls!E53,"") ->  | BA22: =IF($C$11>7,Rolls!F53,"") ->  | BB22: =IF($C$12>7,Rolls!G53,"") -> 
B23: Basic Manufactured Goods | E23: =IF(OR(U23:AF23),CEILING(6*RAND(),1)*'Trade Tables'!D50,0)+IF(AG23,CEILING(6*RAND(),1)*'Trade Tables'!D50,0)+IF(AH23,CEILING(6*RAND(),1)*'Trade Tables'!D50,0)+IF(AI23,CEILING(6*RAND(),1)*'Trade Tables'!D50,0)+IF(AJ23,CEILING(6*RAND(),1)*'Trade Tables'!D50,0)+IF(AK23,CEILING(6*RAND(),1)*'Trade Tables'!D50,0)+IF(AL23,CEILING(6*RAND(),1)*'Trade Tables'!D50,0) -> 10 | J23: 10000 | U23: =IF(AND(World!$G$22="yes",HLOOKUP(Trade!$B23,'Trade Tables'!$G$47:$AP$59,2,FALSE())=1),TRUE(),FALSE()) -> FALSE | V23: =IF(AND(World!$G$23="yes",HLOOKUP(Trade!$B23,'Trade Tables'!$G$47:$AP$59,3,FALSE())=1),TRUE(),FALSE()) -> FALSE | W23: =IF(AND(World!$G$25="yes",HLOOKUP(Trade!$B23,'Trade Tables'!$G$47:$AP$59,4,FALSE())=1),TRUE(),FALSE()) -> FALSE | X23: =IF(AND(World!$G$26="yes",HLOOKUP(Trade!$B23,'Trade Tables'!$G$47:$AP$59,5,FALSE())=1),TRUE(),FALSE()) -> FALSE | Y23: =IF(AND(World!$G$27="yes",HLOOKUP(Trade!$B23,'Trade Tables'!$G$47:$AP$59,6,FALSE())=1),TRUE(),FALSE()) -> TRUE | Z23: =IF(AND(World!$G$28="yes",HLOOKUP(Trade!$B23,'Trade Tables'!$G$47:$AP$59,7,FALSE())=1),TRUE(),FALSE()) -> TRUE | AA23: =IF(AND(World!$G$29="yes",HLOOKUP(Trade!$B23,'Trade Tables'!$G$47:$AP$59,8,FALSE())=1),TRUE(),FALSE()) -> FALSE | AB23: =IF(AND(World!$G$30="yes",HLOOKUP(Trade!$B23,'Trade Tables'!$G$47:$AP$59,9,FALSE())=1),TRUE(),FALSE()) -> FALSE | AC23: =IF(AND(World!$G$31="yes",HLOOKUP(Trade!$B23,'Trade Tables'!$G$47:$AP$59,10,FALSE())=1),TRUE(),FALSE()) -> FALSE | AD23: =IF(AND(World!$G$32="yes",HLOOKUP(Trade!$B23,'Trade Tables'!$G$47:$AP$59,11,FALSE())=1),TRUE(),FALSE()) -> FALSE | AE23: =IF(AND(World!$G$35="yes",HLOOKUP(Trade!$B23,'Trade Tables'!$G$47:$AP$59,12,FALSE())=1),TRUE(),FALSE()) -> FALSE | AF23: =IF(AND(World!$G$38="yes",HLOOKUP(Trade!$B23,'Trade Tables'!$G$47:$AP$59,13,FALSE())=1),TRUE(),FALSE()) -> FALSE | AG23: =IF(Rolls!$G$28='Trade Tables'!$B50,TRUE(),FALSE()) -> FALSE | AH23: =IF(Rolls!$G$29='Trade Tables'!$B50,TRUE(),FALSE()) -> FALSE | AI23: =IF(Rolls!$G$30='Trade Tables'!$B50,TRUE(),FALSE()) -> FALSE | AJ23: =IF(Rolls!$G$31='Trade Tables'!$B50,TRUE(),FALSE()) -> FALSE | AK23: =IF(Rolls!$G$32='Trade Tables'!$B50,TRUE(),FALSE()) -> FALSE | AL23: =IF(Rolls!$G$33='Trade Tables'!$B50,TRUE(),FALSE()) -> FALSE | AW23: =IF($C$6>8,LOOKUP(Rolls!B54,'Trade Tables'!B$88:C$123),"") -> Refugee - Political | AX23: =IF($C$7>8,LOOKUP(Rolls!C54,'Trade Tables'!B$88:C$123),"") -> Adventurer | AY23: =IF($C$8>8,LOOKUP(Rolls!D54,'Trade Tables'!B$88:C$123),"") -> Alien | AZ23: =IF($C$10>8,Rolls!E54,"") ->  | BA23: =IF($C$11>8,Rolls!F54,"") ->  | BB23: =IF($C$12>8,Rolls!G54,"") -> 
B24: Basic Raw Materials | E24: =IF(OR(U24:AF24),CEILING(6*RAND(),1)*'Trade Tables'!D51,0)+IF(AG24,CEILING(6*RAND(),1)*'Trade Tables'!D51,0)+IF(AH24,CEILING(6*RAND(),1)*'Trade Tables'!D51,0)+IF(AI24,CEILING(6*RAND(),1)*'Trade Tables'!D51,0)+IF(AJ24,CEILING(6*RAND(),1)*'Trade Tables'!D51,0)+IF(AK24,CEILING(6*RAND(),1)*'Trade Tables'!D51,0)+IF(AL24,CEILING(6*RAND(),1)*'Trade Tables'!D51,0) -> 50 | J24: 5000 | U24: =IF(AND(World!$G$22="yes",HLOOKUP(Trade!$B24,'Trade Tables'!$G$47:$AP$59,2,FALSE())=1),TRUE(),FALSE()) -> FALSE | V24: =IF(AND(World!$G$23="yes",HLOOKUP(Trade!$B24,'Trade Tables'!$G$47:$AP$59,3,FALSE())=1),TRUE(),FALSE()) -> FALSE | W24: =IF(AND(World!$G$25="yes",HLOOKUP(Trade!$B24,'Trade Tables'!$G$47:$AP$59,4,FALSE())=1),TRUE(),FALSE()) -> FALSE | X24: =IF(AND(World!$G$26="yes",HLOOKUP(Trade!$B24,'Trade Tables'!$G$47:$AP$59,5,FALSE())=1),TRUE(),FALSE()) -> FALSE | Y24: =IF(AND(World!$G$27="yes",HLOOKUP(Trade!$B24,'Trade Tables'!$G$47:$AP$59,6,FALSE())=1),TRUE(),FALSE()) -> TRUE | Z24: =IF(AND(World!$G$28="yes",HLOOKUP(Trade!$B24,'Trade Tables'!$G$47:$AP$59,7,FALSE())=1),TRUE(),FALSE()) -> TRUE | AA24: =IF(AND(World!$G$29="yes",HLOOKUP(Trade!$B24,'Trade Tables'!$G$47:$AP$59,8,FALSE())=1),TRUE(),FALSE()) -> FALSE | AB24: =IF(AND(World!$G$30="yes",HLOOKUP(Trade!$B24,'Trade Tables'!$G$47:$AP$59,9,FALSE())=1),TRUE(),FALSE()) -> FALSE | AC24: =IF(AND(World!$G$31="yes",HLOOKUP(Trade!$B24,'Trade Tables'!$G$47:$AP$59,10,FALSE())=1),TRUE(),FALSE()) -> FALSE | AD24: =IF(AND(World!$G$32="yes",HLOOKUP(Trade!$B24,'Trade Tables'!$G$47:$AP$59,11,FALSE())=1),TRUE(),FALSE()) -> FALSE | AE24: =IF(AND(World!$G$35="yes",HLOOKUP(Trade!$B24,'Trade Tables'!$G$47:$AP$59,12,FALSE())=1),TRUE(),FALSE()) -> FALSE | AF24: =IF(AND(World!$G$38="yes",HLOOKUP(Trade!$B24,'Trade Tables'!$G$47:$AP$59,13,FALSE())=1),TRUE(),FALSE()) -> FALSE | AG24: =IF(Rolls!$G$28='Trade Tables'!$B51,TRUE(),FALSE()) -> FALSE | AH24: =IF(Rolls!$G$29='Trade Tables'!$B51,TRUE(),FALSE()) -> FALSE | AI24: =IF(Rolls!$G$30='Trade Tables'!$B51,TRUE(),FALSE()) -> FALSE | AJ24: =IF(Rolls!$G$31='Trade Tables'!$B51,TRUE(),FALSE()) -> FALSE | AK24: =IF(Rolls!$G$32='Trade Tables'!$B51,TRUE(),FALSE()) -> FALSE | AL24: =IF(Rolls!$G$33='Trade Tables'!$B51,TRUE(),FALSE()) -> FALSE | AW24: =IF($C$6>9,LOOKUP(Rolls!B55,'Trade Tables'!B$88:C$123),"") -> Claustrophobic | AX24: =IF($C$7>9,LOOKUP(Rolls!C55,'Trade Tables'!B$88:C$123),"") -> Theif or other Criminal | AY24: =IF($C$8>9,LOOKUP(Rolls!D55,'Trade Tables'!B$88:C$123),"") ->  | AZ24: =IF($C$10>9,Rolls!E55,"") ->  | BA24: =IF($C$11>9,Rolls!F55,"") ->  | BB24: =IF($C$12>9,Rolls!G55,"") -> 
B25: Basic Consumables | E25: =IF(OR(U25:AF25),CEILING(6*RAND(),1)*'Trade Tables'!D52,0)+IF(AG25,CEILING(6*RAND(),1)*'Trade Tables'!D52,0)+IF(AH25,CEILING(6*RAND(),1)*'Trade Tables'!D52,0)+IF(AI25,CEILING(6*RAND(),1)*'Trade Tables'!D52,0)+IF(AJ25,CEILING(6*RAND(),1)*'Trade Tables'!D52,0)+IF(AK25,CEILING(6*RAND(),1)*'Trade Tables'!D52,0)+IF(AL25,CEILING(6*RAND(),1)*'Trade Tables'!D52,0) -> 20 | J25: 2000 | U25: =IF(AND(World!$G$22="yes",HLOOKUP(Trade!$B25,'Trade Tables'!$G$47:$AP$59,2,FALSE())=1),TRUE(),FALSE()) -> FALSE | V25: =IF(AND(World!$G$23="yes",HLOOKUP(Trade!$B25,'Trade Tables'!$G$47:$AP$59,3,FALSE())=1),TRUE(),FALSE()) -> FALSE | W25: =IF(AND(World!$G$25="yes",HLOOKUP(Trade!$B25,'Trade Tables'!$G$47:$AP$59,4,FALSE())=1),TRUE(),FALSE()) -> FALSE | X25: =IF(AND(World!$G$26="yes",HLOOKUP(Trade!$B25,'Trade Tables'!$G$47:$AP$59,5,FALSE())=1),TRUE(),FALSE()) -> FALSE | Y25: =IF(AND(World!$G$27="yes",HLOOKUP(Trade!$B25,'Trade Tables'!$G$47:$AP$59,6,FALSE())=1),TRUE(),FALSE()) -> TRUE | Z25: =IF(AND(World!$G$28="yes",HLOOKUP(Trade!$B25,'Trade Tables'!$G$47:$AP$59,7,FALSE())=1),TRUE(),FALSE()) -> TRUE | AA25: =IF(AND(World!$G$29="yes",HLOOKUP(Trade!$B25,'Trade Tables'!$G$47:$AP$59,8,FALSE())=1),TRUE(),FALSE()) -> FALSE | AB25: =IF(AND(World!$G$30="yes",HLOOKUP(Trade!$B25,'Trade Tables'!$G$47:$AP$59,9,FALSE())=1),TRUE(),FALSE()) -> FALSE | AC25: =IF(AND(World!$G$31="yes",HLOOKUP(Trade!$B25,'Trade Tables'!$G$47:$AP$59,10,FALSE())=1),TRUE(),FALSE()) -> FALSE | AD25: =IF(AND(World!$G$32="yes",HLOOKUP(Trade!$B25,'Trade Tables'!$G$47:$AP$59,11,FALSE())=1),TRUE(),FALSE()) -> FALSE | AE25: =IF(AND(World!$G$35="yes",HLOOKUP(Trade!$B25,'Trade Tables'!$G$47:$AP$59,12,FALSE())=1),TRUE(),FALSE()) -> FALSE | AF25: =IF(AND(World!$G$38="yes",HLOOKUP(Trade!$B25,'Trade Tables'!$G$47:$AP$59,13,FALSE())=1),TRUE(),FALSE()) -> FALSE | AG25: =IF(Rolls!$G$28='Trade Tables'!$B52,TRUE(),FALSE()) -> FALSE | AH25: =IF(Rolls!$G$29='Trade Tables'!$B52,TRUE(),FALSE()) -> FALSE | AI25: =IF(Rolls!$G$30='Trade Tables'!$B52,TRUE(),FALSE()) -> FALSE | AJ25: =IF(Rolls!$G$31='Trade Tables'!$B52,TRUE(),FALSE()) -> FALSE | AK25: =IF(Rolls!$G$32='Trade Tables'!$B52,TRUE(),FALSE()) -> FALSE | AL25: =IF(Rolls!$G$33='Trade Tables'!$B52,TRUE(),FALSE()) -> FALSE | AW25: =IF($C$6>10,LOOKUP(Rolls!B56,'Trade Tables'!B$88:C$123),"") -> Scientist | AX25: =IF($C$7>10,LOOKUP(Rolls!C56,'Trade Tables'!B$88:C$123),"") -> Diplomat on a mission | AY25: =IF($C$8>10,LOOKUP(Rolls!D56,'Trade Tables'!B$88:C$123),"") ->  | AZ25: =IF($C$10>10,Rolls!E56,"") ->  | BA25: =IF($C$11>10,Rolls!F56,"") ->  | BB25: =IF($C$12>10,Rolls!G56,"") -> 
B26: Basic Ore | E26: =IF(OR(U26:AF26),CEILING(6*RAND(),1)*'Trade Tables'!D53,0)+IF(AG26,CEILING(6*RAND(),1)*'Trade Tables'!D53,0)+IF(AH26,CEILING(6*RAND(),1)*'Trade Tables'!D53,0)+IF(AI26,CEILING(6*RAND(),1)*'Trade Tables'!D53,0)+IF(AJ26,CEILING(6*RAND(),1)*'Trade Tables'!D53,0)+IF(AK26,CEILING(6*RAND(),1)*'Trade Tables'!D53,0)+IF(AL26,CEILING(6*RAND(),1)*'Trade Tables'!D53,0) -> 80 | J26: 1000 | U26: =IF(AND(World!$G$22="yes",HLOOKUP(Trade!$B26,'Trade Tables'!$G$47:$AP$59,2,FALSE())=1),TRUE(),FALSE()) -> FALSE | V26: =IF(AND(World!$G$23="yes",HLOOKUP(Trade!$B26,'Trade Tables'!$G$47:$AP$59,3,FALSE())=1),TRUE(),FALSE()) -> FALSE | W26: =IF(AND(World!$G$25="yes",HLOOKUP(Trade!$B26,'Trade Tables'!$G$47:$AP$59,4,FALSE())=1),TRUE(),FALSE()) -> FALSE | X26: =IF(AND(World!$G$26="yes",HLOOKUP(Trade!$B26,'Trade Tables'!$G$47:$AP$59,5,FALSE())=1),TRUE(),FALSE()) -> FALSE | Y26: =IF(AND(World!$G$27="yes",HLOOKUP(Trade!$B26,'Trade Tables'!$G$47:$AP$59,6,FALSE())=1),TRUE(),FALSE()) -> TRUE | Z26: =IF(AND(World!$G$28="yes",HLOOKUP(Trade!$B26,'Trade Tables'!$G$47:$AP$59,7,FALSE())=1),TRUE(),FALSE()) -> TRUE | AA26: =IF(AND(World!$G$29="yes",HLOOKUP(Trade!$B26,'Trade Tables'!$G$47:$AP$59,8,FALSE())=1),TRUE(),FALSE()) -> FALSE | AB26: =IF(AND(World!$G$30="yes",HLOOKUP(Trade!$B26,'Trade Tables'!$G$47:$AP$59,9,FALSE())=1),TRUE(),FALSE()) -> FALSE | AC26: =IF(AND(World!$G$31="yes",HLOOKUP(Trade!$B26,'Trade Tables'!$G$47:$AP$59,10,FALSE())=1),TRUE(),FALSE()) -> FALSE | AD26: =IF(AND(World!$G$32="yes",HLOOKUP(Trade!$B26,'Trade Tables'!$G$47:$AP$59,11,FALSE())=1),TRUE(),FALSE()) -> FALSE | AE26: =IF(AND(World!$G$35="yes",HLOOKUP(Trade!$B26,'Trade Tables'!$G$47:$AP$59,12,FALSE())=1),TRUE(),FALSE()) -> FALSE | AF26: =IF(AND(World!$G$38="yes",HLOOKUP(Trade!$B26,'Trade Tables'!$G$47:$AP$59,13,FALSE())=1),TRUE(),FALSE()) -> FALSE | AG26: =IF(Rolls!$G$28='Trade Tables'!$B53,TRUE(),FALSE()) -> FALSE | AH26: =IF(Rolls!$G$29='Trade Tables'!$B53,TRUE(),FALSE()) -> TRUE | AI26: =IF(Rolls!$G$30='Trade Tables'!$B53,TRUE(),FALSE()) -> FALSE | AJ26: =IF(Rolls!$G$31='Trade Tables'!$B53,TRUE(),FALSE()) -> FALSE | AK26: =IF(Rolls!$G$32='Trade Tables'!$B53,TRUE(),FALSE()) -> FALSE | AL26: =IF(Rolls!$G$33='Trade Tables'!$B53,TRUE(),FALSE()) -> FALSE | AW26: =IF($C$6>11,LOOKUP(Rolls!B57,'Trade Tables'!B$88:C$123),"") -> Journalist or researcher | AX26: =IF($C$7>11,LOOKUP(Rolls!C57,'Trade Tables'!B$88:C$123),"") -> Out to see the Universe | AY26: =IF($C$8>11,LOOKUP(Rolls!D57,'Trade Tables'!B$88:C$123),"") ->  | AZ26: =IF($C$10>11,Rolls!E57,"") ->  | BA26: =IF($C$11>11,Rolls!F57,"") ->  | BB26: =IF($C$12>11,Rolls!G57,"") -> 
B27: Advanced Electronics | E27: =IF(OR(U27:AF27),CEILING(6*RAND(),1)*'Trade Tables'!D54,0)+IF(AG27,CEILING(6*RAND(),1)*'Trade Tables'!D54,0)+IF(AH27,CEILING(6*RAND(),1)*'Trade Tables'!D54,0)+IF(AI27,CEILING(6*RAND(),1)*'Trade Tables'!D54,0)+IF(AJ27,CEILING(6*RAND(),1)*'Trade Tables'!D54,0)+IF(AK27,CEILING(6*RAND(),1)*'Trade Tables'!D54,0)+IF(AL27,CEILING(6*RAND(),1)*'Trade Tables'!D54,0) -> 0 | J27: 100000 | U27: =IF(AND(World!$G$22="yes",HLOOKUP(Trade!$B27,'Trade Tables'!$G$47:$AP$59,2,FALSE())=1),TRUE(),FALSE()) -> FALSE | V27: =IF(AND(World!$G$23="yes",HLOOKUP(Trade!$B27,'Trade Tables'!$G$47:$AP$59,3,FALSE())=1),TRUE(),FALSE()) -> FALSE | W27: =IF(AND(World!$G$25="yes",HLOOKUP(Trade!$B27,'Trade Tables'!$G$47:$AP$59,4,FALSE())=1),TRUE(),FALSE()) -> FALSE | X27: =IF(AND(World!$G$26="yes",HLOOKUP(Trade!$B27,'Trade Tables'!$G$47:$AP$59,5,FALSE())=1),TRUE(),FALSE()) -> FALSE | Y27: =IF(AND(World!$G$27="yes",HLOOKUP(Trade!$B27,'Trade Tables'!$G$47:$AP$59,6,FALSE())=1),TRUE(),FALSE()) -> FALSE | Z27: =IF(AND(World!$G$28="yes",HLOOKUP(Trade!$B27,'Trade Tables'!$G$47:$AP$59,7,FALSE())=1),TRUE(),FALSE()) -> FALSE | AA27: =IF(AND(World!$G$29="yes",HLOOKUP(Trade!$B27,'Trade Tables'!$G$47:$AP$59,8,FALSE())=1),TRUE(),FALSE()) -> FALSE | AB27: =IF(AND(World!$G$30="yes",HLOOKUP(Trade!$B27,'Trade Tables'!$G$47:$AP$59,9,FALSE())=1),TRUE(),FALSE()) -> FALSE | AC27: =IF(AND(World!$G$31="yes",HLOOKUP(Trade!$B27,'Trade Tables'!$G$47:$AP$59,10,FALSE())=1),TRUE(),FALSE()) -> FALSE | AD27: =IF(AND(World!$G$32="yes",HLOOKUP(Trade!$B27,'Trade Tables'!$G$47:$AP$59,11,FALSE())=1),TRUE(),FALSE()) -> FALSE | AE27: =IF(AND(World!$G$35="yes",HLOOKUP(Trade!$B27,'Trade Tables'!$G$47:$AP$59,12,FALSE())=1),TRUE(),FALSE()) -> FALSE | AF27: =IF(AND(World!$G$38="yes",HLOOKUP(Trade!$B27,'Trade Tables'!$G$47:$AP$59,13,FALSE())=1),TRUE(),FALSE()) -> FALSE | AG27: =IF(Rolls!$G$28='Trade Tables'!$B54,TRUE(),FALSE()) -> FALSE | AH27: =IF(Rolls!$G$29='Trade Tables'!$B54,TRUE(),FALSE()) -> FALSE | AI27: =IF(Rolls!$G$30='Trade Tables'!$B54,TRUE(),FALSE()) -> FALSE | AJ27: =IF(Rolls!$G$31='Trade Tables'!$B54,TRUE(),FALSE()) -> FALSE | AK27: =IF(Rolls!$G$32='Trade Tables'!$B54,TRUE(),FALSE()) -> FALSE | AL27: =IF(Rolls!$G$33='Trade Tables'!$B54,TRUE(),FALSE()) -> FALSE | AW27: =IF($C$6>12,LOOKUP(Rolls!B58,'Trade Tables'!B$88:C$123),"") -> Alien | AX27: =IF($C$7>12,LOOKUP(Rolls!C58,'Trade Tables'!B$88:C$123),"") -> Wants to stowaway or join the crew | AY27: =IF($C$8>12,LOOKUP(Rolls!D58,'Trade Tables'!B$88:C$123),"") ->  | BA27: =IF($C$11>12,Rolls!F58,"") ->  | BB27: =IF($C$12>12,Rolls!G58,"") -> 
B28: Advanced Machine Parts | E28: =IF(OR(U28:AF28),CEILING(6*RAND(),1)*'Trade Tables'!D55,0)+IF(AG28,CEILING(6*RAND(),1)*'Trade Tables'!D55,0)+IF(AH28,CEILING(6*RAND(),1)*'Trade Tables'!D55,0)+IF(AI28,CEILING(6*RAND(),1)*'Trade Tables'!D55,0)+IF(AJ28,CEILING(6*RAND(),1)*'Trade Tables'!D55,0)+IF(AK28,CEILING(6*RAND(),1)*'Trade Tables'!D55,0)+IF(AL28,CEILING(6*RAND(),1)*'Trade Tables'!D55,0) -> 0 | J28: 75000 | U28: =IF(AND(World!$G$22="yes",HLOOKUP(Trade!$B28,'Trade Tables'!$G$47:$AP$59,2,FALSE())=1),TRUE(),FALSE()) -> FALSE | V28: =IF(AND(World!$G$23="yes",HLOOKUP(Trade!$B28,'Trade Tables'!$G$47:$AP$59,3,FALSE())=1),TRUE(),FALSE()) -> FALSE | W28: =IF(AND(World!$G$25="yes",HLOOKUP(Trade!$B28,'Trade Tables'!$G$47:$AP$59,4,FALSE())=1),TRUE(),FALSE()) -> FALSE | X28: =IF(AND(World!$G$26="yes",HLOOKUP(Trade!$B28,'Trade Tables'!$G$47:$AP$59,5,FALSE())=1),TRUE(),FALSE()) -> FALSE | Y28: =IF(AND(World!$G$27="yes",HLOOKUP(Trade!$B28,'Trade Tables'!$G$47:$AP$59,6,FALSE())=1),TRUE(),FALSE()) -> FALSE | Z28: =IF(AND(World!$G$28="yes",HLOOKUP(Trade!$B28,'Trade Tables'!$G$47:$AP$59,7,FALSE())=1),TRUE(),FALSE()) -> FALSE | AA28: =IF(AND(World!$G$29="yes",HLOOKUP(Trade!$B28,'Trade Tables'!$G$47:$AP$59,8,FALSE())=1),TRUE(),FALSE()) -> FALSE | AB28: =IF(AND(World!$G$30="yes",HLOOKUP(Trade!$B28,'Trade Tables'!$G$47:$AP$59,9,FALSE())=1),TRUE(),FALSE()) -> FALSE | AC28: =IF(AND(World!$G$31="yes",HLOOKUP(Trade!$B28,'Trade Tables'!$G$47:$AP$59,10,FALSE())=1),TRUE(),FALSE()) -> FALSE | AD28: =IF(AND(World!$G$32="yes",HLOOKUP(Trade!$B28,'Trade Tables'!$G$47:$AP$59,11,FALSE())=1),TRUE(),FALSE()) -> FALSE | AE28: =IF(AND(World!$G$35="yes",HLOOKUP(Trade!$B28,'Trade Tables'!$G$47:$AP$59,12,FALSE())=1),TRUE(),FALSE()) -> FALSE | AF28: =IF(AND(World!$G$38="yes",HLOOKUP(Trade!$B28,'Trade Tables'!$G$47:$AP$59,13,FALSE())=1),TRUE(),FALSE()) -> FALSE | AG28: =IF(Rolls!$G$28='Trade Tables'!$B55,TRUE(),FALSE()) -> FALSE | AH28: =IF(Rolls!$G$29='Trade Tables'!$B55,TRUE(),FALSE()) -> FALSE | AI28: =IF(Rolls!$G$30='Trade Tables'!$B55,TRUE(),FALSE()) -> FALSE | AJ28: =IF(Rolls!$G$31='Trade Tables'!$B55,TRUE(),FALSE()) -> FALSE | AK28: =IF(Rolls!$G$32='Trade Tables'!$B55,TRUE(),FALSE()) -> FALSE | AL28: =IF(Rolls!$G$33='Trade Tables'!$B55,TRUE(),FALSE()) -> FALSE | AW28: =IF($C$6>13,LOOKUP(Rolls!B59,'Trade Tables'!B$88:C$123),"") -> Refugee - Economic | AX28: =IF($C$7>13,LOOKUP(Rolls!C59,'Trade Tables'!B$88:C$123),"") -> Theif or other Criminal | AY28: =IF($C$8>13,LOOKUP(Rolls!D59,'Trade Tables'!B$88:C$123),"") ->  | BA28: =IF($C$11>13,Rolls!F59,"") ->  | BB28: =IF($C$12>13,Rolls!G59,"") -> 
B29: Advanced Manufactured Goods | E29: =IF(OR(U29:AF29),CEILING(6*RAND(),1)*'Trade Tables'!D56,0)+IF(AG29,CEILING(6*RAND(),1)*'Trade Tables'!D56,0)+IF(AH29,CEILING(6*RAND(),1)*'Trade Tables'!D56,0)+IF(AI29,CEILING(6*RAND(),1)*'Trade Tables'!D56,0)+IF(AJ29,CEILING(6*RAND(),1)*'Trade Tables'!D56,0)+IF(AK29,CEILING(6*RAND(),1)*'Trade Tables'!D56,0)+IF(AL29,CEILING(6*RAND(),1)*'Trade Tables'!D56,0) -> 0 | J29: 100000 | U29: =IF(AND(World!$G$22="yes",HLOOKUP(Trade!$B29,'Trade Tables'!$G$47:$AP$59,2,FALSE())=1),TRUE(),FALSE()) -> FALSE | V29: =IF(AND(World!$G$23="yes",HLOOKUP(Trade!$B29,'Trade Tables'!$G$47:$AP$59,3,FALSE())=1),TRUE(),FALSE()) -> FALSE | W29: =IF(AND(World!$G$25="yes",HLOOKUP(Trade!$B29,'Trade Tables'!$G$47:$AP$59,4,FALSE())=1),TRUE(),FALSE()) -> FALSE | X29: =IF(AND(World!$G$26="yes",HLOOKUP(Trade!$B29,'Trade Tables'!$G$47:$AP$59,5,FALSE())=1),TRUE(),FALSE()) -> FALSE | Y29: =IF(AND(World!$G$27="yes",HLOOKUP(Trade!$B29,'Trade Tables'!$G$47:$AP$59,6,FALSE())=1),TRUE(),FALSE()) -> FALSE | Z29: =IF(AND(World!$G$28="yes",HLOOKUP(Trade!$B29,'Trade Tables'!$G$47:$AP$59,7,FALSE())=1),TRUE(),FALSE()) -> FALSE | AA29: =IF(AND(World!$G$29="yes",HLOOKUP(Trade!$B29,'Trade Tables'!$G$47:$AP$59,8,FALSE())=1),TRUE(),FALSE()) -> FALSE | AB29: =IF(AND(World!$G$30="yes",HLOOKUP(Trade!$B29,'Trade Tables'!$G$47:$AP$59,9,FALSE())=1),TRUE(),FALSE()) -> FALSE | AC29: =IF(AND(World!$G$31="yes",HLOOKUP(Trade!$B29,'Trade Tables'!$G$47:$AP$59,10,FALSE())=1),TRUE(),FALSE()) -> FALSE | AD29: =IF(AND(World!$G$32="yes",HLOOKUP(Trade!$B29,'Trade Tables'!$G$47:$AP$59,11,FALSE())=1),TRUE(),FALSE()) -> FALSE | AE29: =IF(AND(World!$G$35="yes",HLOOKUP(Trade!$B29,'Trade Tables'!$G$47:$AP$59,12,FALSE())=1),TRUE(),FALSE()) -> FALSE | AF29: =IF(AND(World!$G$38="yes",HLOOKUP(Trade!$B29,'Trade Tables'!$G$47:$AP$59,13,FALSE())=1),TRUE(),FALSE()) -> FALSE | AG29: =IF(Rolls!$G$28='Trade Tables'!$B56,TRUE(),FALSE()) -> FALSE | AH29: =IF(Rolls!$G$29='Trade Tables'!$B56,TRUE(),FALSE()) -> FALSE | AI29: =IF(Rolls!$G$30='Trade Tables'!$B56,TRUE(),FALSE()) -> FALSE | AJ29: =IF(Rolls!$G$31='Trade Tables'!$B56,TRUE(),FALSE()) -> FALSE | AK29: =IF(Rolls!$G$32='Trade Tables'!$B56,TRUE(),FALSE()) -> FALSE | AL29: =IF(Rolls!$G$33='Trade Tables'!$B56,TRUE(),FALSE()) -> FALSE | AW29: =IF($C$6>14,LOOKUP(Rolls!B60,'Trade Tables'!B$88:C$123),"") -> Possesses something dangerous or illegal | AX29: =IF($C$7>14,LOOKUP(Rolls!C60,'Trade Tables'!B$88:C$123),"") -> Entertainer | AY29: =IF($C$8>14,LOOKUP(Rolls!D60,'Trade Tables'!B$88:C$123),"") ->  | BA29: =IF($C$11>14,Rolls!F60,"") ->  | BB29: =IF($C$12>14,Rolls!G60,"") -> 
B30: Advanced Weapons | E30: =IF(OR(U30:AF30),CEILING(6*RAND(),1)*'Trade Tables'!D57,0)+IF(AG30,CEILING(6*RAND(),1)*'Trade Tables'!D57,0)+IF(AH30,CEILING(6*RAND(),1)*'Trade Tables'!D57,0)+IF(AI30,CEILING(6*RAND(),1)*'Trade Tables'!D57,0)+IF(AJ30,CEILING(6*RAND(),1)*'Trade Tables'!D57,0)+IF(AK30,CEILING(6*RAND(),1)*'Trade Tables'!D57,0)+IF(AL30,CEILING(6*RAND(),1)*'Trade Tables'!D57,0) -> 0 | J30: 150000 | U30: =IF(AND(World!$G$22="yes",HLOOKUP(Trade!$B30,'Trade Tables'!$G$47:$AP$59,2,FALSE())=1),TRUE(),FALSE()) -> FALSE | V30: =IF(AND(World!$G$23="yes",HLOOKUP(Trade!$B30,'Trade Tables'!$G$47:$AP$59,3,FALSE())=1),TRUE(),FALSE()) -> FALSE | W30: =IF(AND(World!$G$25="yes",HLOOKUP(Trade!$B30,'Trade Tables'!$G$47:$AP$59,4,FALSE())=1),TRUE(),FALSE()) -> FALSE | X30: =IF(AND(World!$G$26="yes",HLOOKUP(Trade!$B30,'Trade Tables'!$G$47:$AP$59,5,FALSE())=1),TRUE(),FALSE()) -> FALSE | Y30: =IF(AND(World!$G$27="yes",HLOOKUP(Trade!$B30,'Trade Tables'!$G$47:$AP$59,6,FALSE())=1),TRUE(),FALSE()) -> FALSE | Z30: =IF(AND(World!$G$28="yes",HLOOKUP(Trade!$B30,'Trade Tables'!$G$47:$AP$59,7,FALSE())=1),TRUE(),FALSE()) -> FALSE | AA30: =IF(AND(World!$G$29="yes",HLOOKUP(Trade!$B30,'Trade Tables'!$G$47:$AP$59,8,FALSE())=1),TRUE(),FALSE()) -> FALSE | AB30: =IF(AND(World!$G$30="yes",HLOOKUP(Trade!$B30,'Trade Tables'!$G$47:$AP$59,9,FALSE())=1),TRUE(),FALSE()) -> FALSE | AC30: =IF(AND(World!$G$31="yes",HLOOKUP(Trade!$B30,'Trade Tables'!$G$47:$AP$59,10,FALSE())=1),TRUE(),FALSE()) -> FALSE | AD30: =IF(AND(World!$G$32="yes",HLOOKUP(Trade!$B30,'Trade Tables'!$G$47:$AP$59,11,FALSE())=1),TRUE(),FALSE()) -> FALSE | AE30: =IF(AND(World!$G$35="yes",HLOOKUP(Trade!$B30,'Trade Tables'!$G$47:$AP$59,12,FALSE())=1),TRUE(),FALSE()) -> FALSE | AF30: =IF(AND(World!$G$38="yes",HLOOKUP(Trade!$B30,'Trade Tables'!$G$47:$AP$59,13,FALSE())=1),TRUE(),FALSE()) -> FALSE | AG30: =IF(Rolls!$G$28='Trade Tables'!$B57,TRUE(),FALSE()) -> FALSE | AH30: =IF(Rolls!$G$29='Trade Tables'!$B57,TRUE(),FALSE()) -> FALSE | AI30: =IF(Rolls!$G$30='Trade Tables'!$B57,TRUE(),FALSE()) -> FALSE | AJ30: =IF(Rolls!$G$31='Trade Tables'!$B57,TRUE(),FALSE()) -> FALSE | AK30: =IF(Rolls!$G$32='Trade Tables'!$B57,TRUE(),FALSE()) -> FALSE | AL30: =IF(Rolls!$G$33='Trade Tables'!$B57,TRUE(),FALSE()) -> FALSE | AW30: =IF($C$6>15,LOOKUP(Rolls!B61,'Trade Tables'!B$88:C$123),"") -> Corporate executive | AX30: =IF($C$7>15,LOOKUP(Rolls!C61,'Trade Tables'!B$88:C$123),"") -> Adventurer | AY30: =IF($C$8>15,LOOKUP(Rolls!D61,'Trade Tables'!B$88:C$123),"") ->  | BA30: =IF($C$11>15,Rolls!F61,"") ->  | BB30: =IF($C$12>15,Rolls!G61,"") -> 
B31: Advanced Vehicles | E31: =IF(OR(U31:AF31),CEILING(6*RAND(),1)*'Trade Tables'!D58,0)+IF(AG31,CEILING(6*RAND(),1)*'Trade Tables'!D58,0)+IF(AH31,CEILING(6*RAND(),1)*'Trade Tables'!D58,0)+IF(AI31,CEILING(6*RAND(),1)*'Trade Tables'!D58,0)+IF(AJ31,CEILING(6*RAND(),1)*'Trade Tables'!D58,0)+IF(AK31,CEILING(6*RAND(),1)*'Trade Tables'!D58,0)+IF(AL31,CEILING(6*RAND(),1)*'Trade Tables'!D58,0) -> 0 | J31: 180000 | U31: =IF(AND(World!$G$22="yes",HLOOKUP(Trade!$B31,'Trade Tables'!$G$47:$AP$59,2,FALSE())=1),TRUE(),FALSE()) -> FALSE | V31: =IF(AND(World!$G$23="yes",HLOOKUP(Trade!$B31,'Trade Tables'!$G$47:$AP$59,3,FALSE())=1),TRUE(),FALSE()) -> FALSE | W31: =IF(AND(World!$G$25="yes",HLOOKUP(Trade!$B31,'Trade Tables'!$G$47:$AP$59,4,FALSE())=1),TRUE(),FALSE()) -> FALSE | X31: =IF(AND(World!$G$26="yes",HLOOKUP(Trade!$B31,'Trade Tables'!$G$47:$AP$59,5,FALSE())=1),TRUE(),FALSE()) -> FALSE | Y31: =IF(AND(World!$G$27="yes",HLOOKUP(Trade!$B31,'Trade Tables'!$G$47:$AP$59,6,FALSE())=1),TRUE(),FALSE()) -> FALSE | Z31: =IF(AND(World!$G$28="yes",HLOOKUP(Trade!$B31,'Trade Tables'!$G$47:$AP$59,7,FALSE())=1),TRUE(),FALSE()) -> FALSE | AA31: =IF(AND(World!$G$29="yes",HLOOKUP(Trade!$B31,'Trade Tables'!$G$47:$AP$59,8,FALSE())=1),TRUE(),FALSE()) -> FALSE | AB31: =IF(AND(World!$G$30="yes",HLOOKUP(Trade!$B31,'Trade Tables'!$G$47:$AP$59,9,FALSE())=1),TRUE(),FALSE()) -> FALSE | AC31: =IF(AND(World!$G$31="yes",HLOOKUP(Trade!$B31,'Trade Tables'!$G$47:$AP$59,10,FALSE())=1),TRUE(),FALSE()) -> FALSE | AD31: =IF(AND(World!$G$32="yes",HLOOKUP(Trade!$B31,'Trade Tables'!$G$47:$AP$59,11,FALSE())=1),TRUE(),FALSE()) -> FALSE | AE31: =IF(AND(World!$G$35="yes",HLOOKUP(Trade!$B31,'Trade Tables'!$G$47:$AP$59,12,FALSE())=1),TRUE(),FALSE()) -> FALSE | AF31: =IF(AND(World!$G$38="yes",HLOOKUP(Trade!$B31,'Trade Tables'!$G$47:$AP$59,13,FALSE())=1),TRUE(),FALSE()) -> FALSE | AG31: =IF(Rolls!$G$28='Trade Tables'!$B58,TRUE(),FALSE()) -> FALSE | AH31: =IF(Rolls!$G$29='Trade Tables'!$B58,TRUE(),FALSE()) -> FALSE | AI31: =IF(Rolls!$G$30='Trade Tables'!$B58,TRUE(),FALSE()) -> FALSE | AJ31: =IF(Rolls!$G$31='Trade Tables'!$B58,TRUE(),FALSE()) -> FALSE | AK31: =IF(Rolls!$G$32='Trade Tables'!$B58,TRUE(),FALSE()) -> FALSE | AL31: =IF(Rolls!$G$33='Trade Tables'!$B58,TRUE(),FALSE()) -> FALSE | AW31: =IF($C$6>16,LOOKUP(Rolls!B62,'Trade Tables'!B$88:C$123),"") -> Hijacker or pirate agent | AX31: =IF($C$7>16,LOOKUP(Rolls!C62,'Trade Tables'!B$88:C$123),"") -> Out to see the Universe | AY31: =IF($C$8>16,LOOKUP(Rolls!D62,'Trade Tables'!B$88:C$123),"") ->  | BA31: =IF($C$11>16,Rolls!F62,"") ->  | BB31: =IF($C$12>16,Rolls!G62,"") -> 
B32: Biochemicals | E32: =IF(OR(U32:AF32),CEILING(6*RAND(),1)*'Trade Tables'!D59,0)+IF(AG32,CEILING(6*RAND(),1)*'Trade Tables'!D59,0)+IF(AH32,CEILING(6*RAND(),1)*'Trade Tables'!D59,0)+IF(AI32,CEILING(6*RAND(),1)*'Trade Tables'!D59,0)+IF(AJ32,CEILING(6*RAND(),1)*'Trade Tables'!D59,0)+IF(AK32,CEILING(6*RAND(),1)*'Trade Tables'!D59,0)+IF(AL32,CEILING(6*RAND(),1)*'Trade Tables'!D59,0) -> 0 | J32: 50000 | U32: =IF(AND(World!$G$22="yes",HLOOKUP(Trade!$B32,'Trade Tables'!$G$47:$AP$59,2,FALSE())=1),TRUE(),FALSE()) -> FALSE | V32: =IF(AND(World!$G$23="yes",HLOOKUP(Trade!$B32,'Trade Tables'!$G$47:$AP$59,3,FALSE())=1),TRUE(),FALSE()) -> FALSE | W32: =IF(AND(World!$G$25="yes",HLOOKUP(Trade!$B32,'Trade Tables'!$G$47:$AP$59,4,FALSE())=1),TRUE(),FALSE()) -> FALSE | X32: =IF(AND(World!$G$26="yes",HLOOKUP(Trade!$B32,'Trade Tables'!$G$47:$AP$59,5,FALSE())=1),TRUE(),FALSE()) -> FALSE | Y32: =IF(AND(World!$G$27="yes",HLOOKUP(Trade!$B32,'Trade Tables'!$G$47:$AP$59,6,FALSE())=1),TRUE(),FALSE()) -> FALSE | Z32: =IF(AND(World!$G$28="yes",HLOOKUP(Trade!$B32,'Trade Tables'!$G$47:$AP$59,7,FALSE())=1),TRUE(),FALSE()) -> FALSE | AA32: =IF(AND(World!$G$29="yes",HLOOKUP(Trade!$B32,'Trade Tables'!$G$47:$AP$59,8,FALSE())=1),TRUE(),FALSE()) -> FALSE | AB32: =IF(AND(World!$G$30="yes",HLOOKUP(Trade!$B32,'Trade Tables'!$G$47:$AP$59,9,FALSE())=1),TRUE(),FALSE()) -> FALSE | AC32: =IF(AND(World!$G$31="yes",HLOOKUP(Trade!$B32,'Trade Tables'!$G$47:$AP$59,10,FALSE())=1),TRUE(),FALSE()) -> FALSE | AD32: =IF(AND(World!$G$32="yes",HLOOKUP(Trade!$B32,'Trade Tables'!$G$47:$AP$59,11,FALSE())=1),TRUE(),FALSE()) -> FALSE | AE32: =IF(AND(World!$G$35="yes",HLOOKUP(Trade!$B32,'Trade Tables'!$G$47:$AP$59,12,FALSE())=1),TRUE(),FALSE()) -> FALSE | AF32: =IF(AND(World!$G$38="yes",HLOOKUP(Trade!$B32,'Trade Tables'!$G$47:$AP$59,13,FALSE())=1),TRUE(),FALSE()) -> FALSE | AG32: =IF(Rolls!$G$28='Trade Tables'!$B59,TRUE(),FALSE()) -> FALSE | AH32: =IF(Rolls!$G$29='Trade Tables'!$B59,TRUE(),FALSE()) -> FALSE | AI32: =IF(Rolls!$G$30='Trade Tables'!$B59,TRUE(),FALSE()) -> FALSE | AJ32: =IF(Rolls!$G$31='Trade Tables'!$B59,TRUE(),FALSE()) -> FALSE | AK32: =IF(Rolls!$G$32='Trade Tables'!$B59,TRUE(),FALSE()) -> FALSE | AL32: =IF(Rolls!$G$33='Trade Tables'!$B59,TRUE(),FALSE()) -> FALSE | AW32: =IF($C$6>17,LOOKUP(Rolls!B63,'Trade Tables'!B$88:C$123),"") -> Refugee - Economic | AX32: =IF($C$7>17,LOOKUP(Rolls!C63,'Trade Tables'!B$88:C$123),"") -> Starting a new life offworld | AY32: =IF($C$8>17,LOOKUP(Rolls!D63,'Trade Tables'!B$88:C$123),"") ->  | BA32: =IF($C$11>17,Rolls!F63,"") ->  | BB32: =IF($C$12>17,Rolls!G63,"") -> 
B33: Crystals and Gems | E33: =IF(OR(U33:AF33),CEILING(6*RAND(),1)*'Trade Tables'!D60,0)+IF(AG33,CEILING(6*RAND(),1)*'Trade Tables'!D60,0)+IF(AH33,CEILING(6*RAND(),1)*'Trade Tables'!D60,0)+IF(AI33,CEILING(6*RAND(),1)*'Trade Tables'!D60,0)+IF(AJ33,CEILING(6*RAND(),1)*'Trade Tables'!D60,0)+IF(AK33,CEILING(6*RAND(),1)*'Trade Tables'!D60,0)+IF(AL33,CEILING(6*RAND(),1)*'Trade Tables'!D60,0) -> 0 | J33: 20000 | U33: =IF(AND(World!$G$22="yes",HLOOKUP(Trade!$B33,'Trade Tables'!$G$47:$AP$59,2,FALSE())=1),TRUE(),FALSE()) -> FALSE | V33: =IF(AND(World!$G$23="yes",HLOOKUP(Trade!$B33,'Trade Tables'!$G$47:$AP$59,3,FALSE())=1),TRUE(),FALSE()) -> FALSE | W33: =IF(AND(World!$G$25="yes",HLOOKUP(Trade!$B33,'Trade Tables'!$G$47:$AP$59,4,FALSE())=1),TRUE(),FALSE()) -> FALSE | X33: =IF(AND(World!$G$26="yes",HLOOKUP(Trade!$B33,'Trade Tables'!$G$47:$AP$59,5,FALSE())=1),TRUE(),FALSE()) -> FALSE | Y33: =IF(AND(World!$G$27="yes",HLOOKUP(Trade!$B33,'Trade Tables'!$G$47:$AP$59,6,FALSE())=1),TRUE(),FALSE()) -> FALSE | Z33: =IF(AND(World!$G$28="yes",HLOOKUP(Trade!$B33,'Trade Tables'!$G$47:$AP$59,7,FALSE())=1),TRUE(),FALSE()) -> FALSE | AA33: =IF(AND(World!$G$29="yes",HLOOKUP(Trade!$B33,'Trade Tables'!$G$47:$AP$59,8,FALSE())=1),TRUE(),FALSE()) -> FALSE | AB33: =IF(AND(World!$G$30="yes",HLOOKUP(Trade!$B33,'Trade Tables'!$G$47:$AP$59,9,FALSE())=1),TRUE(),FALSE()) -> FALSE | AC33: =IF(AND(World!$G$31="yes",HLOOKUP(Trade!$B33,'Trade Tables'!$G$47:$AP$59,10,FALSE())=1),TRUE(),FALSE()) -> FALSE | AD33: =IF(AND(World!$G$32="yes",HLOOKUP(Trade!$B33,'Trade Tables'!$G$47:$AP$59,11,FALSE())=1),TRUE(),FALSE()) -> FALSE | AE33: =IF(AND(World!$G$35="yes",HLOOKUP(Trade!$B33,'Trade Tables'!$G$47:$AP$59,12,FALSE())=1),TRUE(),FALSE()) -> FALSE | AF33: =IF(AND(World!$G$38="yes",HLOOKUP(Trade!$B33,'Trade Tables'!$G$47:$AP$59,13,FALSE())=1),TRUE(),FALSE()) -> FALSE | AG33: =IF(Rolls!$G$28='Trade Tables'!$B60,TRUE(),FALSE()) -> FALSE | AH33: =IF(Rolls!$G$29='Trade Tables'!$B60,TRUE(),FALSE()) -> FALSE | AI33: =IF(Rolls!$G$30='Trade Tables'!$B60,TRUE(),FALSE()) -> FALSE | AJ33: =IF(Rolls!$G$31='Trade Tables'!$B60,TRUE(),FALSE()) -> FALSE | AK33: =IF(Rolls!$G$32='Trade Tables'!$B60,TRUE(),FALSE()) -> FALSE | AL33: =IF(Rolls!$G$33='Trade Tables'!$B60,TRUE(),FALSE()) -> FALSE | AW33: =IF($C$6>18,LOOKUP(Rolls!B64,'Trade Tables'!B$88:C$123),"") -> Wanderer | AX33: =IF($C$7>18,LOOKUP(Rolls!C64,'Trade Tables'!B$88:C$123),"") -> Bounty Hunter | AY33: =IF($C$8>18,LOOKUP(Rolls!D64,'Trade Tables'!B$88:C$123),"") ->  | BA33: =IF($C$11>18,Rolls!F64,"") -> 
B34: Cybernetices | E34: =IF(OR(U34:AF34),CEILING(6*RAND(),1)*'Trade Tables'!D61,0)+IF(AG34,CEILING(6*RAND(),1)*'Trade Tables'!D61,0)+IF(AH34,CEILING(6*RAND(),1)*'Trade Tables'!D61,0)+IF(AI34,CEILING(6*RAND(),1)*'Trade Tables'!D61,0)+IF(AJ34,CEILING(6*RAND(),1)*'Trade Tables'!D61,0)+IF(AK34,CEILING(6*RAND(),1)*'Trade Tables'!D61,0)+IF(AL34,CEILING(6*RAND(),1)*'Trade Tables'!D61,0) -> 0 | J34: 250000 | U34: =IF(AND(World!$G$22="yes",HLOOKUP(Trade!$B34,'Trade Tables'!$G$47:$AP$59,2,FALSE())=1),TRUE(),FALSE()) -> FALSE | V34: =IF(AND(World!$G$23="yes",HLOOKUP(Trade!$B34,'Trade Tables'!$G$47:$AP$59,3,FALSE())=1),TRUE(),FALSE()) -> FALSE | W34: =IF(AND(World!$G$25="yes",HLOOKUP(Trade!$B34,'Trade Tables'!$G$47:$AP$59,4,FALSE())=1),TRUE(),FALSE()) -> FALSE | X34: =IF(AND(World!$G$26="yes",HLOOKUP(Trade!$B34,'Trade Tables'!$G$47:$AP$59,5,FALSE())=1),TRUE(),FALSE()) -> FALSE | Y34: =IF(AND(World!$G$27="yes",HLOOKUP(Trade!$B34,'Trade Tables'!$G$47:$AP$59,6,FALSE())=1),TRUE(),FALSE()) -> FALSE | Z34: =IF(AND(World!$G$28="yes",HLOOKUP(Trade!$B34,'Trade Tables'!$G$47:$AP$59,7,FALSE())=1),TRUE(),FALSE()) -> FALSE | AA34: =IF(AND(World!$G$29="yes",HLOOKUP(Trade!$B34,'Trade Tables'!$G$47:$AP$59,8,FALSE())=1),TRUE(),FALSE()) -> FALSE | AB34: =IF(AND(World!$G$30="yes",HLOOKUP(Trade!$B34,'Trade Tables'!$G$47:$AP$59,9,FALSE())=1),TRUE(),FALSE()) -> FALSE | AC34: =IF(AND(World!$G$31="yes",HLOOKUP(Trade!$B34,'Trade Tables'!$G$47:$AP$59,10,FALSE())=1),TRUE(),FALSE()) -> FALSE | AD34: =IF(AND(World!$G$32="yes",HLOOKUP(Trade!$B34,'Trade Tables'!$G$47:$AP$59,11,FALSE())=1),TRUE(),FALSE()) -> FALSE | AE34: =IF(AND(World!$G$35="yes",HLOOKUP(Trade!$B34,'Trade Tables'!$G$47:$AP$59,12,FALSE())=1),TRUE(),FALSE()) -> FALSE | AF34: =IF(AND(World!$G$38="yes",HLOOKUP(Trade!$B34,'Trade Tables'!$G$47:$AP$59,13,FALSE())=1),TRUE(),FALSE()) -> FALSE | AG34: =IF(Rolls!$G$28='Trade Tables'!$B61,TRUE(),FALSE()) -> FALSE | AH34: =IF(Rolls!$G$29='Trade Tables'!$B61,TRUE(),FALSE()) -> FALSE | AI34: =IF(Rolls!$G$30='Trade Tables'!$B61,TRUE(),FALSE()) -> FALSE | AJ34: =IF(Rolls!$G$31='Trade Tables'!$B61,TRUE(),FALSE()) -> FALSE | AK34: =IF(Rolls!$G$32='Trade Tables'!$B61,TRUE(),FALSE()) -> FALSE | AL34: =IF(Rolls!$G$33='Trade Tables'!$B61,TRUE(),FALSE()) -> FALSE | AW34: =IF($C$6>19,LOOKUP(Rolls!B65,'Trade Tables'!B$88:C$123),"") -> Scientist | AX34: =IF($C$7>19,LOOKUP(Rolls!C65,'Trade Tables'!B$88:C$123),"") -> Corporate executive | AY34: =IF($C$8>19,LOOKUP(Rolls!D65,'Trade Tables'!B$88:C$123),"") ->  | BA34: =IF($C$11>19,Rolls!F65,"") -> 
B35: Live Animals | E35: =IF(OR(U35:AF35),CEILING(6*RAND(),1)*'Trade Tables'!D62,0)+IF(AG35,CEILING(6*RAND(),1)*'Trade Tables'!D62,0)+IF(AH35,CEILING(6*RAND(),1)*'Trade Tables'!D62,0)+IF(AI35,CEILING(6*RAND(),1)*'Trade Tables'!D62,0)+IF(AJ35,CEILING(6*RAND(),1)*'Trade Tables'!D62,0)+IF(AK35,CEILING(6*RAND(),1)*'Trade Tables'!D62,0)+IF(AL35,CEILING(6*RAND(),1)*'Trade Tables'!D62,0) -> 40 | J35: 10000 | U35: =IF(AND(World!$G$22="yes",HLOOKUP(Trade!$B35,'Trade Tables'!$G$47:$AP$59,2,FALSE())=1),TRUE(),FALSE()) -> FALSE | V35: =IF(AND(World!$G$23="yes",HLOOKUP(Trade!$B35,'Trade Tables'!$G$47:$AP$59,3,FALSE())=1),TRUE(),FALSE()) -> FALSE | W35: =IF(AND(World!$G$25="yes",HLOOKUP(Trade!$B35,'Trade Tables'!$G$47:$AP$59,4,FALSE())=1),TRUE(),FALSE()) -> FALSE | X35: =IF(AND(World!$G$26="yes",HLOOKUP(Trade!$B35,'Trade Tables'!$G$47:$AP$59,5,FALSE())=1),TRUE(),FALSE()) -> FALSE | Y35: =IF(AND(World!$G$27="yes",HLOOKUP(Trade!$B35,'Trade Tables'!$G$47:$AP$59,6,FALSE())=1),TRUE(),FALSE()) -> TRUE | Z35: =IF(AND(World!$G$28="yes",HLOOKUP(Trade!$B35,'Trade Tables'!$G$47:$AP$59,7,FALSE())=1),TRUE(),FALSE()) -> FALSE | AA35: =IF(AND(World!$G$29="yes",HLOOKUP(Trade!$B35,'Trade Tables'!$G$47:$AP$59,8,FALSE())=1),TRUE(),FALSE()) -> FALSE | AB35: =IF(AND(World!$G$30="yes",HLOOKUP(Trade!$B35,'Trade Tables'!$G$47:$AP$59,9,FALSE())=1),TRUE(),FALSE()) -> FALSE | AC35: =IF(AND(World!$G$31="yes",HLOOKUP(Trade!$B35,'Trade Tables'!$G$47:$AP$59,10,FALSE())=1),TRUE(),FALSE()) -> FALSE | AD35: =IF(AND(World!$G$32="yes",HLOOKUP(Trade!$B35,'Trade Tables'!$G$47:$AP$59,11,FALSE())=1),TRUE(),FALSE()) -> FALSE | AE35: =IF(AND(World!$G$35="yes",HLOOKUP(Trade!$B35,'Trade Tables'!$G$47:$AP$59,12,FALSE())=1),TRUE(),FALSE()) -> FALSE | AF35: =IF(AND(World!$G$38="yes",HLOOKUP(Trade!$B35,'Trade Tables'!$G$47:$AP$59,13,FALSE())=1),TRUE(),FALSE()) -> FALSE | AG35: =IF(Rolls!$G$28='Trade Tables'!$B62,TRUE(),FALSE()) -> FALSE | AH35: =IF(Rolls!$G$29='Trade Tables'!$B62,TRUE(),FALSE()) -> FALSE | AI35: =IF(Rolls!$G$30='Trade Tables'!$B62,TRUE(),FALSE()) -> FALSE | AJ35: =IF(Rolls!$G$31='Trade Tables'!$B62,TRUE(),FALSE()) -> FALSE | AK35: =IF(Rolls!$G$32='Trade Tables'!$B62,TRUE(),FALSE()) -> FALSE | AL35: =IF(Rolls!$G$33='Trade Tables'!$B62,TRUE(),FALSE()) -> FALSE | AW35: =IF($C$6>20,LOOKUP(Rolls!B66,'Trade Tables'!B$88:C$123),"") -> Rich noble - eccentric | AX35: =IF($C$7>20,LOOKUP(Rolls!C66,'Trade Tables'!B$88:C$123),"") ->  | AY35: =IF($C$8>20,LOOKUP(Rolls!D66,'Trade Tables'!B$88:C$123),"") ->  | BA35: =IF($C$11>20,Rolls!F66,"") -> 
B36: Luxury Consumables | E36: =IF(OR(U36:AF36),CEILING(6*RAND(),1)*'Trade Tables'!D63,0)+IF(AG36,CEILING(6*RAND(),1)*'Trade Tables'!D63,0)+IF(AH36,CEILING(6*RAND(),1)*'Trade Tables'!D63,0)+IF(AI36,CEILING(6*RAND(),1)*'Trade Tables'!D63,0)+IF(AJ36,CEILING(6*RAND(),1)*'Trade Tables'!D63,0)+IF(AK36,CEILING(6*RAND(),1)*'Trade Tables'!D63,0)+IF(AL36,CEILING(6*RAND(),1)*'Trade Tables'!D63,0) -> 30 | J36: 20000 | U36: =IF(AND(World!$G$22="yes",HLOOKUP(Trade!$B36,'Trade Tables'!$G$47:$AP$59,2,FALSE())=1),TRUE(),FALSE()) -> FALSE | V36: =IF(AND(World!$G$23="yes",HLOOKUP(Trade!$B36,'Trade Tables'!$G$47:$AP$59,3,FALSE())=1),TRUE(),FALSE()) -> FALSE | W36: =IF(AND(World!$G$25="yes",HLOOKUP(Trade!$B36,'Trade Tables'!$G$47:$AP$59,4,FALSE())=1),TRUE(),FALSE()) -> FALSE | X36: =IF(AND(World!$G$26="yes",HLOOKUP(Trade!$B36,'Trade Tables'!$G$47:$AP$59,5,FALSE())=1),TRUE(),FALSE()) -> FALSE | Y36: =IF(AND(World!$G$27="yes",HLOOKUP(Trade!$B36,'Trade Tables'!$G$47:$AP$59,6,FALSE())=1),TRUE(),FALSE()) -> TRUE | Z36: =IF(AND(World!$G$28="yes",HLOOKUP(Trade!$B36,'Trade Tables'!$G$47:$AP$59,7,FALSE())=1),TRUE(),FALSE()) -> FALSE | AA36: =IF(AND(World!$G$29="yes",HLOOKUP(Trade!$B36,'Trade Tables'!$G$47:$AP$59,8,FALSE())=1),TRUE(),FALSE()) -> FALSE | AB36: =IF(AND(World!$G$30="yes",HLOOKUP(Trade!$B36,'Trade Tables'!$G$47:$AP$59,9,FALSE())=1),TRUE(),FALSE()) -> FALSE | AC36: =IF(AND(World!$G$31="yes",HLOOKUP(Trade!$B36,'Trade Tables'!$G$47:$AP$59,10,FALSE())=1),TRUE(),FALSE()) -> FALSE | AD36: =IF(AND(World!$G$32="yes",HLOOKUP(Trade!$B36,'Trade Tables'!$G$47:$AP$59,11,FALSE())=1),TRUE(),FALSE()) -> FALSE | AE36: =IF(AND(World!$G$35="yes",HLOOKUP(Trade!$B36,'Trade Tables'!$G$47:$AP$59,12,FALSE())=1),TRUE(),FALSE()) -> FALSE | AF36: =IF(AND(World!$G$38="yes",HLOOKUP(Trade!$B36,'Trade Tables'!$G$47:$AP$59,13,FALSE())=1),TRUE(),FALSE()) -> FALSE | AG36: =IF(Rolls!$G$28='Trade Tables'!$B63,TRUE(),FALSE()) -> FALSE | AH36: =IF(Rolls!$G$29='Trade Tables'!$B63,TRUE(),FALSE()) -> FALSE | AI36: =IF(Rolls!$G$30='Trade Tables'!$B63,TRUE(),FALSE()) -> FALSE | AJ36: =IF(Rolls!$G$31='Trade Tables'!$B63,TRUE(),FALSE()) -> FALSE | AK36: =IF(Rolls!$G$32='Trade Tables'!$B63,TRUE(),FALSE()) -> FALSE | AL36: =IF(Rolls!$G$33='Trade Tables'!$B63,TRUE(),FALSE()) -> FALSE | AW36: =IF($C$6>21,LOOKUP(Rolls!B67,'Trade Tables'!B$88:C$123),"") -> Tourist | AX36: =IF($C$7>21,LOOKUP(Rolls!C67,'Trade Tables'!B$88:C$123),"") ->  | AY36: =IF($C$8>21,LOOKUP(Rolls!D67,'Trade Tables'!B$88:C$123),"") ->  | BA36: =IF($C$11>21,Rolls!F67,"") -> 
B37: Luxury Goods | E37: =IF(OR(U37:AF37),CEILING(6*RAND(),1)*'Trade Tables'!D64,0)+IF(AG37,CEILING(6*RAND(),1)*'Trade Tables'!D64,0)+IF(AH37,CEILING(6*RAND(),1)*'Trade Tables'!D64,0)+IF(AI37,CEILING(6*RAND(),1)*'Trade Tables'!D64,0)+IF(AJ37,CEILING(6*RAND(),1)*'Trade Tables'!D64,0)+IF(AK37,CEILING(6*RAND(),1)*'Trade Tables'!D64,0)+IF(AL37,CEILING(6*RAND(),1)*'Trade Tables'!D64,0) -> 1 | J37: 200000 | U37: =IF(AND(World!$G$22="yes",HLOOKUP(Trade!$B37,'Trade Tables'!$G$47:$AP$59,2,FALSE())=1),TRUE(),FALSE()) -> FALSE | V37: =IF(AND(World!$G$23="yes",HLOOKUP(Trade!$B37,'Trade Tables'!$G$47:$AP$59,3,FALSE())=1),TRUE(),FALSE()) -> FALSE | W37: =IF(AND(World!$G$25="yes",HLOOKUP(Trade!$B37,'Trade Tables'!$G$47:$AP$59,4,FALSE())=1),TRUE(),FALSE()) -> FALSE | X37: =IF(AND(World!$G$26="yes",HLOOKUP(Trade!$B37,'Trade Tables'!$G$47:$AP$59,5,FALSE())=1),TRUE(),FALSE()) -> FALSE | Y37: =IF(AND(World!$G$27="yes",HLOOKUP(Trade!$B37,'Trade Tables'!$G$47:$AP$59,6,FALSE())=1),TRUE(),FALSE()) -> FALSE | Z37: =IF(AND(World!$G$28="yes",HLOOKUP(Trade!$B37,'Trade Tables'!$G$47:$AP$59,7,FALSE())=1),TRUE(),FALSE()) -> TRUE | AA37: =IF(AND(World!$G$29="yes",HLOOKUP(Trade!$B37,'Trade Tables'!$G$47:$AP$59,8,FALSE())=1),TRUE(),FALSE()) -> FALSE | AB37: =IF(AND(World!$G$30="yes",HLOOKUP(Trade!$B37,'Trade Tables'!$G$47:$AP$59,9,FALSE())=1),TRUE(),FALSE()) -> FALSE | AC37: =IF(AND(World!$G$31="yes",HLOOKUP(Trade!$B37,'Trade Tables'!$G$47:$AP$59,10,FALSE())=1),TRUE(),FALSE()) -> FALSE | AD37: =IF(AND(World!$G$32="yes",HLOOKUP(Trade!$B37,'Trade Tables'!$G$47:$AP$59,11,FALSE())=1),TRUE(),FALSE()) -> FALSE | AE37: =IF(AND(World!$G$35="yes",HLOOKUP(Trade!$B37,'Trade Tables'!$G$47:$AP$59,12,FALSE())=1),TRUE(),FALSE()) -> FALSE | AF37: =IF(AND(World!$G$38="yes",HLOOKUP(Trade!$B37,'Trade Tables'!$G$47:$AP$59,13,FALSE())=1),TRUE(),FALSE()) -> FALSE | AG37: =IF(Rolls!$G$28='Trade Tables'!$B64,TRUE(),FALSE()) -> FALSE | AH37: =IF(Rolls!$G$29='Trade Tables'!$B64,TRUE(),FALSE()) -> FALSE | AI37: =IF(Rolls!$G$30='Trade Tables'!$B64,TRUE(),FALSE()) -> FALSE | AJ37: =IF(Rolls!$G$31='Trade Tables'!$B64,TRUE(),FALSE()) -> FALSE | AK37: =IF(Rolls!$G$32='Trade Tables'!$B64,TRUE(),FALSE()) -> FALSE | AL37: =IF(Rolls!$G$33='Trade Tables'!$B64,TRUE(),FALSE()) -> FALSE | AW37: =IF($C$6>22,LOOKUP(Rolls!B68,'Trade Tables'!B$88:C$123),"") -> Spy | AX37: =IF($C$7>22,LOOKUP(Rolls!C68,'Trade Tables'!B$88:C$123),"") ->  | AY37: =IF($C$8>22,LOOKUP(Rolls!D68,'Trade Tables'!B$88:C$123),"") -> 
B38: Medicals Supplies | E38: =IF(OR(U38:AF38),CEILING(6*RAND(),1)*'Trade Tables'!D65,0)+IF(AG38,CEILING(6*RAND(),1)*'Trade Tables'!D65,0)+IF(AH38,CEILING(6*RAND(),1)*'Trade Tables'!D65,0)+IF(AI38,CEILING(6*RAND(),1)*'Trade Tables'!D65,0)+IF(AJ38,CEILING(6*RAND(),1)*'Trade Tables'!D65,0)+IF(AK38,CEILING(6*RAND(),1)*'Trade Tables'!D65,0)+IF(AL38,CEILING(6*RAND(),1)*'Trade Tables'!D65,0) -> 20 | J38: 50000 | U38: =IF(AND(World!$G$22="yes",HLOOKUP(Trade!$B38,'Trade Tables'!$G$47:$AP$59,2,FALSE())=1),TRUE(),FALSE()) -> FALSE | V38: =IF(AND(World!$G$23="yes",HLOOKUP(Trade!$B38,'Trade Tables'!$G$47:$AP$59,3,FALSE())=1),TRUE(),FALSE()) -> FALSE | W38: =IF(AND(World!$G$25="yes",HLOOKUP(Trade!$B38,'Trade Tables'!$G$47:$AP$59,4,FALSE())=1),TRUE(),FALSE()) -> FALSE | X38: =IF(AND(World!$G$26="yes",HLOOKUP(Trade!$B38,'Trade Tables'!$G$47:$AP$59,5,FALSE())=1),TRUE(),FALSE()) -> FALSE | Y38: =IF(AND(World!$G$27="yes",HLOOKUP(Trade!$B38,'Trade Tables'!$G$47:$AP$59,6,FALSE())=1),TRUE(),FALSE()) -> FALSE | Z38: =IF(AND(World!$G$28="yes",HLOOKUP(Trade!$B38,'Trade Tables'!$G$47:$AP$59,7,FALSE())=1),TRUE(),FALSE()) -> TRUE | AA38: =IF(AND(World!$G$29="yes",HLOOKUP(Trade!$B38,'Trade Tables'!$G$47:$AP$59,8,FALSE())=1),TRUE(),FALSE()) -> FALSE | AB38: =IF(AND(World!$G$30="yes",HLOOKUP(Trade!$B38,'Trade Tables'!$G$47:$AP$59,9,FALSE())=1),TRUE(),FALSE()) -> FALSE | AC38: =IF(AND(World!$G$31="yes",HLOOKUP(Trade!$B38,'Trade Tables'!$G$47:$AP$59,10,FALSE())=1),TRUE(),FALSE()) -> FALSE | AD38: =IF(AND(World!$G$32="yes",HLOOKUP(Trade!$B38,'Trade Tables'!$G$47:$AP$59,11,FALSE())=1),TRUE(),FALSE()) -> FALSE | AE38: =IF(AND(World!$G$35="yes",HLOOKUP(Trade!$B38,'Trade Tables'!$G$47:$AP$59,12,FALSE())=1),TRUE(),FALSE()) -> FALSE | AF38: =IF(AND(World!$G$38="yes",HLOOKUP(Trade!$B38,'Trade Tables'!$G$47:$AP$59,13,FALSE())=1),TRUE(),FALSE()) -> FALSE | AG38: =IF(Rolls!$G$28='Trade Tables'!$B65,TRUE(),FALSE()) -> FALSE | AH38: =IF(Rolls!$G$29='Trade Tables'!$B65,TRUE(),FALSE()) -> FALSE | AI38: =IF(Rolls!$G$30='Trade Tables'!$B65,TRUE(),FALSE()) -> FALSE | AJ38: =IF(Rolls!$G$31='Trade Tables'!$B65,TRUE(),FALSE()) -> FALSE | AK38: =IF(Rolls!$G$32='Trade Tables'!$B65,TRUE(),FALSE()) -> FALSE | AL38: =IF(Rolls!$G$33='Trade Tables'!$B65,TRUE(),FALSE()) -> FALSE | AW38: =IF($C$6>23,LOOKUP(Rolls!B69,'Trade Tables'!B$88:C$123),"") -> Wanderer | AX38: =IF($C$7>23,LOOKUP(Rolls!C69,'Trade Tables'!B$88:C$123),"") ->  | AY38: =IF($C$8>23,LOOKUP(Rolls!D69,'Trade Tables'!B$88:C$123),"") -> 
B39: Petrochemicals | E39: =IF(OR(U39:AF39),CEILING(6*RAND(),1)*'Trade Tables'!D66,0)+IF(AG39,CEILING(6*RAND(),1)*'Trade Tables'!D66,0)+IF(AH39,CEILING(6*RAND(),1)*'Trade Tables'!D66,0)+IF(AI39,CEILING(6*RAND(),1)*'Trade Tables'!D66,0)+IF(AJ39,CEILING(6*RAND(),1)*'Trade Tables'!D66,0)+IF(AK39,CEILING(6*RAND(),1)*'Trade Tables'!D66,0)+IF(AL39,CEILING(6*RAND(),1)*'Trade Tables'!D66,0) -> 0 | J39: 10000 | U39: =IF(AND(World!$G$22="yes",HLOOKUP(Trade!$B39,'Trade Tables'!$G$47:$AP$59,2,FALSE())=1),TRUE(),FALSE()) -> FALSE | V39: =IF(AND(World!$G$23="yes",HLOOKUP(Trade!$B39,'Trade Tables'!$G$47:$AP$59,3,FALSE())=1),TRUE(),FALSE()) -> FALSE | W39: =IF(AND(World!$G$25="yes",HLOOKUP(Trade!$B39,'Trade Tables'!$G$47:$AP$59,4,FALSE())=1),TRUE(),FALSE()) -> FALSE | X39: =IF(AND(World!$G$26="yes",HLOOKUP(Trade!$B39,'Trade Tables'!$G$47:$AP$59,5,FALSE())=1),TRUE(),FALSE()) -> FALSE | Y39: =IF(AND(World!$G$27="yes",HLOOKUP(Trade!$B39,'Trade Tables'!$G$47:$AP$59,6,FALSE())=1),TRUE(),FALSE()) -> FALSE | Z39: =IF(AND(World!$G$28="yes",HLOOKUP(Trade!$B39,'Trade Tables'!$G$47:$AP$59,7,FALSE())=1),TRUE(),FALSE()) -> FALSE | AA39: =IF(AND(World!$G$29="yes",HLOOKUP(Trade!$B39,'Trade Tables'!$G$47:$AP$59,8,FALSE())=1),TRUE(),FALSE()) -> FALSE | AB39: =IF(AND(World!$G$30="yes",HLOOKUP(Trade!$B39,'Trade Tables'!$G$47:$AP$59,9,FALSE())=1),TRUE(),FALSE()) -> FALSE | AC39: =IF(AND(World!$G$31="yes",HLOOKUP(Trade!$B39,'Trade Tables'!$G$47:$AP$59,10,FALSE())=1),TRUE(),FALSE()) -> FALSE | AD39: =IF(AND(World!$G$32="yes",HLOOKUP(Trade!$B39,'Trade Tables'!$G$47:$AP$59,11,FALSE())=1),TRUE(),FALSE()) -> FALSE | AE39: =IF(AND(World!$G$35="yes",HLOOKUP(Trade!$B39,'Trade Tables'!$G$47:$AP$59,12,FALSE())=1),TRUE(),FALSE()) -> FALSE | AF39: =IF(AND(World!$G$38="yes",HLOOKUP(Trade!$B39,'Trade Tables'!$G$47:$AP$59,13,FALSE())=1),TRUE(),FALSE()) -> FALSE | AG39: =IF(Rolls!$G$28='Trade Tables'!$B66,TRUE(),FALSE()) -> FALSE | AH39: =IF(Rolls!$G$29='Trade Tables'!$B66,TRUE(),FALSE()) -> FALSE | AI39: =IF(Rolls!$G$30='Trade Tables'!$B66,TRUE(),FALSE()) -> FALSE | AJ39: =IF(Rolls!$G$31='Trade Tables'!$B66,TRUE(),FALSE()) -> FALSE | AK39: =IF(Rolls!$G$32='Trade Tables'!$B66,TRUE(),FALSE()) -> FALSE | AL39: =IF(Rolls!$G$33='Trade Tables'!$B66,TRUE(),FALSE()) -> FALSE | AW39: =IF($C$6>24,LOOKUP(Rolls!B70,'Trade Tables'!B$88:C$123),"") -> Gambler | AX39: =IF($C$7>24,LOOKUP(Rolls!C70,'Trade Tables'!B$88:C$123),"") ->  | AY39: =IF($C$8>24,LOOKUP(Rolls!D70,'Trade Tables'!B$88:C$123),"") -> 
B40: Pharmaceuticals | E40: =IF(OR(U40:AF40),CEILING(6*RAND(),1)*'Trade Tables'!D67,0)+IF(AG40,CEILING(6*RAND(),1)*'Trade Tables'!D67,0)+IF(AH40,CEILING(6*RAND(),1)*'Trade Tables'!D67,0)+IF(AI40,CEILING(6*RAND(),1)*'Trade Tables'!D67,0)+IF(AJ40,CEILING(6*RAND(),1)*'Trade Tables'!D67,0)+IF(AK40,CEILING(6*RAND(),1)*'Trade Tables'!D67,0)+IF(AL40,CEILING(6*RAND(),1)*'Trade Tables'!D67,0) -> 6 | J40: 100000 | U40: =IF(AND(World!$G$22="yes",HLOOKUP(Trade!$B40,'Trade Tables'!$G$47:$AP$59,2,FALSE())=1),TRUE(),FALSE()) -> FALSE | V40: =IF(AND(World!$G$23="yes",HLOOKUP(Trade!$B40,'Trade Tables'!$G$47:$AP$59,3,FALSE())=1),TRUE(),FALSE()) -> FALSE | W40: =IF(AND(World!$G$25="yes",HLOOKUP(Trade!$B40,'Trade Tables'!$G$47:$AP$59,4,FALSE())=1),TRUE(),FALSE()) -> FALSE | X40: =IF(AND(World!$G$26="yes",HLOOKUP(Trade!$B40,'Trade Tables'!$G$47:$AP$59,5,FALSE())=1),TRUE(),FALSE()) -> FALSE | Y40: =IF(AND(World!$G$27="yes",HLOOKUP(Trade!$B40,'Trade Tables'!$G$47:$AP$59,6,FALSE())=1),TRUE(),FALSE()) -> FALSE | Z40: =IF(AND(World!$G$28="yes",HLOOKUP(Trade!$B40,'Trade Tables'!$G$47:$AP$59,7,FALSE())=1),TRUE(),FALSE()) -> TRUE | AA40: =IF(AND(World!$G$29="yes",HLOOKUP(Trade!$B40,'Trade Tables'!$G$47:$AP$59,8,FALSE())=1),TRUE(),FALSE()) -> FALSE | AB40: =IF(AND(World!$G$30="yes",HLOOKUP(Trade!$B40,'Trade Tables'!$G$47:$AP$59,9,FALSE())=1),TRUE(),FALSE()) -> FALSE | AC40: =IF(AND(World!$G$31="yes",HLOOKUP(Trade!$B40,'Trade Tables'!$G$47:$AP$59,10,FALSE())=1),TRUE(),FALSE()) -> FALSE | AD40: =IF(AND(World!$G$32="yes",HLOOKUP(Trade!$B40,'Trade Tables'!$G$47:$AP$59,11,FALSE())=1),TRUE(),FALSE()) -> FALSE | AE40: =IF(AND(World!$G$35="yes",HLOOKUP(Trade!$B40,'Trade Tables'!$G$47:$AP$59,12,FALSE())=1),TRUE(),FALSE()) -> FALSE | AF40: =IF(AND(World!$G$38="yes",HLOOKUP(Trade!$B40,'Trade Tables'!$G$47:$AP$59,13,FALSE())=1),TRUE(),FALSE()) -> FALSE | AG40: =IF(Rolls!$G$28='Trade Tables'!$B67,TRUE(),FALSE()) -> FALSE | AH40: =IF(Rolls!$G$29='Trade Tables'!$B67,TRUE(),FALSE()) -> FALSE | AI40: =IF(Rolls!$G$30='Trade Tables'!$B67,TRUE(),FALSE()) -> FALSE | AJ40: =IF(Rolls!$G$31='Trade Tables'!$B67,TRUE(),FALSE()) -> FALSE | AK40: =IF(Rolls!$G$32='Trade Tables'!$B67,TRUE(),FALSE()) -> FALSE | AL40: =IF(Rolls!$G$33='Trade Tables'!$B67,TRUE(),FALSE()) -> FALSE | AW40: =IF($C$6>25,LOOKUP(Rolls!B71,'Trade Tables'!B$88:C$123),"") -> Causes Trouble | AX40: =IF($C$7>25,LOOKUP(Rolls!C71,'Trade Tables'!B$88:C$123),"") ->  | AY40: =IF($C$8>25,LOOKUP(Rolls!D71,'Trade Tables'!B$88:C$123),"") -> 
B41: Polymers | E41: =IF(OR(U41:AF41),CEILING(6*RAND(),1)*'Trade Tables'!D68,0)+IF(AG41,CEILING(6*RAND(),1)*'Trade Tables'!D68,0)+IF(AH41,CEILING(6*RAND(),1)*'Trade Tables'!D68,0)+IF(AI41,CEILING(6*RAND(),1)*'Trade Tables'!D68,0)+IF(AJ41,CEILING(6*RAND(),1)*'Trade Tables'!D68,0)+IF(AK41,CEILING(6*RAND(),1)*'Trade Tables'!D68,0)+IF(AL41,CEILING(6*RAND(),1)*'Trade Tables'!D68,0) -> 0 | J41: 7000 | U41: =IF(AND(World!$G$22="yes",HLOOKUP(Trade!$B41,'Trade Tables'!$G$47:$AP$59,2,FALSE())=1),TRUE(),FALSE()) -> FALSE | V41: =IF(AND(World!$G$23="yes",HLOOKUP(Trade!$B41,'Trade Tables'!$G$47:$AP$59,3,FALSE())=1),TRUE(),FALSE()) -> FALSE | W41: =IF(AND(World!$G$25="yes",HLOOKUP(Trade!$B41,'Trade Tables'!$G$47:$AP$59,4,FALSE())=1),TRUE(),FALSE()) -> FALSE | X41: =IF(AND(World!$G$26="yes",HLOOKUP(Trade!$B41,'Trade Tables'!$G$47:$AP$59,5,FALSE())=1),TRUE(),FALSE()) -> FALSE | Y41: =IF(AND(World!$G$27="yes",HLOOKUP(Trade!$B41,'Trade Tables'!$G$47:$AP$59,6,FALSE())=1),TRUE(),FALSE()) -> FALSE | Z41: =IF(AND(World!$G$28="yes",HLOOKUP(Trade!$B41,'Trade Tables'!$G$47:$AP$59,7,FALSE())=1),TRUE(),FALSE()) -> FALSE | AA41: =IF(AND(World!$G$29="yes",HLOOKUP(Trade!$B41,'Trade Tables'!$G$47:$AP$59,8,FALSE())=1),TRUE(),FALSE()) -> FALSE | AB41: =IF(AND(World!$G$30="yes",HLOOKUP(Trade!$B41,'Trade Tables'!$G$47:$AP$59,9,FALSE())=1),TRUE(),FALSE()) -> FALSE | AC41: =IF(AND(World!$G$31="yes",HLOOKUP(Trade!$B41,'Trade Tables'!$G$47:$AP$59,10,FALSE())=1),TRUE(),FALSE()) -> FALSE | AD41: =IF(AND(World!$G$32="yes",HLOOKUP(Trade!$B41,'Trade Tables'!$G$47:$AP$59,11,FALSE())=1),TRUE(),FALSE()) -> FALSE | AE41: =IF(AND(World!$G$35="yes",HLOOKUP(Trade!$B41,'Trade Tables'!$G$47:$AP$59,12,FALSE())=1),TRUE(),FALSE()) -> FALSE | AF41: =IF(AND(World!$G$38="yes",HLOOKUP(Trade!$B41,'Trade Tables'!$G$47:$AP$59,13,FALSE())=1),TRUE(),FALSE()) -> FALSE | AG41: =IF(Rolls!$G$28='Trade Tables'!$B68,TRUE(),FALSE()) -> FALSE | AH41: =IF(Rolls!$G$29='Trade Tables'!$B68,TRUE(),FALSE()) -> FALSE | AI41: =IF(Rolls!$G$30='Trade Tables'!$B68,TRUE(),FALSE()) -> FALSE | AJ41: =IF(Rolls!$G$31='Trade Tables'!$B68,TRUE(),FALSE()) -> FALSE | AK41: =IF(Rolls!$G$32='Trade Tables'!$B68,TRUE(),FALSE()) -> FALSE | AL41: =IF(Rolls!$G$33='Trade Tables'!$B68,TRUE(),FALSE()) -> FALSE | AW41: =IF($C$6>26,LOOKUP(Rolls!B72,'Trade Tables'!B$88:C$123),"") -> Rich noble - complains a lot | AX41: =IF($C$7>26,LOOKUP(Rolls!C72,'Trade Tables'!B$88:C$123),"") ->  | AY41: =IF($C$8>26,LOOKUP(Rolls!D72,'Trade Tables'!B$88:C$123),"") -> 
B42: Precious Metals | E42: =IF(OR(U42:AF42),CEILING(6*RAND(),1)*'Trade Tables'!D69,0)+IF(AG42,CEILING(6*RAND(),1)*'Trade Tables'!D69,0)+IF(AH42,CEILING(6*RAND(),1)*'Trade Tables'!D69,0)+IF(AI42,CEILING(6*RAND(),1)*'Trade Tables'!D69,0)+IF(AJ42,CEILING(6*RAND(),1)*'Trade Tables'!D69,0)+IF(AK42,CEILING(6*RAND(),1)*'Trade Tables'!D69,0)+IF(AL42,CEILING(6*RAND(),1)*'Trade Tables'!D69,0) -> 0 | J42: 50000 | U42: =IF(AND(World!$G$22="yes",HLOOKUP(Trade!$B42,'Trade Tables'!$G$47:$AP$59,2,FALSE())=1),TRUE(),FALSE()) -> FALSE | V42: =IF(AND(World!$G$23="yes",HLOOKUP(Trade!$B42,'Trade Tables'!$G$47:$AP$59,3,FALSE())=1),TRUE(),FALSE()) -> FALSE | W42: =IF(AND(World!$G$25="yes",HLOOKUP(Trade!$B42,'Trade Tables'!$G$47:$AP$59,4,FALSE())=1),TRUE(),FALSE()) -> FALSE | X42: =IF(AND(World!$G$26="yes",HLOOKUP(Trade!$B42,'Trade Tables'!$G$47:$AP$59,5,FALSE())=1),TRUE(),FALSE()) -> FALSE | Y42: =IF(AND(World!$G$27="yes",HLOOKUP(Trade!$B42,'Trade Tables'!$G$47:$AP$59,6,FALSE())=1),TRUE(),FALSE()) -> FALSE | Z42: =IF(AND(World!$G$28="yes",HLOOKUP(Trade!$B42,'Trade Tables'!$G$47:$AP$59,7,FALSE())=1),TRUE(),FALSE()) -> FALSE | AA42: =IF(AND(World!$G$29="yes",HLOOKUP(Trade!$B42,'Trade Tables'!$G$47:$AP$59,8,FALSE())=1),TRUE(),FALSE()) -> FALSE | AB42: =IF(AND(World!$G$30="yes",HLOOKUP(Trade!$B42,'Trade Tables'!$G$47:$AP$59,9,FALSE())=1),TRUE(),FALSE()) -> FALSE | AC42: =IF(AND(World!$G$31="yes",HLOOKUP(Trade!$B42,'Trade Tables'!$G$47:$AP$59,10,FALSE())=1),TRUE(),FALSE()) -> FALSE | AD42: =IF(AND(World!$G$32="yes",HLOOKUP(Trade!$B42,'Trade Tables'!$G$47:$AP$59,11,FALSE())=1),TRUE(),FALSE()) -> FALSE | AE42: =IF(AND(World!$G$35="yes",HLOOKUP(Trade!$B42,'Trade Tables'!$G$47:$AP$59,12,FALSE())=1),TRUE(),FALSE()) -> FALSE | AF42: =IF(AND(World!$G$38="yes",HLOOKUP(Trade!$B42,'Trade Tables'!$G$47:$AP$59,13,FALSE())=1),TRUE(),FALSE()) -> FALSE | AG42: =IF(Rolls!$G$28='Trade Tables'!$B69,TRUE(),FALSE()) -> FALSE | AH42: =IF(Rolls!$G$29='Trade Tables'!$B69,TRUE(),FALSE()) -> FALSE | AI42: =IF(Rolls!$G$30='Trade Tables'!$B69,TRUE(),FALSE()) -> FALSE | AJ42: =IF(Rolls!$G$31='Trade Tables'!$B69,TRUE(),FALSE()) -> FALSE | AK42: =IF(Rolls!$G$32='Trade Tables'!$B69,TRUE(),FALSE()) -> FALSE | AL42: =IF(Rolls!$G$33='Trade Tables'!$B69,TRUE(),FALSE()) -> FALSE | AW42: =IF($C$6>27,LOOKUP(Rolls!B73,'Trade Tables'!B$88:C$123),"") -> Engineer | AX42: =IF($C$7>27,LOOKUP(Rolls!C73,'Trade Tables'!B$88:C$123),"") ->  | AY42: =IF($C$8>27,LOOKUP(Rolls!D73,'Trade Tables'!B$88:C$123),"") -> 
B43: Radioactives | E43: =IF(OR(U43:AF43),CEILING(6*RAND(),1)*'Trade Tables'!D70,0)+IF(AG43,CEILING(6*RAND(),1)*'Trade Tables'!D70,0)+IF(AH43,CEILING(6*RAND(),1)*'Trade Tables'!D70,0)+IF(AI43,CEILING(6*RAND(),1)*'Trade Tables'!D70,0)+IF(AJ43,CEILING(6*RAND(),1)*'Trade Tables'!D70,0)+IF(AK43,CEILING(6*RAND(),1)*'Trade Tables'!D70,0)+IF(AL43,CEILING(6*RAND(),1)*'Trade Tables'!D70,0) -> 0 | J43: 1000000 | U43: =IF(AND(World!$G$22="yes",HLOOKUP(Trade!$B43,'Trade Tables'!$G$47:$AP$59,2,FALSE())=1),TRUE(),FALSE()) -> FALSE | V43: =IF(AND(World!$G$23="yes",HLOOKUP(Trade!$B43,'Trade Tables'!$G$47:$AP$59,3,FALSE())=1),TRUE(),FALSE()) -> FALSE | W43: =IF(AND(World!$G$25="yes",HLOOKUP(Trade!$B43,'Trade Tables'!$G$47:$AP$59,4,FALSE())=1),TRUE(),FALSE()) -> FALSE | X43: =IF(AND(World!$G$26="yes",HLOOKUP(Trade!$B43,'Trade Tables'!$G$47:$AP$59,5,FALSE())=1),TRUE(),FALSE()) -> FALSE | Y43: =IF(AND(World!$G$27="yes",HLOOKUP(Trade!$B43,'Trade Tables'!$G$47:$AP$59,6,FALSE())=1),TRUE(),FALSE()) -> FALSE | Z43: =IF(AND(World!$G$28="yes",HLOOKUP(Trade!$B43,'Trade Tables'!$G$47:$AP$59,7,FALSE())=1),TRUE(),FALSE()) -> FALSE | AA43: =IF(AND(World!$G$29="yes",HLOOKUP(Trade!$B43,'Trade Tables'!$G$47:$AP$59,8,FALSE())=1),TRUE(),FALSE()) -> FALSE | AB43: =IF(AND(World!$G$30="yes",HLOOKUP(Trade!$B43,'Trade Tables'!$G$47:$AP$59,9,FALSE())=1),TRUE(),FALSE()) -> FALSE | AC43: =IF(AND(World!$G$31="yes",HLOOKUP(Trade!$B43,'Trade Tables'!$G$47:$AP$59,10,FALSE())=1),TRUE(),FALSE()) -> FALSE | AD43: =IF(AND(World!$G$32="yes",HLOOKUP(Trade!$B43,'Trade Tables'!$G$47:$AP$59,11,FALSE())=1),TRUE(),FALSE()) -> FALSE | AE43: =IF(AND(World!$G$35="yes",HLOOKUP(Trade!$B43,'Trade Tables'!$G$47:$AP$59,12,FALSE())=1),TRUE(),FALSE()) -> FALSE | AF43: =IF(AND(World!$G$38="yes",HLOOKUP(Trade!$B43,'Trade Tables'!$G$47:$AP$59,13,FALSE())=1),TRUE(),FALSE()) -> FALSE | AG43: =IF(Rolls!$G$28='Trade Tables'!$B70,TRUE(),FALSE()) -> FALSE | AH43: =IF(Rolls!$G$29='Trade Tables'!$B70,TRUE(),FALSE()) -> FALSE | AI43: =IF(Rolls!$G$30='Trade Tables'!$B70,TRUE(),FALSE()) -> FALSE | AJ43: =IF(Rolls!$G$31='Trade Tables'!$B70,TRUE(),FALSE()) -> FALSE | AK43: =IF(Rolls!$G$32='Trade Tables'!$B70,TRUE(),FALSE()) -> FALSE | AL43: =IF(Rolls!$G$33='Trade Tables'!$B70,TRUE(),FALSE()) -> FALSE | AW43: =IF($C$6>28,LOOKUP(Rolls!B74,'Trade Tables'!B$88:C$123),"") ->  | AX43: =IF($C$7>28,LOOKUP(Rolls!C74,'Trade Tables'!B$88:C$123),"") ->  | AY43: =IF($C$8>28,LOOKUP(Rolls!D74,'Trade Tables'!B$88:C$123),"") -> 
B44: Robots | E44: =IF(OR(U44:AF44),CEILING(6*RAND(),1)*'Trade Tables'!D71,0)+IF(AG44,CEILING(6*RAND(),1)*'Trade Tables'!D71,0)+IF(AH44,CEILING(6*RAND(),1)*'Trade Tables'!D71,0)+IF(AI44,CEILING(6*RAND(),1)*'Trade Tables'!D71,0)+IF(AJ44,CEILING(6*RAND(),1)*'Trade Tables'!D71,0)+IF(AK44,CEILING(6*RAND(),1)*'Trade Tables'!D71,0)+IF(AL44,CEILING(6*RAND(),1)*'Trade Tables'!D71,0) -> 0 | J44: 400000 | U44: =IF(AND(World!$G$22="yes",HLOOKUP(Trade!$B44,'Trade Tables'!$G$47:$AP$59,2,FALSE())=1),TRUE(),FALSE()) -> FALSE | V44: =IF(AND(World!$G$23="yes",HLOOKUP(Trade!$B44,'Trade Tables'!$G$47:$AP$59,3,FALSE())=1),TRUE(),FALSE()) -> FALSE | W44: =IF(AND(World!$G$25="yes",HLOOKUP(Trade!$B44,'Trade Tables'!$G$47:$AP$59,4,FALSE())=1),TRUE(),FALSE()) -> FALSE | X44: =IF(AND(World!$G$26="yes",HLOOKUP(Trade!$B44,'Trade Tables'!$G$47:$AP$59,5,FALSE())=1),TRUE(),FALSE()) -> FALSE | Y44: =IF(AND(World!$G$27="yes",HLOOKUP(Trade!$B44,'Trade Tables'!$G$47:$AP$59,6,FALSE())=1),TRUE(),FALSE()) -> FALSE | Z44: =IF(AND(World!$G$28="yes",HLOOKUP(Trade!$B44,'Trade Tables'!$G$47:$AP$59,7,FALSE())=1),TRUE(),FALSE()) -> FALSE | AA44: =IF(AND(World!$G$29="yes",HLOOKUP(Trade!$B44,'Trade Tables'!$G$47:$AP$59,8,FALSE())=1),TRUE(),FALSE()) -> FALSE | AB44: =IF(AND(World!$G$30="yes",HLOOKUP(Trade!$B44,'Trade Tables'!$G$47:$AP$59,9,FALSE())=1),TRUE(),FALSE()) -> FALSE | AC44: =IF(AND(World!$G$31="yes",HLOOKUP(Trade!$B44,'Trade Tables'!$G$47:$AP$59,10,FALSE())=1),TRUE(),FALSE()) -> FALSE | AD44: =IF(AND(World!$G$32="yes",HLOOKUP(Trade!$B44,'Trade Tables'!$G$47:$AP$59,11,FALSE())=1),TRUE(),FALSE()) -> FALSE | AE44: =IF(AND(World!$G$35="yes",HLOOKUP(Trade!$B44,'Trade Tables'!$G$47:$AP$59,12,FALSE())=1),TRUE(),FALSE()) -> FALSE | AF44: =IF(AND(World!$G$38="yes",HLOOKUP(Trade!$B44,'Trade Tables'!$G$47:$AP$59,13,FALSE())=1),TRUE(),FALSE()) -> FALSE | AG44: =IF(Rolls!$G$28='Trade Tables'!$B71,TRUE(),FALSE()) -> FALSE | AH44: =IF(Rolls!$G$29='Trade Tables'!$B71,TRUE(),FALSE()) -> FALSE | AI44: =IF(Rolls!$G$30='Trade Tables'!$B71,TRUE(),FALSE()) -> FALSE | AJ44: =IF(Rolls!$G$31='Trade Tables'!$B71,TRUE(),FALSE()) -> FALSE | AK44: =IF(Rolls!$G$32='Trade Tables'!$B71,TRUE(),FALSE()) -> FALSE | AL44: =IF(Rolls!$G$33='Trade Tables'!$B71,TRUE(),FALSE()) -> FALSE | AW44: =IF($C$6>29,LOOKUP(Rolls!B75,'Trade Tables'!B$88:C$123),"") ->  | AX44: =IF($C$7>29,LOOKUP(Rolls!C75,'Trade Tables'!B$88:C$123),"") ->  | AY44: =IF($C$8>29,LOOKUP(Rolls!D75,'Trade Tables'!B$88:C$123),"") -> 
B45: Spices | E45: =IF(OR(U45:AF45),CEILING(6*RAND(),1)*'Trade Tables'!D72,0)+IF(AG45,CEILING(6*RAND(),1)*'Trade Tables'!D72,0)+IF(AH45,CEILING(6*RAND(),1)*'Trade Tables'!D72,0)+IF(AI45,CEILING(6*RAND(),1)*'Trade Tables'!D72,0)+IF(AJ45,CEILING(6*RAND(),1)*'Trade Tables'!D72,0)+IF(AK45,CEILING(6*RAND(),1)*'Trade Tables'!D72,0)+IF(AL45,CEILING(6*RAND(),1)*'Trade Tables'!D72,0) -> 25 | J45: 6000 | U45: =IF(AND(World!$G$22="yes",HLOOKUP(Trade!$B45,'Trade Tables'!$G$47:$AP$59,2,FALSE())=1),TRUE(),FALSE()) -> FALSE | V45: =IF(AND(World!$G$23="yes",HLOOKUP(Trade!$B45,'Trade Tables'!$G$47:$AP$59,3,FALSE())=1),TRUE(),FALSE()) -> FALSE | W45: =IF(AND(World!$G$25="yes",HLOOKUP(Trade!$B45,'Trade Tables'!$G$47:$AP$59,4,FALSE())=1),TRUE(),FALSE()) -> FALSE | X45: =IF(AND(World!$G$26="yes",HLOOKUP(Trade!$B45,'Trade Tables'!$G$47:$AP$59,5,FALSE())=1),TRUE(),FALSE()) -> FALSE | Y45: =IF(AND(World!$G$27="yes",HLOOKUP(Trade!$B45,'Trade Tables'!$G$47:$AP$59,6,FALSE())=1),TRUE(),FALSE()) -> TRUE | Z45: =IF(AND(World!$G$28="yes",HLOOKUP(Trade!$B45,'Trade Tables'!$G$47:$AP$59,7,FALSE())=1),TRUE(),FALSE()) -> FALSE | AA45: =IF(AND(World!$G$29="yes",HLOOKUP(Trade!$B45,'Trade Tables'!$G$47:$AP$59,8,FALSE())=1),TRUE(),FALSE()) -> FALSE | AB45: =IF(AND(World!$G$30="yes",HLOOKUP(Trade!$B45,'Trade Tables'!$G$47:$AP$59,9,FALSE())=1),TRUE(),FALSE()) -> FALSE | AC45: =IF(AND(World!$G$31="yes",HLOOKUP(Trade!$B45,'Trade Tables'!$G$47:$AP$59,10,FALSE())=1),TRUE(),FALSE()) -> FALSE | AD45: =IF(AND(World!$G$32="yes",HLOOKUP(Trade!$B45,'Trade Tables'!$G$47:$AP$59,11,FALSE())=1),TRUE(),FALSE()) -> FALSE | AE45: =IF(AND(World!$G$35="yes",HLOOKUP(Trade!$B45,'Trade Tables'!$G$47:$AP$59,12,FALSE())=1),TRUE(),FALSE()) -> FALSE | AF45: =IF(AND(World!$G$38="yes",HLOOKUP(Trade!$B45,'Trade Tables'!$G$47:$AP$59,13,FALSE())=1),TRUE(),FALSE()) -> FALSE | AG45: =IF(Rolls!$G$28='Trade Tables'!$B72,TRUE(),FALSE()) -> FALSE | AH45: =IF(Rolls!$G$29='Trade Tables'!$B72,TRUE(),FALSE()) -> FALSE | AI45: =IF(Rolls!$G$30='Trade Tables'!$B72,TRUE(),FALSE()) -> FALSE | AJ45: =IF(Rolls!$G$31='Trade Tables'!$B72,TRUE(),FALSE()) -> FALSE | AK45: =IF(Rolls!$G$32='Trade Tables'!$B72,TRUE(),FALSE()) -> FALSE | AL45: =IF(Rolls!$G$33='Trade Tables'!$B72,TRUE(),FALSE()) -> FALSE | AW45: =IF($C$6>30,LOOKUP(Rolls!B76,'Trade Tables'!B$88:C$123),"") ->  | AX45: =IF($C$7>30,LOOKUP(Rolls!C76,'Trade Tables'!B$88:C$123),"") -> 
B46: Textiles | E46: =IF(OR(U46:AF46),CEILING(6*RAND(),1)*'Trade Tables'!D73,0)+IF(AG46,CEILING(6*RAND(),1)*'Trade Tables'!D73,0)+IF(AH46,CEILING(6*RAND(),1)*'Trade Tables'!D73,0)+IF(AI46,CEILING(6*RAND(),1)*'Trade Tables'!D73,0)+IF(AJ46,CEILING(6*RAND(),1)*'Trade Tables'!D73,0)+IF(AK46,CEILING(6*RAND(),1)*'Trade Tables'!D73,0)+IF(AL46,CEILING(6*RAND(),1)*'Trade Tables'!D73,0) -> 0 | J46: 3000 | U46: =IF(AND(World!$G$22="yes",HLOOKUP(Trade!$B46,'Trade Tables'!$G$47:$AP$59,2,FALSE())=1),TRUE(),FALSE()) -> FALSE | V46: =IF(AND(World!$G$23="yes",HLOOKUP(Trade!$B46,'Trade Tables'!$G$47:$AP$59,3,FALSE())=1),TRUE(),FALSE()) -> FALSE | W46: =IF(AND(World!$G$25="yes",HLOOKUP(Trade!$B46,'Trade Tables'!$G$47:$AP$59,4,FALSE())=1),TRUE(),FALSE()) -> FALSE | X46: =IF(AND(World!$G$26="yes",HLOOKUP(Trade!$B46,'Trade Tables'!$G$47:$AP$59,5,FALSE())=1),TRUE(),FALSE()) -> FALSE | Y46: =IF(AND(World!$G$27="yes",HLOOKUP(Trade!$B46,'Trade Tables'!$G$47:$AP$59,6,FALSE())=1),TRUE(),FALSE()) -> FALSE | Z46: =IF(AND(World!$G$28="yes",HLOOKUP(Trade!$B46,'Trade Tables'!$G$47:$AP$59,7,FALSE())=1),TRUE(),FALSE()) -> FALSE | AA46: =IF(AND(World!$G$29="yes",HLOOKUP(Trade!$B46,'Trade Tables'!$G$47:$AP$59,8,FALSE())=1),TRUE(),FALSE()) -> FALSE | AB46: =IF(AND(World!$G$30="yes",HLOOKUP(Trade!$B46,'Trade Tables'!$G$47:$AP$59,9,FALSE())=1),TRUE(),FALSE()) -> FALSE | AC46: =IF(AND(World!$G$31="yes",HLOOKUP(Trade!$B46,'Trade Tables'!$G$47:$AP$59,10,FALSE())=1),TRUE(),FALSE()) -> FALSE | AD46: =IF(AND(World!$G$32="yes",HLOOKUP(Trade!$B46,'Trade Tables'!$G$47:$AP$59,11,FALSE())=1),TRUE(),FALSE()) -> FALSE | AE46: =IF(AND(World!$G$35="yes",HLOOKUP(Trade!$B46,'Trade Tables'!$G$47:$AP$59,12,FALSE())=1),TRUE(),FALSE()) -> FALSE | AF46: =IF(AND(World!$G$38="yes",HLOOKUP(Trade!$B46,'Trade Tables'!$G$47:$AP$59,13,FALSE())=1),TRUE(),FALSE()) -> FALSE | AG46: =IF(Rolls!$G$28='Trade Tables'!$B73,TRUE(),FALSE()) -> FALSE | AH46: =IF(Rolls!$G$29='Trade Tables'!$B73,TRUE(),FALSE()) -> FALSE | AI46: =IF(Rolls!$G$30='Trade Tables'!$B73,TRUE(),FALSE()) -> FALSE | AJ46: =IF(Rolls!$G$31='Trade Tables'!$B73,TRUE(),FALSE()) -> FALSE | AK46: =IF(Rolls!$G$32='Trade Tables'!$B73,TRUE(),FALSE()) -> FALSE | AL46: =IF(Rolls!$G$33='Trade Tables'!$B73,TRUE(),FALSE()) -> FALSE | AW46: =IF($C$6>31,LOOKUP(Rolls!B77,'Trade Tables'!B$88:C$123),"") ->  | AX46: =IF($C$7>31,LOOKUP(Rolls!C77,'Trade Tables'!B$88:C$123),"") -> 
B47: Uncommon Ore | E47: =IF(OR(U47:AF47),CEILING(6*RAND(),1)*'Trade Tables'!D74,0)+IF(AG47,CEILING(6*RAND(),1)*'Trade Tables'!D74,0)+IF(AH47,CEILING(6*RAND(),1)*'Trade Tables'!D74,0)+IF(AI47,CEILING(6*RAND(),1)*'Trade Tables'!D74,0)+IF(AJ47,CEILING(6*RAND(),1)*'Trade Tables'!D74,0)+IF(AK47,CEILING(6*RAND(),1)*'Trade Tables'!D74,0)+IF(AL47,CEILING(6*RAND(),1)*'Trade Tables'!D74,0) -> 0 | J47: 5000 | U47: =IF(AND(World!$G$22="yes",HLOOKUP(Trade!$B47,'Trade Tables'!$G$47:$AP$59,2,FALSE())=1),TRUE(),FALSE()) -> FALSE | V47: =IF(AND(World!$G$23="yes",HLOOKUP(Trade!$B47,'Trade Tables'!$G$47:$AP$59,3,FALSE())=1),TRUE(),FALSE()) -> FALSE | W47: =IF(AND(World!$G$25="yes",HLOOKUP(Trade!$B47,'Trade Tables'!$G$47:$AP$59,4,FALSE())=1),TRUE(),FALSE()) -> FALSE | X47: =IF(AND(World!$G$26="yes",HLOOKUP(Trade!$B47,'Trade Tables'!$G$47:$AP$59,5,FALSE())=1),TRUE(),FALSE()) -> FALSE | Y47: =IF(AND(World!$G$27="yes",HLOOKUP(Trade!$B47,'Trade Tables'!$G$47:$AP$59,6,FALSE())=1),TRUE(),FALSE()) -> FALSE | Z47: =IF(AND(World!$G$28="yes",HLOOKUP(Trade!$B47,'Trade Tables'!$G$47:$AP$59,7,FALSE())=1),TRUE(),FALSE()) -> FALSE | AA47: =IF(AND(World!$G$29="yes",HLOOKUP(Trade!$B47,'Trade Tables'!$G$47:$AP$59,8,FALSE())=1),TRUE(),FALSE()) -> FALSE | AB47: =IF(AND(World!$G$30="yes",HLOOKUP(Trade!$B47,'Trade Tables'!$G$47:$AP$59,9,FALSE())=1),TRUE(),FALSE()) -> FALSE | AC47: =IF(AND(World!$G$31="yes",HLOOKUP(Trade!$B47,'Trade Tables'!$G$47:$AP$59,10,FALSE())=1),TRUE(),FALSE()) -> FALSE | AD47: =IF(AND(World!$G$32="yes",HLOOKUP(Trade!$B47,'Trade Tables'!$G$47:$AP$59,11,FALSE())=1),TRUE(),FALSE()) -> FALSE | AE47: =IF(AND(World!$G$35="yes",HLOOKUP(Trade!$B47,'Trade Tables'!$G$47:$AP$59,12,FALSE())=1),TRUE(),FALSE()) -> FALSE | AF47: =IF(AND(World!$G$38="yes",HLOOKUP(Trade!$B47,'Trade Tables'!$G$47:$AP$59,13,FALSE())=1),TRUE(),FALSE()) -> FALSE | AG47: =IF(Rolls!$G$28='Trade Tables'!$B74,TRUE(),FALSE()) -> FALSE | AH47: =IF(Rolls!$G$29='Trade Tables'!$B74,TRUE(),FALSE()) -> FALSE | AI47: =IF(Rolls!$G$30='Trade Tables'!$B74,TRUE(),FALSE()) -> FALSE | AJ47: =IF(Rolls!$G$31='Trade Tables'!$B74,TRUE(),FALSE()) -> FALSE | AK47: =IF(Rolls!$G$32='Trade Tables'!$B74,TRUE(),FALSE()) -> FALSE | AL47: =IF(Rolls!$G$33='Trade Tables'!$B74,TRUE(),FALSE()) -> FALSE | AW47: =IF($C$6>32,LOOKUP(Rolls!B78,'Trade Tables'!B$88:C$123),"") ->  | AX47: =IF($C$7>32,LOOKUP(Rolls!C78,'Trade Tables'!B$88:C$123),"") -> 
B48: Uncommon Raw Materials | E48: =IF(OR(U48:AF48),CEILING(6*RAND(),1)*'Trade Tables'!D75,0)+IF(AG48,CEILING(6*RAND(),1)*'Trade Tables'!D75,0)+IF(AH48,CEILING(6*RAND(),1)*'Trade Tables'!D75,0)+IF(AI48,CEILING(6*RAND(),1)*'Trade Tables'!D75,0)+IF(AJ48,CEILING(6*RAND(),1)*'Trade Tables'!D75,0)+IF(AK48,CEILING(6*RAND(),1)*'Trade Tables'!D75,0)+IF(AL48,CEILING(6*RAND(),1)*'Trade Tables'!D75,0) -> 50 | J48: 20000 | U48: =IF(AND(World!$G$22="yes",HLOOKUP(Trade!$B48,'Trade Tables'!$G$47:$AP$59,2,FALSE())=1),TRUE(),FALSE()) -> FALSE | V48: =IF(AND(World!$G$23="yes",HLOOKUP(Trade!$B48,'Trade Tables'!$G$47:$AP$59,3,FALSE())=1),TRUE(),FALSE()) -> FALSE | W48: =IF(AND(World!$G$25="yes",HLOOKUP(Trade!$B48,'Trade Tables'!$G$47:$AP$59,4,FALSE())=1),TRUE(),FALSE()) -> FALSE | X48: =IF(AND(World!$G$26="yes",HLOOKUP(Trade!$B48,'Trade Tables'!$G$47:$AP$59,5,FALSE())=1),TRUE(),FALSE()) -> FALSE | Y48: =IF(AND(World!$G$27="yes",HLOOKUP(Trade!$B48,'Trade Tables'!$G$47:$AP$59,6,FALSE())=1),TRUE(),FALSE()) -> FALSE | Z48: =IF(AND(World!$G$28="yes",HLOOKUP(Trade!$B48,'Trade Tables'!$G$47:$AP$59,7,FALSE())=1),TRUE(),FALSE()) -> FALSE | AA48: =IF(AND(World!$G$29="yes",HLOOKUP(Trade!$B48,'Trade Tables'!$G$47:$AP$59,8,FALSE())=1),TRUE(),FALSE()) -> FALSE | AB48: =IF(AND(World!$G$30="yes",HLOOKUP(Trade!$B48,'Trade Tables'!$G$47:$AP$59,9,FALSE())=1),TRUE(),FALSE()) -> FALSE | AC48: =IF(AND(World!$G$31="yes",HLOOKUP(Trade!$B48,'Trade Tables'!$G$47:$AP$59,10,FALSE())=1),TRUE(),FALSE()) -> FALSE | AD48: =IF(AND(World!$G$32="yes",HLOOKUP(Trade!$B48,'Trade Tables'!$G$47:$AP$59,11,FALSE())=1),TRUE(),FALSE()) -> FALSE | AE48: =IF(AND(World!$G$35="yes",HLOOKUP(Trade!$B48,'Trade Tables'!$G$47:$AP$59,12,FALSE())=1),TRUE(),FALSE()) -> FALSE | AF48: =IF(AND(World!$G$38="yes",HLOOKUP(Trade!$B48,'Trade Tables'!$G$47:$AP$59,13,FALSE())=1),TRUE(),FALSE()) -> FALSE | AG48: =IF(Rolls!$G$28='Trade Tables'!$B75,TRUE(),FALSE()) -> TRUE | AH48: =IF(Rolls!$G$29='Trade Tables'!$B75,TRUE(),FALSE()) -> FALSE | AI48: =IF(Rolls!$G$30='Trade Tables'!$B75,TRUE(),FALSE()) -> FALSE | AJ48: =IF(Rolls!$G$31='Trade Tables'!$B75,TRUE(),FALSE()) -> FALSE | AK48: =IF(Rolls!$G$32='Trade Tables'!$B75,TRUE(),FALSE()) -> FALSE | AL48: =IF(Rolls!$G$33='Trade Tables'!$B75,TRUE(),FALSE()) -> FALSE | AW48: =IF($C$6>33,LOOKUP(Rolls!B79,'Trade Tables'!B$88:C$123),"") ->  | AX48: =IF($C$7>33,LOOKUP(Rolls!C79,'Trade Tables'!B$88:C$123),"") -> 
B49: Wood | E49: =IF(OR(U49:AF49),CEILING(6*RAND(),1)*'Trade Tables'!D76,0)+IF(AG49,CEILING(6*RAND(),1)*'Trade Tables'!D76,0)+IF(AH49,CEILING(6*RAND(),1)*'Trade Tables'!D76,0)+IF(AI49,CEILING(6*RAND(),1)*'Trade Tables'!D76,0)+IF(AJ49,CEILING(6*RAND(),1)*'Trade Tables'!D76,0)+IF(AK49,CEILING(6*RAND(),1)*'Trade Tables'!D76,0)+IF(AL49,CEILING(6*RAND(),1)*'Trade Tables'!D76,0) -> 50 | J49: 1000 | U49: =IF(AND(World!$G$22="yes",HLOOKUP(Trade!$B49,'Trade Tables'!$G$47:$AP$59,2,FALSE())=1),TRUE(),FALSE()) -> FALSE | V49: =IF(AND(World!$G$23="yes",HLOOKUP(Trade!$B49,'Trade Tables'!$G$47:$AP$59,3,FALSE())=1),TRUE(),FALSE()) -> FALSE | W49: =IF(AND(World!$G$25="yes",HLOOKUP(Trade!$B49,'Trade Tables'!$G$47:$AP$59,4,FALSE())=1),TRUE(),FALSE()) -> FALSE | X49: =IF(AND(World!$G$26="yes",HLOOKUP(Trade!$B49,'Trade Tables'!$G$47:$AP$59,5,FALSE())=1),TRUE(),FALSE()) -> FALSE | Y49: =IF(AND(World!$G$27="yes",HLOOKUP(Trade!$B49,'Trade Tables'!$G$47:$AP$59,6,FALSE())=1),TRUE(),FALSE()) -> TRUE | Z49: =IF(AND(World!$G$28="yes",HLOOKUP(Trade!$B49,'Trade Tables'!$G$47:$AP$59,7,FALSE())=1),TRUE(),FALSE()) -> FALSE | AA49: =IF(AND(World!$G$29="yes",HLOOKUP(Trade!$B49,'Trade Tables'!$G$47:$AP$59,8,FALSE())=1),TRUE(),FALSE()) -> FALSE | AB49: =IF(AND(World!$G$30="yes",HLOOKUP(Trade!$B49,'Trade Tables'!$G$47:$AP$59,9,FALSE())=1),TRUE(),FALSE()) -> FALSE | AC49: =IF(AND(World!$G$31="yes",HLOOKUP(Trade!$B49,'Trade Tables'!$G$47:$AP$59,10,FALSE())=1),TRUE(),FALSE()) -> FALSE | AD49: =IF(AND(World!$G$32="yes",HLOOKUP(Trade!$B49,'Trade Tables'!$G$47:$AP$59,11,FALSE())=1),TRUE(),FALSE()) -> FALSE | AE49: =IF(AND(World!$G$35="yes",HLOOKUP(Trade!$B49,'Trade Tables'!$G$47:$AP$59,12,FALSE())=1),TRUE(),FALSE()) -> FALSE | AF49: =IF(AND(World!$G$38="yes",HLOOKUP(Trade!$B49,'Trade Tables'!$G$47:$AP$59,13,FALSE())=1),TRUE(),FALSE()) -> FALSE | AG49: =IF(Rolls!$G$28='Trade Tables'!$B76,TRUE(),FALSE()) -> FALSE | AH49: =IF(Rolls!$G$29='Trade Tables'!$B76,TRUE(),FALSE()) -> FALSE | AI49: =IF(Rolls!$G$30='Trade Tables'!$B76,TRUE(),FALSE()) -> FALSE | AJ49: =IF(Rolls!$G$31='Trade Tables'!$B76,TRUE(),FALSE()) -> FALSE | AK49: =IF(Rolls!$G$32='Trade Tables'!$B76,TRUE(),FALSE()) -> FALSE | AL49: =IF(Rolls!$G$33='Trade Tables'!$B76,TRUE(),FALSE()) -> FALSE | AW49: =IF($C$6>34,LOOKUP(Rolls!B80,'Trade Tables'!B$88:C$123),"") ->  | AX49: =IF($C$7>34,LOOKUP(Rolls!C80,'Trade Tables'!B$88:C$123),"") -> 
B50: Vehicles | E50: =IF(OR(U50:AF50),CEILING(6*RAND(),1)*'Trade Tables'!D77,0)+IF(AG50,CEILING(6*RAND(),1)*'Trade Tables'!D77,0)+IF(AH50,CEILING(6*RAND(),1)*'Trade Tables'!D77,0)+IF(AI50,CEILING(6*RAND(),1)*'Trade Tables'!D77,0)+IF(AJ50,CEILING(6*RAND(),1)*'Trade Tables'!D77,0)+IF(AK50,CEILING(6*RAND(),1)*'Trade Tables'!D77,0)+IF(AL50,CEILING(6*RAND(),1)*'Trade Tables'!D77,0) -> 0 | J50: 15000 | U50: =IF(AND(World!$G$22="yes",HLOOKUP(Trade!$B50,'Trade Tables'!$G$47:$AP$59,2,FALSE())=1),TRUE(),FALSE()) -> FALSE | V50: =IF(AND(World!$G$23="yes",HLOOKUP(Trade!$B50,'Trade Tables'!$G$47:$AP$59,3,FALSE())=1),TRUE(),FALSE()) -> FALSE | W50: =IF(AND(World!$G$25="yes",HLOOKUP(Trade!$B50,'Trade Tables'!$G$47:$AP$59,4,FALSE())=1),TRUE(),FALSE()) -> FALSE | X50: =IF(AND(World!$G$26="yes",HLOOKUP(Trade!$B50,'Trade Tables'!$G$47:$AP$59,5,FALSE())=1),TRUE(),FALSE()) -> FALSE | Y50: =IF(AND(World!$G$27="yes",HLOOKUP(Trade!$B50,'Trade Tables'!$G$47:$AP$59,6,FALSE())=1),TRUE(),FALSE()) -> FALSE | Z50: =IF(AND(World!$G$28="yes",HLOOKUP(Trade!$B50,'Trade Tables'!$G$47:$AP$59,7,FALSE())=1),TRUE(),FALSE()) -> FALSE | AA50: =IF(AND(World!$G$29="yes",HLOOKUP(Trade!$B50,'Trade Tables'!$G$47:$AP$59,8,FALSE())=1),TRUE(),FALSE()) -> FALSE | AB50: =IF(AND(World!$G$30="yes",HLOOKUP(Trade!$B50,'Trade Tables'!$G$47:$AP$59,9,FALSE())=1),TRUE(),FALSE()) -> FALSE | AC50: =IF(AND(World!$G$31="yes",HLOOKUP(Trade!$B50,'Trade Tables'!$G$47:$AP$59,10,FALSE())=1),TRUE(),FALSE()) -> FALSE | AD50: =IF(AND(World!$G$32="yes",HLOOKUP(Trade!$B50,'Trade Tables'!$G$47:$AP$59,11,FALSE())=1),TRUE(),FALSE()) -> FALSE | AE50: =IF(AND(World!$G$35="yes",HLOOKUP(Trade!$B50,'Trade Tables'!$G$47:$AP$59,12,FALSE())=1),TRUE(),FALSE()) -> FALSE | AF50: =IF(AND(World!$G$38="yes",HLOOKUP(Trade!$B50,'Trade Tables'!$G$47:$AP$59,13,FALSE())=1),TRUE(),FALSE()) -> FALSE | AG50: =IF(Rolls!$G$28='Trade Tables'!$B77,TRUE(),FALSE()) -> FALSE | AH50: =IF(Rolls!$G$29='Trade Tables'!$B77,TRUE(),FALSE()) -> FALSE | AI50: =IF(Rolls!$G$30='Trade Tables'!$B77,TRUE(),FALSE()) -> FALSE | AJ50: =IF(Rolls!$G$31='Trade Tables'!$B77,TRUE(),FALSE()) -> FALSE | AK50: =IF(Rolls!$G$32='Trade Tables'!$B77,TRUE(),FALSE()) -> FALSE | AL50: =IF(Rolls!$G$33='Trade Tables'!$B77,TRUE(),FALSE()) -> FALSE | AW50: =IF($C$6>35,LOOKUP(Rolls!B81,'Trade Tables'!B$88:C$123),"") ->  | AX50: =IF($C$7>35,LOOKUP(Rolls!C81,'Trade Tables'!B$88:C$123),"") -> 
B51: Illegal Biochemicals | E51: =IF(OR(U51:AF51),CEILING(6*RAND(),1)*'Trade Tables'!D78,0)+IF(AG51,CEILING(6*RAND(),1)*'Trade Tables'!D78,0)+IF(AH51,CEILING(6*RAND(),1)*'Trade Tables'!D78,0)+IF(AI51,CEILING(6*RAND(),1)*'Trade Tables'!D78,0)+IF(AJ51,CEILING(6*RAND(),1)*'Trade Tables'!D78,0)+IF(AK51,CEILING(6*RAND(),1)*'Trade Tables'!D78,0)+IF(AL51,CEILING(6*RAND(),1)*'Trade Tables'!D78,0) -> 0 | J51: 50000 | U51: =IF(AND(World!$G$22="yes",HLOOKUP(Trade!$B51,'Trade Tables'!$G$47:$AP$59,2,FALSE())=1),TRUE(),FALSE()) -> FALSE | V51: =IF(AND(World!$G$23="yes",HLOOKUP(Trade!$B51,'Trade Tables'!$G$47:$AP$59,3,FALSE())=1),TRUE(),FALSE()) -> FALSE | W51: =IF(AND(World!$G$25="yes",HLOOKUP(Trade!$B51,'Trade Tables'!$G$47:$AP$59,4,FALSE())=1),TRUE(),FALSE()) -> FALSE | X51: =IF(AND(World!$G$26="yes",HLOOKUP(Trade!$B51,'Trade Tables'!$G$47:$AP$59,5,FALSE())=1),TRUE(),FALSE()) -> FALSE | Y51: =IF(AND(World!$G$27="yes",HLOOKUP(Trade!$B51,'Trade Tables'!$G$47:$AP$59,6,FALSE())=1),TRUE(),FALSE()) -> FALSE | Z51: =IF(AND(World!$G$28="yes",HLOOKUP(Trade!$B51,'Trade Tables'!$G$47:$AP$59,7,FALSE())=1),TRUE(),FALSE()) -> FALSE | AA51: =IF(AND(World!$G$29="yes",HLOOKUP(Trade!$B51,'Trade Tables'!$G$47:$AP$59,8,FALSE())=1),TRUE(),FALSE()) -> FALSE | AB51: =IF(AND(World!$G$30="yes",HLOOKUP(Trade!$B51,'Trade Tables'!$G$47:$AP$59,9,FALSE())=1),TRUE(),FALSE()) -> FALSE | AC51: =IF(AND(World!$G$31="yes",HLOOKUP(Trade!$B51,'Trade Tables'!$G$47:$AP$59,10,FALSE())=1),TRUE(),FALSE()) -> FALSE | AD51: =IF(AND(World!$G$32="yes",HLOOKUP(Trade!$B51,'Trade Tables'!$G$47:$AP$59,11,FALSE())=1),TRUE(),FALSE()) -> FALSE | AE51: =IF(AND(World!$G$35="yes",HLOOKUP(Trade!$B51,'Trade Tables'!$G$47:$AP$59,12,FALSE())=1),TRUE(),FALSE()) -> FALSE | AF51: =IF(AND(World!$G$38="yes",HLOOKUP(Trade!$B51,'Trade Tables'!$G$47:$AP$59,13,FALSE())=1),TRUE(),FALSE()) -> FALSE | AG51: =IF(Rolls!$G$28='Trade Tables'!$B78,TRUE(),FALSE()) -> FALSE | AH51: =IF(Rolls!$G$29='Trade Tables'!$B78,TRUE(),FALSE()) -> FALSE | AI51: =IF(Rolls!$G$30='Trade Tables'!$B78,TRUE(),FALSE()) -> FALSE | AJ51: =IF(Rolls!$G$31='Trade Tables'!$B78,TRUE(),FALSE()) -> FALSE | AK51: =IF(Rolls!$G$32='Trade Tables'!$B78,TRUE(),FALSE()) -> FALSE | AL51: =IF(Rolls!$G$33='Trade Tables'!$B78,TRUE(),FALSE()) -> FALSE | AW51: =IF($C$6>36,LOOKUP(Rolls!B82,'Trade Tables'!B$88:C$123),"") -> 
B52: Illegal Cybernetics | E52: =IF(OR(U52:AF52),CEILING(6*RAND(),1)*'Trade Tables'!D79,0)+IF(AG52,CEILING(6*RAND(),1)*'Trade Tables'!D79,0)+IF(AH52,CEILING(6*RAND(),1)*'Trade Tables'!D79,0)+IF(AI52,CEILING(6*RAND(),1)*'Trade Tables'!D79,0)+IF(AJ52,CEILING(6*RAND(),1)*'Trade Tables'!D79,0)+IF(AK52,CEILING(6*RAND(),1)*'Trade Tables'!D79,0)+IF(AL52,CEILING(6*RAND(),1)*'Trade Tables'!D79,0) -> 0 | J52: 250000 | U52: =IF(AND(World!$G$22="yes",HLOOKUP(Trade!$B52,'Trade Tables'!$G$47:$AP$59,2,FALSE())=1),TRUE(),FALSE()) -> FALSE | V52: =IF(AND(World!$G$23="yes",HLOOKUP(Trade!$B52,'Trade Tables'!$G$47:$AP$59,3,FALSE())=1),TRUE(),FALSE()) -> FALSE | W52: =IF(AND(World!$G$25="yes",HLOOKUP(Trade!$B52,'Trade Tables'!$G$47:$AP$59,4,FALSE())=1),TRUE(),FALSE()) -> FALSE | X52: =IF(AND(World!$G$26="yes",HLOOKUP(Trade!$B52,'Trade Tables'!$G$47:$AP$59,5,FALSE())=1),TRUE(),FALSE()) -> FALSE | Y52: =IF(AND(World!$G$27="yes",HLOOKUP(Trade!$B52,'Trade Tables'!$G$47:$AP$59,6,FALSE())=1),TRUE(),FALSE()) -> FALSE | Z52: =IF(AND(World!$G$28="yes",HLOOKUP(Trade!$B52,'Trade Tables'!$G$47:$AP$59,7,FALSE())=1),TRUE(),FALSE()) -> FALSE | AA52: =IF(AND(World!$G$29="yes",HLOOKUP(Trade!$B52,'Trade Tables'!$G$47:$AP$59,8,FALSE())=1),TRUE(),FALSE()) -> FALSE | AB52: =IF(AND(World!$G$30="yes",HLOOKUP(Trade!$B52,'Trade Tables'!$G$47:$AP$59,9,FALSE())=1),TRUE(),FALSE()) -> FALSE | AC52: =IF(AND(World!$G$31="yes",HLOOKUP(Trade!$B52,'Trade Tables'!$G$47:$AP$59,10,FALSE())=1),TRUE(),FALSE()) -> FALSE | AD52: =IF(AND(World!$G$32="yes",HLOOKUP(Trade!$B52,'Trade Tables'!$G$47:$AP$59,11,FALSE())=1),TRUE(),FALSE()) -> FALSE | AE52: =IF(AND(World!$G$35="yes",HLOOKUP(Trade!$B52,'Trade Tables'!$G$47:$AP$59,12,FALSE())=1),TRUE(),FALSE()) -> FALSE | AF52: =IF(AND(World!$G$38="yes",HLOOKUP(Trade!$B52,'Trade Tables'!$G$47:$AP$59,13,FALSE())=1),TRUE(),FALSE()) -> FALSE | AG52: =IF(Rolls!$G$28='Trade Tables'!$B79,TRUE(),FALSE()) -> FALSE | AH52: =IF(Rolls!$G$29='Trade Tables'!$B79,TRUE(),FALSE()) -> FALSE | AI52: =IF(Rolls!$G$30='Trade Tables'!$B79,TRUE(),FALSE()) -> FALSE | AJ52: =IF(Rolls!$G$31='Trade Tables'!$B79,TRUE(),FALSE()) -> FALSE | AK52: =IF(Rolls!$G$32='Trade Tables'!$B79,TRUE(),FALSE()) -> FALSE | AL52: =IF(Rolls!$G$33='Trade Tables'!$B79,TRUE(),FALSE()) -> FALSE | AW52: =IF($C$6>37,LOOKUP(Rolls!B83,'Trade Tables'!B$88:C$123),"") -> 
B53: Illegal Drugs | E53: =IF(OR(U53:AF53),CEILING(6*RAND(),1)*'Trade Tables'!D80,0)+IF(AG53,CEILING(6*RAND(),1)*'Trade Tables'!D80,0)+IF(AH53,CEILING(6*RAND(),1)*'Trade Tables'!D80,0)+IF(AI53,CEILING(6*RAND(),1)*'Trade Tables'!D80,0)+IF(AJ53,CEILING(6*RAND(),1)*'Trade Tables'!D80,0)+IF(AK53,CEILING(6*RAND(),1)*'Trade Tables'!D80,0)+IF(AL53,CEILING(6*RAND(),1)*'Trade Tables'!D80,0) -> 4 | J53: 100000 | U53: =IF(AND(World!$G$22="yes",HLOOKUP(Trade!$B53,'Trade Tables'!$G$47:$AP$59,2,FALSE())=1),TRUE(),FALSE()) -> FALSE | V53: =IF(AND(World!$G$23="yes",HLOOKUP(Trade!$B53,'Trade Tables'!$G$47:$AP$59,3,FALSE())=1),TRUE(),FALSE()) -> FALSE | W53: =IF(AND(World!$G$25="yes",HLOOKUP(Trade!$B53,'Trade Tables'!$G$47:$AP$59,4,FALSE())=1),TRUE(),FALSE()) -> FALSE | X53: =IF(AND(World!$G$26="yes",HLOOKUP(Trade!$B53,'Trade Tables'!$G$47:$AP$59,5,FALSE())=1),TRUE(),FALSE()) -> FALSE | Y53: =IF(AND(World!$G$27="yes",HLOOKUP(Trade!$B53,'Trade Tables'!$G$47:$AP$59,6,FALSE())=1),TRUE(),FALSE()) -> FALSE | Z53: =IF(AND(World!$G$28="yes",HLOOKUP(Trade!$B53,'Trade Tables'!$G$47:$AP$59,7,FALSE())=1),TRUE(),FALSE()) -> TRUE | AA53: =IF(AND(World!$G$29="yes",HLOOKUP(Trade!$B53,'Trade Tables'!$G$47:$AP$59,8,FALSE())=1),TRUE(),FALSE()) -> FALSE | AB53: =IF(AND(World!$G$30="yes",HLOOKUP(Trade!$B53,'Trade Tables'!$G$47:$AP$59,9,FALSE())=1),TRUE(),FALSE()) -> FALSE | AC53: =IF(AND(World!$G$31="yes",HLOOKUP(Trade!$B53,'Trade Tables'!$G$47:$AP$59,10,FALSE())=1),TRUE(),FALSE()) -> FALSE | AD53: =IF(AND(World!$G$32="yes",HLOOKUP(Trade!$B53,'Trade Tables'!$G$47:$AP$59,11,FALSE())=1),TRUE(),FALSE()) -> FALSE | AE53: =IF(AND(World!$G$35="yes",HLOOKUP(Trade!$B53,'Trade Tables'!$G$47:$AP$59,12,FALSE())=1),TRUE(),FALSE()) -> FALSE | AF53: =IF(AND(World!$G$38="yes",HLOOKUP(Trade!$B53,'Trade Tables'!$G$47:$AP$59,13,FALSE())=1),TRUE(),FALSE()) -> FALSE | AG53: =IF(Rolls!$G$28='Trade Tables'!$B80,TRUE(),FALSE()) -> FALSE | AH53: =IF(Rolls!$G$29='Trade Tables'!$B80,TRUE(),FALSE()) -> FALSE | AI53: =IF(Rolls!$G$30='Trade Tables'!$B80,TRUE(),FALSE()) -> FALSE | AJ53: =IF(Rolls!$G$31='Trade Tables'!$B80,TRUE(),FALSE()) -> FALSE | AK53: =IF(Rolls!$G$32='Trade Tables'!$B80,TRUE(),FALSE()) -> FALSE | AL53: =IF(Rolls!$G$33='Trade Tables'!$B80,TRUE(),FALSE()) -> FALSE | AW53: =IF($C$6>38,LOOKUP(Rolls!B84,'Trade Tables'!B$88:C$123),"") -> 
B54: Illegal Luxuries | E54: =IF(OR(U54:AF54),CEILING(6*RAND(),1)*'Trade Tables'!D81,0)+IF(AG54,CEILING(6*RAND(),1)*'Trade Tables'!D81,0)+IF(AH54,CEILING(6*RAND(),1)*'Trade Tables'!D81,0)+IF(AI54,CEILING(6*RAND(),1)*'Trade Tables'!D81,0)+IF(AJ54,CEILING(6*RAND(),1)*'Trade Tables'!D81,0)+IF(AK54,CEILING(6*RAND(),1)*'Trade Tables'!D81,0)+IF(AL54,CEILING(6*RAND(),1)*'Trade Tables'!D81,0) -> 0 | J54: 50000 | U54: =IF(AND(World!$G$22="yes",HLOOKUP(Trade!$B54,'Trade Tables'!$G$47:$AP$59,2,FALSE())=1),TRUE(),FALSE()) -> FALSE | V54: =IF(AND(World!$G$23="yes",HLOOKUP(Trade!$B54,'Trade Tables'!$G$47:$AP$59,3,FALSE())=1),TRUE(),FALSE()) -> FALSE | W54: =IF(AND(World!$G$25="yes",HLOOKUP(Trade!$B54,'Trade Tables'!$G$47:$AP$59,4,FALSE())=1),TRUE(),FALSE()) -> FALSE | X54: =IF(AND(World!$G$26="yes",HLOOKUP(Trade!$B54,'Trade Tables'!$G$47:$AP$59,5,FALSE())=1),TRUE(),FALSE()) -> FALSE | Y54: =IF(AND(World!$G$27="yes",HLOOKUP(Trade!$B54,'Trade Tables'!$G$47:$AP$59,6,FALSE())=1),TRUE(),FALSE()) -> FALSE | Z54: =IF(AND(World!$G$28="yes",HLOOKUP(Trade!$B54,'Trade Tables'!$G$47:$AP$59,7,FALSE())=1),TRUE(),FALSE()) -> FALSE | AA54: =IF(AND(World!$G$29="yes",HLOOKUP(Trade!$B54,'Trade Tables'!$G$47:$AP$59,8,FALSE())=1),TRUE(),FALSE()) -> FALSE | AB54: =IF(AND(World!$G$30="yes",HLOOKUP(Trade!$B54,'Trade Tables'!$G$47:$AP$59,9,FALSE())=1),TRUE(),FALSE()) -> FALSE | AC54: =IF(AND(World!$G$31="yes",HLOOKUP(Trade!$B54,'Trade Tables'!$G$47:$AP$59,10,FALSE())=1),TRUE(),FALSE()) -> FALSE | AD54: =IF(AND(World!$G$32="yes",HLOOKUP(Trade!$B54,'Trade Tables'!$G$47:$AP$59,11,FALSE())=1),TRUE(),FALSE()) -> FALSE | AE54: =IF(AND(World!$G$35="yes",HLOOKUP(Trade!$B54,'Trade Tables'!$G$47:$AP$59,12,FALSE())=1),TRUE(),FALSE()) -> FALSE | AF54: =IF(AND(World!$G$38="yes",HLOOKUP(Trade!$B54,'Trade Tables'!$G$47:$AP$59,13,FALSE())=1),TRUE(),FALSE()) -> FALSE | AG54: =IF(Rolls!$G$28='Trade Tables'!$B81,TRUE(),FALSE()) -> FALSE | AH54: =IF(Rolls!$G$29='Trade Tables'!$B81,TRUE(),FALSE()) -> FALSE | AI54: =IF(Rolls!$G$30='Trade Tables'!$B81,TRUE(),FALSE()) -> FALSE | AJ54: =IF(Rolls!$G$31='Trade Tables'!$B81,TRUE(),FALSE()) -> FALSE | AK54: =IF(Rolls!$G$32='Trade Tables'!$B81,TRUE(),FALSE()) -> FALSE | AL54: =IF(Rolls!$G$33='Trade Tables'!$B81,TRUE(),FALSE()) -> FALSE | AW54: =IF($C$6>39,LOOKUP(Rolls!B85,'Trade Tables'!B$88:C$123),"") -> 
B55: Illegal Weapons | E55: =IF(OR(U55:AF55),CEILING(6*RAND(),1)*'Trade Tables'!D82,0)+IF(AG55,CEILING(6*RAND(),1)*'Trade Tables'!D82,0)+IF(AH55,CEILING(6*RAND(),1)*'Trade Tables'!D82,0)+IF(AI55,CEILING(6*RAND(),1)*'Trade Tables'!D82,0)+IF(AJ55,CEILING(6*RAND(),1)*'Trade Tables'!D82,0)+IF(AK55,CEILING(6*RAND(),1)*'Trade Tables'!D82,0)+IF(AL55,CEILING(6*RAND(),1)*'Trade Tables'!D82,0) -> 0 | J55: 150000 | U55: =IF(AND(World!$G$22="yes",HLOOKUP(Trade!$B55,'Trade Tables'!$G$47:$AP$59,2,FALSE())=1),TRUE(),FALSE()) -> FALSE | V55: =IF(AND(World!$G$23="yes",HLOOKUP(Trade!$B55,'Trade Tables'!$G$47:$AP$59,3,FALSE())=1),TRUE(),FALSE()) -> FALSE | W55: =IF(AND(World!$G$25="yes",HLOOKUP(Trade!$B55,'Trade Tables'!$G$47:$AP$59,4,FALSE())=1),TRUE(),FALSE()) -> FALSE | X55: =IF(AND(World!$G$26="yes",HLOOKUP(Trade!$B55,'Trade Tables'!$G$47:$AP$59,5,FALSE())=1),TRUE(),FALSE()) -> FALSE | Y55: =IF(AND(World!$G$27="yes",HLOOKUP(Trade!$B55,'Trade Tables'!$G$47:$AP$59,6,FALSE())=1),TRUE(),FALSE()) -> FALSE | Z55: =IF(AND(World!$G$28="yes",HLOOKUP(Trade!$B55,'Trade Tables'!$G$47:$AP$59,7,FALSE())=1),TRUE(),FALSE()) -> FALSE | AA55: =IF(AND(World!$G$29="yes",HLOOKUP(Trade!$B55,'Trade Tables'!$G$47:$AP$59,8,FALSE())=1),TRUE(),FALSE()) -> FALSE | AB55: =IF(AND(World!$G$30="yes",HLOOKUP(Trade!$B55,'Trade Tables'!$G$47:$AP$59,9,FALSE())=1),TRUE(),FALSE()) -> FALSE | AC55: =IF(AND(World!$G$31="yes",HLOOKUP(Trade!$B55,'Trade Tables'!$G$47:$AP$59,10,FALSE())=1),TRUE(),FALSE()) -> FALSE | AD55: =IF(AND(World!$G$32="yes",HLOOKUP(Trade!$B55,'Trade Tables'!$G$47:$AP$59,11,FALSE())=1),TRUE(),FALSE()) -> FALSE | AE55: =IF(AND(World!$G$35="yes",HLOOKUP(Trade!$B55,'Trade Tables'!$G$47:$AP$59,12,FALSE())=1),TRUE(),FALSE()) -> FALSE | AF55: =IF(AND(World!$G$38="yes",HLOOKUP(Trade!$B55,'Trade Tables'!$G$47:$AP$59,13,FALSE())=1),TRUE(),FALSE()) -> FALSE | AG55: =IF(Rolls!$G$28='Trade Tables'!$B82,TRUE(),FALSE()) -> FALSE | AH55: =IF(Rolls!$G$29='Trade Tables'!$B82,TRUE(),FALSE()) -> FALSE | AI55: =IF(Rolls!$G$30='Trade Tables'!$B82,TRUE(),FALSE()) -> FALSE | AJ55: =IF(Rolls!$G$31='Trade Tables'!$B82,TRUE(),FALSE()) -> FALSE | AK55: =IF(Rolls!$G$32='Trade Tables'!$B82,TRUE(),FALSE()) -> FALSE | AL55: =IF(Rolls!$G$33='Trade Tables'!$B82,TRUE(),FALSE()) -> FALSE | AW55: =IF($C$6>40,LOOKUP(Rolls!B86,'Trade Tables'!B$88:C$123),"") -> 
B56: Exotics | E56: =IF(OR(U56:AF56),CEILING(6*RAND(),1)*'Trade Tables'!D83,0)+IF(AG56,CEILING(6*RAND(),1)*'Trade Tables'!D83,0)+IF(AH56,CEILING(6*RAND(),1)*'Trade Tables'!D83,0)+IF(AI56,CEILING(6*RAND(),1)*'Trade Tables'!D83,0)+IF(AJ56,CEILING(6*RAND(),1)*'Trade Tables'!D83,0)+IF(AK56,CEILING(6*RAND(),1)*'Trade Tables'!D83,0)+IF(AL56,CEILING(6*RAND(),1)*'Trade Tables'!D83,0) -> 0 | J56: Varies | U56: =IF(AND(World!$G$22="yes",HLOOKUP(Trade!$B56,'Trade Tables'!$G$47:$AP$59,2,FALSE())=1),TRUE(),FALSE()) -> FALSE | V56: =IF(AND(World!$G$23="yes",HLOOKUP(Trade!$B56,'Trade Tables'!$G$47:$AP$59,3,FALSE())=1),TRUE(),FALSE()) -> FALSE | W56: =IF(AND(World!$G$25="yes",HLOOKUP(Trade!$B56,'Trade Tables'!$G$47:$AP$59,4,FALSE())=1),TRUE(),FALSE()) -> FALSE | X56: =IF(AND(World!$G$26="yes",HLOOKUP(Trade!$B56,'Trade Tables'!$G$47:$AP$59,5,FALSE())=1),TRUE(),FALSE()) -> FALSE | Y56: =IF(AND(World!$G$27="yes",HLOOKUP(Trade!$B56,'Trade Tables'!$G$47:$AP$59,6,FALSE())=1),TRUE(),FALSE()) -> FALSE | Z56: =IF(AND(World!$G$28="yes",HLOOKUP(Trade!$B56,'Trade Tables'!$G$47:$AP$59,7,FALSE())=1),TRUE(),FALSE()) -> FALSE | AA56: =IF(AND(World!$G$29="yes",HLOOKUP(Trade!$B56,'Trade Tables'!$G$47:$AP$59,8,FALSE())=1),TRUE(),FALSE()) -> FALSE | AB56: =IF(AND(World!$G$30="yes",HLOOKUP(Trade!$B56,'Trade Tables'!$G$47:$AP$59,9,FALSE())=1),TRUE(),FALSE()) -> FALSE | AC56: =IF(AND(World!$G$31="yes",HLOOKUP(Trade!$B56,'Trade Tables'!$G$47:$AP$59,10,FALSE())=1),TRUE(),FALSE()) -> FALSE | AD56: =IF(AND(World!$G$32="yes",HLOOKUP(Trade!$B56,'Trade Tables'!$G$47:$AP$59,11,FALSE())=1),TRUE(),FALSE()) -> FALSE | AE56: =IF(AND(World!$G$35="yes",HLOOKUP(Trade!$B56,'Trade Tables'!$G$47:$AP$59,12,FALSE())=1),TRUE(),FALSE()) -> FALSE | AF56: =IF(AND(World!$G$38="yes",HLOOKUP(Trade!$B56,'Trade Tables'!$G$47:$AP$59,13,FALSE())=1),TRUE(),FALSE()) -> FALSE | AG56: =IF(Rolls!$G$28='Trade Tables'!$B83,TRUE(),FALSE()) -> FALSE | AH56: =IF(Rolls!$G$29='Trade Tables'!$B83,TRUE(),FALSE()) -> FALSE | AI56: =IF(Rolls!$G$30='Trade Tables'!$B83,TRUE(),FALSE()) -> TRUE | AJ56: =IF(Rolls!$G$31='Trade Tables'!$B83,TRUE(),FALSE()) -> FALSE | AK56: =IF(Rolls!$G$32='Trade Tables'!$B83,TRUE(),FALSE()) -> FALSE | AL56: =IF(Rolls!$G$33='Trade Tables'!$B83,TRUE(),FALSE()) -> FALSE | AW56: =IF($C$6>41,LOOKUP(Rolls!B87,'Trade Tables'!B$88:C$123),"") -> 
AW57: =IF($C$6>42,LOOKUP(Rolls!B88,'Trade Tables'!B$88:C$123),"") -> 
AW58: =IF($C$6>43,LOOKUP(Rolls!B89,'Trade Tables'!B$88:C$123),"") -> 
AW59: =IF($C$6>44,LOOKUP(Rolls!B90,'Trade Tables'!B$88:C$123),"") -> 
AW60: =IF($C$6>45,LOOKUP(Rolls!B91,'Trade Tables'!B$88:C$123),"") -> 
AW61: =IF($C$6>46,LOOKUP(Rolls!B92,'Trade Tables'!B$88:C$123),"") -> 
AW62: =IF($C$6>47,LOOKUP(Rolls!B93,'Trade Tables'!B$88:C$123),"") -> 
AW63: =IF($C$6>48,LOOKUP(Rolls!B94,'Trade Tables'!B$88:C$123),"") -> 
AW64: =IF($C$6>49,LOOKUP(Rolls!B95,'Trade Tables'!B$88:C$123),"") -> 
AW65: =IF($C$6>50,LOOKUP(Rolls!B96,'Trade Tables'!B$88:C$123),"") -> 
AW66: =IF($C$6>51,LOOKUP(Rolls!B97,'Trade Tables'!B$88:C$123),"") -> 
AW67: =IF($C$6>52,LOOKUP(Rolls!B98,'Trade Tables'!B$88:C$123),"") -> 
AW68: =IF($C$6>53,LOOKUP(Rolls!B99,'Trade Tables'!B$88:C$123),"") -> 

Sheet World
B2: UWP:
B3: =CONCATENATE(CONCATENATE(C7," ",C8," ",G7,DEC2HEX(Rolls!C2),DEC2HEX(Rolls!C3),DEC2HEX(Rolls!C5),DEC2HEX(Rolls!C6),DEC2HEX(Rolls!C7),DEC2HEX(Rolls!C12),"-",DEC2HEX(Rolls!C13)," "),CONCATENATE(IF(G22="yes",CONCATENATE(" ",F22),""),IF(G23="yes",CONCATENATE(" ",F23),""),IF(G24="yes",CONCATENATE(" ",F24),""),IF(G25="yes",CONCATENATE(" ",F25),""),IF(G26="yes",CONCATENATE(" ",F26),""),IF(G27="yes",CONCATENATE(" ",F27),""),IF(G28="yes",CONCATENATE(" ",F28),""),IF(G29="yes",CONCATENATE(" ",F29),""),IF(G30="yes",CONCATENATE(" ",F30),""),IF(G31="yes",CONCATENATE(" ",F31),""),IF(G32="yes",CONCATENATE(" ",F32),""),IF(G33="yes",CONCATENATE(" ",F33),""),IF(G34="yes",CONCATENATE(" ",F34),""),IF(G35="yes",CONCATENATE(" ",F35),""),IF(G36="yes",CONCATENATE(" ",F36),""),IF(G37="yes",CONCATENATE(" ",F37),""),IF(G38="yes",CONCATENATE(" ",F38),""),IF(G39="yes",CONCATENATE(" ",F39),""))," ",IF(C35="Amber","A",IF(C35="Red","R",""))) -> PLANET NAME LOCATION A686984-5 Ga Hi Lt
B6: Planetary Info | F6: Starport
B7: Name: | C7: PLANET NAME | F7: Class: | G7: =LOOKUP(Rolls!C14,'Civilization Tables'!B22:C32) -> A
B8: Location: | C8: LOCATION | D8: =IF(Rolls!E4=0,"Middle of Habitable Zone",IF(Rolls!F4=1,"Hot End of Habitable Zone","Cold End of Habitable Zone")) -> Middle of Habitable Zone | F8: Quality: | G8: =VLOOKUP(G7,'Civilization Tables'!E22:I27,2) -> Excellent
B9: Diameter (km): | C9: =((LOOKUP(Rolls!C2+1,'World Tables'!B4:C14)-LOOKUP(Rolls!C2,'World Tables'!B4:C14))*Rolls!E2)+LOOKUP(Rolls!C2,'World Tables'!B4:C14) -> 10366.26765 | F9: Berthing Cost: | G9: =Rolls!C15*VLOOKUP(World!G7,'Civilization Tables'!E22:I27,3) -> 5000
B10: Gravity(g): | C10: =((VLOOKUP(Rolls!C2+1,'World Tables'!B4:D15,3)-VLOOKUP(Rolls!C2,'World Tables'!B4:D15,3))*Rolls!E2)+VLOOKUP(Rolls!C2,'World Tables'!B4:D15,3) -> 0.7957834557 | F10: Fuel Avaliable: | G10: =VLOOKUP(G7,'Civilization Tables'!E22:I27,4) -> Refined
B11: Atmosphere: | C11: =LOOKUP(Rolls!C3,'World Tables'!F4:G19) -> Dense | F11: Facilities Avaliable: | G11: =VLOOKUP(G7,'Civilization Tables'!E22:I27,5) -> Shipyard (All), Repair
B12: Pressure(atm) | C12: =((VLOOKUP(Rolls!C3,'World Tables'!F4:J19,4)-VLOOKUP(Rolls!C3,'World Tables'!F4:J19,3))*Rolls!E3)+VLOOKUP(Rolls!C3,'World Tables'!F4:J19,3) -> 1.722614935
B13: Survival Gear Required: | C13: =IF(Rolls!C3=15,"Unknown",IF(ISBLANK(VLOOKUP(Rolls!C3,'World Tables'!F4:J19,5)),"None",VLOOKUP(Rolls!C3,'World Tables'!F4:J19,5))) -> None | F13: Bases In System: | G13: Naval | H13: =IF(Rolls!C16>=VLOOKUP(World!G$7,'Civilization Tables'!E$22:O$27,6),"Yes","No") -> No
B14: Temperature(C): | C14: =IF(OR(Rolls!C3=1,Rolls!C3=0),"Unstable",VLOOKUP(Rolls!C4,'World Tables'!B19:D31,3)) -> 0 to 30 | G14: Scout | H14: =IF(Rolls!C17>=VLOOKUP(World!G$7,'Civilization Tables'!E$22:O$27,7),"Yes","No") -> No
B15: Surface Liquid(%): | C15: =((VLOOKUP(Rolls!C5,'World Tables'!F24:H34,3)-VLOOKUP(Rolls!C5,'World Tables'!F24:H34,2))*Rolls!E5)+VLOOKUP(Rolls!C5,'World Tables'!F24:H34,2) -> 64.02829216 | G15: Research | H15: =IF(Rolls!C18>=VLOOKUP(World!G$7,'Civilization Tables'!E$22:O$27,8),"Yes","No") -> No
B16: Population at last Census | C16: =IF(Rolls!C6=0,0,((LOOKUP(Rolls!C6+1,'World Tables'!B36:C48)-LOOKUP(Rolls!C6,'World Tables'!B36:C48))*Rolls!E6)+LOOKUP(Rolls!C6,'World Tables'!B36:C48)) -> 2060017372 | G16: TAS | H16: =IF(Rolls!C19>=VLOOKUP(World!G$7,'Civilization Tables'!E$22:O$27,9),"Yes","No") -> Yes
B17: Animal Life: | C17: =IF(OR(Animals!C21:R21),VLOOKUP(Rolls!F15,'Animal Tables'!A4:G9,Rolls!G15+1),"None") -> Echolocation | G17: Pirate | H17: =IF(Rolls!C20>=VLOOKUP(World!G$7,'Civilization Tables'!E$22:O$27,10),"Yes","No") -> No
G18: Imperial Consulate | H18: =IF(Rolls!C21>=VLOOKUP(World!G$7,'Civilization Tables'!E$22:O$27,11),"Yes","No") -> Yes
B19: Government Info | G19: Gas Giant | H19: =IF(Rolls!F14>=10,"No","Yes") -> Yes
B20: Dominant Government Type: | C20: =VLOOKUP(Rolls!C7,'Civilization Tables'!E4:L17,2) -> Civil Service Bureaucracy
B21: Other Factions: | C21: Type | D21: Strength | F21: Trade Codes | G21: Qualify?
C22: =IF(Rolls!C$8>0,LOOKUP(Rolls!G8,'Civilization Tables'!E$4:F$17),"") -> Balkanisation | D22: =IF(Rolls!C$8>0,LOOKUP(Rolls!E8,'Civilization Tables'!B$4:C$15),"") -> Fringe | F22: Ag | G22: =IF(AND(Rolls!C$2>='Trade Tables'!G64,Rolls!C$2<='Trade Tables'!H64,Rolls!C$3>='Trade Tables'!I64,Rolls!C$3<='Trade Tables'!J64,Rolls!C$5>='Trade Tables'!K64,Rolls!C$5<='Trade Tables'!L64,Rolls!C$6>='Trade Tables'!M64,Rolls!C$6<='Trade Tables'!N64,Rolls!C$7>='Trade Tables'!O64,Rolls!C$7<='Trade Tables'!P64,Rolls!C$12>='Trade Tables'!Q64,Rolls!C$12<='Trade Tables'!R64,Rolls!C$13>='Trade Tables'!S64,Rolls!C$13<='Trade Tables'!T64),"yes","no") -> no
C23: =IF(Rolls!C$8>1,LOOKUP(Rolls!G9,'Civilization Tables'!E$4:F$17),"") ->  | D23: =IF(Rolls!C$8>1,LOOKUP(Rolls!E9,'Civilization Tables'!B$4:C$15),"") ->  | F23: As | G23: =IF(AND(Rolls!C$2>='Trade Tables'!G65,Rolls!C$2<='Trade Tables'!H65,Rolls!C$3>='Trade Tables'!I65,Rolls!C$3<='Trade Tables'!J65,Rolls!C$5>='Trade Tables'!K65,Rolls!C$5<='Trade Tables'!L65,Rolls!C$6>='Trade Tables'!M65,Rolls!C$6<='Trade Tables'!N65,Rolls!C$7>='Trade Tables'!O65,Rolls!C$7<='Trade Tables'!P65,Rolls!C$12>='Trade Tables'!Q65,Rolls!C$12<='Trade Tables'!R65,Rolls!C$13>='Trade Tables'!S65,Rolls!C$13<='Trade Tables'!T65),"yes","no") -> no
C24: =IF(Rolls!C$8>2,LOOKUP(Rolls!G10,'Civilization Tables'!E$4:F$17),"") ->  | D24: =IF(Rolls!C$8>2,LOOKUP(Rolls!E10,'Civilization Tables'!B$4:C$15),"") ->  | F24: Ba | G24: =IF(AND(Rolls!C$2>='Trade Tables'!G66,Rolls!C$2<='Trade Tables'!H66,Rolls!C$3>='Trade Tables'!I66,Rolls!C$3<='Trade Tables'!J66,Rolls!C$5>='Trade Tables'!K66,Rolls!C$5<='Trade Tables'!L66,Rolls!C$6>='Trade Tables'!M66,Rolls!C$6<='Trade Tables'!N66,Rolls!C$7>='Trade Tables'!O66,Rolls!C$7<='Trade Tables'!P66,Rolls!C$12>='Trade Tables'!Q66,Rolls!C$12<='Trade Tables'!R66,Rolls!C$13>='Trade Tables'!S66,Rolls!C$13<='Trade Tables'!T66),"yes","no") -> no
C25: =IF(Rolls!C$8>3,LOOKUP(Rolls!G11,'Civilization Tables'!E$4:F$17),"") ->  | D25: =IF(Rolls!C$8>3,LOOKUP(Rolls!E11,'Civilization Tables'!B$4:C$15),"") ->  | F25: De | G25: =IF(AND(Rolls!C$2>='Trade Tables'!G67,Rolls!C$2<='Trade Tables'!H67,Rolls!C$3>='Trade Tables'!I67,Rolls!C$3<='Trade Tables'!J67,Rolls!C$5>='Trade Tables'!K67,Rolls!C$5<='Trade Tables'!L67,Rolls!C$6>='Trade Tables'!M67,Rolls!C$6<='Trade Tables'!N67,Rolls!C$7>='Trade Tables'!O67,Rolls!C$7<='Trade Tables'!P67,Rolls!C$12>='Trade Tables'!Q67,Rolls!C$12<='Trade Tables'!R67,Rolls!C$13>='Trade Tables'!S67,Rolls!C$13<='Trade Tables'!T67),"yes","no") -> no
F26: Fl | G26: =IF(AND(Rolls!C$2>='Trade Tables'!G68,Rolls!C$2<='Trade Tables'!H68,Rolls!C$3>='Trade Tables'!I68,Rolls!C$3<='Trade Tables'!J68,Rolls!C$5>='Trade Tables'!K68,Rolls!C$5<='Trade Tables'!L68,Rolls!C$6>='Trade Tables'!M68,Rolls!C$6<='Trade Tables'!N68,Rolls!C$7>='Trade Tables'!O68,Rolls!C$7<='Trade Tables'!P68,Rolls!C$12>='Trade Tables'!Q68,Rolls!C$12<='Trade Tables'!R68,Rolls!C$13>='Trade Tables'!S68,Rolls!C$13<='Trade Tables'!T68),"yes","no") -> no
B27: Law Info | F27: Ga | G27: =IF(AND(Rolls!C$2>='Trade Tables'!G69,Rolls!C$2<='Trade Tables'!H69,Rolls!C$3>='Trade Tables'!I69,Rolls!C$3<='Trade Tables'!J69,Rolls!C$5>='Trade Tables'!K69,Rolls!C$5<='Trade Tables'!L69,Rolls!C$6>='Trade Tables'!M69,Rolls!C$6<='Trade Tables'!N69,Rolls!C$7>='Trade Tables'!O69,Rolls!C$7<='Trade Tables'!P69,Rolls!C$12>='Trade Tables'!Q69,Rolls!C$12<='Trade Tables'!R69,Rolls!C$13>='Trade Tables'!S69,Rolls!C$13<='Trade Tables'!T69),"yes","no") -> yes
B28: Law Level: | C28: =Rolls!C12 -> 4 | F28: Hi | G28: =IF(AND(Rolls!C$2>='Trade Tables'!G70,Rolls!C$2<='Trade Tables'!H70,Rolls!C$3>='Trade Tables'!I70,Rolls!C$3<='Trade Tables'!J70,Rolls!C$5>='Trade Tables'!K70,Rolls!C$5<='Trade Tables'!L70,Rolls!C$6>='Trade Tables'!M70,Rolls!C$6<='Trade Tables'!N70,Rolls!C$7>='Trade Tables'!O70,Rolls!C$7<='Trade Tables'!P70,Rolls!C$12>='Trade Tables'!Q70,Rolls!C$12<='Trade Tables'!R70,Rolls!C$13>='Trade Tables'!S70,Rolls!C$13<='Trade Tables'!T70),"yes","no") -> yes
B29: Restrictions on: | C29: Weapons | D29: =IF(VLOOKUP(Rolls!C$7,'Civilization Tables'!E$4:L$17,3)=1,"yes","No") -> yes | F29: Ht | G29: =IF(AND(Rolls!C$2>='Trade Tables'!G71,Rolls!C$2<='Trade Tables'!H71,Rolls!C$3>='Trade Tables'!I71,Rolls!C$3<='Trade Tables'!J71,Rolls!C$5>='Trade Tables'!K71,Rolls!C$5<='Trade Tables'!L71,Rolls!C$6>='Trade Tables'!M71,Rolls!C$6<='Trade Tables'!N71,Rolls!C$7>='Trade Tables'!O71,Rolls!C$7<='Trade Tables'!P71,Rolls!C$12>='Trade Tables'!Q71,Rolls!C$12<='Trade Tables'!R71,Rolls!C$13>='Trade Tables'!S71,Rolls!C$13<='Trade Tables'!T71),"yes","no") -> no
C30: Drugs | D30: =IF(VLOOKUP(Rolls!C$7,'Civilization Tables'!E$4:L$17,4)=1,"yes","No") -> yes | F30: IC | G30: =IF(AND(Rolls!C$2>='Trade Tables'!G72,Rolls!C$2<='Trade Tables'!H72,Rolls!C$3>='Trade Tables'!I72,Rolls!C$3<='Trade Tables'!J72,Rolls!C$5>='Trade Tables'!K72,Rolls!C$5<='Trade Tables'!L72,Rolls!C$6>='Trade Tables'!M72,Rolls!C$6<='Trade Tables'!N72,Rolls!C$7>='Trade Tables'!O72,Rolls!C$7<='Trade Tables'!P72,Rolls!C$12>='Trade Tables'!Q72,Rolls!C$12<='Trade Tables'!R72,Rolls!C$13>='Trade Tables'!S72,Rolls!C$13<='Trade Tables'!T72),"yes","no") -> no
C31: Information | D31: =IF(VLOOKUP(Rolls!C$7,'Civilization Tables'!E$4:L$17,5)=1,"yes","No") -> No | F31: In | G31: =IF(AND(Rolls!C$2>='Trade Tables'!G73,Rolls!C$2<='Trade Tables'!H73,OR(AND(Rolls!C$3>='Trade Tables'!I73,Rolls!C$3<='Trade Tables'!J73),Rolls!C$3=4,Rolls!C$3=7,Rolls!C$3=9),Rolls!C$5>='Trade Tables'!K73,Rolls!C$5<='Trade Tables'!L73,Rolls!C$6>='Trade Tables'!M73,Rolls!C$6<='Trade Tables'!N73,Rolls!C$7>='Trade Tables'!O73,Rolls!C$7<='Trade Tables'!P73,Rolls!C$12>='Trade Tables'!Q73,Rolls!C$12<='Trade Tables'!R73,Rolls!C$13>='Trade Tables'!S73,Rolls!C$13<='Trade Tables'!T73),"yes","no") -> no
C32: Technology | D32: =IF(VLOOKUP(Rolls!C$7,'Civilization Tables'!E$4:L$17,6)=1,"yes","No") -> No | F32: Lo | G32: =IF(AND(Rolls!C$2>='Trade Tables'!G74,Rolls!C$2<='Trade Tables'!H74,Rolls!C$3>='Trade Tables'!I74,Rolls!C$3<='Trade Tables'!J74,Rolls!C$5>='Trade Tables'!K74,Rolls!C$5<='Trade Tables'!L74,Rolls!C$6>='Trade Tables'!M74,Rolls!C$6<='Trade Tables'!N74,Rolls!C$7>='Trade Tables'!O74,Rolls!C$7<='Trade Tables'!P74,Rolls!C$12>='Trade Tables'!Q74,Rolls!C$12<='Trade Tables'!R74,Rolls!C$13>='Trade Tables'!S74,Rolls!C$13<='Trade Tables'!T74),"yes","no") -> no
C33: Travellers | D33: =IF(VLOOKUP(Rolls!C$7,'Civilization Tables'!E$4:L$17,7)=1,"yes","No") -> No | F33: Lt | G33: =IF(AND(Rolls!C$2>='Trade Tables'!G75,Rolls!C$2<='Trade Tables'!H75,Rolls!C$3>='Trade Tables'!I75,Rolls!C$3<='Trade Tables'!J75,Rolls!C$5>='Trade Tables'!K75,Rolls!C$5<='Trade Tables'!L75,Rolls!C$6>='Trade Tables'!M75,Rolls!C$6<='Trade Tables'!N75,Rolls!C$7>='Trade Tables'!O75,Rolls!C$7<='Trade Tables'!P75,Rolls!C$12>='Trade Tables'!Q75,Rolls!C$12<='Trade Tables'!R75,Rolls!C$13>='Trade Tables'!S75,Rolls!C$13<='Trade Tables'!T75),"yes","no") -> yes
C34: Psionics | D34: =IF(VLOOKUP(Rolls!C$7,'Civilization Tables'!E$4:L$17,8)=1,"yes","No") -> No | F34: Na | G34: =IF(AND(Rolls!C$2>='Trade Tables'!G76,Rolls!C$2<='Trade Tables'!H76,Rolls!C$3>='Trade Tables'!I76,Rolls!C$3<='Trade Tables'!J76,Rolls!C$5>='Trade Tables'!K76,Rolls!C$5<='Trade Tables'!L76,Rolls!C$6>='Trade Tables'!M76,Rolls!C$6<='Trade Tables'!N76,Rolls!C$7>='Trade Tables'!O76,Rolls!C$7<='Trade Tables'!P76,Rolls!C$12>='Trade Tables'!Q76,Rolls!C$12<='Trade Tables'!R76,Rolls!C$13>='Trade Tables'!S76,Rolls!C$13<='Trade Tables'!T76),"yes","no") -> no
B35: Zone Code: | C35: FILL THIS IN | F35: NI | G35: =IF(AND(Rolls!C$2>='Trade Tables'!G77,Rolls!C$2<='Trade Tables'!H77,Rolls!C$3>='Trade Tables'!I77,Rolls!C$3<='Trade Tables'!J77,Rolls!C$5>='Trade Tables'!K77,Rolls!C$5<='Trade Tables'!L77,Rolls!C$6>='Trade Tables'!M77,Rolls!C$6<='Trade Tables'!N77,Rolls!C$7>='Trade Tables'!O77,Rolls!C$7<='Trade Tables'!P77,Rolls!C$12>='Trade Tables'!Q77,Rolls!C$12<='Trade Tables'!R77,Rolls!C$13>='Trade Tables'!S77,Rolls!C$13<='Trade Tables'!T77),"yes","no") -> no
F36: Po | G36: =IF(AND(Rolls!C$2>='Trade Tables'!G78,Rolls!C$2<='Trade Tables'!H78,Rolls!C$3>='Trade Tables'!I78,Rolls!C$3<='Trade Tables'!J78,Rolls!C$5>='Trade Tables'!K78,Rolls!C$5<='Trade Tables'!L78,Rolls!C$6>='Trade Tables'!M78,Rolls!C$6<='Trade Tables'!N78,Rolls!C$7>='Trade Tables'!O78,Rolls!C$7<='Trade Tables'!P78,Rolls!C$12>='Trade Tables'!Q78,Rolls!C$12<='Trade Tables'!R78,Rolls!C$13>='Trade Tables'!S78,Rolls!C$13<='Trade Tables'!T78),"yes","no") -> no
B37: Technology Info | F37: Ri | G37: =IF(AND(Rolls!C$2>='Trade Tables'!G79,Rolls!C$2<='Trade Tables'!H79,OR(Rolls!C$3='Trade Tables'!I79,Rolls!C$3='Trade Tables'!J79),Rolls!C$5>='Trade Tables'!K79,Rolls!C$5<='Trade Tables'!L79,Rolls!C$6>='Trade Tables'!M79,Rolls!C$6<='Trade Tables'!N79,Rolls!C$7>='Trade Tables'!O79,Rolls!C$7<='Trade Tables'!P79,Rolls!C$12>='Trade Tables'!Q79,Rolls!C$12<='Trade Tables'!R79,Rolls!C$13>='Trade Tables'!S79,Rolls!C$13<='Trade Tables'!T79),"yes","no") -> no
B38: Tech Level: | C38: =Rolls!C13 -> 5 | F38: Wa | G38: =IF(AND(Rolls!C$2>='Trade Tables'!G80,Rolls!C$2<='Trade Tables'!H80,Rolls!C$3>='Trade Tables'!I80,Rolls!C$3<='Trade Tables'!J80,Rolls!C$5>='Trade Tables'!K80,Rolls!C$5<='Trade Tables'!L80,Rolls!C$6>='Trade Tables'!M80,Rolls!C$6<='Trade Tables'!N80,Rolls!C$7>='Trade Tables'!O80,Rolls!C$7<='Trade Tables'!P80,Rolls!C$12>='Trade Tables'!Q80,Rolls!C$12<='Trade Tables'!R80,Rolls!C$13>='Trade Tables'!S80,Rolls!C$13<='Trade Tables'!T80),"yes","no") -> no
F39: Va | G39: =IF(AND(Rolls!C$2>='Trade Tables'!G81,Rolls!C$2<='Trade Tables'!H81,Rolls!C$3>='Trade Tables'!I81,Rolls!C$3<='Trade Tables'!J81,Rolls!C$5>='Trade Tables'!K81,Rolls!C$5<='Trade Tables'!L81,Rolls!C$6>='Trade Tables'!M81,Rolls!C$6<='Trade Tables'!N81,Rolls!C$7>='Trade Tables'!O81,Rolls!C$7<='Trade Tables'!P81,Rolls!C$12>='Trade Tables'!Q81,Rolls!C$12<='Trade Tables'!R81,Rolls!C$13>='Trade Tables'!S81,Rolls!C$13<='Trade Tables'!T81),"yes","no") -> no

Sheet Animals
C2: Clear | D2: Plain or Praire | E2: Desert(hot or cold) | F2: Hills, Foothills | G2: Mountain | H2: Forest | I2: Woods | J2: Jungle | K2: Rainforest | L2: Rough, Broken | M2: Swamp, Marsh | N2: Beach, Shore | O2: Riverbank | P2: Ocean Shallows | Q2: Open Ocean | R2: Deep Ocean
C3: =IF(AND(World!$G22="yes",VLOOKUP(Animals!C$2,'Animal Tables'!$K$51:$AC$66,ROW(C3)-1,FALSE())),TRUE(),IF(World!$G22="no",TRUE(),FALSE())) -> TRUE | D3: =IF(AND(World!$G22="yes",VLOOKUP(Animals!D$2,'Animal Tables'!$K$51:$AC$66,ROW(D3)-1,FALSE())),TRUE(),IF(World!$G22="no",TRUE(),FALSE())) -> TRUE | E3: =IF(AND(World!$G22="yes",VLOOKUP(Animals!E$2,'Animal Tables'!$K$51:$AC$66,ROW(E3)-1,FALSE())),TRUE(),IF(World!$G22="no",TRUE(),FALSE())) -> TRUE | F3: =IF(AND(World!$G22="yes",VLOOKUP(Animals!F$2,'Animal Tables'!$K$51:$AC$66,ROW(F3)-1,FALSE())),TRUE(),IF(World!$G22="no",TRUE(),FALSE())) -> TRUE | G3: =IF(AND(World!$G22="yes",VLOOKUP(Animals!G$2,'Animal Tables'!$K$51:$AC$66,ROW(G3)-1,FALSE())),TRUE(),IF(World!$G22="no",TRUE(),FALSE())) -> TRUE | H3: =IF(AND(World!$G22="yes",VLOOKUP(Animals!H$2,'Animal Tables'!$K$51:$AC$66,ROW(H3)-1,FALSE())),TRUE(),IF(World!$G22="no",TRUE(),FALSE())) -> TRUE | I3: =IF(AND(World!$G22="yes",VLOOKUP(Animals!I$2,'Animal Tables'!$K$51:$AC$66,ROW(I3)-1,FALSE())),TRUE(),IF(World!$G22="no",TRUE(),FALSE())) -> TRUE | J3: =IF(AND(World!$G22="yes",VLOOKUP(Animals!J$2,'Animal Tables'!$K$51:$AC$66,ROW(J3)-1,FALSE())),TRUE(),IF(World!$G22="no",TRUE(),FALSE())) -> TRUE | K3: =IF(AND(World!$G22="yes",VLOOKUP(Animals!K$2,'Animal Tables'!$K$51:$AC$66,ROW(K3)-1,FALSE())),TRUE(),IF(World!$G22="no",TRUE(),FALSE())) -> TRUE | L3: =IF(AND(World!$G22="yes",VLOOKUP(Animals!L$2,'Animal Tables'!$K$51:$AC$66,ROW(L3)-1,FALSE())),TRUE(),IF(World!$G22="no",TRUE(),FALSE())) -> TRUE | M3: =IF(AND(World!$G22="yes",VLOOKUP(Animals!M$2,'Animal Tables'!$K$51:$AC$66,ROW(M3)-1,FALSE())),TRUE(),IF(World!$G22="no",TRUE(),FALSE())) -> TRUE | N3: =IF(AND(World!$G22="yes",VLOOKUP(Animals!N$2,'Animal Tables'!$K$51:$AC$66,ROW(N3)-1,FALSE())),TRUE(),IF(World!$G22="no",TRUE(),FALSE())) -> TRUE | O3: =IF(AND(World!$G22="yes",VLOOKUP(Animals!O$2,'Animal Tables'!$K$51:$AC$66,ROW(O3)-1,FALSE())),TRUE(),IF(World!$G22="no",TRUE(),FALSE())) -> TRUE | P3: =IF(AND(World!$G22="yes",VLOOKUP(Animals!P$2,'Animal Tables'!$K$51:$AC$66,ROW(P3)-1,FALSE())),TRUE(),IF(World!$G22="no",TRUE(),FALSE())) -> TRUE | Q3: =IF(AND(World!$G22="yes",VLOOKUP(Animals!Q$2,'Animal Tables'!$K$51:$AC$66,ROW(Q3)-1,FALSE())),TRUE(),IF(World!$G22="no",TRUE(),FALSE())) -> TRUE | R3: =IF(AND(World!$G22="yes",VLOOKUP(Animals!R$2,'Animal Tables'!$K$51:$AC$66,ROW(R3)-1,FALSE())),TRUE(),IF(World!$G22="no",TRUE(),FALSE())) -> TRUE
C4: =IF(AND(World!$G23="yes",VLOOKUP(Animals!C$2,'Animal Tables'!$K$51:$AC$66,ROW(C4)-1,FALSE())),TRUE(),IF(World!$G23="no",TRUE(),FALSE())) -> TRUE | D4: =IF(AND(World!$G23="yes",VLOOKUP(Animals!D$2,'Animal Tables'!$K$51:$AC$66,ROW(D4)-1,FALSE())),TRUE(),IF(World!$G23="no",TRUE(),FALSE())) -> TRUE | E4: =IF(AND(World!$G23="yes",VLOOKUP(Animals!E$2,'Animal Tables'!$K$51:$AC$66,ROW(E4)-1,FALSE())),TRUE(),IF(World!$G23="no",TRUE(),FALSE())) -> TRUE | F4: =IF(AND(World!$G23="yes",VLOOKUP(Animals!F$2,'Animal Tables'!$K$51:$AC$66,ROW(F4)-1,FALSE())),TRUE(),IF(World!$G23="no",TRUE(),FALSE())) -> TRUE | G4: =IF(AND(World!$G23="yes",VLOOKUP(Animals!G$2,'Animal Tables'!$K$51:$AC$66,ROW(G4)-1,FALSE())),TRUE(),IF(World!$G23="no",TRUE(),FALSE())) -> TRUE | H4: =IF(AND(World!$G23="yes",VLOOKUP(Animals!H$2,'Animal Tables'!$K$51:$AC$66,ROW(H4)-1,FALSE())),TRUE(),IF(World!$G23="no",TRUE(),FALSE())) -> TRUE | I4: =IF(AND(World!$G23="yes",VLOOKUP(Animals!I$2,'Animal Tables'!$K$51:$AC$66,ROW(I4)-1,FALSE())),TRUE(),IF(World!$G23="no",TRUE(),FALSE())) -> TRUE | J4: =IF(AND(World!$G23="yes",VLOOKUP(Animals!J$2,'Animal Tables'!$K$51:$AC$66,ROW(J4)-1,FALSE())),TRUE(),IF(World!$G23="no",TRUE(),FALSE())) -> TRUE | K4: =IF(AND(World!$G23="yes",VLOOKUP(Animals!K$2,'Animal Tables'!$K$51:$AC$66,ROW(K4)-1,FALSE())),TRUE(),IF(World!$G23="no",TRUE(),FALSE())) -> TRUE | L4: =IF(AND(World!$G23="yes",VLOOKUP(Animals!L$2,'Animal Tables'!$K$51:$AC$66,ROW(L4)-1,FALSE())),TRUE(),IF(World!$G23="no",TRUE(),FALSE())) -> TRUE | M4: =IF(AND(World!$G23="yes",VLOOKUP(Animals!M$2,'Animal Tables'!$K$51:$AC$66,ROW(M4)-1,FALSE())),TRUE(),IF(World!$G23="no",TRUE(),FALSE())) -> TRUE | N4: =IF(AND(World!$G23="yes",VLOOKUP(Animals!N$2,'Animal Tables'!$K$51:$AC$66,ROW(N4)-1,FALSE())),TRUE(),IF(World!$G23="no",TRUE(),FALSE())) -> TRUE | O4: =IF(AND(World!$G23="yes",VLOOKUP(Animals!O$2,'Animal Tables'!$K$51:$AC$66,ROW(O4)-1,FALSE())),TRUE(),IF(World!$G23="no",TRUE(),FALSE())) -> TRUE | P4: =IF(AND(World!$G23="yes",VLOOKUP(Animals!P$2,'Animal Tables'!$K$51:$AC$66,ROW(P4)-1,FALSE())),TRUE(),IF(World!$G23="no",TRUE(),FALSE())) -> TRUE | Q4: =IF(AND(World!$G23="yes",VLOOKUP(Animals!Q$2,'Animal Tables'!$K$51:$AC$66,ROW(Q4)-1,FALSE())),TRUE(),IF(World!$G23="no",TRUE(),FALSE())) -> TRUE | R4: =IF(AND(World!$G23="yes",VLOOKUP(Animals!R$2,'Animal Tables'!$K$51:$AC$66,ROW(R4)-1,FALSE())),TRUE(),IF(World!$G23="no",TRUE(),FALSE())) -> TRUE
C5: =IF(AND(World!$G24="yes",VLOOKUP(Animals!C$2,'Animal Tables'!$K$51:$AC$66,ROW(C5)-1,FALSE())),TRUE(),IF(World!$G24="no",TRUE(),FALSE())) -> TRUE | D5: =IF(AND(World!$G24="yes",VLOOKUP(Animals!D$2,'Animal Tables'!$K$51:$AC$66,ROW(D5)-1,FALSE())),TRUE(),IF(World!$G24="no",TRUE(),FALSE())) -> TRUE | E5: =IF(AND(World!$G24="yes",VLOOKUP(Animals!E$2,'Animal Tables'!$K$51:$AC$66,ROW(E5)-1,FALSE())),TRUE(),IF(World!$G24="no",TRUE(),FALSE())) -> TRUE | F5: =IF(AND(World!$G24="yes",VLOOKUP(Animals!F$2,'Animal Tables'!$K$51:$AC$66,ROW(F5)-1,FALSE())),TRUE(),IF(World!$G24="no",TRUE(),FALSE())) -> TRUE | G5: =IF(AND(World!$G24="yes",VLOOKUP(Animals!G$2,'Animal Tables'!$K$51:$AC$66,ROW(G5)-1,FALSE())),TRUE(),IF(World!$G24="no",TRUE(),FALSE())) -> TRUE | H5: =IF(AND(World!$G24="yes",VLOOKUP(Animals!H$2,'Animal Tables'!$K$51:$AC$66,ROW(H5)-1,FALSE())),TRUE(),IF(World!$G24="no",TRUE(),FALSE())) -> TRUE | I5: =IF(AND(World!$G24="yes",VLOOKUP(Animals!I$2,'Animal Tables'!$K$51:$AC$66,ROW(I5)-1,FALSE())),TRUE(),IF(World!$G24="no",TRUE(),FALSE())) -> TRUE | J5: =IF(AND(World!$G24="yes",VLOOKUP(Animals!J$2,'Animal Tables'!$K$51:$AC$66,ROW(J5)-1,FALSE())),TRUE(),IF(World!$G24="no",TRUE(),FALSE())) -> TRUE | K5: =IF(AND(World!$G24="yes",VLOOKUP(Animals!K$2,'Animal Tables'!$K$51:$AC$66,ROW(K5)-1,FALSE())),TRUE(),IF(World!$G24="no",TRUE(),FALSE())) -> TRUE | L5: =IF(AND(World!$G24="yes",VLOOKUP(Animals!L$2,'Animal Tables'!$K$51:$AC$66,ROW(L5)-1,FALSE())),TRUE(),IF(World!$G24="no",TRUE(),FALSE())) -> TRUE | M5: =IF(AND(World!$G24="yes",VLOOKUP(Animals!M$2,'Animal Tables'!$K$51:$AC$66,ROW(M5)-1,FALSE())),TRUE(),IF(World!$G24="no",TRUE(),FALSE())) -> TRUE | N5: =IF(AND(World!$G24="yes",VLOOKUP(Animals!N$2,'Animal Tables'!$K$51:$AC$66,ROW(N5)-1,FALSE())),TRUE(),IF(World!$G24="no",TRUE(),FALSE())) -> TRUE | O5: =IF(AND(World!$G24="yes",VLOOKUP(Animals!O$2,'Animal Tables'!$K$51:$AC$66,ROW(O5)-1,FALSE())),TRUE(),IF(World!$G24="no",TRUE(),FALSE())) -> TRUE | P5: =IF(AND(World!$G24="yes",VLOOKUP(Animals!P$2,'Animal Tables'!$K$51:$AC$66,ROW(P5)-1,FALSE())),TRUE(),IF(World!$G24="no",TRUE(),FALSE())) -> TRUE | Q5: =IF(AND(World!$G24="yes",VLOOKUP(Animals!Q$2,'Animal Tables'!$K$51:$AC$66,ROW(Q5)-1,FALSE())),TRUE(),IF(World!$G24="no",TRUE(),FALSE())) -> TRUE | R5: =IF(AND(World!$G24="yes",VLOOKUP(Animals!R$2,'Animal Tables'!$K$51:$AC$66,ROW(R5)-1,FALSE())),TRUE(),IF(World!$G24="no",TRUE(),FALSE())) -> TRUE
C6: =IF(AND(World!$G25="yes",VLOOKUP(Animals!C$2,'Animal Tables'!$K$51:$AC$66,ROW(C6)-1,FALSE())),TRUE(),IF(World!$G25="no",TRUE(),FALSE())) -> TRUE | D6: =IF(AND(World!$G25="yes",VLOOKUP(Animals!D$2,'Animal Tables'!$K$51:$AC$66,ROW(D6)-1,FALSE())),TRUE(),IF(World!$G25="no",TRUE(),FALSE())) -> TRUE | E6: =IF(AND(World!$G25="yes",VLOOKUP(Animals!E$2,'Animal Tables'!$K$51:$AC$66,ROW(E6)-1,FALSE())),TRUE(),IF(World!$G25="no",TRUE(),FALSE())) -> TRUE | F6: =IF(AND(World!$G25="yes",VLOOKUP(Animals!F$2,'Animal Tables'!$K$51:$AC$66,ROW(F6)-1,FALSE())),TRUE(),IF(World!$G25="no",TRUE(),FALSE())) -> TRUE | G6: =IF(AND(World!$G25="yes",VLOOKUP(Animals!G$2,'Animal Tables'!$K$51:$AC$66,ROW(G6)-1,FALSE())),TRUE(),IF(World!$G25="no",TRUE(),FALSE())) -> TRUE | H6: =IF(AND(World!$G25="yes",VLOOKUP(Animals!H$2,'Animal Tables'!$K$51:$AC$66,ROW(H6)-1,FALSE())),TRUE(),IF(World!$G25="no",TRUE(),FALSE())) -> TRUE | I6: =IF(AND(World!$G25="yes",VLOOKUP(Animals!I$2,'Animal Tables'!$K$51:$AC$66,ROW(I6)-1,FALSE())),TRUE(),IF(World!$G25="no",TRUE(),FALSE())) -> TRUE | J6: =IF(AND(World!$G25="yes",VLOOKUP(Animals!J$2,'Animal Tables'!$K$51:$AC$66,ROW(J6)-1,FALSE())),TRUE(),IF(World!$G25="no",TRUE(),FALSE())) -> TRUE | K6: =IF(AND(World!$G25="yes",VLOOKUP(Animals!K$2,'Animal Tables'!$K$51:$AC$66,ROW(K6)-1,FALSE())),TRUE(),IF(World!$G25="no",TRUE(),FALSE())) -> TRUE | L6: =IF(AND(World!$G25="yes",VLOOKUP(Animals!L$2,'Animal Tables'!$K$51:$AC$66,ROW(L6)-1,FALSE())),TRUE(),IF(World!$G25="no",TRUE(),FALSE())) -> TRUE | M6: =IF(AND(World!$G25="yes",VLOOKUP(Animals!M$2,'Animal Tables'!$K$51:$AC$66,ROW(M6)-1,FALSE())),TRUE(),IF(World!$G25="no",TRUE(),FALSE())) -> TRUE | N6: =IF(AND(World!$G25="yes",VLOOKUP(Animals!N$2,'Animal Tables'!$K$51:$AC$66,ROW(N6)-1,FALSE())),TRUE(),IF(World!$G25="no",TRUE(),FALSE())) -> TRUE | O6: =IF(AND(World!$G25="yes",VLOOKUP(Animals!O$2,'Animal Tables'!$K$51:$AC$66,ROW(O6)-1,FALSE())),TRUE(),IF(World!$G25="no",TRUE(),FALSE())) -> TRUE | P6: =IF(AND(World!$G25="yes",VLOOKUP(Animals!P$2,'Animal Tables'!$K$51:$AC$66,ROW(P6)-1,FALSE())),TRUE(),IF(World!$G25="no",TRUE(),FALSE())) -> TRUE | Q6: =IF(AND(World!$G25="yes",VLOOKUP(Animals!Q$2,'Animal Tables'!$K$51:$AC$66,ROW(Q6)-1,FALSE())),TRUE(),IF(World!$G25="no",TRUE(),FALSE())) -> TRUE | R6: =IF(AND(World!$G25="yes",VLOOKUP(Animals!R$2,'Animal Tables'!$K$51:$AC$66,ROW(R6)-1,FALSE())),TRUE(),IF(World!$G25="no",TRUE(),FALSE())) -> TRUE
C7: =IF(AND(World!$G26="yes",VLOOKUP(Animals!C$2,'Animal Tables'!$K$51:$AC$66,ROW(C7)-1,FALSE())),TRUE(),IF(World!$G26="no",TRUE(),FALSE())) -> TRUE | D7: =IF(AND(World!$G26="yes",VLOOKUP(Animals!D$2,'Animal Tables'!$K$51:$AC$66,ROW(D7)-1,FALSE())),TRUE(),IF(World!$G26="no",TRUE(),FALSE())) -> TRUE | E7: =IF(AND(World!$G26="yes",VLOOKUP(Animals!E$2,'Animal Tables'!$K$51:$AC$66,ROW(E7)-1,FALSE())),TRUE(),IF(World!$G26="no",TRUE(),FALSE())) -> TRUE | F7: =IF(AND(World!$G26="yes",VLOOKUP(Animals!F$2,'Animal Tables'!$K$51:$AC$66,ROW(F7)-1,FALSE())),TRUE(),IF(World!$G26="no",TRUE(),FALSE())) -> TRUE | G7: =IF(AND(World!$G26="yes",VLOOKUP(Animals!G$2,'Animal Tables'!$K$51:$AC$66,ROW(G7)-1,FALSE())),TRUE(),IF(World!$G26="no",TRUE(),FALSE())) -> TRUE | H7: =IF(AND(World!$G26="yes",VLOOKUP(Animals!H$2,'Animal Tables'!$K$51:$AC$66,ROW(H7)-1,FALSE())),TRUE(),IF(World!$G26="no",TRUE(),FALSE())) -> TRUE | I7: =IF(AND(World!$G26="yes",VLOOKUP(Animals!I$2,'Animal Tables'!$K$51:$AC$66,ROW(I7)-1,FALSE())),TRUE(),IF(World!$G26="no",TRUE(),FALSE())) -> TRUE | J7: =IF(AND(World!$G26="yes",VLOOKUP(Animals!J$2,'Animal Tables'!$K$51:$AC$66,ROW(J7)-1,FALSE())),TRUE(),IF(World!$G26="no",TRUE(),FALSE())) -> TRUE | K7: =IF(AND(World!$G26="yes",VLOOKUP(Animals!K$2,'Animal Tables'!$K$51:$AC$66,ROW(K7)-1,FALSE())),TRUE(),IF(World!$G26="no",TRUE(),FALSE())) -> TRUE | L7: =IF(AND(World!$G26="yes",VLOOKUP(Animals!L$2,'Animal Tables'!$K$51:$AC$66,ROW(L7)-1,FALSE())),TRUE(),IF(World!$G26="no",TRUE(),FALSE())) -> TRUE | M7: =IF(AND(World!$G26="yes",VLOOKUP(Animals!M$2,'Animal Tables'!$K$51:$AC$66,ROW(M7)-1,FALSE())),TRUE(),IF(World!$G26="no",TRUE(),FALSE())) -> TRUE | N7: =IF(AND(World!$G26="yes",VLOOKUP(Animals!N$2,'Animal Tables'!$K$51:$AC$66,ROW(N7)-1,FALSE())),TRUE(),IF(World!$G26="no",TRUE(),FALSE())) -> TRUE | O7: =IF(AND(World!$G26="yes",VLOOKUP(Animals!O$2,'Animal Tables'!$K$51:$AC$66,ROW(O7)-1,FALSE())),TRUE(),IF(World!$G26="no",TRUE(),FALSE())) -> TRUE | P7: =IF(AND(World!$G26="yes",VLOOKUP(Animals!P$2,'Animal Tables'!$K$51:$AC$66,ROW(P7)-1,FALSE())),TRUE(),IF(World!$G26="no",TRUE(),FALSE())) -> TRUE | Q7: =IF(AND(World!$G26="yes",VLOOKUP(Animals!Q$2,'Animal Tables'!$K$51:$AC$66,ROW(Q7)-1,FALSE())),TRUE(),IF(World!$G26="no",TRUE(),FALSE())) -> TRUE | R7: =IF(AND(World!$G26="yes",VLOOKUP(Animals!R$2,'Animal Tables'!$K$51:$AC$66,ROW(R7)-1,FALSE())),TRUE(),IF(World!$G26="no",TRUE(),FALSE())) -> TRUE
C8: =IF(AND(World!$G27="yes",VLOOKUP(Animals!C$2,'Animal Tables'!$K$51:$AC$66,ROW(C8)-1,FALSE())),TRUE(),IF(World!$G27="no",TRUE(),FALSE())) -> TRUE | D8: =IF(AND(World!$G27="yes",VLOOKUP(Animals!D$2,'Animal Tables'!$K$51:$AC$66,ROW(D8)-1,FALSE())),TRUE(),IF(World!$G27="no",TRUE(),FALSE())) -> TRUE | E8: =IF(AND(World!$G27="yes",VLOOKUP(Animals!E$2,'Animal Tables'!$K$51:$AC$66,ROW(E8)-1,FALSE())),TRUE(),IF(World!$G27="no",TRUE(),FALSE())) -> TRUE | F8: =IF(AND(World!$G27="yes",VLOOKUP(Animals!F$2,'Animal Tables'!$K$51:$AC$66,ROW(F8)-1,FALSE())),TRUE(),IF(World!$G27="no",TRUE(),FALSE())) -> TRUE | G8: =IF(AND(World!$G27="yes",VLOOKUP(Animals!G$2,'Animal Tables'!$K$51:$AC$66,ROW(G8)-1,FALSE())),TRUE(),IF(World!$G27="no",TRUE(),FALSE())) -> TRUE | H8: =IF(AND(World!$G27="yes",VLOOKUP(Animals!H$2,'Animal Tables'!$K$51:$AC$66,ROW(H8)-1,FALSE())),TRUE(),IF(World!$G27="no",TRUE(),FALSE())) -> TRUE | I8: =IF(AND(World!$G27="yes",VLOOKUP(Animals!I$2,'Animal Tables'!$K$51:$AC$66,ROW(I8)-1,FALSE())),TRUE(),IF(World!$G27="no",TRUE(),FALSE())) -> TRUE | J8: =IF(AND(World!$G27="yes",VLOOKUP(Animals!J$2,'Animal Tables'!$K$51:$AC$66,ROW(J8)-1,FALSE())),TRUE(),IF(World!$G27="no",TRUE(),FALSE())) -> TRUE | K8: =IF(AND(World!$G27="yes",VLOOKUP(Animals!K$2,'Animal Tables'!$K$51:$AC$66,ROW(K8)-1,FALSE())),TRUE(),IF(World!$G27="no",TRUE(),FALSE())) -> TRUE | L8: =IF(AND(World!$G27="yes",VLOOKUP(Animals!L$2,'Animal Tables'!$K$51:$AC$66,ROW(L8)-1,FALSE())),TRUE(),IF(World!$G27="no",TRUE(),FALSE())) -> TRUE | M8: =IF(AND(World!$G27="yes",VLOOKUP(Animals!M$2,'Animal Tables'!$K$51:$AC$66,ROW(M8)-1,FALSE())),TRUE(),IF(World!$G27="no",TRUE(),FALSE())) -> TRUE | N8: =IF(AND(World!$G27="yes",VLOOKUP(Animals!N$2,'Animal Tables'!$K$51:$AC$66,ROW(N8)-1,FALSE())),TRUE(),IF(World!$G27="no",TRUE(),FALSE())) -> TRUE | O8: =IF(AND(World!$G27="yes",VLOOKUP(Animals!O$2,'Animal Tables'!$K$51:$AC$66,ROW(O8)-1,FALSE())),TRUE(),IF(World!$G27="no",TRUE(),FALSE())) -> TRUE | P8: =IF(AND(World!$G27="yes",VLOOKUP(Animals!P$2,'Animal Tables'!$K$51:$AC$66,ROW(P8)-1,FALSE())),TRUE(),IF(World!$G27="no",TRUE(),FALSE())) -> TRUE | Q8: =IF(AND(World!$G27="yes",VLOOKUP(Animals!Q$2,'Animal Tables'!$K$51:$AC$66,ROW(Q8)-1,FALSE())),TRUE(),IF(World!$G27="no",TRUE(),FALSE())) -> TRUE | R8: =IF(AND(World!$G27="yes",VLOOKUP(Animals!R$2,'Animal Tables'!$K$51:$AC$66,ROW(R8)-1,FALSE())),TRUE(),IF(World!$G27="no",TRUE(),FALSE())) -> TRUE
C9: =IF(AND(World!$G28="yes",VLOOKUP(Animals!C$2,'Animal Tables'!$K$51:$AC$66,ROW(C9)-1,FALSE())),TRUE(),IF(World!$G28="no",TRUE(),FALSE())) -> FALSE | D9: =IF(AND(World!$G28="yes",VLOOKUP(Animals!D$2,'Animal Tables'!$K$51:$AC$66,ROW(D9)-1,FALSE())),TRUE(),IF(World!$G28="no",TRUE(),FALSE())) -> FALSE | E9: =IF(AND(World!$G28="yes",VLOOKUP(Animals!E$2,'Animal Tables'!$K$51:$AC$66,ROW(E9)-1,FALSE())),TRUE(),IF(World!$G28="no",TRUE(),FALSE())) -> TRUE | F9: =IF(AND(World!$G28="yes",VLOOKUP(Animals!F$2,'Animal Tables'!$K$51:$AC$66,ROW(F9)-1,FALSE())),TRUE(),IF(World!$G28="no",TRUE(),FALSE())) -> TRUE | G9: =IF(AND(World!$G28="yes",VLOOKUP(Animals!G$2,'Animal Tables'!$K$51:$AC$66,ROW(G9)-1,FALSE())),TRUE(),IF(World!$G28="no",TRUE(),FALSE())) -> TRUE | H9: =IF(AND(World!$G28="yes",VLOOKUP(Animals!H$2,'Animal Tables'!$K$51:$AC$66,ROW(H9)-1,FALSE())),TRUE(),IF(World!$G28="no",TRUE(),FALSE())) -> FALSE | I9: =IF(AND(World!$G28="yes",VLOOKUP(Animals!I$2,'Animal Tables'!$K$51:$AC$66,ROW(I9)-1,FALSE())),TRUE(),IF(World!$G28="no",TRUE(),FALSE())) -> FALSE | J9: =IF(AND(World!$G28="yes",VLOOKUP(Animals!J$2,'Animal Tables'!$K$51:$AC$66,ROW(J9)-1,FALSE())),TRUE(),IF(World!$G28="no",TRUE(),FALSE())) -> FALSE | K9: =IF(AND(World!$G28="yes",VLOOKUP(Animals!K$2,'Animal Tables'!$K$51:$AC$66,ROW(K9)-1,FALSE())),TRUE(),IF(World!$G28="no",TRUE(),FALSE())) -> FALSE | L9: =IF(AND(World!$G28="yes",VLOOKUP(Animals!L$2,'Animal Tables'!$K$51:$AC$66,ROW(L9)-1,FALSE())),TRUE(),IF(World!$G28="no",TRUE(),FALSE())) -> TRUE | M9: =IF(AND(World!$G28="yes",VLOOKUP(Animals!M$2,'Animal Tables'!$K$51:$AC$66,ROW(M9)-1,FALSE())),TRUE(),IF(World!$G28="no",TRUE(),FALSE())) -> TRUE | N9: =IF(AND(World!$G28="yes",VLOOKUP(Animals!N$2,'Animal Tables'!$K$51:$AC$66,ROW(N9)-1,FALSE())),TRUE(),IF(World!$G28="no",TRUE(),FALSE())) -> TRUE | O9: =IF(AND(World!$G28="yes",VLOOKUP(Animals!O$2,'Animal Tables'!$K$51:$AC$66,ROW(O9)-1,FALSE())),TRUE(),IF(World!$G28="no",TRUE(),FALSE())) -> TRUE | P9: =IF(AND(World!$G28="yes",VLOOKUP(Animals!P$2,'Animal Tables'!$K$51:$AC$66,ROW(P9)-1,FALSE())),TRUE(),IF(World!$G28="no",TRUE(),FALSE())) -> TRUE | Q9: =IF(AND(World!$G28="yes",VLOOKUP(Animals!Q$2,'Animal Tables'!$K$51:$AC$66,ROW(Q9)-1,FALSE())),TRUE(),IF(World!$G28="no",TRUE(),FALSE())) -> TRUE | R9: =IF(AND(World!$G28="yes",VLOOKUP(Animals!R$2,'Animal Tables'!$K$51:$AC$66,ROW(R9)-1,FALSE())),TRUE(),IF(World!$G28="no",TRUE(),FALSE())) -> TRUE
C10: =IF(AND(World!$G29="yes",VLOOKUP(Animals!C$2,'Animal Tables'!$K$51:$AC$66,ROW(C10)-1,FALSE())),TRUE(),IF(World!$G29="no",TRUE(),FALSE())) -> TRUE | D10: =IF(AND(World!$G29="yes",VLOOKUP(Animals!D$2,'Animal Tables'!$K$51:$AC$66,ROW(D10)-1,FALSE())),TRUE(),IF(World!$G29="no",TRUE(),FALSE())) -> TRUE | E10: =IF(AND(World!$G29="yes",VLOOKUP(Animals!E$2,'Animal Tables'!$K$51:$AC$66,ROW(E10)-1,FALSE())),TRUE(),IF(World!$G29="no",TRUE(),FALSE())) -> TRUE | F10: =IF(AND(World!$G29="yes",VLOOKUP(Animals!F$2,'Animal Tables'!$K$51:$AC$66,ROW(F10)-1,FALSE())),TRUE(),IF(World!$G29="no",TRUE(),FALSE())) -> TRUE | G10: =IF(AND(World!$G29="yes",VLOOKUP(Animals!G$2,'Animal Tables'!$K$51:$AC$66,ROW(G10)-1,FALSE())),TRUE(),IF(World!$G29="no",TRUE(),FALSE())) -> TRUE | H10: =IF(AND(World!$G29="yes",VLOOKUP(Animals!H$2,'Animal Tables'!$K$51:$AC$66,ROW(H10)-1,FALSE())),TRUE(),IF(World!$G29="no",TRUE(),FALSE())) -> TRUE | I10: =IF(AND(World!$G29="yes",VLOOKUP(Animals!I$2,'Animal Tables'!$K$51:$AC$66,ROW(I10)-1,FALSE())),TRUE(),IF(World!$G29="no",TRUE(),FALSE())) -> TRUE | J10: =IF(AND(World!$G29="yes",VLOOKUP(Animals!J$2,'Animal Tables'!$K$51:$AC$66,ROW(J10)-1,FALSE())),TRUE(),IF(World!$G29="no",TRUE(),FALSE())) -> TRUE | K10: =IF(AND(World!$G29="yes",VLOOKUP(Animals!K$2,'Animal Tables'!$K$51:$AC$66,ROW(K10)-1,FALSE())),TRUE(),IF(World!$G29="no",TRUE(),FALSE())) -> TRUE | L10: =IF(AND(World!$G29="yes",VLOOKUP(Animals!L$2,'Animal Tables'!$K$51:$AC$66,ROW(L10)-1,FALSE())),TRUE(),IF(World!$G29="no",TRUE(),FALSE())) -> TRUE | M10: =IF(AND(World!$G29="yes",VLOOKUP(Animals!M$2,'Animal Tables'!$K$51:$AC$66,ROW(M10)-1,FALSE())),TRUE(),IF(World!$G29="no",TRUE(),FALSE())) -> TRUE | N10: =IF(AND(World!$G29="yes",VLOOKUP(Animals!N$2,'Animal Tables'!$K$51:$AC$66,ROW(N10)-1,FALSE())),TRUE(),IF(World!$G29="no",TRUE(),FALSE())) -> TRUE | O10: =IF(AND(World!$G29="yes",VLOOKUP(Animals!O$2,'Animal Tables'!$K$51:$AC$66,ROW(O10)-1,FALSE())),TRUE(),IF(World!$G29="no",TRUE(),FALSE())) -> TRUE | P10: =IF(AND(World!$G29="yes",VLOOKUP(Animals!P$2,'Animal Tables'!$K$51:$AC$66,ROW(P10)-1,FALSE())),TRUE(),IF(World!$G29="no",TRUE(),FALSE())) -> TRUE | Q10: =IF(AND(World!$G29="yes",VLOOKUP(Animals!Q$2,'Animal Tables'!$K$51:$AC$66,ROW(Q10)-1,FALSE())),TRUE(),IF(World!$G29="no",TRUE(),FALSE())) -> TRUE | R10: =IF(AND(World!$G29="yes",VLOOKUP(Animals!R$2,'Animal Tables'!$K$51:$AC$66,ROW(R10)-1,FALSE())),TRUE(),IF(World!$G29="no",TRUE(),FALSE())) -> TRUE
C11: =IF(AND(World!$G30="yes",VLOOKUP(Animals!C$2,'Animal Tables'!$K$51:$AC$66,ROW(C11)-1,FALSE())),TRUE(),IF(World!$G30="no",TRUE(),FALSE())) -> TRUE | D11: =IF(AND(World!$G30="yes",VLOOKUP(Animals!D$2,'Animal Tables'!$K$51:$AC$66,ROW(D11)-1,FALSE())),TRUE(),IF(World!$G30="no",TRUE(),FALSE())) -> TRUE | E11: =IF(AND(World!$G30="yes",VLOOKUP(Animals!E$2,'Animal Tables'!$K$51:$AC$66,ROW(E11)-1,FALSE())),TRUE(),IF(World!$G30="no",TRUE(),FALSE())) -> TRUE | F11: =IF(AND(World!$G30="yes",VLOOKUP(Animals!F$2,'Animal Tables'!$K$51:$AC$66,ROW(F11)-1,FALSE())),TRUE(),IF(World!$G30="no",TRUE(),FALSE())) -> TRUE | G11: =IF(AND(World!$G30="yes",VLOOKUP(Animals!G$2,'Animal Tables'!$K$51:$AC$66,ROW(G11)-1,FALSE())),TRUE(),IF(World!$G30="no",TRUE(),FALSE())) -> TRUE | H11: =IF(AND(World!$G30="yes",VLOOKUP(Animals!H$2,'Animal Tables'!$K$51:$AC$66,ROW(H11)-1,FALSE())),TRUE(),IF(World!$G30="no",TRUE(),FALSE())) -> TRUE | I11: =IF(AND(World!$G30="yes",VLOOKUP(Animals!I$2,'Animal Tables'!$K$51:$AC$66,ROW(I11)-1,FALSE())),TRUE(),IF(World!$G30="no",TRUE(),FALSE())) -> TRUE | J11: =IF(AND(World!$G30="yes",VLOOKUP(Animals!J$2,'Animal Tables'!$K$51:$AC$66,ROW(J11)-1,FALSE())),TRUE(),IF(World!$G30="no",TRUE(),FALSE())) -> TRUE | K11: =IF(AND(World!$G30="yes",VLOOKUP(Animals!K$2,'Animal Tables'!$K$51:$AC$66,ROW(K11)-1,FALSE())),TRUE(),IF(World!$G30="no",TRUE(),FALSE())) -> TRUE | L11: =IF(AND(World!$G30="yes",VLOOKUP(Animals!L$2,'Animal Tables'!$K$51:$AC$66,ROW(L11)-1,FALSE())),TRUE(),IF(World!$G30="no",TRUE(),FALSE())) -> TRUE | M11: =IF(AND(World!$G30="yes",VLOOKUP(Animals!M$2,'Animal Tables'!$K$51:$AC$66,ROW(M11)-1,FALSE())),TRUE(),IF(World!$G30="no",TRUE(),FALSE())) -> TRUE | N11: =IF(AND(World!$G30="yes",VLOOKUP(Animals!N$2,'Animal Tables'!$K$51:$AC$66,ROW(N11)-1,FALSE())),TRUE(),IF(World!$G30="no",TRUE(),FALSE())) -> TRUE | O11: =IF(AND(World!$G30="yes",VLOOKUP(Animals!O$2,'Animal Tables'!$K$51:$AC$66,ROW(O11)-1,FALSE())),TRUE(),IF(World!$G30="no",TRUE(),FALSE())) -> TRUE | P11: =IF(AND(World!$G30="yes",VLOOKUP(Animals!P$2,'Animal Tables'!$K$51:$AC$66,ROW(P11)-1,FALSE())),TRUE(),IF(World!$G30="no",TRUE(),FALSE())) -> TRUE | Q11: =IF(AND(World!$G30="yes",VLOOKUP(Animals!Q$2,'Animal Tables'!$K$51:$AC$66,ROW(Q11)-1,FALSE())),TRUE(),IF(World!$G30="no",TRUE(),FALSE())) -> TRUE | R11: =IF(AND(World!$G30="yes",VLOOKUP(Animals!R$2,'Animal Tables'!$K$51:$AC$66,ROW(R11)-1,FALSE())),TRUE(),IF(World!$G30="no",TRUE(),FALSE())) -> TRUE
C12: =IF(AND(World!$G31="yes",VLOOKUP(Animals!C$2,'Animal Tables'!$K$51:$AC$66,ROW(C12)-1,FALSE())),TRUE(),IF(World!$G31="no",TRUE(),FALSE())) -> TRUE | D12: =IF(AND(World!$G31="yes",VLOOKUP(Animals!D$2,'Animal Tables'!$K$51:$AC$66,ROW(D12)-1,FALSE())),TRUE(),IF(World!$G31="no",TRUE(),FALSE())) -> TRUE | E12: =IF(AND(World!$G31="yes",VLOOKUP(Animals!E$2,'Animal Tables'!$K$51:$AC$66,ROW(E12)-1,FALSE())),TRUE(),IF(World!$G31="no",TRUE(),FALSE())) -> TRUE | F12: =IF(AND(World!$G31="yes",VLOOKUP(Animals!F$2,'Animal Tables'!$K$51:$AC$66,ROW(F12)-1,FALSE())),TRUE(),IF(World!$G31="no",TRUE(),FALSE())) -> TRUE | G12: =IF(AND(World!$G31="yes",VLOOKUP(Animals!G$2,'Animal Tables'!$K$51:$AC$66,ROW(G12)-1,FALSE())),TRUE(),IF(World!$G31="no",TRUE(),FALSE())) -> TRUE | H12: =IF(AND(World!$G31="yes",VLOOKUP(Animals!H$2,'Animal Tables'!$K$51:$AC$66,ROW(H12)-1,FALSE())),TRUE(),IF(World!$G31="no",TRUE(),FALSE())) -> TRUE | I12: =IF(AND(World!$G31="yes",VLOOKUP(Animals!I$2,'Animal Tables'!$K$51:$AC$66,ROW(I12)-1,FALSE())),TRUE(),IF(World!$G31="no",TRUE(),FALSE())) -> TRUE | J12: =IF(AND(World!$G31="yes",VLOOKUP(Animals!J$2,'Animal Tables'!$K$51:$AC$66,ROW(J12)-1,FALSE())),TRUE(),IF(World!$G31="no",TRUE(),FALSE())) -> TRUE | K12: =IF(AND(World!$G31="yes",VLOOKUP(Animals!K$2,'Animal Tables'!$K$51:$AC$66,ROW(K12)-1,FALSE())),TRUE(),IF(World!$G31="no",TRUE(),FALSE())) -> TRUE | L12: =IF(AND(World!$G31="yes",VLOOKUP(Animals!L$2,'Animal Tables'!$K$51:$AC$66,ROW(L12)-1,FALSE())),TRUE(),IF(World!$G31="no",TRUE(),FALSE())) -> TRUE | M12: =IF(AND(World!$G31="yes",VLOOKUP(Animals!M$2,'Animal Tables'!$K$51:$AC$66,ROW(M12)-1,FALSE())),TRUE(),IF(World!$G31="no",TRUE(),FALSE())) -> TRUE | N12: =IF(AND(World!$G31="yes",VLOOKUP(Animals!N$2,'Animal Tables'!$K$51:$AC$66,ROW(N12)-1,FALSE())),TRUE(),IF(World!$G31="no",TRUE(),FALSE())) -> TRUE | O12: =IF(AND(World!$G31="yes",VLOOKUP(Animals!O$2,'Animal Tables'!$K$51:$AC$66,ROW(O12)-1,FALSE())),TRUE(),IF(World!$G31="no",TRUE(),FALSE())) -> TRUE | P12: =IF(AND(World!$G31="yes",VLOOKUP(Animals!P$2,'Animal Tables'!$K$51:$AC$66,ROW(P12)-1,FALSE())),TRUE(),IF(World!$G31="no",TRUE(),FALSE())) -> TRUE | Q12: =IF(AND(World!$G31="yes",VLOOKUP(Animals!Q$2,'Animal Tables'!$K$51:$AC$66,ROW(Q12)-1,FALSE())),TRUE(),IF(World!$G31="no",TRUE(),FALSE())) -> TRUE | R12: =IF(AND(World!$G31="yes",VLOOKUP(Animals!R$2,'Animal Tables'!$K$51:$AC$66,ROW(R12)-1,FALSE())),TRUE(),IF(World!$G31="no",TRUE(),FALSE())) -> TRUE
C13: =IF(AND(World!$G32="yes",VLOOKUP(Animals!C$2,'Animal Tables'!$K$51:$AC$66,ROW(C13)-1,FALSE())),TRUE(),IF(World!$G32="no",TRUE(),FALSE())) -> TRUE | D13: =IF(AND(World!$G32="yes",VLOOKUP(Animals!D$2,'Animal Tables'!$K$51:$AC$66,ROW(D13)-1,FALSE())),TRUE(),IF(World!$G32="no",TRUE(),FALSE())) -> TRUE | E13: =IF(AND(World!$G32="yes",VLOOKUP(Animals!E$2,'Animal Tables'!$K$51:$AC$66,ROW(E13)-1,FALSE())),TRUE(),IF(World!$G32="no",TRUE(),FALSE())) -> TRUE | F13: =IF(AND(World!$G32="yes",VLOOKUP(Animals!F$2,'Animal Tables'!$K$51:$AC$66,ROW(F13)-1,FALSE())),TRUE(),IF(World!$G32="no",TRUE(),FALSE())) -> TRUE | G13: =IF(AND(World!$G32="yes",VLOOKUP(Animals!G$2,'Animal Tables'!$K$51:$AC$66,ROW(G13)-1,FALSE())),TRUE(),IF(World!$G32="no",TRUE(),FALSE())) -> TRUE | H13: =IF(AND(World!$G32="yes",VLOOKUP(Animals!H$2,'Animal Tables'!$K$51:$AC$66,ROW(H13)-1,FALSE())),TRUE(),IF(World!$G32="no",TRUE(),FALSE())) -> TRUE | I13: =IF(AND(World!$G32="yes",VLOOKUP(Animals!I$2,'Animal Tables'!$K$51:$AC$66,ROW(I13)-1,FALSE())),TRUE(),IF(World!$G32="no",TRUE(),FALSE())) -> TRUE | J13: =IF(AND(World!$G32="yes",VLOOKUP(Animals!J$2,'Animal Tables'!$K$51:$AC$66,ROW(J13)-1,FALSE())),TRUE(),IF(World!$G32="no",TRUE(),FALSE())) -> TRUE | K13: =IF(AND(World!$G32="yes",VLOOKUP(Animals!K$2,'Animal Tables'!$K$51:$AC$66,ROW(K13)-1,FALSE())),TRUE(),IF(World!$G32="no",TRUE(),FALSE())) -> TRUE | L13: =IF(AND(World!$G32="yes",VLOOKUP(Animals!L$2,'Animal Tables'!$K$51:$AC$66,ROW(L13)-1,FALSE())),TRUE(),IF(World!$G32="no",TRUE(),FALSE())) -> TRUE | M13: =IF(AND(World!$G32="yes",VLOOKUP(Animals!M$2,'Animal Tables'!$K$51:$AC$66,ROW(M13)-1,FALSE())),TRUE(),IF(World!$G32="no",TRUE(),FALSE())) -> TRUE | N13: =IF(AND(World!$G32="yes",VLOOKUP(Animals!N$2,'Animal Tables'!$K$51:$AC$66,ROW(N13)-1,FALSE())),TRUE(),IF(World!$G32="no",TRUE(),FALSE())) -> TRUE | O13: =IF(AND(World!$G32="yes",VLOOKUP(Animals!O$2,'Animal Tables'!$K$51:$AC$66,ROW(O13)-1,FALSE())),TRUE(),IF(World!$G32="no",TRUE(),FALSE())) -> TRUE | P13: =IF(AND(World!$G32="yes",VLOOKUP(Animals!P$2,'Animal Tables'!$K$51:$AC$66,ROW(P13)-1,FALSE())),TRUE(),IF(World!$G32="no",TRUE(),FALSE())) -> TRUE | Q13: =IF(AND(World!$G32="yes",VLOOKUP(Animals!Q$2,'Animal Tables'!$K$51:$AC$66,ROW(Q13)-1,FALSE())),TRUE(),IF(World!$G32="no",TRUE(),FALSE())) -> TRUE | R13: =IF(AND(World!$G32="yes",VLOOKUP(Animals!R$2,'Animal Tables'!$K$51:$AC$66,ROW(R13)-1,FALSE())),TRUE(),IF(World!$G32="no",TRUE(),FALSE())) -> TRUE
C14: =IF(AND(World!$G33="yes",VLOOKUP(Animals!C$2,'Animal Tables'!$K$51:$AC$66,ROW(C14)-1,FALSE())),TRUE(),IF(World!$G33="no",TRUE(),FALSE())) -> TRUE | D14: =IF(AND(World!$G33="yes",VLOOKUP(Animals!D$2,'Animal Tables'!$K$51:$AC$66,ROW(D14)-1,FALSE())),TRUE(),IF(World!$G33="no",TRUE(),FALSE())) -> TRUE | E14: =IF(AND(World!$G33="yes",VLOOKUP(Animals!E$2,'Animal Tables'!$K$51:$AC$66,ROW(E14)-1,FALSE())),TRUE(),IF(World!$G33="no",TRUE(),FALSE())) -> TRUE | F14: =IF(AND(World!$G33="yes",VLOOKUP(Animals!F$2,'Animal Tables'!$K$51:$AC$66,ROW(F14)-1,FALSE())),TRUE(),IF(World!$G33="no",TRUE(),FALSE())) -> TRUE | G14: =IF(AND(World!$G33="yes",VLOOKUP(Animals!G$2,'Animal Tables'!$K$51:$AC$66,ROW(G14)-1,FALSE())),TRUE(),IF(World!$G33="no",TRUE(),FALSE())) -> TRUE | H14: =IF(AND(World!$G33="yes",VLOOKUP(Animals!H$2,'Animal Tables'!$K$51:$AC$66,ROW(H14)-1,FALSE())),TRUE(),IF(World!$G33="no",TRUE(),FALSE())) -> TRUE | I14: =IF(AND(World!$G33="yes",VLOOKUP(Animals!I$2,'Animal Tables'!$K$51:$AC$66,ROW(I14)-1,FALSE())),TRUE(),IF(World!$G33="no",TRUE(),FALSE())) -> TRUE | J14: =IF(AND(World!$G33="yes",VLOOKUP(Animals!J$2,'Animal Tables'!$K$51:$AC$66,ROW(J14)-1,FALSE())),TRUE(),IF(World!$G33="no",TRUE(),FALSE())) -> TRUE | K14: =IF(AND(World!$G33="yes",VLOOKUP(Animals!K$2,'Animal Tables'!$K$51:$AC$66,ROW(K14)-1,FALSE())),TRUE(),IF(World!$G33="no",TRUE(),FALSE())) -> TRUE | L14: =IF(AND(World!$G33="yes",VLOOKUP(Animals!L$2,'Animal Tables'!$K$51:$AC$66,ROW(L14)-1,FALSE())),TRUE(),IF(World!$G33="no",TRUE(),FALSE())) -> TRUE | M14: =IF(AND(World!$G33="yes",VLOOKUP(Animals!M$2,'Animal Tables'!$K$51:$AC$66,ROW(M14)-1,FALSE())),TRUE(),IF(World!$G33="no",TRUE(),FALSE())) -> TRUE | N14: =IF(AND(World!$G33="yes",VLOOKUP(Animals!N$2,'Animal Tables'!$K$51:$AC$66,ROW(N14)-1,FALSE())),TRUE(),IF(World!$G33="no",TRUE(),FALSE())) -> TRUE | O14: =IF(AND(World!$G33="yes",VLOOKUP(Animals!O$2,'Animal Tables'!$K$51:$AC$66,ROW(O14)-1,FALSE())),TRUE(),IF(World!$G33="no",TRUE(),FALSE())) -> TRUE | P14: =IF(AND(World!$G33="yes",VLOOKUP(Animals!P$2,'Animal Tables'!$K$51:$AC$66,ROW(P14)-1,FALSE())),TRUE(),IF(World!$G33="no",TRUE(),FALSE())) -> TRUE | Q14: =IF(AND(World!$G33="yes",VLOOKUP(Animals!Q$2,'Animal Tables'!$K$51:$AC$66,ROW(Q14)-1,FALSE())),TRUE(),IF(World!$G33="no",TRUE(),FALSE())) -> TRUE | R14: =IF(AND(World!$G33="yes",VLOOKUP(Animals!R$2,'Animal Tables'!$K$51:$AC$66,ROW(R14)-1,FALSE())),TRUE(),IF(World!$G33="no",TRUE(),FALSE())) -> TRUE
C15: =IF(AND(World!$G34="yes",VLOOKUP(Animals!C$2,'Animal Tables'!$K$51:$AC$66,ROW(C15)-1,FALSE())),TRUE(),IF(World!$G34="no",TRUE(),FALSE())) -> TRUE | D15: =IF(AND(World!$G34="yes",VLOOKUP(Animals!D$2,'Animal Tables'!$K$51:$AC$66,ROW(D15)-1,FALSE())),TRUE(),IF(World!$G34="no",TRUE(),FALSE())) -> TRUE | E15: =IF(AND(World!$G34="yes",VLOOKUP(Animals!E$2,'Animal Tables'!$K$51:$AC$66,ROW(E15)-1,FALSE())),TRUE(),IF(World!$G34="no",TRUE(),FALSE())) -> TRUE | F15: =IF(AND(World!$G34="yes",VLOOKUP(Animals!F$2,'Animal Tables'!$K$51:$AC$66,ROW(F15)-1,FALSE())),TRUE(),IF(World!$G34="no",TRUE(),FALSE())) -> TRUE | G15: =IF(AND(World!$G34="yes",VLOOKUP(Animals!G$2,'Animal Tables'!$K$51:$AC$66,ROW(G15)-1,FALSE())),TRUE(),IF(World!$G34="no",TRUE(),FALSE())) -> TRUE | H15: =IF(AND(World!$G34="yes",VLOOKUP(Animals!H$2,'Animal Tables'!$K$51:$AC$66,ROW(H15)-1,FALSE())),TRUE(),IF(World!$G34="no",TRUE(),FALSE())) -> TRUE | I15: =IF(AND(World!$G34="yes",VLOOKUP(Animals!I$2,'Animal Tables'!$K$51:$AC$66,ROW(I15)-1,FALSE())),TRUE(),IF(World!$G34="no",TRUE(),FALSE())) -> TRUE | J15: =IF(AND(World!$G34="yes",VLOOKUP(Animals!J$2,'Animal Tables'!$K$51:$AC$66,ROW(J15)-1,FALSE())),TRUE(),IF(World!$G34="no",TRUE(),FALSE())) -> TRUE | K15: =IF(AND(World!$G34="yes",VLOOKUP(Animals!K$2,'Animal Tables'!$K$51:$AC$66,ROW(K15)-1,FALSE())),TRUE(),IF(World!$G34="no",TRUE(),FALSE())) -> TRUE | L15: =IF(AND(World!$G34="yes",VLOOKUP(Animals!L$2,'Animal Tables'!$K$51:$AC$66,ROW(L15)-1,FALSE())),TRUE(),IF(World!$G34="no",TRUE(),FALSE())) -> TRUE | M15: =IF(AND(World!$G34="yes",VLOOKUP(Animals!M$2,'Animal Tables'!$K$51:$AC$66,ROW(M15)-1,FALSE())),TRUE(),IF(World!$G34="no",TRUE(),FALSE())) -> TRUE | N15: =IF(AND(World!$G34="yes",VLOOKUP(Animals!N$2,'Animal Tables'!$K$51:$AC$66,ROW(N15)-1,FALSE())),TRUE(),IF(World!$G34="no",TRUE(),FALSE())) -> TRUE | O15: =IF(AND(World!$G34="yes",VLOOKUP(Animals!O$2,'Animal Tables'!$K$51:$AC$66,ROW(O15)-1,FALSE())),TRUE(),IF(World!$G34="no",TRUE(),FALSE())) -> TRUE | P15: =IF(AND(World!$G34="yes",VLOOKUP(Animals!P$2,'Animal Tables'!$K$51:$AC$66,ROW(P15)-1,FALSE())),TRUE(),IF(World!$G34="no",TRUE(),FALSE())) -> TRUE | Q15: =IF(AND(World!$G34="yes",VLOOKUP(Animals!Q$2,'Animal Tables'!$K$51:$AC$66,ROW(Q15)-1,FALSE())),TRUE(),IF(World!$G34="no",TRUE(),FALSE())) -> TRUE | R15: =IF(AND(World!$G34="yes",VLOOKUP(Animals!R$2,'Animal Tables'!$K$51:$AC$66,ROW(R15)-1,FALSE())),TRUE(),IF(World!$G34="no",TRUE(),FALSE())) -> TRUE
C16: =IF(AND(World!$G35="yes",VLOOKUP(Animals!C$2,'Animal Tables'!$K$51:$AC$66,ROW(C16)-1,FALSE())),TRUE(),IF(World!$G35="no",TRUE(),FALSE())) -> TRUE | D16: =IF(AND(World!$G35="yes",VLOOKUP(Animals!D$2,'Animal Tables'!$K$51:$AC$66,ROW(D16)-1,FALSE())),TRUE(),IF(World!$G35="no",TRUE(),FALSE())) -> TRUE | E16: =IF(AND(World!$G35="yes",VLOOKUP(Animals!E$2,'Animal Tables'!$K$51:$AC$66,ROW(E16)-1,FALSE())),TRUE(),IF(World!$G35="no",TRUE(),FALSE())) -> TRUE | F16: =IF(AND(World!$G35="yes",VLOOKUP(Animals!F$2,'Animal Tables'!$K$51:$AC$66,ROW(F16)-1,FALSE())),TRUE(),IF(World!$G35="no",TRUE(),FALSE())) -> TRUE | G16: =IF(AND(World!$G35="yes",VLOOKUP(Animals!G$2,'Animal Tables'!$K$51:$AC$66,ROW(G16)-1,FALSE())),TRUE(),IF(World!$G35="no",TRUE(),FALSE())) -> TRUE | H16: =IF(AND(World!$G35="yes",VLOOKUP(Animals!H$2,'Animal Tables'!$K$51:$AC$66,ROW(H16)-1,FALSE())),TRUE(),IF(World!$G35="no",TRUE(),FALSE())) -> TRUE | I16: =IF(AND(World!$G35="yes",VLOOKUP(Animals!I$2,'Animal Tables'!$K$51:$AC$66,ROW(I16)-1,FALSE())),TRUE(),IF(World!$G35="no",TRUE(),FALSE())) -> TRUE | J16: =IF(AND(World!$G35="yes",VLOOKUP(Animals!J$2,'Animal Tables'!$K$51:$AC$66,ROW(J16)-1,FALSE())),TRUE(),IF(World!$G35="no",TRUE(),FALSE())) -> TRUE | K16: =IF(AND(World!$G35="yes",VLOOKUP(Animals!K$2,'Animal Tables'!$K$51:$AC$66,ROW(K16)-1,FALSE())),TRUE(),IF(World!$G35="no",TRUE(),FALSE())) -> TRUE | L16: =IF(AND(World!$G35="yes",VLOOKUP(Animals!L$2,'Animal Tables'!$K$51:$AC$66,ROW(L16)-1,FALSE())),TRUE(),IF(World!$G35="no",TRUE(),FALSE())) -> TRUE | M16: =IF(AND(World!$G35="yes",VLOOKUP(Animals!M$2,'Animal Tables'!$K$51:$AC$66,ROW(M16)-1,FALSE())),TRUE(),IF(World!$G35="no",TRUE(),FALSE())) -> TRUE | N16: =IF(AND(World!$G35="yes",VLOOKUP(Animals!N$2,'Animal Tables'!$K$51:$AC$66,ROW(N16)-1,FALSE())),TRUE(),IF(World!$G35="no",TRUE(),FALSE())) -> TRUE | O16: =IF(AND(World!$G35="yes",VLOOKUP(Animals!O$2,'Animal Tables'!$K$51:$AC$66,ROW(O16)-1,FALSE())),TRUE(),IF(World!$G35="no",TRUE(),FALSE())) -> TRUE | P16: =IF(AND(World!$G35="yes",VLOOKUP(Animals!P$2,'Animal Tables'!$K$51:$AC$66,ROW(P16)-1,FALSE())),TRUE(),IF(World!$G35="no",TRUE(),FALSE())) -> TRUE | Q16: =IF(AND(World!$G35="yes",VLOOKUP(Animals!Q$2,'Animal Tables'!$K$51:$AC$66,ROW(Q16)-1,FALSE())),TRUE(),IF(World!$G35="no",TRUE(),FALSE())) -> TRUE | R16: =IF(AND(World!$G35="yes",VLOOKUP(Animals!R$2,'Animal Tables'!$K$51:$AC$66,ROW(R16)-1,FALSE())),TRUE(),IF(World!$G35="no",TRUE(),FALSE())) -> TRUE
C17: =IF(AND(World!$G36="yes",VLOOKUP(Animals!C$2,'Animal Tables'!$K$51:$AC$66,ROW(C17)-1,FALSE())),TRUE(),IF(World!$G36="no",TRUE(),FALSE())) -> TRUE | D17: =IF(AND(World!$G36="yes",VLOOKUP(Animals!D$2,'Animal Tables'!$K$51:$AC$66,ROW(D17)-1,FALSE())),TRUE(),IF(World!$G36="no",TRUE(),FALSE())) -> TRUE | E17: =IF(AND(World!$G36="yes",VLOOKUP(Animals!E$2,'Animal Tables'!$K$51:$AC$66,ROW(E17)-1,FALSE())),TRUE(),IF(World!$G36="no",TRUE(),FALSE())) -> TRUE | F17: =IF(AND(World!$G36="yes",VLOOKUP(Animals!F$2,'Animal Tables'!$K$51:$AC$66,ROW(F17)-1,FALSE())),TRUE(),IF(World!$G36="no",TRUE(),FALSE())) -> TRUE | G17: =IF(AND(World!$G36="yes",VLOOKUP(Animals!G$2,'Animal Tables'!$K$51:$AC$66,ROW(G17)-1,FALSE())),TRUE(),IF(World!$G36="no",TRUE(),FALSE())) -> TRUE | H17: =IF(AND(World!$G36="yes",VLOOKUP(Animals!H$2,'Animal Tables'!$K$51:$AC$66,ROW(H17)-1,FALSE())),TRUE(),IF(World!$G36="no",TRUE(),FALSE())) -> TRUE | I17: =IF(AND(World!$G36="yes",VLOOKUP(Animals!I$2,'Animal Tables'!$K$51:$AC$66,ROW(I17)-1,FALSE())),TRUE(),IF(World!$G36="no",TRUE(),FALSE())) -> TRUE | J17: =IF(AND(World!$G36="yes",VLOOKUP(Animals!J$2,'Animal Tables'!$K$51:$AC$66,ROW(J17)-1,FALSE())),TRUE(),IF(World!$G36="no",TRUE(),FALSE())) -> TRUE | K17: =IF(AND(World!$G36="yes",VLOOKUP(Animals!K$2,'Animal Tables'!$K$51:$AC$66,ROW(K17)-1,FALSE())),TRUE(),IF(World!$G36="no",TRUE(),FALSE())) -> TRUE | L17: =IF(AND(World!$G36="yes",VLOOKUP(Animals!L$2,'Animal Tables'!$K$51:$AC$66,ROW(L17)-1,FALSE())),TRUE(),IF(World!$G36="no",TRUE(),FALSE())) -> TRUE | M17: =IF(AND(World!$G36="yes",VLOOKUP(Animals!M$2,'Animal Tables'!$K$51:$AC$66,ROW(M17)-1,FALSE())),TRUE(),IF(World!$G36="no",TRUE(),FALSE())) -> TRUE | N17: =IF(AND(World!$G36="yes",VLOOKUP(Animals!N$2,'Animal Tables'!$K$51:$AC$66,ROW(N17)-1,FALSE())),TRUE(),IF(World!$G36="no",TRUE(),FALSE())) -> TRUE | O17: =IF(AND(World!$G36="yes",VLOOKUP(Animals!O$2,'Animal Tables'!$K$51:$AC$66,ROW(O17)-1,FALSE())),TRUE(),IF(World!$G36="no",TRUE(),FALSE())) -> TRUE | P17: =IF(AND(World!$G36="yes",VLOOKUP(Animals!P$2,'Animal Tables'!$K$51:$AC$66,ROW(P17)-1,FALSE())),TRUE(),IF(World!$G36="no",TRUE(),FALSE())) -> TRUE | Q17: =IF(AND(World!$G36="yes",VLOOKUP(Animals!Q$2,'Animal Tables'!$K$51:$AC$66,ROW(Q17)-1,FALSE())),TRUE(),IF(World!$G36="no",TRUE(),FALSE())) -> TRUE | R17: =IF(AND(World!$G36="yes",VLOOKUP(Animals!R$2,'Animal Tables'!$K$51:$AC$66,ROW(R17)-1,FALSE())),TRUE(),IF(World!$G36="no",TRUE(),FALSE())) -> TRUE
C18: =IF(AND(World!$G37="yes",VLOOKUP(Animals!C$2,'Animal Tables'!$K$51:$AC$66,ROW(C18)-1,FALSE())),TRUE(),IF(World!$G37="no",TRUE(),FALSE())) -> TRUE | D18: =IF(AND(World!$G37="yes",VLOOKUP(Animals!D$2,'Animal Tables'!$K$51:$AC$66,ROW(D18)-1,FALSE())),TRUE(),IF(World!$G37="no",TRUE(),FALSE())) -> TRUE | E18: =IF(AND(World!$G37="yes",VLOOKUP(Animals!E$2,'Animal Tables'!$K$51:$AC$66,ROW(E18)-1,FALSE())),TRUE(),IF(World!$G37="no",TRUE(),FALSE())) -> TRUE | F18: =IF(AND(World!$G37="yes",VLOOKUP(Animals!F$2,'Animal Tables'!$K$51:$AC$66,ROW(F18)-1,FALSE())),TRUE(),IF(World!$G37="no",TRUE(),FALSE())) -> TRUE | G18: =IF(AND(World!$G37="yes",VLOOKUP(Animals!G$2,'Animal Tables'!$K$51:$AC$66,ROW(G18)-1,FALSE())),TRUE(),IF(World!$G37="no",TRUE(),FALSE())) -> TRUE | H18: =IF(AND(World!$G37="yes",VLOOKUP(Animals!H$2,'Animal Tables'!$K$51:$AC$66,ROW(H18)-1,FALSE())),TRUE(),IF(World!$G37="no",TRUE(),FALSE())) -> TRUE | I18: =IF(AND(World!$G37="yes",VLOOKUP(Animals!I$2,'Animal Tables'!$K$51:$AC$66,ROW(I18)-1,FALSE())),TRUE(),IF(World!$G37="no",TRUE(),FALSE())) -> TRUE | J18: =IF(AND(World!$G37="yes",VLOOKUP(Animals!J$2,'Animal Tables'!$K$51:$AC$66,ROW(J18)-1,FALSE())),TRUE(),IF(World!$G37="no",TRUE(),FALSE())) -> TRUE | K18: =IF(AND(World!$G37="yes",VLOOKUP(Animals!K$2,'Animal Tables'!$K$51:$AC$66,ROW(K18)-1,FALSE())),TRUE(),IF(World!$G37="no",TRUE(),FALSE())) -> TRUE | L18: =IF(AND(World!$G37="yes",VLOOKUP(Animals!L$2,'Animal Tables'!$K$51:$AC$66,ROW(L18)-1,FALSE())),TRUE(),IF(World!$G37="no",TRUE(),FALSE())) -> TRUE | M18: =IF(AND(World!$G37="yes",VLOOKUP(Animals!M$2,'Animal Tables'!$K$51:$AC$66,ROW(M18)-1,FALSE())),TRUE(),IF(World!$G37="no",TRUE(),FALSE())) -> TRUE | N18: =IF(AND(World!$G37="yes",VLOOKUP(Animals!N$2,'Animal Tables'!$K$51:$AC$66,ROW(N18)-1,FALSE())),TRUE(),IF(World!$G37="no",TRUE(),FALSE())) -> TRUE | O18: =IF(AND(World!$G37="yes",VLOOKUP(Animals!O$2,'Animal Tables'!$K$51:$AC$66,ROW(O18)-1,FALSE())),TRUE(),IF(World!$G37="no",TRUE(),FALSE())) -> TRUE | P18: =IF(AND(World!$G37="yes",VLOOKUP(Animals!P$2,'Animal Tables'!$K$51:$AC$66,ROW(P18)-1,FALSE())),TRUE(),IF(World!$G37="no",TRUE(),FALSE())) -> TRUE | Q18: =IF(AND(World!$G37="yes",VLOOKUP(Animals!Q$2,'Animal Tables'!$K$51:$AC$66,ROW(Q18)-1,FALSE())),TRUE(),IF(World!$G37="no",TRUE(),FALSE())) -> TRUE | R18: =IF(AND(World!$G37="yes",VLOOKUP(Animals!R$2,'Animal Tables'!$K$51:$AC$66,ROW(R18)-1,FALSE())),TRUE(),IF(World!$G37="no",TRUE(),FALSE())) -> TRUE
C19: =IF(AND(World!$G38="yes",VLOOKUP(Animals!C$2,'Animal Tables'!$K$51:$AC$66,ROW(C19)-1,FALSE())),TRUE(),IF(World!$G38="no",TRUE(),FALSE())) -> TRUE | D19: =IF(AND(World!$G38="yes",VLOOKUP(Animals!D$2,'Animal Tables'!$K$51:$AC$66,ROW(D19)-1,FALSE())),TRUE(),IF(World!$G38="no",TRUE(),FALSE())) -> TRUE | E19: =IF(AND(World!$G38="yes",VLOOKUP(Animals!E$2,'Animal Tables'!$K$51:$AC$66,ROW(E19)-1,FALSE())),TRUE(),IF(World!$G38="no",TRUE(),FALSE())) -> TRUE | F19: =IF(AND(World!$G38="yes",VLOOKUP(Animals!F$2,'Animal Tables'!$K$51:$AC$66,ROW(F19)-1,FALSE())),TRUE(),IF(World!$G38="no",TRUE(),FALSE())) -> TRUE | G19: =IF(AND(World!$G38="yes",VLOOKUP(Animals!G$2,'Animal Tables'!$K$51:$AC$66,ROW(G19)-1,FALSE())),TRUE(),IF(World!$G38="no",TRUE(),FALSE())) -> TRUE | H19: =IF(AND(World!$G38="yes",VLOOKUP(Animals!H$2,'Animal Tables'!$K$51:$AC$66,ROW(H19)-1,FALSE())),TRUE(),IF(World!$G38="no",TRUE(),FALSE())) -> TRUE | I19: =IF(AND(World!$G38="yes",VLOOKUP(Animals!I$2,'Animal Tables'!$K$51:$AC$66,ROW(I19)-1,FALSE())),TRUE(),IF(World!$G38="no",TRUE(),FALSE())) -> TRUE | J19: =IF(AND(World!$G38="yes",VLOOKUP(Animals!J$2,'Animal Tables'!$K$51:$AC$66,ROW(J19)-1,FALSE())),TRUE(),IF(World!$G38="no",TRUE(),FALSE())) -> TRUE | K19: =IF(AND(World!$G38="yes",VLOOKUP(Animals!K$2,'Animal Tables'!$K$51:$AC$66,ROW(K19)-1,FALSE())),TRUE(),IF(World!$G38="no",TRUE(),FALSE())) -> TRUE | L19: =IF(AND(World!$G38="yes",VLOOKUP(Animals!L$2,'Animal Tables'!$K$51:$AC$66,ROW(L19)-1,FALSE())),TRUE(),IF(World!$G38="no",TRUE(),FALSE())) -> TRUE | M19: =IF(AND(World!$G38="yes",VLOOKUP(Animals!M$2,'Animal Tables'!$K$51:$AC$66,ROW(M19)-1,FALSE())),TRUE(),IF(World!$G38="no",TRUE(),FALSE())) -> TRUE | N19: =IF(AND(World!$G38="yes",VLOOKUP(Animals!N$2,'Animal Tables'!$K$51:$AC$66,ROW(N19)-1,FALSE())),TRUE(),IF(World!$G38="no",TRUE(),FALSE())) -> TRUE | O19: =IF(AND(World!$G38="yes",VLOOKUP(Animals!O$2,'Animal Tables'!$K$51:$AC$66,ROW(O19)-1,FALSE())),TRUE(),IF(World!$G38="no",TRUE(),FALSE())) -> TRUE | P19: =IF(AND(World!$G38="yes",VLOOKUP(Animals!P$2,'Animal Tables'!$K$51:$AC$66,ROW(P19)-1,FALSE())),TRUE(),IF(World!$G38="no",TRUE(),FALSE())) -> TRUE | Q19: =IF(AND(World!$G38="yes",VLOOKUP(Animals!Q$2,'Animal Tables'!$K$51:$AC$66,ROW(Q19)-1,FALSE())),TRUE(),IF(World!$G38="no",TRUE(),FALSE())) -> TRUE | R19: =IF(AND(World!$G38="yes",VLOOKUP(Animals!R$2,'Animal Tables'!$K$51:$AC$66,ROW(R19)-1,FALSE())),TRUE(),IF(World!$G38="no",TRUE(),FALSE())) -> TRUE
C20: =IF(AND(World!$G39="yes",VLOOKUP(Animals!C$2,'Animal Tables'!$K$51:$AC$66,ROW(C20)-1,FALSE())),TRUE(),IF(World!$G39="no",TRUE(),FALSE())) -> TRUE | D20: =IF(AND(World!$G39="yes",VLOOKUP(Animals!D$2,'Animal Tables'!$K$51:$AC$66,ROW(D20)-1,FALSE())),TRUE(),IF(World!$G39="no",TRUE(),FALSE())) -> TRUE | E20: =IF(AND(World!$G39="yes",VLOOKUP(Animals!E$2,'Animal Tables'!$K$51:$AC$66,ROW(E20)-1,FALSE())),TRUE(),IF(World!$G39="no",TRUE(),FALSE())) -> TRUE | F20: =IF(AND(World!$G39="yes",VLOOKUP(Animals!F$2,'Animal Tables'!$K$51:$AC$66,ROW(F20)-1,FALSE())),TRUE(),IF(World!$G39="no",TRUE(),FALSE())) -> TRUE | G20: =IF(AND(World!$G39="yes",VLOOKUP(Animals!G$2,'Animal Tables'!$K$51:$AC$66,ROW(G20)-1,FALSE())),TRUE(),IF(World!$G39="no",TRUE(),FALSE())) -> TRUE | H20: =IF(AND(World!$G39="yes",VLOOKUP(Animals!H$2,'Animal Tables'!$K$51:$AC$66,ROW(H20)-1,FALSE())),TRUE(),IF(World!$G39="no",TRUE(),FALSE())) -> TRUE | I20: =IF(AND(World!$G39="yes",VLOOKUP(Animals!I$2,'Animal Tables'!$K$51:$AC$66,ROW(I20)-1,FALSE())),TRUE(),IF(World!$G39="no",TRUE(),FALSE())) -> TRUE | J20: =IF(AND(World!$G39="yes",VLOOKUP(Animals!J$2,'Animal Tables'!$K$51:$AC$66,ROW(J20)-1,FALSE())),TRUE(),IF(World!$G39="no",TRUE(),FALSE())) -> TRUE | K20: =IF(AND(World!$G39="yes",VLOOKUP(Animals!K$2,'Animal Tables'!$K$51:$AC$66,ROW(K20)-1,FALSE())),TRUE(),IF(World!$G39="no",TRUE(),FALSE())) -> TRUE | L20: =IF(AND(World!$G39="yes",VLOOKUP(Animals!L$2,'Animal Tables'!$K$51:$AC$66,ROW(L20)-1,FALSE())),TRUE(),IF(World!$G39="no",TRUE(),FALSE())) -> TRUE | M20: =IF(AND(World!$G39="yes",VLOOKUP(Animals!M$2,'Animal Tables'!$K$51:$AC$66,ROW(M20)-1,FALSE())),TRUE(),IF(World!$G39="no",TRUE(),FALSE())) -> TRUE | N20: =IF(AND(World!$G39="yes",VLOOKUP(Animals!N$2,'Animal Tables'!$K$51:$AC$66,ROW(N20)-1,FALSE())),TRUE(),IF(World!$G39="no",TRUE(),FALSE())) -> TRUE | O20: =IF(AND(World!$G39="yes",VLOOKUP(Animals!O$2,'Animal Tables'!$K$51:$AC$66,ROW(O20)-1,FALSE())),TRUE(),IF(World!$G39="no",TRUE(),FALSE())) -> TRUE | P20: =IF(AND(World!$G39="yes",VLOOKUP(Animals!P$2,'Animal Tables'!$K$51:$AC$66,ROW(P20)-1,FALSE())),TRUE(),IF(World!$G39="no",TRUE(),FALSE())) -> TRUE | Q20: =IF(AND(World!$G39="yes",VLOOKUP(Animals!Q$2,'Animal Tables'!$K$51:$AC$66,ROW(Q20)-1,FALSE())),TRUE(),IF(World!$G39="no",TRUE(),FALSE())) -> TRUE | R20: =IF(AND(World!$G39="yes",VLOOKUP(Animals!R$2,'Animal Tables'!$K$51:$AC$66,ROW(R20)-1,FALSE())),TRUE(),IF(World!$G39="no",TRUE(),FALSE())) -> TRUE
C21: =AND(C3:C20) -> FALSE | D21: =AND(D3:D20) -> FALSE | E21: TRUE | F21: TRUE | G21: TRUE | H21: FALSE | I21: FALSE | J21: FALSE | K21: FALSE | L21: TRUE | M21: TRUE | N21: TRUE | O21: TRUE | P21: TRUE | Q21: TRUE | R21: TRUE
B22: Animal Encounter Table
B23: Terrain: | C23: =IF(C21,C2,"") ->  | E23: Desert(hot or cold) | F23: Hills, Foothills | G23: Mountain | L23: Rough, Broken | M23: Swamp, Marsh | N23: Beach, Shore | O23: Riverbank | P23: Ocean Shallows | Q23: Open Ocean | R23: Deep Ocean
B24: 2 | C24: =IF(EXACT(C$23,""),"----------",HYPERLINK(CONCATENATE("#'Animals'!",ADDRESS(((ROW(C24)-23)*28)+10,((COLUMN(C24)-3)*5)+2),":",ADDRESS(((ROW(C24)-23)*28)+36,((COLUMN(C24)-2)*5))),INDIRECT(ADDRESS(((ROW(C24)-23)*28)+10,((COLUMN(C24)-3)*5)+3)))) -> ---------- | D24: =IF(EXACT(D$23,""),"----------",HYPERLINK(CONCATENATE("#'Animals'!",ADDRESS(((ROW(D24)-23)*28)+10,((COLUMN(D24)-3)*5)+2),":",ADDRESS(((ROW(D24)-23)*28)+36,((COLUMN(D24)-2)*5))),INDIRECT(ADDRESS(((ROW(D24)-23)*28)+10,((COLUMN(D24)-3)*5)+3)))) -> ---------- | E24: Species LOCATION-21 | F24: Species LOCATION-31 | G24: Species LOCATION-41 | H24: ---------- | I24: ---------- | J24: ---------- | K24: ---------- | L24: Species LOCATION-91 | M24: Species LOCATION-101 | N24: Species LOCATION-111 | O24: Species LOCATION-121 | P24: Species LOCATION-131 | Q24: Species LOCATION-141 | R24: Species LOCATION-151
B25: 3 | C25: =IF(EXACT(C$23,""),"----------",HYPERLINK(CONCATENATE("#'Animals'!",ADDRESS(((ROW(C25)-23)*28)+10,((COLUMN(C25)-3)*5)+2),":",ADDRESS(((ROW(C25)-23)*28)+36,((COLUMN(C25)-2)*5))),INDIRECT(ADDRESS(((ROW(C25)-23)*28)+10,((COLUMN(C25)-3)*5)+3)))) -> ---------- | D25: ---------- | E25: Species LOCATION-22 | F25: Species LOCATION-32 | G25: Species LOCATION-42 | H25: ---------- | I25: ---------- | J25: ---------- | K25: ---------- | L25: Species LOCATION-92 | M25: Species LOCATION-102 | N25: Species LOCATION-112 | O25: Species LOCATION-122 | P25: Species LOCATION-132 | Q25: Species LOCATION-142 | R25: Species LOCATION-152
B26: 4 | C26: ---------- | D26: ---------- | E26: Species LOCATION-23 | F26: Species LOCATION-33 | G26: Species LOCATION-43 | H26: ---------- | I26: ---------- | J26: ---------- | K26: ---------- | L26: Species LOCATION-93 | M26: Species LOCATION-103 | N26: Species LOCATION-113 | O26: Species LOCATION-123 | P26: Species LOCATION-133 | Q26: Species LOCATION-143 | R26: Species LOCATION-153
B27: 5 | C27: ---------- | D27: ---------- | E27: Species LOCATION-24 | F27: Species LOCATION-34 | G27: Species LOCATION-44 | H27: ---------- | I27: ---------- | J27: ---------- | K27: ---------- | L27: Species LOCATION-94 | M27: Species LOCATION-104 | N27: Species LOCATION-114 | O27: Species LOCATION-124 | P27: Species LOCATION-134 | Q27: Species LOCATION-144 | R27: Species LOCATION-154
B28: 6 | C28: ---------- | D28: ---------- | E28: Species LOCATION-25 | F28: Species LOCATION-35 | G28: Species LOCATION-45 | H28: ---------- | I28: ---------- | J28: ---------- | K28: ---------- | L28: Species LOCATION-95 | M28: Species LOCATION-105 | N28: Species LOCATION-115 | O28: Species LOCATION-125 | P28: Species LOCATION-135 | Q28: Species LOCATION-145 | R28: Species LOCATION-155
B29: 7 | C29: ---------- | D29: ---------- | E29: Species LOCATION-26 | F29: Species LOCATION-36 | G29: Species LOCATION-46 | H29: ---------- | I29: ---------- | J29: ---------- | K29: ---------- | L29: Species LOCATION-96 | M29: Species LOCATION-106 | N29: Species LOCATION-116 | O29: Species LOCATION-126 | P29: Species LOCATION-136 | Q29: Species LOCATION-146 | R29: Species LOCATION-156
B30: 8 | C30: ---------- | D30: ---------- | E30: Species LOCATION-27 | F30: Species LOCATION-37 | G30: Species LOCATION-47 | H30: ---------- | I30: ---------- | J30: ---------- | K30: ---------- | L30: Species LOCATION-97 | M30: Species LOCATION-107 | N30: Species LOCATION-117 | O30: Species LOCATION-127 | P30: Species LOCATION-137 | Q30: Species LOCATION-147 | R30: Species LOCATION-157
B31: 9 | C31: ---------- | D31: ---------- | E31: Species LOCATION-28 | F31: Species LOCATION-38 | G31: Species LOCATION-48 | H31: ---------- | I31: ---------- | J31: ---------- | K31: ---------- | L31: Species LOCATION-98 | M31: Species LOCATION-108 | N31: Species LOCATION-118 | O31: Species LOCATION-128 | P31: Species LOCATION-138 | Q31: Species LOCATION-148 | R31: Species LOCATION-158
B32: 10 | C32: =IF(EXACT(C$23,""),"----------","Unusual Event or Object") -> ---------- | D32: =IF(EXACT(D$23,""),"----------","Unusual Event or Object") -> ---------- | E32: Unusual Event or Object | F32: Unusual Event or Object | G32: Unusual Event or Object | H32: ---------- | I32: ---------- | J32: ---------- | K32: ---------- | L32: Unusual Event or Object | M32: Unusual Event or Object | N32: Unusual Event or Object | O32: Unusual Event or Object | P32: Unusual Event or Object | Q32: Unusual Event or Object | R32: Unusual Event or Object
B33: 11 | C33: =IF(EXACT(C$23,""),"----------",HYPERLINK(CONCATENATE("#'Animals'!",ADDRESS(((ROW(C33)-24)*28)+10,((COLUMN(C33)-3)*5)+2),":",ADDRESS(((ROW(C33)-24)*28)+36,((COLUMN(C33)-2)*5))),INDIRECT(ADDRESS(((ROW(C33)-24)*28)+10,((COLUMN(C33)-3)*5)+3)))) -> ---------- | D33: =IF(EXACT(D$23,""),"----------",HYPERLINK(CONCATENATE("#'Animals'!",ADDRESS(((ROW(D33)-24)*28)+10,((COLUMN(D33)-3)*5)+2),":",ADDRESS(((ROW(D33)-24)*28)+36,((COLUMN(D33)-2)*5))),INDIRECT(ADDRESS(((ROW(D33)-24)*28)+10,((COLUMN(D33)-3)*5)+3)))) -> ---------- | E33: Species LOCATION-29 | F33: Species LOCATION-39 | G33: Species LOCATION-49 | H33: ---------- | I33: ---------- | J33: ---------- | K33: ---------- | L33: Species LOCATION-99 | M33: Species LOCATION-109 | N33: Species LOCATION-119 | O33: Species LOCATION-129 | P33: Species LOCATION-139 | Q33: Species LOCATION-149 | R33: Species LOCATION-159
B34: 12 | C34: =IF(EXACT(C$23,""),"----------",HYPERLINK(CONCATENATE("#'Animals'!",ADDRESS(((ROW(C34)-24)*28)+10,((COLUMN(C34)-3)*5)+2),":",ADDRESS(((ROW(C34)-24)*28)+36,((COLUMN(C34)-2)*5))),INDIRECT(ADDRESS(((ROW(C34)-24)*28)+10,((COLUMN(C34)-3)*5)+3)))) -> ---------- | D34: ---------- | E34: Species LOCATION-30 | F34: Species LOCATION-40 | G34: Species LOCATION-50 | H34: ---------- | I34: ---------- | J34: ---------- | K34: ---------- | L34: Species LOCATION-100 | M34: Species LOCATION-110 | N34: Species LOCATION-120 | O34: Species LOCATION-130 | P34: Species LOCATION-140 | Q34: Species LOCATION-150 | R34: Species LOCATION-160
B36: Animals
B38: Name: | C38: Species LOCATION-1 | G38: Name: | H38: Species LOCATION-11 | L38: Name: | M38: Species LOCATION-21 | Q38: Name: | R38: Species LOCATION-31 | V38: Name: | W38: Species LOCATION-41 | AA38: Name: | AB38: Species LOCATION-51 | AF38: Name: | AG38: Species LOCATION-61 | AK38: Name: | AL38: Species LOCATION-71 | AP38: Name: | AQ38: Species LOCATION-81 | AU38: Name: | AV38: Species LOCATION-91 | AZ38: Name: | BA38: Species LOCATION-101 | BE38: Name: | BF38: Species LOCATION-111 | BJ38: Name: | BK38: Species LOCATION-121 | BO38: Name: | BP38: Species LOCATION-131 | BT38: Name: | BU38: Species LOCATION-141 | BY38: Name: | BZ38: Species LOCATION-151
B39: Average Weight(kg): | C39: 1600 | G39: Average Weight(kg): | H39: 1 | L39: Average Weight(kg): | M39: 1 | Q39: Average Weight(kg): | R39: 50 | V39: Average Weight(kg): | W39: 400 | AA39: Average Weight(kg): | AB39: 1 | AF39: Average Weight(kg): | AG39: 50 | AK39: Average Weight(kg): | AL39: 1 | AP39: Average Weight(kg): | AQ39: 400 | AU39: Average Weight(kg): | AV39: 1 | AZ39: Average Weight(kg): | BA39: 5000 | BE39: Average Weight(kg): | BF39: 1600 | BJ39: Average Weight(kg): | BK39: 3200 | BO39: Average Weight(kg): | BP39: 6 | BT39: Average Weight(kg): | BU39: 25 | BY39: Average Weight(kg): | BZ39: 5000
B40: Movement: | C40: Walker | G40: Movement: | H40: Flyer | L40: Movement: | M40: Flyer | Q40: Movement: | R40: Walker | V40: Movement: | W40: Walker | AA40: Movement: | AB40: Flyer | AF40: Movement: | AG40: Walker | AK40: Movement: | AL40: Flyer | AP40: Movement: | AQ40: Walker | AU40: Movement: | AV40: Flyer | AZ40: Movement: | BA40: Walker | BE40: Movement: | BF40: Walker | BJ40: Movement: | BK40: Amphibious | BO40: Movement: | BP40: Flyer | BT40: Movement: | BU40: Swimmer | BY40: Movement: | BZ40: Swimmer
B41: Type: | C41: Scavenger(Hijacker) | G41: Type: | H41: Scavenger(Intimidator) | L41: Type: | M41: Scavenger(Reducer) | Q41: Type: | R41: Scavenger(Intimidator) | V41: Type: | W41: Scavenger(Hijacker) | AA41: Type: | AB41: Scavenger(Hijacker) | AF41: Type: | AG41: Scavenger(Carrion-Eater) | AK41: Type: | AL41: Scavenger(Hijacker) | AP41: Type: | AQ41: Scavenger(Hijacker) | AU41: Type: | AV41: Scavenger(Hijacker) | AZ41: Type: | BA41: Scavenger(Reducer) | BE41: Type: | BF41: Scavenger(Reducer) | BJ41: Type: | BK41: Scavenger(Hijacker) | BO41: Type: | BP41: Scavenger(Hijacker) | BT41: Type: | BU41: Scavenger(Carrion-Eater) | BY41: Type: | BZ41: Scavenger(Intimidator)
B42: Type:
B43: Stats: | D43: Score | E43: DM | G43: Stats: | I43: Score | J43: DM | L43: Stats: | N43: Score | O43: DM | Q43: Stats: | S43: Score | T43: DM | V43: Stats: | X43: Score | Y43: DM | AA43: Stats: | AC43: Score | AD43: DM | AF43: Stats: | AH43: Score | AI43: DM | AK43: Stats: | AM43: Score | AN43: DM | AP43: Stats: | AR43: Score | AS43: DM | AU43: Stats: | AW43: Score | AX43: DM | AZ43: Stats: | BB43: Score | BC43: DM | BE43: Stats: | BG43: Score | BH43: DM | BJ43: Stats: | BL43: Score | BM43: DM | BO43: Stats: | BQ43: Score | BR43: DM | BT43: Stats: | BV43: Score | BW43: DM | BY43: Stats: | CA43: Score | CB43: DM
C44: Strength: | D44: 22 | E44: 5 | H44: Strength: | I44: 1 | J44: -2 | M44: Strength: | N44: 1 | O44: -2 | R44: Strength: | S44: 7 | T44: 0 | W44: Strength: | X44: 18 | Y44: 4 | AB44: Strength: | AC44: 3 | AD44: -1 | AG44: Strength: | AH44: 7 | AI44: 0 | AL44: Strength: | AM44: 3 | AN44: -1 | AQ44: Strength: | AR44: 13 | AS44: 2 | AV44: Strength: | AW44: 3 | AX44: -1 | BA44: Strength: | BB44: 28 | BC44: 7 | BF44: Strength: | BG44: 14 | BH44: 2 | BK44: Strength: | BL44: 21 | BM44: 5 | BP44: Strength: | BQ44: 7 | BR44: 0 | BU44: Strength: | BV44: 9 | BW44: 1 | BZ44: Strength: | CA44: 36 | CB44: 10
C45: Dexterity: | D45: 11 | E45: 1 | H45: Dexterity: | I45: 3 | J45: -1 | M45: Dexterity: | N45: 1 | O45: -2 | R45: Dexterity: | S45: 10 | T45: 1 | W45: Dexterity: | X45: 6 | Y45: 0 | AB45: Dexterity: | AC45: 6 | AD45: 0 | AG45: Dexterity: | AH45: 9 | AI45: 1 | AL45: Dexterity: | AM45: 2 | AN45: -2 | AQ45: Dexterity: | AR45: 5 | AS45: -1 | AV45: Dexterity: | AW45: 3 | AX45: -1 | BA45: Dexterity: | BB45: 1 | BC45: -2 | BF45: Dexterity: | BG45: 7 | BH45: 0 | BK45: Dexterity: | BL45: 1 | BM45: -2 | BP45: Dexterity: | BQ45: 8 | BR45: 0 | BU45: Dexterity: | BV45: 11 | BW45: 1 | BZ45: Dexterity: | CA45: 5 | CB45: -1
C46: Endurance: | D46: 16 | E46: 3 | H46: Endurance: | I46: 1 | J46: -2 | M46: Endurance: | N46: 1 | O46: -2 | R46: Endurance: | S46: 4 | T46: -1 | W46: Endurance: | X46: 14 | Y46: 2 | AB46: Endurance: | AC46: 1 | AD46: -2 | AG46: Endurance: | AH46: 11 | AI46: 1 | AL46: Endurance: | AM46: 1 | AN46: -2 | AQ46: Endurance: | AR46: 17 | AS46: 3 | AV46: Endurance: | AW46: 1 | AX46: -2 | BA46: Endurance: | BB46: 28 | BC46: 7 | BF46: Endurance: | BG46: 20 | BH46: 4 | BK46: Endurance: | BL46: 26 | BM46: 6 | BP46: Endurance: | BQ46: 6 | BR46: 0 | BU46: Endurance: | BV46: 9 | BW46: 1 | BZ46: Endurance: | CA46: 18 | CB46: 4
C47: Inteligence: | D47: 0 | E47: -3 | H47: Inteligence: | I47: 0 | J47: -3 | M47: Inteligence: | N47: 0 | O47: -3 | R47: Inteligence: | S47: 0 | T47: -3 | W47: Inteligence: | X47: 1 | Y47: -2 | AB47: Inteligence: | AC47: 1 | AD47: -2 | AG47: Inteligence: | AH47: 0 | AI47: -3 | AL47: Inteligence: | AM47: 3 | AN47: -1 | AQ47: Inteligence: | AR47: 1 | AS47: -2 | AV47: Inteligence: | AW47: 0 | AX47: -3 | BA47: Inteligence: | BB47: 0 | BC47: -3 | BF47: Inteligence: | BG47: 3 | BH47: -1 | BK47: Inteligence: | BL47: 1 | BM47: -2 | BP47: Inteligence: | BQ47: 0 | BR47: -3 | BU47: Inteligence: | BV47: 1 | BW47: -2 | BZ47: Inteligence: | CA47: 1 | CB47: -2
C48: Instinct: | D48: 8 | E48: 0 | H48: Instinct: | I48: 4 | J48: -1 | M48: Instinct: | N48: 3 | O48: -1 | R48: Instinct: | S48: 7 | T48: 0 | W48: Instinct: | X48: 3 | Y48: -1 | AB48: Instinct: | AC48: 6 | AD48: 0 | AG48: Instinct: | AH48: 11 | AI48: 1 | AL48: Instinct: | AM48: 6 | AN48: 0 | AQ48: Instinct: | AR48: 12 | AS48: 2 | AV48: Instinct: | AW48: 3 | AX48: -1 | BA48: Instinct: | BB48: 12 | BC48: 2 | BF48: Instinct: | BG48: 4 | BH48: -1 | BK48: Instinct: | BL48: 5 | BM48: -1 | BP48: Instinct: | BQ48: 5 | BR48: -1 | BU48: Instinct: | BV48: 8 | BW48: 0 | BZ48: Instinct: | CA48: 8 | CB48: 0
C49: Pack: | D49: 8 | E49: 0 | H49: Pack: | I49: 8 | J49: 0 | M49: Pack: | N49: 14 | O49: 2 | R49: Pack: | S49: 12 | T49: 2 | W49: Pack: | X49: 13 | Y49: 2 | AB49: Pack: | AC49: 9 | AD49: 1 | AG49: Pack: | AH49: 8 | AI49: 0 | AL49: Pack: | AM49: 12 | AN49: 2 | AQ49: Pack: | AR49: 6 | AS49: 0 | AV49: Pack: | AW49: 10 | AX49: 1 | BA49: Pack: | BB49: 11 | BC49: 1 | BF49: Pack: | BG49: 9 | BH49: 1 | BK49: Pack: | BL49: 12 | BM49: 2 | BP49: Pack: | BQ49: 6 | BR49: 0 | BU49: Pack: | BV49: 8 | BW49: 0 | BZ49: Pack: | CA49: 12 | CB49: 2
B51: Skills: | C51: Athletics: | D51: 0 | G51: Skills: | H51: Athletics: | I51: 1 | L51: Skills: | M51: Athletics: | N51: 1 | Q51: Skills: | R51: Athletics: | S51: 0 | V51: Skills: | W51: Athletics: | X51: 3 | AA51: Skills: | AB51: Athletics: | AC51: 2 | AF51: Skills: | AG51: Athletics: | AH51: 1 | AK51: Skills: | AL51: Athletics: | AM51: 1 | AP51: Skills: | AQ51: Athletics: | AR51: 1 | AU51: Skills: | AV51: Athletics: | AW51: 3 | AZ51: Skills: | BA51: Athletics: | BB51: 1 | BE51: Skills: | BF51: Athletics: | BG51: 3 | BJ51: Skills: | BK51: Athletics: | BL51: 2 | BO51: Skills: | BP51: Athletics: | BQ51: 1 | BT51: Skills: | BU51: Athletics: | BV51: 2 | BY51: Skills: | BZ51: Athletics: | CA51: 0
C52: Recon: | D52: 1 | H52: Recon: | I52: 0 | M52: Recon: | N52: 0 | R52: Recon: | S52: 1 | W52: Recon: | X52: 1 | AB52: Recon: | AC52: 1 | AG52: Recon: | AH52: 1 | AL52: Recon: | AM52: 1 | AQ52: Recon: | AR52: 3 | AV52: Recon: | AW52: 1 | BA52: Recon: | BB52: 1 | BF52: Recon: | BG52: 0 | BK52: Recon: | BL52: 2 | BP52: Recon: | BQ52: 1 | BU52: Recon: | BV52: 1 | BZ52: Recon: | CA52: 0
C53: Survival: | D53: 0 | H53: Survival: | I53: 0 | M53: Survival: | N53: 0 | R53: Survival: | S53: 1 | W53: Survival: | X53: 1 | AB53: Survival: | AC53: 0 | AG53: Survival: | AH53: 0 | AL53: Survival: | AM53: 2 | AQ53: Survival: | AR53: 1 | AV53: Survival: | AW53: 1 | BA53: Survival: | BB53: 0 | BF53: Survival: | BG53: 1 | BK53: Survival: | BL53: 2 | BP53: Survival: | BQ53: 0 | BU53: Survival: | BV53: 2 | BZ53: Survival: | CA53: 1
C54: Melee: | H54: Melee: | I54: 1 | M54: Melee: | N54: 1 | R54: Melee: | S54: 0 | W54: Melee: | X54: 0 | AB54: Melee: | AC54: 0 | AG54: Melee: | AL54: Melee: | AM54: 0 | AQ54: Melee: | AV54: Melee: | BA54: Melee: | BF54: Melee: | BK54: Melee: | BP54: Melee: | BQ54: 0 | BU54: Melee: | BZ54: Melee:
C55: Deception: | H55: Deception: | I55: 1 | M55: Deception: | R55: Deception: | W55: Deception: | AB55: Deception: | AG55: Deception: | AL55: Deception: | AQ55: Deception: | AV55: Deception: | BA55: Deception: | BF55: Deception: | BK55: Deception: | BP55: Deception: | BU55: Deception: | BZ55: Deception:
C56: Persuade: | H56: Persuade: | I56: 1 | M56: Persuade: | R56: Persuade: | S56: 1 | W56: Persuade: | AB56: Persuade: | AG56: Persuade: | AL56: Persuade: | AQ56: Persuade: | AV56: Persuade: | BA56: Persuade: | BF56: Persuade: | BK56: Persuade: | BP56: Persuade: | BU56: Persuade: | BZ56: Persuade: | CA56: 1
C57: Stealth: | H57: Stealth: | M57: Stealth: | R57: Stealth: | W57: Stealth: | AB57: Stealth: | AG57: Stealth: | AL57: Stealth: | AQ57: Stealth: | AV57: Stealth: | BA57: Stealth: | BF57: Stealth: | BK57: Stealth: | BP57: Stealth: | BU57: Stealth: | BZ57: Stealth:
B59: Weapons: | C59: Type | D59: Damage | G59: Weapons: | H59: Type | I59: Damage | L59: Weapons: | M59: Type | N59: Damage | Q59: Weapons: | R59: Type | S59: Damage | V59: Weapons: | W59: Type | X59: Damage | AA59: Weapons: | AB59: Type | AC59: Damage | AF59: Weapons: | AG59: Type | AH59: Damage | AK59: Weapons: | AL59: Type | AM59: Damage | AP59: Weapons: | AQ59: Type | AR59: Damage | AU59: Weapons: | AV59: Type | AW59: Damage | AZ59: Weapons: | BA59: Type | BB59: Damage | BE59: Weapons: | BF59: Type | BG59: Damage | BJ59: Weapons: | BK59: Type | BL59: Damage | BO59: Weapons: | BP59: Type | BQ59: Damage | BT59: Weapons: | BU59: Type | BV59: Damage | BY59: Weapons: | BZ59: Type | CA59: Damage
C60: Teeth | D60: 5d6 | H60: Teeth | I60: 3d6 | M60: Teeth | N60: 2d6 | R60: Teeth | S60: 3d6 | W60: Teeth | X60: 2d6 | AB60: Teeth | AC60: 1d6 | AG60: Teeth | AH60: 1d6 | AL60: Teeth | AM60: 1d6 | AQ60: Teeth | AR60: 2d6 | AV60: Teeth | AW60: 2d6 | BA60: Teeth | BB60: 3d6 | BF60: Teeth | BG60: 3d6 | BK60: Teeth | BL60: 4d6 | BP60: Teeth | BQ60: 1d6 | BU60: Teeth | BV60: 3d6 | BZ60: Teeth | CA60: 4d6
C61: Claws | D61: 5d6 | H61: Claws | I61: 3d6 | M61: Claws | N61: 2d6 | R61: Claws and Teeth | S61: 3d6 | W61: Hooves and Teeth | X61: 2d6 | AB61: Teeth | AC61: 1d6 | AG61: Hooves | AH61: 1d6 | AL61: Teeth | AM61: 1d6 | AQ61: Hooves and Teeth | AR61: 2d6 | AV61: Thrasher | AW61: 2d6 | BA61: Teeth | BB61: 3d6 | BF61: Stinger | BG61: 3d6 | BK61: Stinger | BL61: 4d6 | BP61: Hooves and Teeth | BQ61: 1d6 | BU61: Claws and Teeth | BV61: 3d6 | BZ61: Hooves and Teeth | CA61: 4d6
B62: Armor: | C62: 9 | G62: Armor: | H62: 11 | L62: Armor: | M62: 7 | Q62: Armor: | R62: 10 | V62: Armor: | W62: 12 | AA62: Armor: | AB62: 2 | AF62: Armor: | AG62: 9 | AK62: Armor: | AL62: 3 | AP62: Armor: | AQ62: 8 | AU62: Armor: | AV62: 10 | AZ62: Armor: | BA62: 4 | BE62: Armor: | BF62: 6 | BJ62: Armor: | BK62: 7 | BO62: Armor: | BP62: 3 | BT62: Armor: | BU62: 6 | BY62: Armor: | BZ62: 6
B64: Number Encountered: | C64: 2d6 | G64: Number Encountered: | H64: 2d6 | L64: Number Encountered: | M64: 4d6 | Q64: Number Encountered: | R64: 4d6 | V64: Number Encountered: | W64: 4d6 | AA64: Number Encountered: | AB64: 3d6 | AF64: Number Encountered: | AG64: 2d6 | AK64: Number Encountered: | AL64: 4d6 | AP64: Number Encountered: | AQ64: 2d6 | AU64: Number Encountered: | AV64: 3d6 | AZ64: Number Encountered: | BA64: 3d6 | BE64: Number Encountered: | BF64: 3d6 | BJ64: Number Encountered: | BK64: 4d6 | BO64: Number Encountered: | BP64: 2d6 | BT64: Number Encountered: | BU64: 2d6 | BY64: Number Encountered: | BZ64: 4d6
B66: Name: | C66: Species LOCATION-2 | G66: Name: | H66: Species LOCATION-12 | L66: Name: | M66: Species LOCATION-22 | Q66: Name: | R66: Species LOCATION-32 | V66: Name: | W66: Species LOCATION-42 | AA66: Name: | AB66: Species LOCATION-52 | AF66: Name: | AG66: Species LOCATION-62 | AK66: Name: | AL66: Species LOCATION-72 | AP66: Name: | AQ66: Species LOCATION-82 | AU66: Name: | AV66: Species LOCATION-92 | AZ66: Name: | BA66: Species LOCATION-102 | BE66: Name: | BF66: Species LOCATION-112 | BJ66: Name: | BK66: Species LOCATION-122 | BO66: Name: | BP66: Species LOCATION-132 | BT66: Name: | BU66: Species LOCATION-142 | BY66: Name: | BZ66: Species LOCATION-152
B67: Average Weight(kg): | C67: 50 | G67: Average Weight(kg): | H67: 100 | L67: Average Weight(kg): | M67: 50 | Q67: Average Weight(kg): | R67: 400 | V67: Average Weight(kg): | W67: 1 | AA67: Average Weight(kg): | AB67: 1 | AF67: Average Weight(kg): | AG67: 1 | AK67: Average Weight(kg): | AL67: 100 | AP67: Average Weight(kg): | AQ67: 50 | AU67: Average Weight(kg): | AV67: 12 | AZ67: Average Weight(kg): | BA67: 5000 | BE67: Average Weight(kg): | BF67: 200 | BJ67: Average Weight(kg): | BK67: 400 | BO67: Average Weight(kg): | BP67: 1 | BT67: Average Weight(kg): | BU67: 6 | BY67: Average Weight(kg): | BZ67: 200
B68: Movement: | C68: Walker | G68: Movement: | H68: Walker | L68: Movement: | M68: Walker | Q68: Movement: | R68: Walker | V68: Movement: | W68: Flyer | AA68: Movement: | AB68: Walker | AF68: Movement: | AG68: Flyer | AK68: Movement: | AL68: Walker | AP68: Movement: | AQ68: Walker | AU68: Movement: | AV68: Walker | AZ68: Movement: | BA68: Walker | BE68: Movement: | BF68: Walker | BJ68: Movement: | BK68: Walker | BO68: Movement: | BP68: Flyer | BT68: Movement: | BU68: Swimmer | BY68: Movement: | BZ68: Swimmer
B69: Type: | C69: Omnivore(Gatherer) | G69: Type: | H69: Omnivore(Hunter) | L69: Type: | M69: Omnivore(Eater) | Q69: Type: | R69: Omnivore(Gatherer) | V69: Type: | W69: Omnivore(Gatherer) | AA69: Type: | AB69: Omnivore(Gatherer) | AF69: Type: | AG69: Omnivore(Gatherer) | AK69: Type: | AL69: Omnivore(Eater) | AP69: Type: | AQ69: Omnivore(Gatherer) | AU69: Type: | AV69: Omnivore(Eater) | AZ69: Type: | BA69: Omnivore(Eater) | BE69: Type: | BF69: Omnivore(Gatherer) | BJ69: Type: | BK69: Omnivore(Hunter) | BO69: Type: | BP69: Omnivore(Hunter) | BT69: Type: | BU69: Omnivore(Gatherer) | BY69: Type: | BZ69: Omnivore(Hunter)
B71: Stats: | D71: Score | E71: DM | G71: Stats: | I71: Score | J71: DM | L71: Stats: | N71: Score | O71: DM | Q71: Stats: | S71: Score | T71: DM | V71: Stats: | X71: Score | Y71: DM | AA71: Stats: | AC71: Score | AD71: DM | AF71: Stats: | AH71: Score | AI71: DM | AK71: Stats: | AM71: Score | AN71: DM | AP71: Stats: | AR71: Score | AS71: DM | AU71: Stats: | AW71: Score | AX71: DM | AZ71: Stats: | BB71: Score | BC71: DM | BE71: Stats: | BG71: Score | BH71: DM | BJ71: Stats: | BL71: Score | BM71: DM | BO71: Stats: | BQ71: Score | BR71: DM | BT71: Stats: | BV71: Score | BW71: DM | BY71: Stats: | CA71: Score | CB71: DM
C72: Strength: | D72: 9 | E72: 1 | H72: Strength: | I72: 13 | J72: 2 | M72: Strength: | N72: 8 | O72: 0 | R72: Strength: | S72: 15 | T72: 3 | W72: Strength: | X72: 1 | Y72: -2 | AB72: Strength: | AC72: 1 | AD72: -2 | AG72: Strength: | AH72: 1 | AI72: -2 | AL72: Strength: | AM72: 13 | AN72: 2 | AQ72: Strength: | AR72: 5 | AS72: -1 | AV72: Strength: | AW72: 3 | AX72: -1 | BA72: Strength: | BB72: 31 | BC72: 8 | BF72: Strength: | BG72: 8 | BH72: 0 | BK72: Strength: | BL72: 12 | BM72: 2 | BP72: Strength: | BQ72: 1 | BR72: -2 | BU72: Strength: | BV72: 2 | BW72: -2 | BZ72: Strength: | CA72: 10 | CB72: 1
C73: Dexterity: | D73: 18 | E73: 4 | H73: Dexterity: | I73: 10 | J73: 1 | M73: Dexterity: | N73: 14 | O73: 2 | R73: Dexterity: | S73: 3 | T73: -1 | W73: Dexterity: | X73: 1 | Y73: -2 | AB73: Dexterity: | AC73: 2 | AD73: -2 | AG73: Dexterity: | AH73: 1 | AI73: -2 | AL73: Dexterity: | AM73: 10 | AN73: 1 | AQ73: Dexterity: | AR73: 9 | AS73: 1 | AV73: Dexterity: | AW73: 7 | AX73: 0 | BA73: Dexterity: | BB73: 2 | BC73: -2 | BF73: Dexterity: | BG73: 12 | BH73: 2 | BK73: Dexterity: | BL73: 2 | BM73: -2 | BP73: Dexterity: | BQ73: 2 | BR73: -2 | BU73: Dexterity: | BV73: 5 | BW73: -1 | BZ73: Dexterity: | CA73: 10 | CB73: 1
C74: Endurance: | D74: 8 | E74: 0 | H74: Endurance: | I74: 7 | J74: 0 | M74: Endurance: | N74: 8 | O74: 0 | R74: Endurance: | S74: 15 | T74: 3 | W74: Endurance: | X74: 1 | Y74: -2 | AB74: Endurance: | AC74: 1 | AD74: -2 | AG74: Endurance: | AH74: 1 | AI74: -2 | AL74: Endurance: | AM74: 12 | AN74: 2 | AQ74: Endurance: | AR74: 6 | AS74: 0 | AV74: Endurance: | AW74: 8 | AX74: 0 | BA74: Endurance: | BB74: 28 | BC74: 7 | BF74: Endurance: | BG74: 9 | BH74: 1 | BK74: Endurance: | BL74: 20 | BM74: 4 | BP74: Endurance: | BQ74: 1 | BR74: -2 | BU74: Endurance: | BV74: 2 | BW74: -2 | BZ74: Endurance: | CA74: 15 | CB74: 3
C75: Inteligence: | D75: 0 | E75: -3 | H75: Inteligence: | I75: 1 | J75: -2 | M75: Inteligence: | N75: 1 | O75: -2 | R75: Inteligence: | S75: 0 | T75: -3 | W75: Inteligence: | X75: 1 | Y75: -2 | AB75: Inteligence: | AC75: 0 | AD75: -3 | AG75: Inteligence: | AH75: 1 | AI75: -2 | AL75: Inteligence: | AM75: 1 | AN75: -2 | AQ75: Inteligence: | AR75: 0 | AS75: -3 | AV75: Inteligence: | AW75: 3 | AX75: -1 | BA75: Inteligence: | BB75: 0 | BC75: -3 | BF75: Inteligence: | BG75: 3 | BH75: -1 | BK75: Inteligence: | BL75: 0 | BM75: -3 | BP75: Inteligence: | BQ75: 0 | BR75: -3 | BU75: Inteligence: | BV75: 1 | BW75: -2 | BZ75: Inteligence: | CA75: 0 | CB75: -3
C76: Instinct: | D76: 7 | E76: 0 | H76: Instinct: | I76: 7 | J76: 0 | M76: Instinct: | N76: 7 | O76: 0 | R76: Instinct: | S76: 3 | T76: -1 | W76: Instinct: | X76: 10 | Y76: 1 | AB76: Instinct: | AC76: 4 | AD76: -1 | AG76: Instinct: | AH76: 9 | AI76: 1 | AL76: Instinct: | AM76: 11 | AN76: 1 | AQ76: Instinct: | AR76: 10 | AS76: 1 | AV76: Instinct: | AW76: 5 | AX76: -1 | BA76: Instinct: | BB76: 8 | BC76: 0 | BF76: Instinct: | BG76: 9 | BH76: 1 | BK76: Instinct: | BL76: 11 | BM76: 1 | BP76: Instinct: | BQ76: 9 | BR76: 1 | BU76: Instinct: | BV76: 7 | BW76: 0 | BZ76: Instinct: | CA76: 6 | CB76: 0
C77: Pack: | D77: 10 | E77: 1 | H77: Pack: | I77: 10 | J77: 1 | M77: Pack: | N77: 6 | O77: 0 | R77: Pack: | S77: 11 | T77: 1 | W77: Pack: | X77: 9 | Y77: 1 | AB77: Pack: | AC77: 12 | AD77: 2 | AG77: Pack: | AH77: 5 | AI77: -1 | AL77: Pack: | AM77: 10 | AN77: 1 | AQ77: Pack: | AR77: 10 | AS77: 1 | AV77: Pack: | AW77: 8 | AX77: 0 | BA77: Pack: | BB77: 9 | BC77: 1 | BF77: Pack: | BG77: 7 | BH77: 0 | BK77: Pack: | BL77: 11 | BM77: 1 | BP77: Pack: | BQ77: 5 | BR77: -1 | BU77: Pack: | BV77: 8 | BW77: 0 | BZ77: Pack: | CA77: 8 | CB77: 0
B79: Skills: | C79: Athletics: | D79: 0 | G79: Skills: | H79: Athletics: | I79: 0 | L79: Skills: | M79: Athletics: | N79: 1 | Q79: Skills: | R79: Athletics: | S79: 0 | V79: Skills: | W79: Athletics: | X79: 0 | AA79: Skills: | AB79: Athletics: | AC79: 0 | AF79: Skills: | AG79: Athletics: | AH79: 1 | AK79: Skills: | AL79: Athletics: | AM79: 1 | AP79: Skills: | AQ79: Athletics: | AR79: 0 | AU79: Skills: | AV79: Athletics: | AW79: 0 | AZ79: Skills: | BA79: Athletics: | BB79: 0 | BE79: Skills: | BF79: Athletics: | BG79: 0 | BJ79: Skills: | BK79: Athletics: | BL79: 2 | BO79: Skills: | BP79: Athletics: | BQ79: 0 | BT79: Skills: | BU79: Athletics: | BV79: 0 | BY79: Skills: | BZ79: Athletics: | CA79: 0
C80: Recon: | D80: 0 | H80: Recon: | I80: 1 | M80: Recon: | N80: 1 | R80: Recon: | S80: 0 | W80: Recon: | X80: 2 | AB80: Recon: | AC80: 2 | AG80: Recon: | AH80: 1 | AL80: Recon: | AM80: 3 | AQ80: Recon: | AR80: 0 | AV80: Recon: | AW80: 2 | BA80: Recon: | BB80: 1 | BF80: Recon: | BG80: 0 | BK80: Recon: | BL80: 2 | BP80: Recon: | BQ80: 0 | BU80: Recon: | BV80: 0 | BZ80: Recon: | CA80: 2
C81: Survival: | D81: 0 | H81: Survival: | I81: 1 | M81: Survival: | N81: 0 | R81: Survival: | S81: 0 | W81: Survival: | X81: 0 | AB81: Survival: | AC81: 0 | AG81: Survival: | AH81: 0 | AL81: Survival: | AM81: 1 | AQ81: Survival: | AR81: 0 | AV81: Survival: | AW81: 1 | BA81: Survival: | BB81: 1 | BF81: Survival: | BG81: 0 | BK81: Survival: | BL81: 1 | BP81: Survival: | BQ81: 1 | BU81: Survival: | BV81: 0 | BZ81: Survival: | CA81: 1
C82: Melee: | D82: 0 | H82: Melee: | M82: Melee: | N82: 0 | R82: Melee: | W82: Melee: | X82: 0 | AB82: Melee: | AG82: Melee: | AL82: Melee: | AQ82: Melee: | AV82: Melee: | BA82: Melee: | BB82: 1 | BF82: Melee: | BG82: 1 | BK82: Melee: | BP82: Melee: | BU82: Melee: | BZ82: Melee:
C83: Deception: | D83: 0 | H83: Deception: | M83: Deception: | R83: Deception: | W83: Deception: | AB83: Deception: | AC83: 1 | AG83: Deception: | AL83: Deception: | AQ83: Deception: | AV83: Deception: | BA83: Deception: | BF83: Deception: | BK83: Deception: | BP83: Deception: | BU83: Deception: | BV83: 0 | BZ83: Deception:
C84: Persuade: | H84: Persuade: | M84: Persuade: | R84: Persuade: | W84: Persuade: | AB84: Persuade: | AG84: Persuade: | AL84: Persuade: | AQ84: Persuade: | AV84: Persuade: | BA84: Persuade: | BF84: Persuade: | BK84: Persuade: | BP84: Persuade: | BU84: Persuade: | BZ84: Persuade:
C85: Stealth: | D85: 1 | H85: Stealth: | M85: Stealth: | R85: Stealth: | S85: 1 | W85: Stealth: | X85: 1 | AB85: Stealth: | AC85: 1 | AG85: Stealth: | AH85: 1 | AL85: Stealth: | AQ85: Stealth: | AR85: 1 | AV85: Stealth: | BA85: Stealth: | BF85: Stealth: | BG85: 1 | BK85: Stealth: | BP85: Stealth: | BU85: Stealth: | BV85: 1 | BZ85: Stealth:
B87: Weapons: | C87: Type | D87: Damage | G87: Weapons: | H87: Type | I87: Damage | L87: Weapons: | M87: Type | N87: Damage | Q87: Weapons: | R87: Type | S87: Damage | V87: Weapons: | W87: Type | X87: Damage | AA87: Weapons: | AB87: Type | AC87: Damage | AF87: Weapons: | AG87: Type | AH87: Damage | AK87: Weapons: | AL87: Type | AM87: Damage | AP87: Weapons: | AQ87: Type | AR87: Damage | AU87: Weapons: | AV87: Type | AW87: Damage | AZ87: Weapons: | BA87: Type | BB87: Damage | BE87: Weapons: | BF87: Type | BG87: Damage | BJ87: Weapons: | BK87: Type | BL87: Damage | BO87: Weapons: | BP87: Type | BQ87: Damage | BT87: Weapons: | BU87: Type | BV87: Damage | BY87: Weapons: | BZ87: Type | CA87: Damage
C89: Thrasher | D89: 3d6 | H89: Thrasher | I89: 4d6 | M89: Stinger | N89: 2d6 | R89: Stinger | S89: 3d6 | W89: Thrasher | X89: 3d6 | AB89: Thrasher | AC89: 3d6 | AG89: Thrasher | AH89: 3d6 | AL89: Claws | AM89: 4d6 | AQ89: Claws | AR89: 3d6 | AV89: Claws | AW89: 2d6 | BA89: Thrasher | BB89: 5d6 | BF89: Thrasher | BG89: 3d6 | BK89: Teeth | BL89: 4d6 | BP89: Teeth | BQ89: 3d6 | BU89: Thrasher | BV89: 2d6 | BZ89: Thrasher | CA89: 3d6
B90: Armor: | C90: 3 | G90: Armor: | H90: 9 | L90: Armor: | M90: 11 | Q90: Armor: | R90: 12 | V90: Armor: | W90: 7 | AA90: Armor: | AB90: 5 | AF90: Armor: | AG90: 6 | AK90: Armor: | AL90: 6 | AP90: Armor: | AQ90: 7 | AU90: Armor: | AV90: 10 | AZ90: Armor: | BA90: 8 | BE90: Armor: | BF90: 11 | BJ90: Armor: | BK90: 10 | BO90: Armor: | BP90: 7 | BT90: Armor: | BU90: 7 | BY90: Armor: | BZ90: 7
B92: Number Encountered: | C92: 3d6 | G92: Number Encountered: | H92: 3d6 | L92: Number Encountered: | M92: 2d6 | Q92: Number Encountered: | R92: 3d6 | V92: Number Encountered: | W92: 3d6 | AA92: Number Encountered: | AB92: 4d6 | AF92: Number Encountered: | AG92: 1d6 | AK92: Number Encountered: | AL92: 3d6 | AP92: Number Encountered: | AQ92: 3d6 | AU92: Number Encountered: | AV92: 2d6 | AZ92: Number Encountered: | BA92: 3d6 | BE92: Number Encountered: | BF92: 2d6 | BJ92: Number Encountered: | BK92: 3d6 | BO92: Number Encountered: | BP92: 1d6 | BT92: Number Encountered: | BU92: 2d6 | BY92: Number Encountered: | BZ92: 2d6
B94: Name: | C94: Species LOCATION-3 | G94: Name: | H94: Species LOCATION-13 | L94: Name: | M94: Species LOCATION-23 | Q94: Name: | R94: Species LOCATION-33 | V94: Name: | W94: Species LOCATION-43 | AA94: Name: | AB94: Species LOCATION-53 | AF94: Name: | AG94: Species LOCATION-63 | AK94: Name: | AL94: Species LOCATION-73 | AP94: Name: | AQ94: Species LOCATION-83 | AU94: Name: | AV94: Species LOCATION-93 | AZ94: Name: | BA94: Species LOCATION-103 | BE94: Name: | BF94: Species LOCATION-113 | BJ94: Name: | BK94: Species LOCATION-123 | BO94: Name: | BP94: Species LOCATION-133 | BT94: Name: | BU94: Species LOCATION-143 | BY94: Name: | BZ94: Species LOCATION-153
B95: Average Weight(kg): | C95: 3200 | G95: Average Weight(kg): | H95: 200 | L95: Average Weight(kg): | M95: 1 | Q95: Average Weight(kg): | R95: 1 | V95: Average Weight(kg): | W95: 800 | AA95: Average Weight(kg): | AB95: 6 | AF95: Average Weight(kg): | AG95: 400 | AK95: Average Weight(kg): | AL95: 50 | AP95: Average Weight(kg): | AQ95: 3 | AU95: Average Weight(kg): | AV95: 400 | AZ95: Average Weight(kg): | BA95: 5000 | BE95: Average Weight(kg): | BF95: 6 | BJ95: Average Weight(kg): | BK95: 6 | BO95: Average Weight(kg): | BP95: 800 | BT95: Average Weight(kg): | BU95: 200 | BY95: Average Weight(kg): | BZ95: 400
B96: Movement: | C96: Walker | G96: Movement: | H96: Walker | L96: Movement: | M96: Flyer | Q96: Movement: | R96: Flyer | V96: Movement: | W96: Flyer | AA96: Movement: | AB96: Walker | AF96: Movement: | AG96: Walker | AK96: Movement: | AL96: Walker | AP96: Movement: | AQ96: Walker | AU96: Movement: | AV96: Flyer | AZ96: Movement: | BA96: Walker | BE96: Movement: | BF96: Flyer | BJ96: Movement: | BK96: Walker | BO96: Movement: | BP96: Swimmer | BT96: Movement: | BU96: Swimmer | BY96: Movement: | BZ96: Swimmer
B97: Type: | C97: Scavenger(Intimidator) | G97: Type: | H97: Scavenger(Hijacker) | L97: Type: | M97: Scavenger(Reducer) | Q97: Type: | R97: Scavenger(Reducer) | V97: Type: | W97: Scavenger(Carrion-Eater) | AA97: Type: | AB97: Scavenger(Carrion-Eater) | AF97: Type: | AG97: Scavenger(Reducer) | AK97: Type: | AL97: Scavenger(Carrion-Eater) | AP97: Type: | AQ97: Scavenger(Reducer) | AU97: Type: | AV97: Scavenger(Intimidator) | AZ97: Type: | BA97: Scavenger(Reducer) | BE97: Type: | BF97: Scavenger(Hijacker) | BJ97: Type: | BK97: Scavenger(Hijacker) | BO97: Type: | BP97: Scavenger(Intimidator) | BT97: Type: | BU97: Scavenger(Hijacker) | BY97: Type: | BZ97: Scavenger(Hijacker)
B99: Stats: | D99: Score | E99: DM | G99: Stats: | I99: Score | J99: DM | L99: Stats: | N99: Score | O99: DM | Q99: Stats: | S99: Score | T99: DM | V99: Stats: | X99: Score | Y99: DM | AA99: Stats: | AC99: Score | AD99: DM | AF99: Stats: | AH99: Score | AI99: DM | AK99: Stats: | AM99: Score | AN99: DM | AP99: Stats: | AR99: Score | AS99: DM | AU99: Stats: | AW99: Score | AX99: DM | AZ99: Stats: | BB99: Score | BC99: DM | BE99: Stats: | BG99: Score | BH99: DM | BJ99: Stats: | BL99: Score | BM99: DM | BO99: Stats: | BQ99: Score | BR99: DM | BT99: Stats: | BV99: Score | BW99: DM | BY99: Stats: | CA99: Score | CB99: DM
C100: Strength: | D100: 23 | E100: 5 | H100: Strength: | I100: 11 | J100: 1 | M100: Strength: | N100: 1 | O100: -2 | R100: Strength: | S100: 1 | T100: -2 | W100: Strength: | X100: 13 | Y100: 2 | AB100: Strength: | AC100: 2 | AD100: -2 | AG100: Strength: | AH100: 10 | AI100: 1 | AL100: Strength: | AM100: 8 | AN100: 0 | AQ100: Strength: | AR100: 2 | AS100: -2 | AV100: Strength: | AW100: 14 | AX100: 2 | BA100: Strength: | BB100: 27 | BC100: 7 | BF100: Strength: | BG100: 5 | BH100: -1 | BK100: Strength: | BL100: 7 | BM100: 0 | BP100: Strength: | BQ100: 11 | BR100: 1 | BU100: Strength: | BV100: 11 | BW100: 1 | BZ100: Strength: | CA100: 18 | CB100: 4
C101: Dexterity: | D101: 4 | E101: -1 | H101: Dexterity: | I101: 6 | J101: 0 | M101: Dexterity: | N101: 3 | O101: -1 | R101: Dexterity: | S101: 2 | T101: -2 | W101: Dexterity: | X101: 2 | Y101: -2 | AB101: Dexterity: | AC101: 9 | AD101: 1 | AG101: Dexterity: | AH101: 8 | AI101: 0 | AL101: Dexterity: | AM101: 12 | AN101: 2 | AQ101: Dexterity: | AR101: 3 | AS101: -1 | AV101: Dexterity: | AW101: 4 | AX101: -1 | BA101: Dexterity: | BB101: 6 | BC101: 0 | BF101: Dexterity: | BG101: 5 | BH101: -1 | BK101: Dexterity: | BL101: 8 | BM101: 0 | BP101: Dexterity: | BQ101: 11 | BR101: 1 | BU101: Dexterity: | BV101: 11 | BW101: 1 | BZ101: Dexterity: | CA101: 6 | CB101: 0
C102: Endurance: | D102: 21 | E102: 5 | H102: Endurance: | I102: 6 | J102: 0 | M102: Endurance: | N102: 1 | O102: -2 | R102: Endurance: | S102: 1 | T102: -2 | W102: Endurance: | X102: 14 | Y102: 2 | AB102: Endurance: | AC102: 4 | AD102: -1 | AG102: Endurance: | AH102: 10 | AI102: 1 | AL102: Endurance: | AM102: 4 | AN102: -1 | AQ102: Endurance: | AR102: 2 | AS102: -2 | AV102: Endurance: | AW102: 18 | AX102: 4 | BA102: Endurance: | BB102: 24 | BC102: 6 | BF102: Endurance: | BG102: 4 | BH102: -1 | BK102: Endurance: | BL102: 4 | BM102: -1 | BP102: Endurance: | BQ102: 9 | BR102: 1 | BU102: Endurance: | BV102: 16 | BW102: 3 | BZ102: Endurance: | CA102: 16 | CB102: 3
C103: Inteligence: | D103: 1 | E103: -2 | H103: Inteligence: | I103: 1 | J103: -2 | M103: Inteligence: | N103: 0 | O103: -3 | R103: Inteligence: | S103: 1 | T103: -2 | W103: Inteligence: | X103: 1 | Y103: -2 | AB103: Inteligence: | AC103: 0 | AD103: -3 | AG103: Inteligence: | AH103: 1 | AI103: -2 | AL103: Inteligence: | AM103: 0 | AN103: -3 | AQ103: Inteligence: | AR103: 0 | AS103: -3 | AV103: Inteligence: | AW103: 0 | AX103: -3 | BA103: Inteligence: | BB103: 0 | BC103: -3 | BF103: Inteligence: | BG103: 3 | BH103: -1 | BK103: Inteligence: | BL103: 0 | BM103: -3 | BP103: Inteligence: | BQ103: 0 | BR103: -3 | BU103: Inteligence: | BV103: 0 | BW103: -3 | BZ103: Inteligence: | CA103: 0 | CB103: -3
C104: Instinct: | D104: 6 | E104: 0 | H104: Instinct: | I104: 7 | J104: 0 | M104: Instinct: | N104: 7 | O104: 0 | R104: Instinct: | S104: 7 | T104: 0 | W104: Instinct: | X104: 8 | Y104: 0 | AB104: Instinct: | AC104: 6 | AD104: 0 | AG104: Instinct: | AH104: 4 | AI104: -1 | AL104: Instinct: | AM104: 5 | AN104: -1 | AQ104: Instinct: | AR104: 5 | AS104: -1 | AV104: Instinct: | AW104: 8 | AX104: 0 | BA104: Instinct: | BB104: 6 | BC104: 0 | BF104: Instinct: | BG104: 5 | BH104: -1 | BK104: Instinct: | BL104: 7 | BM104: 0 | BP104: Instinct: | BQ104: 6 | BR104: 0 | BU104: Instinct: | BV104: 4 | BW104: -1 | BZ104: Instinct: | CA104: 2 | CB104: -2
C105: Pack: | D105: 8 | E105: 0 | H105: Pack: | I105: 10 | J105: 1 | M105: Pack: | N105: 12 | O105: 2 | R105: Pack: | S105: 10 | T105: 1 | W105: Pack: | X105: 5 | Y105: -1 | AB105: Pack: | AC105: 5 | AD105: -1 | AG105: Pack: | AH105: 7 | AI105: 0 | AL105: Pack: | AM105: 5 | AN105: -1 | AQ105: Pack: | AR105: 11 | AS105: 1 | AV105: Pack: | AW105: 5 | AX105: -1 | BA105: Pack: | BB105: 16 | BC105: 3 | BF105: Pack: | BG105: 13 | BH105: 2 | BK105: Pack: | BL105: 11 | BM105: 1 | BP105: Pack: | BQ105: 7 | BR105: 0 | BU105: Pack: | BV105: 7 | BW105: 0 | BZ105: Pack: | CA105: 10 | CB105: 1
B107: Skills: | C107: Athletics: | D107: 2 | G107: Skills: | H107: Athletics: | I107: 0 | L107: Skills: | M107: Athletics: | N107: 0 | Q107: Skills: | R107: Athletics: | S107: 0 | V107: Skills: | W107: Athletics: | X107: 0 | AA107: Skills: | AB107: Athletics: | AC107: 0 | AF107: Skills: | AG107: Athletics: | AH107: 1 | AK107: Skills: | AL107: Athletics: | AM107: 0 | AP107: Skills: | AQ107: Athletics: | AR107: 0 | AU107: Skills: | AV107: Athletics: | AW107: 1 | AZ107: Skills: | BA107: Athletics: | BB107: 0 | BE107: Skills: | BF107: Athletics: | BG107: 0 | BJ107: Skills: | BK107: Athletics: | BL107: 0 | BO107: Skills: | BP107: Athletics: | BQ107: 2 | BT107: Skills: | BU107: Athletics: | BV107: 0 | BY107: Skills: | BZ107: Athletics: | CA107: 1
C108: Recon: | D108: 0 | H108: Recon: | I108: 0 | M108: Recon: | N108: 1 | R108: Recon: | S108: 1 | W108: Recon: | X108: 1 | AB108: Recon: | AC108: 2 | AG108: Recon: | AH108: 1 | AL108: Recon: | AM108: 1 | AQ108: Recon: | AR108: 0 | AV108: Recon: | AW108: 1 | BA108: Recon: | BB108: 0 | BF108: Recon: | BG108: 2 | BK108: Recon: | BL108: 0 | BP108: Recon: | BQ108: 0 | BU108: Recon: | BV108: 0 | BZ108: Recon: | CA108: 2
C109: Survival: | D109: 0 | H109: Survival: | I109: 1 | M109: Survival: | N109: 0 | R109: Survival: | S109: 0 | W109: Survival: | X109: 0 | AB109: Survival: | AC109: 2 | AG109: Survival: | AH109: 1 | AL109: Survival: | AM109: 0 | AQ109: Survival: | AR109: 1 | AV109: Survival: | AW109: 2 | BA109: Survival: | BB109: 0 | BF109: Survival: | BG109: 2 | BK109: Survival: | BL109: 0 | BP109: Survival: | BQ109: 0 | BU109: Survival: | BV109: 0 | BZ109: Survival: | CA109: 1
C110: Melee: | D110: 0 | H110: Melee: | M110: Melee: | R110: Melee: | W110: Melee: | X110: 0 | AB110: Melee: | AC110: 0 | AG110: Melee: | AH110: 1 | AL110: Melee: | AQ110: Melee: | AV110: Melee: | AW110: 0 | BA110: Melee: | BB110: 2 | BF110: Melee: | BG110: 0 | BK110: Melee: | BL110: 2 | BP110: Melee: | BQ110: 0 | BU110: Melee: | BV110: 0 | BZ110: Melee:
C111: Deception: | H111: Deception: | M111: Deception: | R111: Deception: | W111: Deception: | AB111: Deception: | AG111: Deception: | AL111: Deception: | AQ111: Deception: | AV111: Deception: | BA111: Deception: | BF111: Deception: | BK111: Deception: | BP111: Deception: | BQ111: 0 | BU111: Deception: | BZ111: Deception:
C112: Persuade: | D112: 1 | H112: Persuade: | M112: Persuade: | R112: Persuade: | W112: Persuade: | AB112: Persuade: | AG112: Persuade: | AL112: Persuade: | AQ112: Persuade: | AV112: Persuade: | AW112: 1 | BA112: Persuade: | BF112: Persuade: | BK112: Persuade: | BP112: Persuade: | BQ112: 1 | BU112: Persuade: | BZ112: Persuade:
C113: Stealth: | H113: Stealth: | M113: Stealth: | R113: Stealth: | W113: Stealth: | AB113: Stealth: | AG113: Stealth: | AL113: Stealth: | AQ113: Stealth: | AV113: Stealth: | BA113: Stealth: | BF113: Stealth: | BK113: Stealth: | BP113: Stealth: | BU113: Stealth: | BZ113: Stealth:
B115: Weapons: | C115: Type | D115: Damage | G115: Weapons: | H115: Type | I115: Damage | L115: Weapons: | M115: Type | N115: Damage | Q115: Weapons: | R115: Type | S115: Damage | V115: Weapons: | W115: Type | X115: Damage | AA115: Weapons: | AB115: Type | AC115: Damage | AF115: Weapons: | AG115: Type | AH115: Damage | AK115: Weapons: | AL115: Type | AM115: Damage | AP115: Weapons: | AQ115: Type | AR115: Damage | AU115: Weapons: | AV115: Type | AW115: Damage | AZ115: Weapons: | BA115: Type | BB115: Damage | BE115: Weapons: | BF115: Type | BG115: Damage | BJ115: Weapons: | BK115: Type | BL115: Damage | BO115: Weapons: | BP115: Type | BQ115: Damage | BT115: Weapons: | BU115: Type | BV115: Damage | BY115: Weapons: | BZ115: Type | CA115: Damage
C116: Teeth | D116: 5d6 | H116: Teeth | I116: 2d6 | M116: Teeth | N116: 2d6 | R116: Teeth | S116: 1d6 | W116: Teeth | X116: 3d6 | AB116: Teeth | AC116: 2d6 | AG116: Teeth | AH116: 1d6 | AL116: Teeth | AM116: 1d6 | AQ116: Teeth | AR116: 1d6 | AV116: Teeth | AW116: 3d6 | BA116: Teeth | BB116: 4d6 | BF116: Teeth | BG116: 1d6 | BK116: Teeth | BL116: 1d6 | BP116: Teeth | BQ116: 2d6 | BU116: Teeth | BV116: 2d6 | BZ116: Teeth | CA116: 2d6
C117: Claws | D117: 5d6 | H117: Hooves and Teeth | I117: 2d6 | M117: Claws | N117: 2d6 | R117: Hooves and Teeth | S117: 1d6 | W117: Thrasher | X117: 3d6 | AB117: Claws | AC117: 2d6 | AG117: Hooves | AH117: 1d6 | AL117: Hooves | AM117: 1d6 | AQ117: Teeth | AR117: 1d6 | AV117: Claws | AW117: 3d6 | BA117: Thrasher | BB117: 4d6 | BF117: Horns | BG117: 1d6 | BK117: Hooves | BL117: 1d6 | BP117: Hooves and Teeth | BQ117: 2d6 | BU117: Hooves and Teeth | BV117: 2d6 | BZ117: Horns | CA117: 2d6
B118: Armor: | C118: 10 | G118: Armor: | H118: 7 | L118: Armor: | M118: 5 | Q118: Armor: | R118: 3 | V118: Armor: | W118: 9 | AA118: Armor: | AB118: 8 | AF118: Armor: | AG118: 10 | AK118: Armor: | AL118: 11 | AP118: Armor: | AQ118: 4 | AU118: Armor: | AV118: 6 | AZ118: Armor: | BA118: 6 | BE118: Armor: | BF118: 8 | BJ118: Armor: | BK118: 4 | BO118: Armor: | BP118: 4 | BT118: Armor: | BU118: 5 | BY118: Armor: | BZ118: 8
B120: Number Encountered: | C120: 2d6 | G120: Number Encountered: | H120: 3d6 | L120: Number Encountered: | M120: 4d6 | Q120: Number Encountered: | R120: 3d6 | V120: Number Encountered: | W120: 1d6 | AA120: Number Encountered: | AB120: 1d6 | AF120: Number Encountered: | AG120: 2d6 | AK120: Number Encountered: | AL120: 1d6 | AP120: Number Encountered: | AQ120: 3d6 | AU120: Number Encountered: | AV120: 1d6 | AZ120: Number Encountered: | BA120: 5d6 | BE120: Number Encountered: | BF120: 4d6 | BJ120: Number Encountered: | BK120: 3d6 | BO120: Number Encountered: | BP120: 2d6 | BT120: Number Encountered: | BU120: 2d6 | BY120: Number Encountered: | BZ120: 3d6
B122: Name: | C122: Species LOCATION-4 | G122: Name: | H122: Species LOCATION-14 | L122: Name: | M122: Species LOCATION-24 | Q122: Name: | R122: Species LOCATION-34 | V122: Name: | W122: Species LOCATION-44 | AA122: Name: | AB122: Species LOCATION-54 | AF122: Name: | AG122: Species LOCATION-64 | AK122: Name: | AL122: Species LOCATION-74 | AP122: Name: | AQ122: Species LOCATION-84 | AU122: Name: | AV122: Species LOCATION-94 | AZ122: Name: | BA122: Species LOCATION-104 | BE122: Name: | BF122: Species LOCATION-114 | BJ122: Name: | BK122: Species LOCATION-124 | BO122: Name: | BP122: Species LOCATION-134 | BT122: Name: | BU122: Species LOCATION-144 | BY122: Name: | BZ122: Species LOCATION-154
B123: Average Weight(kg): | C123: 1600 | G123: Average Weight(kg): | H123: 200 | L123: Average Weight(kg): | M123: 400 | Q123: Average Weight(kg): | R123: 800 | V123: Average Weight(kg): | W123: 6 | AA123: Average Weight(kg): | AB123: 3 | AF123: Average Weight(kg): | AG123: 50 | AK123: Average Weight(kg): | AL123: 1 | AP123: Average Weight(kg): | AQ123: 50 | AU123: Average Weight(kg): | AV123: 400 | AZ123: Average Weight(kg): | BA123: 200 | BE123: Average Weight(kg): | BF123: 5000 | BJ123: Average Weight(kg): | BK123: 25 | BO123: Average Weight(kg): | BP123: 800 | BT123: Average Weight(kg): | BU123: 6 | BY123: Average Weight(kg): | BZ123: 6
B124: Movement: | C124: Walker | G124: Movement: | H124: Walker | L124: Movement: | M124: Flyer | Q124: Movement: | R124: Walker | V124: Movement: | W124: Flyer | AA124: Movement: | AB124: Walker | AF124: Movement: | AG124: Walker | AK124: Movement: | AL124: Walker | AP124: Movement: | AQ124: Walker | AU124: Movement: | AV124: Flyer | AZ124: Movement: | BA124: Flyer | BE124: Movement: | BF124: Walker | BJ124: Movement: | BK124: Walker | BO124: Movement: | BP124: Swimmer | BT124: Movement: | BU124: Swimmer | BY124: Movement: | BZ124: Swimmer
B125: Type: | C125: Omnivore(Gatherer) | G125: Type: | H125: Omnivore(Gatherer) | L125: Type: | M125: Omnivore(Eater) | Q125: Type: | R125: Omnivore(Eater) | V125: Type: | W125: Omnivore(Gatherer) | AA125: Type: | AB125: Omnivore(Gatherer) | AF125: Type: | AG125: Omnivore(Hunter) | AK125: Type: | AL125: Omnivore(Gatherer) | AP125: Type: | AQ125: Omnivore(Gatherer) | AU125: Type: | AV125: Omnivore(Hunter) | AZ125: Type: | BA125: Omnivore(Gatherer) | BE125: Type: | BF125: Omnivore(Hunter) | BJ125: Type: | BK125: Omnivore(Hunter) | BO125: Type: | BP125: Omnivore(Eater) | BT125: Type: | BU125: Omnivore(Hunter) | BY125: Type: | BZ125: Omnivore(Hunter)
B127: Stats: | D127: Score | E127: DM | G127: Stats: | I127: Score | J127: DM | L127: Stats: | N127: Score | O127: DM | Q127: Stats: | S127: Score | T127: DM | V127: Stats: | X127: Score | Y127: DM | AA127: Stats: | AC127: Score | AD127: DM | AF127: Stats: | AH127: Score | AI127: DM | AK127: Stats: | AM127: Score | AN127: DM | AP127: Stats: | AR127: Score | AS127: DM | AU127: Stats: | AW127: Score | AX127: DM | AZ127: Stats: | BB127: Score | BC127: DM | BE127: Stats: | BG127: Score | BH127: DM | BJ127: Stats: | BL127: Score | BM127: DM | BO127: Stats: | BQ127: Score | BR127: DM | BT127: Stats: | BV127: Score | BW127: DM | BY127: Stats: | CA127: Score | CB127: DM
C128: Strength: | D128: 18 | E128: 4 | H128: Strength: | I128: 12 | J128: 2 | M128: Strength: | N128: 22 | O128: 5 | R128: Strength: | S128: 19 | T128: 4 | W128: Strength: | X128: 4 | Y128: -1 | AB128: Strength: | AC128: 2 | AD128: -2 | AG128: Strength: | AH128: 9 | AI128: 1 | AL128: Strength: | AM128: 1 | AN128: -2 | AQ128: Strength: | AR128: 6 | AS128: 0 | AV128: Strength: | AW128: 12 | AX128: 2 | BA128: Strength: | BB128: 16 | BC128: 3 | BF128: Strength: | BG128: 27 | BH128: 7 | BK128: Strength: | BL128: 10 | BM128: 1 | BP128: Strength: | BQ128: 10 | BR128: 1 | BU128: Strength: | BV128: 4 | BW128: -1 | BZ128: Strength: | CA128: 1 | CB128: -2
C129: Dexterity: | D129: 9 | E129: 1 | H129: Dexterity: | I129: 10 | J129: 1 | M129: Dexterity: | N129: 8 | O129: 0 | R129: Dexterity: | S129: 8 | T129: 0 | W129: Dexterity: | X129: 5 | Y129: -1 | AB129: Dexterity: | AC129: 5 | AD129: -1 | AG129: Dexterity: | AH129: 18 | AI129: 4 | AL129: Dexterity: | AM129: 5 | AN129: -1 | AQ129: Dexterity: | AR129: 10 | AS129: 1 | AV129: Dexterity: | AW129: 9 | AX129: 1 | BA129: Dexterity: | BB129: 14 | BC129: 2 | BF129: Dexterity: | BG129: 4 | BH129: -1 | BK129: Dexterity: | BL129: 15 | BM129: 3 | BP129: Dexterity: | BQ129: 6 | BR129: 0 | BU129: Dexterity: | BV129: 8 | BW129: 0 | BZ129: Dexterity: | CA129: 7 | CB129: 0
C130: Endurance: | D130: 20 | E130: 4 | H130: Endurance: | I130: 15 | J130: 3 | M130: Endurance: | N130: 19 | O130: 4 | R130: Endurance: | S130: 15 | T130: 3 | W130: Endurance: | X130: 1 | Y130: -2 | AB130: Endurance: | AC130: 2 | AD130: -2 | AG130: Endurance: | AH130: 2 | AI130: -2 | AL130: Endurance: | AM130: 1 | AN130: -2 | AQ130: Endurance: | AR130: 7 | AS130: 0 | AV130: Endurance: | AW130: 16 | AX130: 3 | BA130: Endurance: | BB130: 9 | BC130: 1 | BF130: Endurance: | BG130: 23 | BH130: 5 | BK130: Endurance: | BL130: 10 | BM130: 1 | BP130: Endurance: | BQ130: 18 | BR130: 4 | BU130: Endurance: | BV130: 1 | BW130: -2 | BZ130: Endurance: | CA130: 3 | CB130: -1
C131: Inteligence: | D131: 1 | E131: -2 | H131: Inteligence: | I131: 1 | J131: -2 | M131: Inteligence: | N131: 0 | O131: -3 | R131: Inteligence: | S131: 3 | T131: -1 | W131: Inteligence: | X131: 0 | Y131: -3 | AB131: Inteligence: | AC131: 1 | AD131: -2 | AG131: Inteligence: | AH131: 1 | AI131: -2 | AL131: Inteligence: | AM131: 0 | AN131: -3 | AQ131: Inteligence: | AR131: 1 | AS131: -2 | AV131: Inteligence: | AW131: 1 | AX131: -2 | BA131: Inteligence: | BB131: 0 | BC131: -3 | BF131: Inteligence: | BG131: 0 | BH131: -3 | BK131: Inteligence: | BL131: 1 | BM131: -2 | BP131: Inteligence: | BQ131: 1 | BR131: -2 | BU131: Inteligence: | BV131: 0 | BW131: -3 | BZ131: Inteligence: | CA131: 0 | CB131: -3
C132: Instinct: | D132: 5 | E132: -1 | H132: Instinct: | I132: 5 | J132: -1 | M132: Instinct: | N132: 4 | O132: -1 | R132: Instinct: | S132: 7 | T132: 0 | W132: Instinct: | X132: 5 | Y132: -1 | AB132: Instinct: | AC132: 9 | AD132: 1 | AG132: Instinct: | AH132: 11 | AI132: 1 | AL132: Instinct: | AM132: 7 | AN132: 0 | AQ132: Instinct: | AR132: 6 | AS132: 0 | AV132: Instinct: | AW132: 11 | AX132: 1 | BA132: Instinct: | BB132: 5 | BC132: -1 | BF132: Instinct: | BG132: 9 | BH132: 1 | BK132: Instinct: | BL132: 7 | BM132: 0 | BP132: Instinct: | BQ132: 8 | BR132: 0 | BU132: Instinct: | BV132: 12 | BW132: 2 | BZ132: Instinct: | CA132: 9 | CB132: 1
C133: Pack: | D133: 8 | E133: 0 | H133: Pack: | I133: 10 | J133: 1 | M133: Pack: | N133: 11 | O133: 1 | R133: Pack: | S133: 5 | T133: -1 | W133: Pack: | X133: 7 | Y133: 0 | AB133: Pack: | AC133: 9 | AD133: 1 | AG133: Pack: | AH133: 5 | AI133: -1 | AL133: Pack: | AM133: 8 | AN133: 0 | AQ133: Pack: | AR133: 7 | AS133: 0 | AV133: Pack: | AW133: 8 | AX133: 0 | BA133: Pack: | BB133: 11 | BC133: 1 | BF133: Pack: | BG133: 11 | BH133: 1 | BK133: Pack: | BL133: 5 | BM133: -1 | BP133: Pack: | BQ133: 5 | BR133: -1 | BU133: Pack: | BV133: 7 | BW133: 0 | BZ133: Pack: | CA133: 8 | CB133: 0
B135: Skills: | C135: Athletics: | D135: 0 | G135: Skills: | H135: Athletics: | I135: 0 | L135: Skills: | M135: Athletics: | N135: 4 | Q135: Skills: | R135: Athletics: | S135: 0 | V135: Skills: | W135: Athletics: | X135: 0 | AA135: Skills: | AB135: Athletics: | AC135: 0 | AF135: Skills: | AG135: Athletics: | AH135: 1 | AK135: Skills: | AL135: Athletics: | AM135: 0 | AP135: Skills: | AQ135: Athletics: | AR135: 0 | AU135: Skills: | AV135: Athletics: | AW135: 0 | AZ135: Skills: | BA135: Athletics: | BB135: 0 | BE135: Skills: | BF135: Athletics: | BG135: 0 | BJ135: Skills: | BK135: Athletics: | BL135: 0 | BO135: Skills: | BP135: Athletics: | BQ135: 2 | BT135: Skills: | BU135: Athletics: | BV135: 2 | BY135: Skills: | BZ135: Athletics: | CA135: 2
C136: Recon: | D136: 2 | H136: Recon: | I136: 0 | M136: Recon: | N136: 1 | R136: Recon: | S136: 2 | W136: Recon: | X136: 1 | AB136: Recon: | AC136: 0 | AG136: Recon: | AH136: 0 | AL136: Recon: | AM136: 2 | AQ136: Recon: | AR136: 1 | AV136: Recon: | AW136: 0 | BA136: Recon: | BB136: 1 | BF136: Recon: | BG136: 1 | BK136: Recon: | BL136: 0 | BP136: Recon: | BQ136: 0 | BU136: Recon: | BV136: 0 | BZ136: Recon: | CA136: 1
C137: Survival: | D137: 0 | H137: Survival: | I137: 0 | M137: Survival: | N137: 0 | R137: Survival: | S137: 0 | W137: Survival: | X137: 0 | AB137: Survival: | AC137: 0 | AG137: Survival: | AH137: 3 | AL137: Survival: | AM137: 2 | AQ137: Survival: | AR137: 2 | AV137: Survival: | AW137: 1 | BA137: Survival: | BB137: 0 | BF137: Survival: | BG137: 1 | BK137: Survival: | BL137: 1 | BP137: Survival: | BQ137: 0 | BU137: Survival: | BV137: 1 | BZ137: Survival: | CA137: 2
C138: Melee: | H138: Melee: | M138: Melee: | R138: Melee: | S138: 0 | W138: Melee: | X138: 1 | AB138: Melee: | AG138: Melee: | AL138: Melee: | AQ138: Melee: | AV138: Melee: | BA138: Melee: | BB138: 0 | BF138: Melee: | BK138: Melee: | BP138: Melee: | BQ138: 1 | BU138: Melee: | BZ138: Melee:
C139: Deception: | D139: 0 | H139: Deception: | M139: Deception: | R139: Deception: | W139: Deception: | X139: 0 | AB139: Deception: | AG139: Deception: | AL139: Deception: | AQ139: Deception: | AR139: 0 | AV139: Deception: | BA139: Deception: | BB139: 1 | BF139: Deception: | BK139: Deception: | BP139: Deception: | BU139: Deception: | BZ139: Deception:
C140: Persuade: | H140: Persuade: | M140: Persuade: | R140: Persuade: | W140: Persuade: | AB140: Persuade: | AG140: Persuade: | AL140: Persuade: | AQ140: Persuade: | AV140: Persuade: | BA140: Persuade: | BF140: Persuade: | BK140: Persuade: | BP140: Persuade: | BU140: Persuade: | BZ140: Persuade:
C141: Stealth: | D141: 1 | H141: Stealth: | I141: 1 | M141: Stealth: | R141: Stealth: | W141: Stealth: | X141: 1 | AB141: Stealth: | AC141: 1 | AG141: Stealth: | AL141: Stealth: | AM141: 1 | AQ141: Stealth: | AR141: 1 | AV141: Stealth: | BA141: Stealth: | BB141: 1 | BF141: Stealth: | BK141: Stealth: | BP141: Stealth: | BU141: Stealth: | BZ141: Stealth:
B143: Weapons: | C143: Type | D143: Damage | G143: Weapons: | H143: Type | I143: Damage | L143: Weapons: | M143: Type | N143: Damage | Q143: Weapons: | R143: Type | S143: Damage | V143: Weapons: | W143: Type | X143: Damage | AA143: Weapons: | AB143: Type | AC143: Damage | AF143: Weapons: | AG143: Type | AH143: Damage | AK143: Weapons: | AL143: Type | AM143: Damage | AP143: Weapons: | AQ143: Type | AR143: Damage | AU143: Weapons: | AV143: Type | AW143: Damage | AZ143: Weapons: | BA143: Type | BB143: Damage | BE143: Weapons: | BF143: Type | BG143: Damage | BJ143: Weapons: | BK143: Type | BL143: Damage | BO143: Weapons: | BP143: Type | BQ143: Damage | BT143: Weapons: | BU143: Type | BV143: Damage | BY143: Weapons: | BZ143: Type | CA143: Damage
C145: Claws | D145: 4d6 | H145: Teeth | I145: 4d6 | M145: Thrasher | N145: 4d6 | R145: Claws | S145: 3d6 | W145: Claws | X145: 2d6 | AB145: Claws | AC145: 3d6 | AG145: Claws | AH145: 3d6 | AL145: Thrasher | AM145: 3d6 | AQ145: Thrasher | AR145: 3d6 | AV145: Thrasher | AW145: 4d6 | BA145: Thrasher | BB145: 4d6 | BF145: Stinger | BG145: 4d6 | BK145: Claws and Teeth | BL145: 3d6 | BP145: Claws and Teeth | BQ145: 3d6 | BU145: Thrasher | BV145: 2d6 | BZ145: Teeth | CA145: 3d6
B146: Armor: | C146: 7 | G146: Armor: | H146: 9 | L146: Armor: | M146: 12 | Q146: Armor: | R146: 11 | V146: Armor: | W146: 4 | AA146: Armor: | AB146: 8 | AF146: Armor: | AG146: 11 | AK146: Armor: | AL146: 10 | AP146: Armor: | AQ146: 2 | AU146: Armor: | AV146: 11 | AZ146: Armor: | BA146: 5 | BE146: Armor: | BF146: 10 | BJ146: Armor: | BK146: 8 | BO146: Armor: | BP146: 7 | BT146: Armor: | BU146: 4 | BY146: Armor: | BZ146: 8
B148: Number Encountered: | C148: 2d6 | G148: Number Encountered: | H148: 3d6 | L148: Number Encountered: | M148: 3d6 | Q148: Number Encountered: | R148: 1d6 | V148: Number Encountered: | W148: 2d6 | AA148: Number Encountered: | AB148: 3d6 | AF148: Number Encountered: | AG148: 1d6 | AK148: Number Encountered: | AL148: 2d6 | AP148: Number Encountered: | AQ148: 2d6 | AU148: Number Encountered: | AV148: 2d6 | AZ148: Number Encountered: | BA148: 3d6 | BE148: Number Encountered: | BF148: 3d6 | BJ148: Number Encountered: | BK148: 1d6 | BO148: Number Encountered: | BP148: 1d6 | BT148: Number Encountered: | BU148: 2d6 | BY148: Number Encountered: | BZ148: 2d6
B150: Name: | C150: Species LOCATION-5 | G150: Name: | H150: Species LOCATION-15 | L150: Name: | M150: Species LOCATION-25 | Q150: Name: | R150: Species LOCATION-35 | V150: Name: | W150: Species LOCATION-45 | AA150: Name: | AB150: Species LOCATION-55 | AF150: Name: | AG150: Species LOCATION-65 | AK150: Name: | AL150: Species LOCATION-75 | AP150: Name: | AQ150: Species LOCATION-85 | AU150: Name: | AV150: Species LOCATION-95 | AZ150: Name: | BA150: Species LOCATION-105 | BE150: Name: | BF150: Species LOCATION-115 | BJ150: Name: | BK150: Species LOCATION-125 | BO150: Name: | BP150: Species LOCATION-135 | BT150: Name: | BU150: Species LOCATION-145 | BY150: Name: | BZ150: Species LOCATION-155
B151: Average Weight(kg): | C151: 5000 | G151: Average Weight(kg): | H151: 200 | L151: Average Weight(kg): | M151: 1 | Q151: Average Weight(kg): | R151: 400 | V151: Average Weight(kg): | W151: 800 | AA151: Average Weight(kg): | AB151: 1 | AF151: Average Weight(kg): | AG151: 1 | AK151: Average Weight(kg): | AL151: 1 | AP151: Average Weight(kg): | AQ151: 1 | AU151: Average Weight(kg): | AV151: 400 | AZ151: Average Weight(kg): | BA151: 3200 | BE151: Average Weight(kg): | BF151: 100 | BJ151: Average Weight(kg): | BK151: 6 | BO151: Average Weight(kg): | BP151: 6 | BT151: Average Weight(kg): | BU151: 3 | BY151: Average Weight(kg): | BZ151: 5000
B152: Movement: | C152: Walker | G152: Movement: | H152: Walker | L152: Movement: | M152: Flyer | Q152: Movement: | R152: Walker | V152: Movement: | W152: Flyer | AA152: Movement: | AB152: Flyer | AF152: Movement: | AG152: Walker | AK152: Movement: | AL152: Flyer | AP152: Movement: | AQ152: Flyer | AU152: Movement: | AV152: Flyer | AZ152: Movement: | BA152: Amphibious | BE152: Movement: | BF152: Flyer | BJ152: Movement: | BK152: Walker | BO152: Movement: | BP152: Swimmer | BT152: Movement: | BU152: Flyer | BY152: Movement: | BZ152: Swimmer
B153: Type: | C153: Herbivore(Intermittent) | G153: Type: | H153: Herbivore(Grazer) | L153: Type: | M153: Herbivore(Grazer) | Q153: Type: | R153: Herbivore(Filter) | V153: Type: | W153: Herbivore(Grazer) | AA153: Type: | AB153: Herbivore(Intermittent) | AF153: Type: | AG153: Herbivore(Intermittent) | AK153: Type: | AL153: Herbivore(Filter) | AP153: Type: | AQ153: Herbivore(Grazer) | AU153: Type: | AV153: Herbivore(Intermittent) | AZ153: Type: | BA153: Herbivore(Intermittent) | BE153: Type: | BF153: Herbivore(Grazer) | BJ153: Type: | BK153: Herbivore(Grazer) | BO153: Type: | BP153: Herbivore(Grazer) | BT153: Type: | BU153: Herbivore(Grazer) | BY153: Type: | BZ153: Herbivore(Grazer)
B155: Stats: | D155: Score | E155: DM | G155: Stats: | I155: Score | J155: DM | L155: Stats: | N155: Score | O155: DM | Q155: Stats: | S155: Score | T155: DM | V155: Stats: | X155: Score | Y155: DM | AA155: Stats: | AC155: Score | AD155: DM | AF155: Stats: | AH155: Score | AI155: DM | AK155: Stats: | AM155: Score | AN155: DM | AP155: Stats: | AR155: Score | AS155: DM | AU155: Stats: | AW155: Score | AX155: DM | AZ155: Stats: | BB155: Score | BC155: DM | BE155: Stats: | BG155: Score | BH155: DM | BJ155: Stats: | BL155: Score | BM155: DM | BO155: Stats: | BQ155: Score | BR155: DM | BT155: Stats: | BV155: Score | BW155: DM | BY155: Stats: | CA155: Score | CB155: DM
C156: Strength: | D156: 24 | E156: 6 | H156: Strength: | I156: 13 | J156: 2 | M156: Strength: | N156: 1 | O156: -2 | R156: Strength: | S156: 14 | T156: 2 | W156: Strength: | X156: 13 | Y156: 2 | AB156: Strength: | AC156: 1 | AD156: -2 | AG156: Strength: | AH156: 1 | AI156: -2 | AL156: Strength: | AM156: 1 | AN156: -2 | AQ156: Strength: | AR156: 1 | AS156: -2 | AV156: Strength: | AW156: 13 | AX156: 2 | BA156: Strength: | BB156: 25 | BC156: 6 | BF156: Strength: | BG156: 8 | BH156: 0 | BK156: Strength: | BL156: 3 | BM156: -1 | BP156: Strength: | BQ156: 6 | BR156: 0 | BU156: Strength: | BV156: 2 | BW156: -2 | BZ156: Strength: | CA156: 25 | CB156: 6
C157: Dexterity: | D157: 5 | E157: -1 | H157: Dexterity: | I157: 11 | J157: 1 | M157: Dexterity: | N157: 6 | O157: 0 | R157: Dexterity: | S157: 6 | T157: 0 | W157: Dexterity: | X157: 10 | Y157: 1 | AB157: Dexterity: | AC157: 5 | AD157: -1 | AG157: Dexterity: | AH157: 1 | AI157: -2 | AL157: Dexterity: | AM157: 5 | AN157: -1 | AQ157: Dexterity: | AR157: 2 | AS157: -2 | AV157: Dexterity: | AW157: 7 | AX157: 0 | BA157: Dexterity: | BB157: 4 | BC157: -1 | BF157: Dexterity: | BG157: 9 | BH157: 1 | BK157: Dexterity: | BL157: 7 | BM157: 0 | BP157: Dexterity: | BQ157: 6 | BR157: 0 | BU157: Dexterity: | BV157: 3 | BW157: -1 | BZ157: Dexterity: | CA157: 6 | CB157: 0
C158: Endurance: | D158: 29 | E158: 7 | H158: Endurance: | I158: 7 | J158: 0 | M158: Endurance: | N158: 1 | O158: -2 | R158: Endurance: | S158: 26 | T158: 6 | W158: Endurance: | X158: 11 | Y158: 1 | AB158: Endurance: | AC158: 1 | AD158: -2 | AG158: Endurance: | AH158: 1 | AI158: -2 | AL158: Endurance: | AM158: 5 | AN158: -1 | AQ158: Endurance: | AR158: 1 | AS158: -2 | AV158: Endurance: | AW158: 19 | AX158: 4 | BA158: Endurance: | BB158: 26 | BC158: 6 | BF158: Endurance: | BG158: 9 | BH158: 1 | BK158: Endurance: | BL158: 2 | BM158: -2 | BP158: Endurance: | BQ158: 3 | BR158: -1 | BU158: Endurance: | BV158: 2 | BW158: -2 | BZ158: Endurance: | CA158: 29 | CB158: 7
C159: Inteligence: | D159: 0 | E159: -3 | H159: Inteligence: | I159: 1 | J159: -2 | M159: Inteligence: | N159: 1 | O159: -2 | R159: Inteligence: | S159: 1 | T159: -2 | W159: Inteligence: | X159: 0 | Y159: -3 | AB159: Inteligence: | AC159: 3 | AD159: -1 | AG159: Inteligence: | AH159: 0 | AI159: -3 | AL159: Inteligence: | AM159: 1 | AN159: -2 | AQ159: Inteligence: | AR159: 3 | AS159: -1 | AV159: Inteligence: | AW159: 0 | AX159: -3 | BA159: Inteligence: | BB159: 1 | BC159: -2 | BF159: Inteligence: | BG159: 0 | BH159: -3 | BK159: Inteligence: | BL159: 0 | BM159: -3 | BP159: Inteligence: | BQ159: 0 | BR159: -3 | BU159: Inteligence: | BV159: 1 | BW159: -2 | BZ159: Inteligence: | CA159: 1 | CB159: -2
C160: Instinct: | D160: 7 | E160: 0 | H160: Instinct: | I160: 10 | J160: 1 | M160: Instinct: | N160: 11 | O160: 1 | R160: Instinct: | S160: 5 | T160: -1 | W160: Instinct: | X160: 6 | Y160: 0 | AB160: Instinct: | AC160: 3 | AD160: -1 | AG160: Instinct: | AH160: 8 | AI160: 0 | AL160: Instinct: | AM160: 9 | AN160: 1 | AQ160: Instinct: | AR160: 8 | AS160: 0 | AV160: Instinct: | AW160: 7 | AX160: 0 | BA160: Instinct: | BB160: 8 | BC160: 0 | BF160: Instinct: | BG160: 12 | BH160: 2 | BK160: Instinct: | BL160: 5 | BM160: -1 | BP160: Instinct: | BQ160: 7 | BR160: 0 | BU160: Instinct: | BV160: 8 | BW160: 0 | BZ160: Instinct: | CA160: 7 | CB160: 0
C161: Pack: | D161: 12 | E161: 2 | H161: Pack: | I161: 7 | J161: 0 | M161: Pack: | N161: 14 | O161: 2 | R161: Pack: | S161: 7 | T161: 0 | W161: Pack: | X161: 13 | Y161: 2 | AB161: Pack: | AC161: 15 | AD161: 3 | AG161: Pack: | AH161: 14 | AI161: 2 | AL161: Pack: | AM161: 9 | AN161: 1 | AQ161: Pack: | AR161: 10 | AS161: 1 | AV161: Pack: | AW161: 12 | AX161: 2 | BA161: Pack: | BB161: 11 | BC161: 1 | BF161: Pack: | BG161: 12 | BH161: 2 | BK161: Pack: | BL161: 9 | BM161: 1 | BP161: Pack: | BQ161: 7 | BR161: 0 | BU161: Pack: | BV161: 11 | BW161: 1 | BZ161: Pack: | CA161: 12 | CB161: 2
B163: Skills: | C163: Athletics: | D163: 1 | G163: Skills: | H163: Athletics: | I163: 0 | L163: Skills: | M163: Athletics: | N163: 0 | Q163: Skills: | R163: Athletics: | S163: 0 | V163: Skills: | W163: Athletics: | X163: 2 | AA163: Skills: | AB163: Athletics: | AC163: 1 | AF163: Skills: | AG163: Athletics: | AH163: 2 | AK163: Skills: | AL163: Athletics: | AM163: 1 | AP163: Skills: | AQ163: Athletics: | AR163: 0 | AU163: Skills: | AV163: Athletics: | AW163: 1 | AZ163: Skills: | BA163: Athletics: | BB163: 0 | BE163: Skills: | BF163: Athletics: | BG163: 0 | BJ163: Skills: | BK163: Athletics: | BL163: 0 | BO163: Skills: | BP163: Athletics: | BQ163: 1 | BT163: Skills: | BU163: Athletics: | BV163: 0 | BY163: Skills: | BZ163: Athletics: | CA163: 1
C164: Recon: | D164: 1 | H164: Recon: | I164: 1 | M164: Recon: | N164: 0 | R164: Recon: | S164: 2 | W164: Recon: | X164: 1 | AB164: Recon: | AC164: 0 | AG164: Recon: | AH164: 3 | AL164: Recon: | AM164: 1 | AQ164: Recon: | AR164: 0 | AV164: Recon: | AW164: 0 | BA164: Recon: | BB164: 2 | BF164: Recon: | BG164: 1 | BK164: Recon: | BL164: 0 | BP164: Recon: | BQ164: 2 | BU164: Recon: | BV164: 1 | BZ164: Recon: | CA164: 1
C165: Survival: | D165: 1 | H165: Survival: | I165: 1 | M165: Survival: | N165: 2 | R165: Survival: | S165: 0 | W165: Survival: | X165: 0 | AB165: Survival: | AC165: 0 | AG165: Survival: | AH165: 0 | AL165: Survival: | AM165: 1 | AQ165: Survival: | AR165: 0 | AV165: Survival: | AW165: 0 | BA165: Survival: | BB165: 2 | BF165: Survival: | BG165: 2 | BK165: Survival: | BL165: 0 | BP165: Survival: | BQ165: 1 | BU165: Survival: | BV165: 1 | BZ165: Survival: | CA165: 0
C166: Melee: | D166: 1 | H166: Melee: | I166: 1 | M166: Melee: | R166: Melee: | W166: Melee: | X166: 1 | AB166: Melee: | AC166: 1 | AG166: Melee: | AH166: 0 | AL166: Melee: | AM166: 0 | AQ166: Melee: | AR166: 0 | AV166: Melee: | AW166: 2 | BA166: Melee: | BF166: Melee: | BG166: 2 | BK166: Melee: | BL166: 0 | BP166: Melee: | BQ166: 1 | BU166: Melee: | BV166: 0 | BZ166: Melee: | CA166: 0
C167: Deception: | H167: Deception: | M167: Deception: | R167: Deception: | W167: Deception: | AB167: Deception: | AG167: Deception: | AL167: Deception: | AQ167: Deception: | AV167: Deception: | BA167: Deception: | BF167: Deception: | BK167: Deception: | BP167: Deception: | BU167: Deception: | BZ167: Deception:
C168: Persuade: | H168: Persuade: | M168: Persuade: | R168: Persuade: | W168: Persuade: | AB168: Persuade: | AG168: Persuade: | AL168: Persuade: | AQ168: Persuade: | AV168: Persuade: | BA168: Persuade: | BF168: Persuade: | BK168: Persuade: | BP168: Persuade: | BU168: Persuade: | BZ168: Persuade:
C169: Stealth: | H169: Stealth: | M169: Stealth: | R169: Stealth: | W169: Stealth: | AB169: Stealth: | AG169: Stealth: | AL169: Stealth: | AQ169: Stealth: | AV169: Stealth: | BA169: Stealth: | BF169: Stealth: | BK169: Stealth: | BP169: Stealth: | BU169: Stealth: | BZ169: Stealth:
B171: Weapons: | C171: Type | D171: Damage | G171: Weapons: | H171: Type | I171: Damage | L171: Weapons: | M171: Type | N171: Damage | Q171: Weapons: | R171: Type | S171: Damage | V171: Weapons: | W171: Type | X171: Damage | AA171: Weapons: | AB171: Type | AC171: Damage | AF171: Weapons: | AG171: Type | AH171: Damage | AK171: Weapons: | AL171: Type | AM171: Damage | AP171: Weapons: | AQ171: Type | AR171: Damage | AU171: Weapons: | AV171: Type | AW171: Damage | AZ171: Weapons: | BA171: Type | BB171: Damage | BE171: Weapons: | BF171: Type | BG171: Damage | BJ171: Weapons: | BK171: Type | BL171: Damage | BO171: Weapons: | BP171: Type | BQ171: Damage | BT171: Weapons: | BU171: Type | BV171: Damage | BY171: Weapons: | BZ171: Type | CA171: Damage
C173: Teeth | D173: 3d6 | H173: None | I173: - | M173: None | N173: - | R173: Teeth | S173: 2d6 | W173: None | X173: - | AB173: None | AC173: - | AG173: Horns | AH173: 1d6 | AL173: Teeth | AM173: 1d6 | AQ173: None | AR173: - | AV173: Hooves and Teeth | AW173: 2d6 | BA173: None | BB173: - | BF173: Teeth | BG173: 1d6 | BK173: None | BL173: - | BP173: None | BQ173: - | BU173: Hooves | BV173: 1d6 | BZ173: Teeth | CA173: 3d6
B174: Armor: | C174: 11 | G174: Armor: | H174: 6 | L174: Armor: | M174: 4 | Q174: Armor: | R174: 9 | V174: Armor: | W174: 5 | AA174: Armor: | AB174: 9 | AF174: Armor: | AG174: 8 | AK174: Armor: | AL174: 10 | AP174: Armor: | AQ174: 12 | AU174: Armor: | AV174: 9 | AZ174: Armor: | BA174: 3 | BE174: Armor: | BF174: 5 | BJ174: Armor: | BK174: 9 | BO174: Armor: | BP174: 11 | BT174: Armor: | BU174: 9 | BY174: Armor: | BZ174: 5
B176: Number Encountered: | C176: 4d6 | G176: Number Encountered: | H176: 2d6 | L176: Number Encountered: | M176: 4d6 | Q176: Number Encountered: | R176: 2d6 | V176: Number Encountered: | W176: 4d6 | AA176: Number Encountered: | AB176: 5d6 | AF176: Number Encountered: | AG176: 4d6 | AK176: Number Encountered: | AL176: 3d6 | AP176: Number Encountered: | AQ176: 3d6 | AU176: Number Encountered: | AV176: 4d6 | AZ176: Number Encountered: | BA176: 3d6 | BE176: Number Encountered: | BF176: 4d6 | BJ176: Number Encountered: | BK176: 3d6 | BO176: Number Encountered: | BP176: 2d6 | BT176: Number Encountered: | BU176: 3d6 | BY176: Number Encountered: | BZ176: 4d6
B178: Name: | C178: Species LOCATION-6 | G178: Name: | H178: Species LOCATION-16 | L178: Name: | M178: Species LOCATION-26 | Q178: Name: | R178: Species LOCATION-36 | V178: Name: | W178: Species LOCATION-46 | AA178: Name: | AB178: Species LOCATION-56 | AF178: Name: | AG178: Species LOCATION-66 | AK178: Name: | AL178: Species LOCATION-76 | AP178: Name: | AQ178: Species LOCATION-86 | AU178: Name: | AV178: Species LOCATION-96 | AZ178: Name: | BA178: Species LOCATION-106 | BE178: Name: | BF178: Species LOCATION-116 | BJ178: Name: | BK178: Species LOCATION-126 | BO178: Name: | BP178: Species LOCATION-136 | BT178: Name: | BU178: Species LOCATION-146 | BY178: Name: | BZ178: Species LOCATION-156
B179: Average Weight(kg): | C179: 5000 | G179: Average Weight(kg): | H179: 5000 | L179: Average Weight(kg): | M179: 6 | Q179: Average Weight(kg): | R179: 100 | V179: Average Weight(kg): | W179: 800 | AA179: Average Weight(kg): | AB179: 1 | AF179: Average Weight(kg): | AG179: 400 | AK179: Average Weight(kg): | AL179: 25 | AP179: Average Weight(kg): | AQ179: 50 | AU179: Average Weight(kg): | AV179: 12 | AZ179: Average Weight(kg): | BA179: 200 | BE179: Average Weight(kg): | BF179: 5000 | BJ179: Average Weight(kg): | BK179: 100 | BO179: Average Weight(kg): | BP179: 400 | BT179: Average Weight(kg): | BU179: 1 | BY179: Average Weight(kg): | BZ179: 5000
B180: Movement: | C180: Walker | G180: Movement: | H180: Walker | L180: Movement: | M180: Walker | Q180: Movement: | R180: Walker | V180: Movement: | W180: Walker | AA180: Movement: | AB180: Walker | AF180: Movement: | AG180: Walker | AK180: Movement: | AL180: Walker | AP180: Movement: | AQ180: Walker | AU180: Movement: | AV180: Walker | AZ180: Movement: | BA180: Amphibious | BE180: Movement: | BF180: Walker | BJ180: Movement: | BK180: Walker | BO180: Movement: | BP180: Flyer | BT180: Movement: | BU180: Flyer | BY180: Movement: | BZ180: Swimmer
B181: Type: | C181: Herbivore(Grazer) | G181: Type: | H181: Herbivore(Grazer) | L181: Type: | M181: Herbivore(Grazer) | Q181: Type: | R181: Herbivore(Grazer) | V181: Type: | W181: Herbivore(Grazer) | AA181: Type: | AB181: Herbivore(Intermittent) | AF181: Type: | AG181: Herbivore(Intermittent) | AK181: Type: | AL181: Herbivore(Intermittent) | AP181: Type: | AQ181: Herbivore(Filter) | AU181: Type: | AV181: Herbivore(Intermittent) | AZ181: Type: | BA181: Herbivore(Intermittent) | BE181: Type: | BF181: Herbivore(Grazer) | BJ181: Type: | BK181: Herbivore(Intermittent) | BO181: Type: | BP181: Herbivore(Grazer) | BT181: Type: | BU181: Herbivore(Grazer) | BY181: Type: | BZ181: Herbivore(Grazer)
B183: Stats: | D183: Score | E183: DM | G183: Stats: | I183: Score | J183: DM | L183: Stats: | N183: Score | O183: DM | Q183: Stats: | S183: Score | T183: DM | V183: Stats: | X183: Score | Y183: DM | AA183: Stats: | AC183: Score | AD183: DM | AF183: Stats: | AH183: Score | AI183: DM | AK183: Stats: | AM183: Score | AN183: DM | AP183: Stats: | AR183: Score | AS183: DM | AU183: Stats: | AW183: Score | AX183: DM | AZ183: Stats: | BB183: Score | BC183: DM | BE183: Stats: | BG183: Score | BH183: DM | BJ183: Stats: | BL183: Score | BM183: DM | BO183: Stats: | BQ183: Score | BR183: DM | BT183: Stats: | BV183: Score | BW183: DM | BY183: Stats: | CA183: Score | CB183: DM
C184: Strength: | D184: 27 | E184: 7 | H184: Strength: | I184: 26 | J184: 6 | M184: Strength: | N184: 3 | O184: -1 | R184: Strength: | S184: 10 | T184: 1 | W184: Strength: | X184: 13 | Y184: 2 | AB184: Strength: | AC184: 1 | AD184: -2 | AG184: Strength: | AH184: 16 | AI184: 3 | AL184: Strength: | AM184: 5 | AN184: -1 | AQ184: Strength: | AR184: 6 | AS184: 0 | AV184: Strength: | AW184: 5 | AX184: -1 | BA184: Strength: | BB184: 16 | BC184: 3 | BF184: Strength: | BG184: 27 | BH184: 7 | BK184: Strength: | BL184: 15 | BM184: 3 | BP184: Strength: | BQ184: 17 | BR184: 3 | BU184: Strength: | BV184: 1 | BW184: -2 | BZ184: Strength: | CA184: 28 | CB184: 7
C185: Dexterity: | D185: 4 | E185: -1 | H185: Dexterity: | I185: 4 | J185: -1 | M185: Dexterity: | N185: 5 | O185: -1 | R185: Dexterity: | S185: 13 | T185: 2 | W185: Dexterity: | X185: 10 | Y185: 1 | AB185: Dexterity: | AC185: 1 | AD185: -2 | AG185: Dexterity: | AH185: 12 | AI185: 2 | AL185: Dexterity: | AM185: 8 | AN185: 0 | AQ185: Dexterity: | AR185: 20 | AS185: 4 | AV185: Dexterity: | AW185: 4 | AX185: -1 | BA185: Dexterity: | BB185: 6 | BC185: 0 | BF185: Dexterity: | BG185: 3 | BH185: -1 | BK185: Dexterity: | BL185: 15 | BM185: 3 | BP185: Dexterity: | BQ185: 7 | BR185: 0 | BU185: Dexterity: | BV185: 3 | BW185: -1 | BZ185: Dexterity: | CA185: 4 | CB185: -1
C186: Endurance: | D186: 30 | E186: 8 | H186: Endurance: | I186: 30 | J186: 8 | M186: Endurance: | N186: 5 | O186: -1 | R186: Endurance: | S186: 12 | T186: 2 | W186: Endurance: | X186: 10 | Y186: 1 | AB186: Endurance: | AC186: 1 | AD186: -2 | AG186: Endurance: | AH186: 15 | AI186: 3 | AL186: Endurance: | AM186: 11 | AN186: 1 | AQ186: Endurance: | AR186: 9 | AS186: 1 | AV186: Endurance: | AW186: 1 | AX186: -2 | BA186: Endurance: | BB186: 11 | BC186: 1 | BF186: Endurance: | BG186: 27 | BH186: 7 | BK186: Endurance: | BL186: 6 | BM186: 0 | BP186: Endurance: | BQ186: 15 | BR186: 3 | BU186: Endurance: | BV186: 1 | BW186: -2 | BZ186: Endurance: | CA186: 23 | CB186: 5
C187: Inteligence: | D187: 0 | E187: -3 | H187: Inteligence: | I187: 0 | J187: -3 | M187: Inteligence: | N187: 1 | O187: -2 | R187: Inteligence: | S187: 1 | T187: -2 | W187: Inteligence: | X187: 0 | Y187: -3 | AB187: Inteligence: | AC187: 1 | AD187: -2 | AG187: Inteligence: | AH187: 0 | AI187: -3 | AL187: Inteligence: | AM187: 0 | AN187: -3 | AQ187: Inteligence: | AR187: 1 | AS187: -2 | AV187: Inteligence: | AW187: 1 | AX187: -2 | BA187: Inteligence: | BB187: 0 | BC187: -3 | BF187: Inteligence: | BG187: 0 | BH187: -3 | BK187: Inteligence: | BL187: 1 | BM187: -2 | BP187: Inteligence: | BQ187: 1 | BR187: -2 | BU187: Inteligence: | BV187: 0 | BW187: -3 | BZ187: Inteligence: | CA187: 0 | CB187: -3
C188: Instinct: | D188: 11 | E188: 1 | H188: Instinct: | I188: 7 | J188: 0 | M188: Instinct: | N188: 12 | O188: 2 | R188: Instinct: | S188: 8 | T188: 0 | W188: Instinct: | X188: 10 | Y188: 1 | AB188: Instinct: | AC188: 9 | AD188: 1 | AG188: Instinct: | AH188: 6 | AI188: 0 | AL188: Instinct: | AM188: 9 | AN188: 1 | AQ188: Instinct: | AR188: 9 | AS188: 1 | AV188: Instinct: | AW188: 11 | AX188: 1 | BA188: Instinct: | BB188: 8 | BC188: 0 | BF188: Instinct: | BG188: 8 | BH188: 0 | BK188: Instinct: | BL188: 4 | BM188: -1 | BP188: Instinct: | BQ188: 14 | BR188: 2 | BU188: Instinct: | BV188: 12 | BW188: 2 | BZ188: Instinct: | CA188: 10 | CB188: 1
C189: Pack: | D189: 8 | E189: 0 | H189: Pack: | I189: 13 | J189: 2 | M189: Pack: | N189: 13 | O189: 2 | R189: Pack: | S189: 14 | T189: 2 | W189: Pack: | X189: 12 | Y189: 2 | AB189: Pack: | AC189: 15 | AD189: 3 | AG189: Pack: | AH189: 13 | AI189: 2 | AL189: Pack: | AM189: 15 | AN189: 3 | AQ189: Pack: | AR189: 3 | AS189: -1 | AV189: Pack: | AW189: 16 | AX189: 3 | BA189: Pack: | BB189: 12 | BC189: 2 | BF189: Pack: | BG189: 11 | BH189: 1 | BK189: Pack: | BL189: 9 | BM189: 1 | BP189: Pack: | BQ189: 13 | BR189: 2 | BU189: Pack: | BV189: 14 | BW189: 2 | BZ189: Pack: | CA189: 12 | CB189: 2
B191: Skills: | C191: Athletics: | D191: 4 | G191: Skills: | H191: Athletics: | I191: 1 | L191: Skills: | M191: Athletics: | N191: 0 | Q191: Skills: | R191: Athletics: | S191: 1 | V191: Skills: | W191: Athletics: | X191: 1 | AA191: Skills: | AB191: Athletics: | AC191: 0 | AF191: Skills: | AG191: Athletics: | AH191: 3 | AK191: Skills: | AL191: Athletics: | AM191: 1 | AP191: Skills: | AQ191: Athletics: | AR191: 1 | AU191: Skills: | AV191: Athletics: | AW191: 2 | AZ191: Skills: | BA191: Athletics: | BB191: 1 | BE191: Skills: | BF191: Athletics: | BG191: 0 | BJ191: Skills: | BK191: Athletics: | BL191: 0 | BO191: Skills: | BP191: Athletics: | BQ191: 0 | BT191: Skills: | BU191: Athletics: | BV191: 0 | BY191: Skills: | BZ191: Athletics: | CA191: 0
C192: Recon: | D192: 1 | H192: Recon: | I192: 1 | M192: Recon: | N192: 0 | R192: Recon: | S192: 0 | W192: Recon: | X192: 4 | AB192: Recon: | AC192: 1 | AG192: Recon: | AH192: 0 | AL192: Recon: | AM192: 4 | AQ192: Recon: | AR192: 1 | AV192: Recon: | AW192: 2 | BA192: Recon: | BB192: 0 | BF192: Recon: | BG192: 0 | BK192: Recon: | BL192: 0 | BP192: Recon: | BQ192: 0 | BU192: Recon: | BV192: 0 | BZ192: Recon: | CA192: 1
C193: Survival: | D193: 0 | H193: Survival: | I193: 3 | M193: Survival: | N193: 1 | R193: Survival: | S193: 2 | W193: Survival: | X193: 0 | AB193: Survival: | AC193: 1 | AG193: Survival: | AH193: 0 | AL193: Survival: | AM193: 0 | AQ193: Survival: | AR193: 1 | AV193: Survival: | AW193: 1 | BA193: Survival: | BB193: 5 | BF193: Survival: | BG193: 0 | BK193: Survival: | BL193: 0 | BP193: Survival: | BQ193: 2 | BU193: Survival: | BV193: 0 | BZ193: Survival: | CA193: 0
C194: Melee: | D194: 0 | H194: Melee: | I194: 0 | M194: Melee: | N194: 0 | R194: Melee: | W194: Melee: | X194: 0 | AB194: Melee: | AG194: Melee: | AH194: 0 | AL194: Melee: | AM194: 0 | AQ194: Melee: | AV194: Melee: | BA194: Melee: | BF194: Melee: | BG194: 1 | BK194: Melee: | BL194: 1 | BP194: Melee: | BU194: Melee: | BV194: 1 | BZ194: Melee:
C195: Deception: | H195: Deception: | M195: Deception: | R195: Deception: | W195: Deception: | AB195: Deception: | AG195: Deception: | AL195: Deception: | AQ195: Deception: | AV195: Deception: | BA195: Deception: | BF195: Deception: | BK195: Deception: | BP195: Deception: | BU195: Deception: | BZ195: Deception:
C196: Persuade: | H196: Persuade: | M196: Persuade: | R196: Persuade: | W196: Persuade: | AB196: Persuade: | AG196: Persuade: | AL196: Persuade: | AQ196: Persuade: | AV196: Persuade: | BA196: Persuade: | BF196: Persuade: | BK196: Persuade: | BP196: Persuade: | BU196: Persuade: | BZ196: Persuade:
C197: Stealth: | H197: Stealth: | M197: Stealth: | R197: Stealth: | W197: Stealth: | AB197: Stealth: | AG197: Stealth: | AL197: Stealth: | AQ197: Stealth: | AV197: Stealth: | BA197: Stealth: | BF197: Stealth: | BK197: Stealth: | BP197: Stealth: | BU197: Stealth: | BZ197: Stealth:
B199: Weapons: | C199: Type | D199: Damage | G199: Weapons: | H199: Type | I199: Damage | L199: Weapons: | M199: Type | N199: Damage | Q199: Weapons: | R199: Type | S199: Damage | V199: Weapons: | W199: Type | X199: Damage | AA199: Weapons: | AB199: Type | AC199: Damage | AF199: Weapons: | AG199: Type | AH199: Damage | AK199: Weapons: | AL199: Type | AM199: Damage | AP199: Weapons: | AQ199: Type | AR199: Damage | AU199: Weapons: | AV199: Type | AW199: Damage | AZ199: Weapons: | BA199: Type | BB199: Damage | BE199: Weapons: | BF199: Type | BG199: Damage | BJ199: Weapons: | BK199: Type | BL199: Damage | BO199: Weapons: | BP199: Type | BQ199: Damage | BT199: Weapons: | BU199: Type | BV199: Damage | BY199: Weapons: | BZ199: Type | CA199: Damage
C201: Hooves | D201: 3d6 | H201: None | I201: - | M201: Horns | N201: 1d6 | R201: None | S201: - | W201: None | X201: - | AB201: None | AC201: - | AG201: None | AH201: - | AL201: None | AM201: - | AQ201: Hooves | AR201: 1d6 | AV201: None | AW201: - | BA201: Horns | BB201: 2d6 | BF201: None | BG201: - | BK201: None | BL201: - | BP201: None | BQ201: - | BU201: None | BV201: - | BZ201: Hooves and Teeth | CA201: 3d6
B202: Armor: | C202: 6 | G202: Armor: | H202: 5 | L202: Armor: | M202: 11 | Q202: Armor: | R202: 7 | V202: Armor: | W202: 5 | AA202: Armor: | AB202: 9 | AF202: Armor: | AG202: 8 | AK202: Armor: | AL202: 9 | AP202: Armor: | AQ202: 4 | AU202: Armor: | AV202: 6 | AZ202: Armor: | BA202: 10 | BE202: Armor: | BF202: 8 | BJ202: Armor: | BK202: 5 | BO202: Armor: | BP202: 8 | BT202: Armor: | BU202: 7 | BY202: Armor: | BZ202: 6
B204: Number Encountered: | C204: 2d6 | G204: Number Encountered: | H204: 4d6 | L204: Number Encountered: | M204: 4d6 | Q204: Number Encountered: | R204: 4d6 | V204: Number Encountered: | W204: 4d6 | AA204: Number Encountered: | AB204: 5d6 | AF204: Number Encountered: | AG204: 4d6 | AK204: Number Encountered: | AL204: 5d6 | AP204: Number Encountered: | AQ204: 1d6 | AU204: Number Encountered: | AV204: 5d6 | AZ204: Number Encountered: | BA204: 4d6 | BE204: Number Encountered: | BF204: 3d6 | BJ204: Number Encountered: | BK204: 3d6 | BO204: Number Encountered: | BP204: 4d6 | BT204: Number Encountered: | BU204: 4d6 | BY204: Number Encountered: | BZ204: 4d6
B206: Name: | C206: Species LOCATION-7 | G206: Name: | H206: Species LOCATION-17 | L206: Name: | M206: Species LOCATION-27 | Q206: Name: | R206: Species LOCATION-37 | V206: Name: | W206: Species LOCATION-47 | AA206: Name: | AB206: Species LOCATION-57 | AF206: Name: | AG206: Species LOCATION-67 | AK206: Name: | AL206: Species LOCATION-77 | AP206: Name: | AQ206: Species LOCATION-87 | AU206: Name: | AV206: Species LOCATION-97 | AZ206: Name: | BA206: Species LOCATION-107 | BE206: Name: | BF206: Species LOCATION-117 | BJ206: Name: | BK206: Species LOCATION-127 | BO206: Name: | BP206: Species LOCATION-137 | BT206: Name: | BU206: Species LOCATION-147 | BY206: Name: | BZ206: Species LOCATION-157
B207: Average Weight(kg): | C207: 800 | G207: Average Weight(kg): | H207: 12 | L207: Average Weight(kg): | M207: 1 | Q207: Average Weight(kg): | R207: 3200 | V207: Average Weight(kg): | W207: 1 | AA207: Average Weight(kg): | AB207: 3 | AF207: Average Weight(kg): | AG207: 50 | AK207: Average Weight(kg): | AL207: 400 | AP207: Average Weight(kg): | AQ207: 3 | AU207: Average Weight(kg): | AV207: 6 | AZ207: Average Weight(kg): | BA207: 3200 | BE207: Average Weight(kg): | BF207: 1600 | BJ207: Average Weight(kg): | BK207: 400 | BO207: Average Weight(kg): | BP207: 200 | BT207: Average Weight(kg): | BU207: 400 | BY207: Average Weight(kg): | BZ207: 400
B208: Movement: | C208: Walker | G208: Movement: | H208: Walker | L208: Movement: | M208: Flyer | Q208: Movement: | R208: Walker | V208: Movement: | W208: Flyer | AA208: Movement: | AB208: Flyer | AF208: Movement: | AG208: Walker | AK208: Movement: | AL208: Walker | AP208: Movement: | AQ208: Walker | AU208: Movement: | AV208: Walker | AZ208: Movement: | BA208: Amphibious | BE208: Movement: | BF208: Walker | BJ208: Movement: | BK208: Walker | BO208: Movement: | BP208: Swimmer | BT208: Movement: | BU208: Swimmer | BY208: Movement: | BZ208: Swimmer
B209: Type: | C209: Herbivore(Grazer) | G209: Type: | H209: Herbivore(Grazer) | L209: Type: | M209: Herbivore(Grazer) | Q209: Type: | R209: Herbivore(Intermittent) | V209: Type: | W209: Herbivore(Grazer) | AA209: Type: | AB209: Herbivore(Intermittent) | AF209: Type: | AG209: Herbivore(Filter) | AK209: Type: | AL209: Herbivore(Intermittent) | AP209: Type: | AQ209: Herbivore(Intermittent) | AU209: Type: | AV209: Herbivore(Intermittent) | AZ209: Type: | BA209: Herbivore(Filter) | BE209: Type: | BF209: Herbivore(Grazer) | BJ209: Type: | BK209: Herbivore(Grazer) | BO209: Type: | BP209: Herbivore(Grazer) | BT209: Type: | BU209: Herbivore(Grazer) | BY209: Type: | BZ209: Herbivore(Grazer)
B211: Stats: | D211: Score | E211: DM | G211: Stats: | I211: Score | J211: DM | L211: Stats: | N211: Score | O211: DM | Q211: Stats: | S211: Score | T211: DM | V211: Stats: | X211: Score | Y211: DM | AA211: Stats: | AC211: Score | AD211: DM | AF211: Stats: | AH211: Score | AI211: DM | AK211: Stats: | AM211: Score | AN211: DM | AP211: Stats: | AR211: Score | AS211: DM | AU211: Stats: | AW211: Score | AX211: DM | AZ211: Stats: | BB211: Score | BC211: DM | BE211: Stats: | BG211: Score | BH211: DM | BJ211: Stats: | BL211: Score | BM211: DM | BO211: Stats: | BQ211: Score | BR211: DM | BT211: Stats: | BV211: Score | BW211: DM | BY211: Stats: | CA211: Score | CB211: DM
C212: Strength: | D212: 14 | E212: 2 | H212: Strength: | I212: 2 | J212: -2 | M212: Strength: | N212: 1 | O212: -2 | R212: Strength: | S212: 13 | T212: 2 | W212: Strength: | X212: 1 | Y212: -2 | AB212: Strength: | AC212: 2 | AD212: -2 | AG212: Strength: | AH212: 8 | AI212: 0 | AL212: Strength: | AM212: 9 | AN212: 1 | AQ212: Strength: | AR212: 2 | AS212: -2 | AV212: Strength: | AW212: 4 | AX212: -1 | BA212: Strength: | BB212: 27 | BC212: 7 | BF212: Strength: | BG212: 16 | BH212: 3 | BK212: Strength: | BL212: 14 | BM212: 2 | BP212: Strength: | BQ212: 13 | BR212: 2 | BU212: Strength: | BV212: 14 | BW212: 2 | BZ212: Strength: | CA212: 17 | CB212: 3
C213: Dexterity: | D213: 9 | E213: 1 | H213: Dexterity: | I213: 4 | J213: -1 | M213: Dexterity: | N213: 2 | O213: -2 | R213: Dexterity: | S213: 4 | T213: -1 | W213: Dexterity: | X213: 1 | Y213: -2 | AB213: Dexterity: | AC213: 6 | AD213: 0 | AG213: Dexterity: | AH213: 19 | AI213: 4 | AL213: Dexterity: | AM213: 7 | AN213: 0 | AQ213: Dexterity: | AR213: 3 | AS213: -1 | AV213: Dexterity: | AW213: 9 | AX213: 1 | BA213: Dexterity: | BB213: 3 | BC213: -1 | BF213: Dexterity: | BG213: 7 | BH213: 0 | BK213: Dexterity: | BL213: 8 | BM213: 0 | BP213: Dexterity: | BQ213: 12 | BR213: 2 | BU213: Dexterity: | BV213: 7 | BW213: 0 | BZ213: Dexterity: | CA213: 8 | CB213: 0
C214: Endurance: | D214: 14 | E214: 2 | H214: Endurance: | I214: 2 | J214: -2 | M214: Endurance: | N214: 1 | O214: -2 | R214: Endurance: | S214: 19 | T214: 4 | W214: Endurance: | X214: 1 | Y214: -2 | AB214: Endurance: | AC214: 2 | AD214: -2 | AG214: Endurance: | AH214: 11 | AI214: 1 | AL214: Endurance: | AM214: 19 | AN214: 4 | AQ214: Endurance: | AR214: 2 | AS214: -2 | AV214: Endurance: | AW214: 6 | AX214: 0 | BA214: Endurance: | BB214: 21 | BC214: 5 | BF214: Endurance: | BG214: 20 | BH214: 4 | BK214: Endurance: | BL214: 15 | BM214: 3 | BP214: Endurance: | BQ214: 7 | BR214: 0 | BU214: Endurance: | BV214: 19 | BW214: 4 | BZ214: Endurance: | CA214: 14 | CB214: 2
C215: Inteligence: | D215: 0 | E215: -3 | H215: Inteligence: | I215: 0 | J215: -3 | M215: Inteligence: | N215: 1 | O215: -2 | R215: Inteligence: | S215: 0 | T215: -3 | W215: Inteligence: | X215: 0 | Y215: -3 | AB215: Inteligence: | AC215: 1 | AD215: -2 | AG215: Inteligence: | AH215: 0 | AI215: -3 | AL215: Inteligence: | AM215: 0 | AN215: -3 | AQ215: Inteligence: | AR215: 0 | AS215: -3 | AV215: Inteligence: | AW215: 0 | AX215: -3 | BA215: Inteligence: | BB215: 0 | BC215: -3 | BF215: Inteligence: | BG215: 1 | BH215: -2 | BK215: Inteligence: | BL215: 3 | BM215: -1 | BP215: Inteligence: | BQ215: 0 | BR215: -3 | BU215: Inteligence: | BV215: 0 | BW215: -3 | BZ215: Inteligence: | CA215: 0 | CB215: -3
C216: Instinct: | D216: 9 | E216: 1 | H216: Instinct: | I216: 7 | J216: 0 | M216: Instinct: | N216: 9 | O216: 1 | R216: Instinct: | S216: 5 | T216: -1 | W216: Instinct: | X216: 11 | Y216: 1 | AB216: Instinct: | AC216: 6 | AD216: 0 | AG216: Instinct: | AH216: 4 | AI216: -1 | AL216: Instinct: | AM216: 8 | AN216: 0 | AQ216: Instinct: | AR216: 9 | AS216: 1 | AV216: Instinct: | AW216: 7 | AX216: 0 | BA216: Instinct: | BB216: 8 | BC216: 0 | BF216: Instinct: | BG216: 9 | BH216: 1 | BK216: Instinct: | BL216: 9 | BM216: 1 | BP216: Instinct: | BQ216: 10 | BR216: 1 | BU216: Instinct: | BV216: 5 | BW216: -1 | BZ216: Instinct: | CA216: 8 | CB216: 0
C217: Pack: | D217: 12 | E217: 2 | H217: Pack: | I217: 10 | J217: 1 | M217: Pack: | N217: 12 | O217: 2 | R217: Pack: | S217: 16 | T217: 3 | W217: Pack: | X217: 13 | Y217: 2 | AB217: Pack: | AC217: 7 | AD217: 0 | AG217: Pack: | AH217: 9 | AI217: 1 | AL217: Pack: | AM217: 12 | AN217: 2 | AQ217: Pack: | AR217: 10 | AS217: 1 | AV217: Pack: | AW217: 12 | AX217: 2 | BA217: Pack: | BB217: 9 | BC217: 1 | BF217: Pack: | BG217: 12 | BH217: 2 | BK217: Pack: | BL217: 13 | BM217: 2 | BP217: Pack: | BQ217: 14 | BR217: 2 | BU217: Pack: | BV217: 10 | BW217: 1 | BZ217: Pack: | CA217: 13 | CB217: 2
B219: Skills: | C219: Athletics: | D219: 0 | G219: Skills: | H219: Athletics: | I219: 0 | L219: Skills: | M219: Athletics: | N219: 0 | Q219: Skills: | R219: Athletics: | S219: 1 | V219: Skills: | W219: Athletics: | X219: 1 | AA219: Skills: | AB219: Athletics: | AC219: 3 | AF219: Skills: | AG219: Athletics: | AH219: 2 | AK219: Skills: | AL219: Athletics: | AM219: 1 | AP219: Skills: | AQ219: Athletics: | AR219: 0 | AU219: Skills: | AV219: Athletics: | AW219: 2 | AZ219: Skills: | BA219: Athletics: | BB219: 0 | BE219: Skills: | BF219: Athletics: | BG219: 2 | BJ219: Skills: | BK219: Athletics: | BL219: 0 | BO219: Skills: | BP219: Athletics: | BQ219: 1 | BT219: Skills: | BU219: Athletics: | BV219: 1 | BY219: Skills: | BZ219: Athletics: | CA219: 3
C220: Recon: | D220: 0 | H220: Recon: | I220: 1 | M220: Recon: | N220: 1 | R220: Recon: | S220: 2 | W220: Recon: | X220: 0 | AB220: Recon: | AC220: 0 | AG220: Recon: | AH220: 2 | AL220: Recon: | AM220: 1 | AQ220: Recon: | AR220: 1 | AV220: Recon: | AW220: 2 | BA220: Recon: | BB220: 0 | BF220: Recon: | BG220: 0 | BK220: Recon: | BL220: 1 | BP220: Recon: | BQ220: 1 | BU220: Recon: | BV220: 0 | BZ220: Recon: | CA220: 3
C221: Survival: | D221: 0 | H221: Survival: | I221: 0 | M221: Survival: | N221: 0 | R221: Survival: | S221: 1 | W221: Survival: | X221: 0 | AB221: Survival: | AC221: 1 | AG221: Survival: | AH221: 1 | AL221: Survival: | AM221: 1 | AQ221: Survival: | AR221: 1 | AV221: Survival: | AW221: 1 | BA221: Survival: | BB221: 0 | BF221: Survival: | BG221: 1 | BK221: Survival: | BL221: 0 | BP221: Survival: | BQ221: 0 | BU221: Survival: | BV221: 2 | BZ221: Survival: | CA221: 0
C222: Melee: | D222: 0 | H222: Melee: | M222: Melee: | R222: Melee: | W222: Melee: | AB222: Melee: | AC222: 1 | AG222: Melee: | AL222: Melee: | AQ222: Melee: | AV222: Melee: | BA222: Melee: | BB222: 0 | BF222: Melee: | BG222: 1 | BK222: Melee: | BP222: Melee: | BQ222: 0 | BU222: Melee: | BV222: 2 | BZ222: Melee:
C223: Deception: | H223: Deception: | M223: Deception: | R223: Deception: | W223: Deception: | AB223: Deception: | AG223: Deception: | AL223: Deception: | AQ223: Deception: | AV223: Deception: | BA223: Deception: | BF223: Deception: | BK223: Deception: | BP223: Deception: | BU223: Deception: | BZ223: Deception:
C224: Persuade: | H224: Persuade: | M224: Persuade: | R224: Persuade: | W224: Persuade: | AB224: Persuade: | AG224: Persuade: | AL224: Persuade: | AQ224: Persuade: | AV224: Persuade: | BA224: Persuade: | BF224: Persuade: | BK224: Persuade: | BP224: Persuade: | BU224: Persuade: | BZ224: Persuade:
C225: Stealth: | H225: Stealth: | M225: Stealth: | R225: Stealth: | W225: Stealth: | AB225: Stealth: | AG225: Stealth: | AL225: Stealth: | AQ225: Stealth: | AV225: Stealth: | BA225: Stealth: | BF225: Stealth: | BK225: Stealth: | BP225: Stealth: | BU225: Stealth: | BZ225: Stealth:
B227: Weapons: | C227: Type | D227: Damage | G227: Weapons: | H227: Type | I227: Damage | L227: Weapons: | M227: Type | N227: Damage | Q227: Weapons: | R227: Type | S227: Damage | V227: Weapons: | W227: Type | X227: Damage | AA227: Weapons: | AB227: Type | AC227: Damage | AF227: Weapons: | AG227: Type | AH227: Damage | AK227: Weapons: | AL227: Type | AM227: Damage | AP227: Weapons: | AQ227: Type | AR227: Damage | AU227: Weapons: | AV227: Type | AW227: Damage | AZ227: Weapons: | BA227: Type | BB227: Damage | BE227: Weapons: | BF227: Type | BG227: Damage | BJ227: Weapons: | BK227: Type | BL227: Damage | BO227: Weapons: | BP227: Type | BQ227: Damage | BT227: Weapons: | BU227: Type | BV227: Damage | BY227: Weapons: | BZ227: Type | CA227: Damage
C229: Teeth | D229: 2d6 | H229: None | I229: - | M229: None | N229: - | R229: Teeth | S229: 2d6 | W229: None | X229: - | AB229: Hooves | AC229: 1d6 | AG229: Hooves | AH229: 1d6 | AL229: None | AM229: - | AQ229: None | AR229: - | AV229: None | AW229: - | BA229: Teeth | BB229: 3d6 | BF229: None | BG229: - | BK229: None | BL229: - | BP229: Hooves | BQ229: 2d6 | BU229: None | BV229: - | BZ229: Hooves | CA229: 2d6
B230: Armor: | C230: 7 | G230: Armor: | H230: 9 | L230: Armor: | M230: 4 | Q230: Armor: | R230: 10 | V230: Armor: | W230: 3 | AA230: Armor: | AB230: 11 | AF230: Armor: | AG230: 11 | AK230: Armor: | AL230: 4 | AP230: Armor: | AQ230: 6 | AU230: Armor: | AV230: 9 | AZ230: Armor: | BA230: 7 | BE230: Armor: | BF230: 5 | BJ230: Armor: | BK230: 12 | BO230: Armor: | BP230: 2 | BT230: Armor: | BU230: 9 | BY230: Armor: | BZ230: 9
B232: Number Encountered: | C232: 4d6 | G232: Number Encountered: | H232: 3d6 | L232: Number Encountered: | M232: 4d6 | Q232: Number Encountered: | R232: 5d6 | V232: Number Encountered: | W232: 4d6 | AA232: Number Encountered: | AB232: 2d6 | AF232: Number Encountered: | AG232: 3d6 | AK232: Number Encountered: | AL232: 4d6 | AP232: Number Encountered: | AQ232: 3d6 | AU232: Number Encountered: | AV232: 4d6 | AZ232: Number Encountered: | BA232: 3d6 | BE232: Number Encountered: | BF232: 4d6 | BJ232: Number Encountered: | BK232: 4d6 | BO232: Number Encountered: | BP232: 4d6 | BT232: Number Encountered: | BU232: 3d6 | BY232: Number Encountered: | BZ232: 4d6
B234: Name: | C234: Species LOCATION-8 | G234: Name: | H234: Species LOCATION-18 | L234: Name: | M234: Species LOCATION-28 | Q234: Name: | R234: Species LOCATION-38 | V234: Name: | W234: Species LOCATION-48 | AA234: Name: | AB234: Species LOCATION-58 | AF234: Name: | AG234: Species LOCATION-68 | AK234: Name: | AL234: Species LOCATION-78 | AP234: Name: | AQ234: Species LOCATION-88 | AU234: Name: | AV234: Species LOCATION-98 | AZ234: Name: | BA234: Species LOCATION-108 | BE234: Name: | BF234: Species LOCATION-118 | BJ234: Name: | BK234: Species LOCATION-128 | BO234: Name: | BP234: Species LOCATION-138 | BT234: Name: | BU234: Species LOCATION-148 | BY234: Name: | BZ234: Species LOCATION-158
B235: Average Weight(kg): | C235: 100 | G235: Average Weight(kg): | H235: 200 | L235: Average Weight(kg): | M235: 12 | Q235: Average Weight(kg): | R235: 6 | V235: Average Weight(kg): | W235: 50 | AA235: Average Weight(kg): | AB235: 12 | AF235: Average Weight(kg): | AG235: 100 | AK235: Average Weight(kg): | AL235: 6 | AP235: Average Weight(kg): | AQ235: 1 | AU235: Average Weight(kg): | AV235: 25 | AZ235: Average Weight(kg): | BA235: 5000 | BE235: Average Weight(kg): | BF235: 3200 | BJ235: Average Weight(kg): | BK235: 25 | BO235: Average Weight(kg): | BP235: 100 | BT235: Average Weight(kg): | BU235: 1 | BY235: Average Weight(kg): | BZ235: 1600
B236: Movement: | C236: Walker | G236: Movement: | H236: Walker | L236: Movement: | M236: Walker | Q236: Movement: | R236: Flyer | V236: Movement: | W236: Flyer | AA236: Movement: | AB236: Walker | AF236: Movement: | AG236: Walker | AK236: Movement: | AL236: Walker | AP236: Movement: | AQ236: Flyer | AU236: Movement: | AV236: Walker | AZ236: Movement: | BA236: Walker | BE236: Movement: | BF236: Amphibious | BJ236: Movement: | BK236: Walker | BO236: Movement: | BP236: Swimmer | BT236: Movement: | BU236: Swimmer | BY236: Movement: | BZ236: Swimmer
B237: Type: | C237: Carnivore(Chaser) | G237: Type: | H237: Carnivore(Pouncer) | L237: Type: | M237: Carnivore(Siren) | Q237: Type: | R237: Carnivore(Chaser) | V237: Type: | W237: Carnivore(Chaser) | AA237: Type: | AB237: Carnivore(Chaser) | AF237: Type: | AG237: Carnivore(Trapper) | AK237: Type: | AL237: Carnivore(Trapper) | AP237: Type: | AQ237: Carnivore(Chaser) | AU237: Type: | AV237: Carnivore(Pouncer) | AZ237: Type: | BA237: Carnivore(Trapper) | BE237: Type: | BF237: Carnivore(Chaser) | BJ237: Type: | BK237: Carnivore(Chaser) | BO237: Type: | BP237: Carnivore(Siren) | BT237: Type: | BU237: Carnivore(Chaser) | BY237: Type: | BZ237: Carnivore(Siren)
B239: Stats: | D239: Score | E239: DM | G239: Stats: | I239: Score | J239: DM | L239: Stats: | N239: Score | O239: DM | Q239: Stats: | S239: Score | T239: DM | V239: Stats: | X239: Score | Y239: DM | AA239: Stats: | AC239: Score | AD239: DM | AF239: Stats: | AH239: Score | AI239: DM | AK239: Stats: | AM239: Score | AN239: DM | AP239: Stats: | AR239: Score | AS239: DM | AU239: Stats: | AW239: Score | AX239: DM | AZ239: Stats: | BB239: Score | BC239: DM | BE239: Stats: | BG239: Score | BH239: DM | BJ239: Stats: | BL239: Score | BM239: DM | BO239: Stats: | BQ239: Score | BR239: DM | BT239: Stats: | BV239: Score | BW239: DM | BY239: Stats: | CA239: Score | CB239: DM
C240: Strength: | D240: 13 | E240: 2 | H240: Strength: | I240: 13 | J240: 2 | M240: Strength: | N240: 6 | O240: 0 | R240: Strength: | S240: 2 | T240: -2 | W240: Strength: | X240: 8 | Y240: 0 | AB240: Strength: | AC240: 4 | AD240: -1 | AG240: Strength: | AH240: 9 | AI240: 1 | AL240: Strength: | AM240: 6 | AN240: 0 | AQ240: Strength: | AR240: 1 | AS240: -2 | AV240: Strength: | AW240: 4 | AX240: -1 | BA240: Strength: | BB240: 26 | BC240: 6 | BF240: Strength: | BG240: 23 | BH240: 5 | BK240: Strength: | BL240: 7 | BM240: 0 | BP240: Strength: | BQ240: 11 | BR240: 1 | BU240: Strength: | BV240: 1 | BW240: -2 | BZ240: Strength: | CA240: 24 | CB240: 6
C241: Dexterity: | D241: 10 | E241: 1 | H241: Dexterity: | I241: 12 | J241: 2 | M241: Dexterity: | N241: 5 | O241: -1 | R241: Dexterity: | S241: 11 | T241: 1 | W241: Dexterity: | X241: 20 | Y241: 4 | AB241: Dexterity: | AC241: 13 | AD241: 2 | AG241: Dexterity: | AH241: 14 | AI241: 2 | AL241: Dexterity: | AM241: 8 | AN241: 0 | AQ241: Dexterity: | AR241: 6 | AS241: 0 | AV241: Dexterity: | AW241: 17 | AX241: 3 | BA241: Dexterity: | BB241: 6 | BC241: 0 | BF241: Dexterity: | BG241: 9 | BH241: 1 | BK241: Dexterity: | BL241: 13 | BM241: 2 | BP241: Dexterity: | BQ241: 9 | BR241: 1 | BU241: Dexterity: | BV241: 8 | BW241: 0 | BZ241: Dexterity: | CA241: 4 | CB241: -1
C242: Endurance: | D242: 10 | E242: 1 | H242: Endurance: | I242: 7 | J242: 0 | M242: Endurance: | N242: 6 | O242: 0 | R242: Endurance: | S242: 5 | T242: -1 | W242: Endurance: | X242: 9 | Y242: 1 | AB242: Endurance: | AC242: 5 | AD242: -1 | AG242: Endurance: | AH242: 16 | AI242: 3 | AL242: Endurance: | AM242: 2 | AN242: -2 | AQ242: Endurance: | AR242: 1 | AS242: -2 | AV242: Endurance: | AW242: 6 | AX242: 0 | BA242: Endurance: | BB242: 20 | BC242: 4 | BF242: Endurance: | BG242: 23 | BH242: 5 | BK242: Endurance: | BL242: 6 | BM242: 0 | BP242: Endurance: | BQ242: 10 | BR242: 1 | BU242: Endurance: | BV242: 1 | BW242: -2 | BZ242: Endurance: | CA242: 16 | CB242: 3
C243: Inteligence: | D243: 1 | E243: -2 | H243: Inteligence: | I243: 0 | J243: -3 | M243: Inteligence: | N243: 1 | O243: -2 | R243: Inteligence: | S243: 0 | T243: -3 | W243: Inteligence: | X243: 1 | Y243: -2 | AB243: Inteligence: | AC243: 1 | AD243: -2 | AG243: Inteligence: | AH243: 0 | AI243: -3 | AL243: Inteligence: | AM243: 0 | AN243: -3 | AQ243: Inteligence: | AR243: 3 | AS243: -1 | AV243: Inteligence: | AW243: 3 | AX243: -1 | BA243: Inteligence: | BB243: 0 | BC243: -3 | BF243: Inteligence: | BG243: 0 | BH243: -3 | BK243: Inteligence: | BL243: 1 | BM243: -2 | BP243: Inteligence: | BQ243: 1 | BR243: -2 | BU243: Inteligence: | BV243: 1 | BW243: -2 | BZ243: Inteligence: | CA243: 0 | CB243: -3
... 57 more rows

Sheet Animal Tables
A2: Planetary Quirks | R2: Number Encountered
A3: Roll | B3: Sensory Quirks | C3: Defense Quirk | D3: Nesting Quirk | E3: Locomotion Quirk | F3: Reproduction quirk | G3: Attack Quirk | R3: Pack | S3: Num
A4: 1 | B4: Sees in infrared | C4: Armoured shell | D4: Digs burrows | E4: Six limbs | F4: Lays eggs | G4: Acid spit | R4: 0 | S4: 1
A5: 2 | B5: Multiple eyes | C5: Screeches for aid | D5: Nests in trees | E5: Gasbags | F5: Lays thousands of spawn | G5: Strangling tentacles | R5: 1 | S5: 1d3
A6: 3 | B6: Sensitive cilia or hairs | C6: Reacts to attack with attack | D6: Hides stocks of food | E6: Crawls on webbing | F6: Males gestate young | G6: Primitive tools | R6: 2 | S6: 1d3
A7: 4 | B7: Echolocation | C7: Camouflage | D7: Steals nests | E7: Slime | F7: Multiple sexes | G7: Spiked tail or bill | R7: 3 | S7: 1d6
A8: 5 | B8: Symbiosis with a hunter or pilot animal | C8: Avoids or mitigates attacks | D8: Builds nests from organic material | E8: Hijacks the bodies of other creatures | F8: Young grow inside adult, released on death | G8: Electricity | R8: 4 | S8: 1d6
A9: 6 | B9: Sensitive sense of smell | C9: Inflates | D9: Fortifies nests | E9: A prehensile body part which is not normally prehensile | F9: Can change gender | G9: Poison | R9: 5 | S9: 1d6
R10: 6 | S10: 2d6
R11: 7 | S11: 2d6
A12: Terrain DM Chart | D12: Roll for Creature Movement | J12: Movement Size Modifier | R12: 8 | S12: 2d6
A13: Terrain | B13: Type DM | C13: Size DM | D13: 1 | E13: 2 | F13: 3 | G13: 4 | H13: 5 | I13: 6 | J13: 1 | K13: 2 | L13: 3 | M13: 4 | N13: 5 | O13: 6 | R13: 9 | S13: 3d6
A14: Clear | B14: 3 | C14: 0 | D14: Walker | E14: Walker | F14: Walker | G14: Walker | H14: Walker | I14: Flyer | J14: 0 | K14: 0 | L14: 0 | M14: 0 | N14: 2 | O14: -6 | R14: 10 | S14: 3d6
A15: Plain or Praire | B15: 4 | C15: 0 | D15: Walker | E15: Walker | F15: Walker | G15: Walker | H15: Walker | I15: Flyer | J15: 0 | K15: 0 | L15: 0 | M15: 2 | N15: 4 | O15: -6 | R15: 11 | S15: 3d6
A16: Desert(hot or cold) | B16: 3 | C16: -3 | D16: Walker | E16: Walker | F16: Walker | G16: Walker | H16: Flyer | I16: Flyer | J16: 0 | K16: 0 | L16: 0 | M16: 0 | N16: -4 | O16: -6 | R16: 12 | S16: 4d6
A17: Hills, Foothills | B17: 0 | C17: 0 | D17: Walker | E17: Walker | F17: Walker | G17: Walker | H17: Flyer | I17: Flyer | J17: 0 | K17: 0 | L17: 0 | M17: 2 | N17: -4 | O17: -6 | R17: 13 | S17: 4d6
A18: Mountain | B18: 0 | C18: 0 | D18: Walker | E18: Walker | F18: Walker | G18: Flyer | H18: Flyer | I18: Flyer | J18: 0 | K18: 0 | L18: 0 | M18: -2 | N18: -4 | O18: -6 | R18: 14 | S18: 4d6
A19: Forest | B19: -4 | C19: -4 | D19: Walker | E19: Walker | F19: Walker | G19: Walker | H19: Flyer | I19: Flyer | J19: 0 | K19: 0 | L19: 0 | M19: 0 | N19: -4 | O19: -6 | R19: 15 | S19: 5d6
A20: Woods | B20: -2 | C20: -1 | D20: Walker | E20: Walker | F20: Walker | G20: Walker | H20: Walker | I20: Flyer | J20: 0 | K20: 0 | L20: 0 | M20: 0 | N20: 0 | O20: -6
A21: Jungle | B21: -4 | C21: -3 | D21: Walker | E21: Walker | F21: Walker | G21: Walker | H21: Walker | I21: Flyer | J21: 0 | K21: 0 | L21: 0 | M21: 0 | N21: 2 | O21: -6
A22: Rainforest | B22: -2 | C22: -2 | D22: Walker | E22: Walker | F22: Walker | G22: Walker | H22: Walker | I22: Flyer | J22: 0 | K22: 0 | L22: 0 | M22: 2 | N22: 4 | O22: -6
A23: Rough, Broken | B23: -3 | C23: -3 | D23: Walker | E23: Walker | F23: Walker | G23: Walker | H23: Flyer | I23: Flyer | J23: 0 | K23: 0 | L23: 0 | M23: 2 | N23: -4 | O23: -6
A24: Swamp, Marsh | B24: -2 | C24: 4 | D24: Swimmer | E24: Amphibious | F24: Walker | G24: Walker | H24: Flyer | I24: Flyer | J24: -6 | K24: 2 | L24: 0 | M24: 0 | N24: -4 | O24: -6
A25: Beach, Shore | B25: 3 | C25: 2 | D25: Swimmer | E25: Amphibious | F25: Walker | G25: Walker | H25: Flyer | I25: Flyer | J25: 1 | K25: 2 | L25: 0 | M25: 0 | N25: -4 | O25: -6
A26: Riverbank | B26: 1 | C26: 1 | D26: Swimmer | E26: Amphibious | F26: Walker | G26: Walker | H26: Walker | I26: Flyer | J26: -4 | K26: 0 | L26: 0 | M26: 0 | N26: 0 | O26: -6
A27: Ocean Shallows | B27: 4 | C27: 1 | D27: Swimmer | E27: Swimmer | F27: Swimmer | G27: Swimmer | H27: Flyer | I27: Flyer | J27: 4 | K27: 2 | L27: 0 | M27: 0 | N27: -4 | O27: -6
A28: Open Ocean | B28: 4 | C28: -4 | D28: Swimmer | E28: Swimmer | F28: Swimmer | G28: Swimmer | H28: Flyer | I28: Flyer | J28: 6 | K28: 4 | L28: 2 | M28: 0 | N28: -4 | O28: -6
A29: Deep Ocean | B29: 4 | C29: 2 | D29: Swimmer | E29: Swimmer | F29: Swimmer | G29: Swimmer | H29: Swimmer | I29: Swimmer | J29: 8 | K29: 6 | L29: 4 | M29: 2 | N29: 0 | O29: -2
A32: Rural Encounter Table | E32: Animal Types | K32: Size Table | M32: #d6
A33: Column number | B33: Creature Type | E33: Roll | F33: Herbivore | G33: Omnivore | H33: Carnivore | I33: Scavenger | K33: Roll | L33: Weight(kg) | M33: Str | N33: Dex | O33: End
A34: 5 | B34: Scavenger | E34: 1 | F34: Filter | G34: Gatherer | H34: Pouncer | I34: Carrion-Eater | K34: 1 | L34: 1 | M34: 1 Flat | N34: 1 | O34: 1 Flat
A35: 3 | B35: Omnivore | E35: 2 | F35: Filter | G35: Eater | H35: Siren | I35: Reducer | K35: 2 | L35: 3 | M35: 2 Flat | N35: 1 | O35: 2 Flat
A36: 5 | B36: Scavenger | E36: 3 | F36: Intermittent | G36: Gatherer | H36: Pouncer | I36: Hijacker | K36: 3 | L36: 6 | M36: 1 | N36: 2 | O36: 1
A37: 3 | B37: Omnivore | E37: 4 | F37: Intermittent | G37: Eater | H37: Killer | I37: Carrion-Eater | K37: 4 | L37: 12 | M37: 1 | N37: 2 | O37: 1
A38: 2 | B38: Herbivore | E38: 5 | F38: Intermittent | G38: Gatherer | H38: Trapper | I38: Intimidator | K38: 5 | L38: 25 | M38: 2 | N38: 3 | O38: 2
A39: 2 | B39: Herbivore | E39: 6 | F39: Intermittent | G39: Hunter | H39: Pouncer | I39: Reducer | K39: 6 | L39: 50 | M39: 2 | N39: 4 | O39: 2
A40: 2 | B40: Herbivore | E40: 7 | F40: Grazer | G40: Hunter | H40: Chaser | I40: Carrion-Eater | K40: 7 | L40: 100 | M40: 3 | N40: 3 | O40: 3
A41: 4 | B41: Carnivore | E41: 8 | F41: Grazer | G41: Hunter | H41: Chaser | I41: Reducer | K41: 8 | L41: 200 | M41: 3 | N41: 3 | O41: 3
A42: 4 | B42: Carnivore | E42: 9 | F42: Grazer | G42: Gatherer | H42: Chaser | I42: Hijacker | K42: 9 | L42: 400 | M42: 4 | N42: 2 | O42: 4
A43: 4 | B43: Carnivore | E43: 10 | F43: Grazer | G43: Eater | H43: Killer | I43: Intimidator | J43: hn | K43: 10 | L43: 800 | M43: 4 | N43: 2 | O43: 4
E44: 11 | F44: Grazer | G44: Hunter | H44: Chaser | I44: Reducer | K44: 11 | L44: 1600 | M44: 5 | N44: 2 | O44: 5
E45: 12 | F45: Grazer | G45: Gatherer | H45: Siren | I45: Hijacker | K45: 12 | L45: 3200 | M45: 6 | N45: 1 | O45: 6
E46: 13 | F46: Grazer | G46: Gatherer | H46: Chaser | I46: Intimidator | K46: 13 | L46: 5000 | M46: 7 | N46: 1 | O46: 7
A49: Weapons Table | E49: Armour Table | H49: Damage | K49: Terrain by World
A50: Roll | B50: Weapons | C50: Extra Dice | E50: Roll | F50: Armour | H50: Strength | I50: Damage(#d6) | K50: Terrain | L50: Ag | M50: As | N50: Ba | O50: De | P50: Fl | Q50: Ga | R50: Hi | S50: Ht | T50: IC | U50: In | V50: Lo | W50: Lt | X50: Na | Y50: NI | Z50: Po | AA50: Ri | AB50: Wa | AC50: Va
A51: 1 | B51: None | C51: 0 | E51: 1 | F51: 0 | H51: 10 | I51: 1 | K51: Clear | L51: =TRUE() -> TRUE | M51: =FALSE() -> FALSE | N51: =TRUE() -> TRUE | O51: =TRUE() -> TRUE | P51: =TRUE() -> TRUE | Q51: =TRUE() -> TRUE | R51: =FALSE() -> FALSE | S51: =TRUE() -> TRUE | T51: =FALSE() -> FALSE | U51: =FALSE() -> FALSE | V51: =TRUE() -> TRUE | W51: =TRUE() -> TRUE | X51: =TRUE() -> TRUE | Y51: =TRUE() -> TRUE | Z51: =TRUE() -> TRUE | AA51: =TRUE() -> TRUE | AB51: =FALSE() -> FALSE | AC51: =FALSE() -> FALSE
A52: 2 | B52: Teeth | C52: 0 | E52: 2 | F52: 0 | H52: 20 | I52: 2 | K52: Plain or Praire | L52: =TRUE() -> TRUE | M52: =FALSE() -> FALSE | N52: =TRUE() -> TRUE | O52: =FALSE() -> FALSE | P52: =TRUE() -> TRUE | Q52: =TRUE() -> TRUE | R52: =FALSE() -> FALSE | S52: =TRUE() -> TRUE | T52: =FALSE() -> FALSE | U52: =FALSE() -> FALSE | V52: =TRUE() -> TRUE | W52: =TRUE() -> TRUE | X52: =FALSE() -> FALSE | Y52: =TRUE() -> TRUE | Z52: =TRUE() -> TRUE | AA52: =TRUE() -> TRUE | AB52: =FALSE() -> FALSE | AC52: =FALSE() -> FALSE
A53: 3 | B53: Horns | C53: 0 | E53: 3 | F53: 0 | H53: 30 | I53: 3 | K53: Desert(hot or cold) | L53: =FALSE() -> FALSE | M53: =FALSE() -> FALSE | N53: =TRUE() -> TRUE | O53: =TRUE() -> TRUE | P53: =TRUE() -> TRUE | Q53: =TRUE() -> TRUE | R53: TRUE | S53: =TRUE() -> TRUE | T53: =TRUE() -> TRUE | U53: =TRUE() -> TRUE | V53: =TRUE() -> TRUE | W53: =TRUE() -> TRUE | X53: =TRUE() -> TRUE | Y53: =TRUE() -> TRUE | Z53: =TRUE() -> TRUE | AA53: =TRUE() -> TRUE | AB53: =FALSE() -> FALSE | AC53: =FALSE() -> FALSE
A54: 4 | B54: Hooves | C54: 0 | E54: 4 | F54: 1 | H54: 40 | I54: 4 | K54: Hills, Foothills | L54: =TRUE() -> TRUE | M54: =FALSE() -> FALSE | N54: =TRUE() -> TRUE | O54: =FALSE() -> FALSE | P54: =TRUE() -> TRUE | Q54: =TRUE() -> TRUE | R54: TRUE | S54: =TRUE() -> TRUE | T54: =FALSE() -> FALSE | U54: =FALSE() -> FALSE | V54: =TRUE() -> TRUE | W54: =TRUE() -> TRUE | X54: =TRUE() -> TRUE | Y54: =TRUE() -> TRUE | Z54: =TRUE() -> TRUE | AA54: =TRUE() -> TRUE | AB54: =FALSE() -> FALSE | AC54: =FALSE() -> FALSE
A55: 5 | B55: Hooves and Teeth | C55: 0 | E55: 5 | F55: 1 | H55: 50 | I55: 5 | K55: Mountain | L55: =TRUE() -> TRUE | M55: =FALSE() -> FALSE | N55: =TRUE() -> TRUE | O55: =TRUE() -> TRUE | P55: =TRUE() -> TRUE | Q55: =TRUE() -> TRUE | R55: TRUE | S55: =TRUE() -> TRUE | T55: =FALSE() -> FALSE | U55: =TRUE() -> TRUE | V55: =TRUE() -> TRUE | W55: =TRUE() -> TRUE | X55: =TRUE() -> TRUE | Y55: =TRUE() -> TRUE | Z55: =TRUE() -> TRUE | AA55: =TRUE() -> TRUE | AB55: =FALSE() -> FALSE | AC55: =FALSE() -> FALSE
A56: 6 | B56: Teeth | C56: 0 | E56: 6 | F56: 2 | H56: 60 | I56: 6 | K56: Forest | L56: =TRUE() -> TRUE | M56: =FALSE() -> FALSE | N56: =TRUE() -> TRUE | O56: =FALSE() -> FALSE | P56: =TRUE() -> TRUE | Q56: =TRUE() -> TRUE | R56: =FALSE() -> FALSE | S56: =TRUE() -> TRUE | T56: =FALSE() -> FALSE | U56: =FALSE() -> FALSE | V56: =TRUE() -> TRUE | W56: =TRUE() -> TRUE | X56: =FALSE() -> FALSE | Y56: =TRUE() -> TRUE | Z56: =TRUE() -> TRUE | AA56: =TRUE() -> TRUE | AB56: =FALSE() -> FALSE | AC56: =FALSE() -> FALSE
A57: 7 | B57: Claws | C57: 1 | E57: 7 | F57: 2 | K57: Woods | L57: =TRUE() -> TRUE | M57: =FALSE() -> FALSE | N57: =TRUE() -> TRUE | O57: =FALSE() -> FALSE | P57: =TRUE() -> TRUE | Q57: =TRUE() -> TRUE | R57: =FALSE() -> FALSE | S57: =TRUE() -> TRUE | T57: =FALSE() -> FALSE | U57: =FALSE() -> FALSE | V57: =TRUE() -> TRUE | W57: =TRUE() -> TRUE | X57: =FALSE() -> FALSE | Y57: =TRUE() -> TRUE | Z57: =TRUE() -> TRUE | AA57: =TRUE() -> TRUE | AB57: =FALSE() -> FALSE | AC57: =FALSE() -> FALSE
A58: 8 | B58: Stinger | C58: 1 | E58: 8 | F58: 3 | K58: Jungle | L58: =TRUE() -> TRUE | M58: =FALSE() -> FALSE | N58: =TRUE() -> TRUE | O58: =FALSE() -> FALSE | P58: =TRUE() -> TRUE | Q58: =TRUE() -> TRUE | R58: =FALSE() -> FALSE | S58: =TRUE() -> TRUE | T58: =FALSE() -> FALSE | U58: =FALSE() -> FALSE | V58: =TRUE() -> TRUE | W58: =TRUE() -> TRUE | X58: =FALSE() -> FALSE | Y58: =TRUE() -> TRUE | Z58: =TRUE() -> TRUE | AA58: =TRUE() -> TRUE | AB58: =FALSE() -> FALSE | AC58: =FALSE() -> FALSE
A59: 9 | B59: Thrasher | C59: 1 | E59: 9 | F59: 3 | K59: Rainforest | L59: =TRUE() -> TRUE | M59: =FALSE() -> FALSE | N59: =TRUE() -> TRUE | O59: =FALSE() -> FALSE | P59: =TRUE() -> TRUE | Q59: =TRUE() -> TRUE | R59: =FALSE() -> FALSE | S59: =TRUE() -> TRUE | T59: =FALSE() -> FALSE | U59: =FALSE() -> FALSE | V59: =TRUE() -> TRUE | W59: =TRUE() -> TRUE | X59: =FALSE() -> FALSE | Y59: =TRUE() -> TRUE | Z59: =TRUE() -> TRUE | AA59: =TRUE() -> TRUE | AB59: =FALSE() -> FALSE | AC59: =FALSE() -> FALSE
A60: 10 | B60: Claws and Teeth | C60: 2 | E60: 10 | F60: 4 | K60: Rough, Broken | L60: =TRUE() -> TRUE | M60: =FALSE() -> FALSE | N60: =TRUE() -> TRUE | O60: =TRUE() -> TRUE | P60: =TRUE() -> TRUE | Q60: =TRUE() -> TRUE | R60: TRUE | S60: =TRUE() -> TRUE | T60: =FALSE() -> FALSE | U60: =TRUE() -> TRUE | V60: =TRUE() -> TRUE | W60: =TRUE() -> TRUE | X60: =TRUE() -> TRUE | Y60: =TRUE() -> TRUE | Z60: =TRUE() -> TRUE | AA60: =TRUE() -> TRUE | AB60: =FALSE() -> FALSE | AC60: =FALSE() -> FALSE
A61: 11 | B61: Claws | C61: 2 | E61: 11 | F61: 4 | K61: Swamp, Marsh | L61: =TRUE() -> TRUE | M61: =FALSE() -> FALSE | N61: =TRUE() -> TRUE | O61: =FALSE() -> FALSE | P61: =TRUE() -> TRUE | Q61: =TRUE() -> TRUE | R61: TRUE | S61: =TRUE() -> TRUE | T61: =FALSE() -> FALSE | U61: =FALSE() -> FALSE | V61: =TRUE() -> TRUE | W61: =TRUE() -> TRUE | X61: =FALSE() -> FALSE | Y61: =TRUE() -> TRUE | Z61: =TRUE() -> TRUE | AA61: =TRUE() -> TRUE | AB61: =TRUE() -> TRUE | AC61: =FALSE() -> FALSE
A62: 12 | B62: Teeth | C62: 2 | E62: 12 | F62: 5 | K62: Beach, Shore | L62: =TRUE() -> TRUE | M62: =FALSE() -> FALSE | N62: =TRUE() -> TRUE | O62: =FALSE() -> FALSE | P62: =TRUE() -> TRUE | Q62: =TRUE() -> TRUE | R62: TRUE | S62: =TRUE() -> TRUE | T62: =FALSE() -> FALSE | U62: =FALSE() -> FALSE | V62: =TRUE() -> TRUE | W62: =TRUE() -> TRUE | X62: =FALSE() -> FALSE | Y62: =TRUE() -> TRUE | Z62: =TRUE() -> TRUE | AA62: =TRUE() -> TRUE | AB62: =TRUE() -> TRUE | AC62: =FALSE() -> FALSE
A63: 13 | B63: Thrasher | C63: 2 | E63: 13 | F63: 5 | K63: Riverbank | L63: =TRUE() -> TRUE | M63: =FALSE() -> FALSE | N63: =TRUE() -> TRUE | O63: =FALSE() -> FALSE | P63: =TRUE() -> TRUE | Q63: =TRUE() -> TRUE | R63: TRUE | S63: =TRUE() -> TRUE | T63: =FALSE() -> FALSE | U63: =FALSE() -> FALSE | V63: =TRUE() -> TRUE | W63: =TRUE() -> TRUE | X63: =FALSE() -> FALSE | Y63: =TRUE() -> TRUE | Z63: =TRUE() -> TRUE | AA63: =TRUE() -> TRUE | AB63: =TRUE() -> TRUE | AC63: =FALSE() -> FALSE
K64: Ocean Shallows | L64: =TRUE() -> TRUE | M64: =FALSE() -> FALSE | N64: =TRUE() -> TRUE | O64: =FALSE() -> FALSE | P64: =TRUE() -> TRUE | Q64: =TRUE() -> TRUE | R64: TRUE | S64: =TRUE() -> TRUE | T64: =FALSE() -> FALSE | U64: =FALSE() -> FALSE | V64: =TRUE() -> TRUE | W64: =TRUE() -> TRUE | X64: =TRUE() -> TRUE | Y64: =TRUE() -> TRUE | Z64: =TRUE() -> TRUE | AA64: =TRUE() -> TRUE | AB64: =TRUE() -> TRUE | AC64: =FALSE() -> FALSE
K65: Open Ocean | L65: =TRUE() -> TRUE | M65: =FALSE() -> FALSE | N65: =TRUE() -> TRUE | O65: =FALSE() -> FALSE | P65: =TRUE() -> TRUE | Q65: =TRUE() -> TRUE | R65: TRUE | S65: =TRUE() -> TRUE | T65: =FALSE() -> FALSE | U65: =TRUE() -> TRUE | V65: =TRUE() -> TRUE | W65: =TRUE() -> TRUE | X65: =TRUE() -> TRUE | Y65: =TRUE() -> TRUE | Z65: =TRUE() -> TRUE | AA65: =TRUE() -> TRUE | AB65: =TRUE() -> TRUE | AC65: =FALSE() -> FALSE
K66: Deep Ocean | L66: =TRUE() -> TRUE | M66: =FALSE() -> FALSE | N66: =TRUE() -> TRUE | O66: =FALSE() -> FALSE | P66: =TRUE() -> TRUE | Q66: =TRUE() -> TRUE | R66: TRUE | S66: =TRUE() -> TRUE | T66: =FALSE() -> FALSE | U66: =TRUE() -> TRUE | V66: =TRUE() -> TRUE | W66: =TRUE() -> TRUE | X66: =FALSE() -> FALSE | Y66: =TRUE() -> TRUE | Z66: =TRUE() -> TRUE | AA66: =TRUE() -> TRUE | AB66: =TRUE() -> TRUE | AC66: =FALSE() -> FALSE
A68: Type Stat Modifiers
A69: Type | B69: Str | C69: Dex | D69: End | E69: Int | F69: Inst | G69: Pack | H69: Athletics | I69: Recon | J69: Survival | K69: Melee | L69: Deception | M69: Persuade | N69: Stealth
A70: Carrion-Eater | B70: 0 | C70: 0 | D70: 0 | E70: 0 | F70: 2 | G70: 0 | H70: 0 | I70: 1 | J70: 0 | K70: 0 | L70: 0 | M70: 0 | N70: 0
A71: Chaser | B71: 0 | C71: 4 | D71: 0 | E71: 0 | F71: 2 | G71: 2 | H71: 1 | I71: 0 | J71: 0 | K71: 0 | L71: 0 | M71: 0 | N71: 0
A72: Eater | B72: 0 | C72: 0 | D72: 4 | E72: 0 | F72: 0 | G72: 2 | H72: 0 | I72: 0 | J72: 0 | K72: 0 | L72: 0 | M72: 0 | N72: 0
A73: Filter | B73: 0 | C73: 0 | D73: 4 | E73: 0 | F73: 0 | G73: 0 | H73: 0 | I73: 0 | J73: 0 | K73: 0 | L73: 0 | M73: 0 | N73: 0
A74: Gatherer | B74: 0 | C74: 0 | D74: 0 | E74: 0 | F74: 0 | G74: 2 | H74: 0 | I74: 0 | J74: 0 | K74: 0 | L74: 0 | M74: 0 | N74: 1
A75: Grazer | B75: 0 | C75: 0 | D75: 0 | E75: 0 | F75: 2 | G75: 4 | H75: 0 | I75: 0 | J75: 0 | K75: 0 | L75: 0 | M75: 0 | N75: 0
A76: Hunter | B76: 0 | C76: 0 | D76: 0 | E76: 0 | F76: 2 | G76: 0 | H76: 0 | I76: 0 | J76: 1 | K76: 0 | L76: 0 | M76: 0 | N76: 0
A77: Hijacker | B77: 2 | C77: 0 | D77: 0 | E77: 0 | F77: 0 | G77: 2 | H77: 0 | I77: 0 | J77: 0 | K77: 0 | L77: 0 | M77: 0 | N77: 0
A78: Intimidator | B78: 0 | C78: 0 | D78: 0 | E78: 0 | F78: 0 | G78: 0 | H78: 0 | I78: 0 | J78: 0 | K78: 0 | L78: 0 | M78: 1 | N78: 0
A79: Killer | B79: 4 | C79: 4 | D79: 0 | E79: 0 | F79: 4 | G79: -2 | H79: 0 | I79: 0 | J79: 0 | K79: 1 | L79: 0 | M79: 0 | N79: 0
A80: Intermittent | B80: 0 | C80: 0 | D80: 0 | E80: 0 | F80: 0 | G80: 4 | H80: 0 | I80: 0 | J80: 0 | K80: 0 | L80: 0 | M80: 0 | N80: 0
A81: Pouncer | B81: 0 | C81: 4 | D81: 0 | E81: 0 | F81: 4 | G81: 0 | H81: 1 | I81: 1 | J81: 0 | K81: 0 | L81: 0 | M81: 0 | N81: 1
A82: Reducer | B82: 0 | C82: 0 | D82: 0 | E82: 0 | F82: 0 | G82: 4 | H82: 0 | I82: 0 | J82: 0 | K82: 0 | L82: 0 | M82: 0 | N82: 0
A83: Siren | B83: 0 | C83: 0 | D83: 0 | E83: 0 | F83: 0 | G83: -4 | H83: 0 | I83: 0 | J83: 0 | K83: 0 | L83: 1 | M83: 0 | N83: 0
A84: Trapper | B84: 0 | C84: 0 | D84: 0 | E84: 0 | F84: 0 | G84: -2 | H84: 0 | I84: 0 | J84: 0 | K84: 0 | L84: 0 | M84: 0 | N84: 0

Sheet Trade Tables
B2: Passenger Traffic | F2: Avaliable Passengers | N2: Mail DMs
B3: World Type | C3: Current World | D3: Destination World | F3: Passenger Traffic Value | G3: Low Passages | H3: (minus) | I3: Middle Passages | J3: (minus) | K3: High Passages | L3: (minus) | N3: FTM | O3: DM
B4: Agricultural | C4: 0 | D4: 0 | F4: 0 | G4: 0 | H4: 0 | I4: 0 | J4: 0 | K4: 0 | L4: 0 | N4: -10 | O4: -2
B5: Asteroid | C5: 1 | D5: -1 | F5: 1 | G5: =CEILING(6*RAND(),1)+CEILING(6*RAND(),1) -> 3 | H5: 6 | I5: =CEILING(6*RAND(),1) -> 3 | J5: 2 | K5: 0 | L5: 0 | N5: -9 | O5: -1
B6: Barren | C6: -5 | D6: -5 | F6: 2 | G6: =CEILING(6*RAND(),1)+CEILING(6*RAND(),1) -> 10 | H6: 0 | I6: =CEILING(6*RAND(),1) -> 1 | J6: 0 | K6: =CEILING(6*RAND(),1) -> 1 | L6: =CEILING(6*RAND(),1) -> 3 | N6: -8 | O6: -1
B7: Desert | C7: -1 | D7: -1 | F7: 3 | G7: =CEILING(6*RAND(),1)+CEILING(6*RAND(),1) -> 7 | H7: 0 | I7: =CEILING(6*RAND(),1)+CEILING(6*RAND(),1) -> 7 | J7: =CEILING(6*RAND(),1) -> 2 | K7: =CEILING(6*RAND(),1)+CEILING(6*RAND(),1) -> 9 | L7: =CEILING(6*RAND(),1)+CEILING(6*RAND(),1) -> 9 | N7: -7 | O7: -1
B8: Fluid Oceans | C8: 0 | D8: 0 | F8: 4 | G8: =CEILING(6*RAND(),1)+CEILING(6*RAND(),1)+CEILING(6*RAND(),1) -> 15 | H8: =CEILING(6*RAND(),1) -> 6 | I8: =CEILING(6*RAND(),1)+CEILING(6*RAND(),1) -> 9 | J8: =CEILING(6*RAND(),1) -> 4 | K8: =CEILING(6*RAND(),1)+CEILING(6*RAND(),1) -> 7 | L8: =CEILING(6*RAND(),1) -> 4 | N8: -6 | O8: -1
B9: Garden | C9: 2 | D9: 2 | F9: 5 | G9: =CEILING(6*RAND(),1)+CEILING(6*RAND(),1)+CEILING(6*RAND(),1) -> 9 | H9: =CEILING(6*RAND(),1) -> 1 | I9: =CEILING(6*RAND(),1)+CEILING(6*RAND(),1)+CEILING(6*RAND(),1) -> 7 | J9: =CEILING(6*RAND(),1)+CEILING(6*RAND(),1) -> 8 | K9: =CEILING(6*RAND(),1)+CEILING(6*RAND(),1) -> 2 | L9: =CEILING(6*RAND(),1) -> 1 | N9: -5 | O9: -1
B10: High Population | C10: 4 | D10: 4 | F10: 6 | G10: =CEILING(6*RAND(),1)+CEILING(6*RAND(),1)+CEILING(6*RAND(),1) -> 10 | H10: 0 | I10: 7 | J10: =CEILING(6*RAND(),1)+CEILING(6*RAND(),1) -> 8 | K10: =CEILING(6*RAND(),1)+CEILING(6*RAND(),1)+CEILING(6*RAND(),1) -> 5 | L10: =CEILING(6*RAND(),1)+CEILING(6*RAND(),1) -> 10 | N10: -4 | O10: 0
B11: Ice-Capped | C11: 1 | D11: -1 | F11: 7 | G11: =CEILING(6*RAND(),1)+CEILING(6*RAND(),1)+CEILING(6*RAND(),1) -> 11 | H11: 0 | I11: 13 | J11: =CEILING(6*RAND(),1) -> 1 | K11: 13 | L11: =CEILING(6*RAND(),1)+CEILING(6*RAND(),1) -> 11 | N11: -3 | O11: 0
B12: Industrial | C12: 2 | D12: 1 | F12: 8 | G12: =CEILING(6*RAND(),1)+CEILING(6*RAND(),1)+CEILING(6*RAND(),1)+CEILING(6*RAND(),1) -> 14 | H12: 0 | I12: 15 | J12: =CEILING(6*RAND(),1) -> 3 | K12: 7 | L12: =CEILING(6*RAND(),1) -> 1 | N12: -2 | O12: 0
B13: Low Population | C13: -4 | D13: -4 | F13: 9 | G13: =CEILING(6*RAND(),1)+CEILING(6*RAND(),1)+CEILING(6*RAND(),1)+CEILING(6*RAND(),1) -> 12 | H13: 0 | I13: 7 | J13: 0 | K13: 9 | L13: =CEILING(6*RAND(),1) -> 3 | N13: -1 | O13: 0
B14: Non-Agricultural | C14: 0 | D14: 0 | F14: 10 | G14: =CEILING(6*RAND(),1)+CEILING(6*RAND(),1)+CEILING(6*RAND(),1)+CEILING(6*RAND(),1)+CEILING(6*RAND(),1) -> 18 | H14: 0 | I14: 11 | J14: 0 | K14: 10 | L14: =CEILING(6*RAND(),1) -> 6 | N14: 0 | O14: 0
B15: Non-Industrial | C15: 0 | D15: -1 | F15: 11 | G15: =CEILING(6*RAND(),1)+CEILING(6*RAND(),1)+CEILING(6*RAND(),1)+CEILING(6*RAND(),1)+CEILING(6*RAND(),1) -> 16 | H15: 0 | I15: =CEILING(6*RAND(),1)+CEILING(6*RAND(),1)+CEILING(6*RAND(),1)+CEILING(6*RAND(),1) -> 17 | J15: 0 | K15: 11 | L15: 0 | N15: 1 | O15: 0
B16: Poor | C16: -2 | D16: -1 | F16: 12 | G16: =CEILING(6*RAND(),1)+CEILING(6*RAND(),1)+CEILING(6*RAND(),1)+CEILING(6*RAND(),1)+CEILING(6*RAND(),1)+CEILING(6*RAND(),1) -> 22 | H16: 0 | I16: =CEILING(6*RAND(),1)+CEILING(6*RAND(),1)+CEILING(6*RAND(),1)+CEILING(6*RAND(),1) -> 12 | J16: 0 | K16: 7 | L16: 0 | N16: 2 | O16: 0
B17: Rich | C17: -1 | D17: 2 | F17: 13 | G17: =CEILING(6*RAND(),1)+CEILING(6*RAND(),1)+CEILING(6*RAND(),1)+CEILING(6*RAND(),1)+CEILING(6*RAND(),1)+CEILING(6*RAND(),1) -> 23 | H17: 0 | I17: =CEILING(6*RAND(),1)+CEILING(6*RAND(),1)+CEILING(6*RAND(),1)+CEILING(6*RAND(),1) -> 13 | J17: 0 | K17: =CEILING(6*RAND(),1)+CEILING(6*RAND(),1)+CEILING(6*RAND(),1)+CEILING(6*RAND(),1) -> 19 | L17: 0 | N17: 3 | O17: 0
B18: Water World | C18: 0 | D18: 0 | F18: 14 | G18: =CEILING(6*RAND(),1)+CEILING(6*RAND(),1)+CEILING(6*RAND(),1)+CEILING(6*RAND(),1)+CEILING(6*RAND(),1)+CEILING(6*RAND(),1)+CEILING(6*RAND(),1) -> 28 | H18: 0 | I18: =CEILING(6*RAND(),1)+CEILING(6*RAND(),1)+CEILING(6*RAND(),1)+CEILING(6*RAND(),1)+CEILING(6*RAND(),1) -> 12 | J18: 0 | K18: =CEILING(6*RAND(),1)+CEILING(6*RAND(),1)+CEILING(6*RAND(),1)+CEILING(6*RAND(),1) -> 15 | L18: 0 | N18: 4 | O18: 0
B19: Amber Zone | C19: 2 | D19: -2 | F19: 15 | G19: =CEILING(6*RAND(),1)+CEILING(6*RAND(),1)+CEILING(6*RAND(),1)+CEILING(6*RAND(),1)+CEILING(6*RAND(),1)+CEILING(6*RAND(),1)+CEILING(6*RAND(),1)+CEILING(6*RAND(),1) -> 28 | H19: 0 | I19: =CEILING(6*RAND(),1)+CEILING(6*RAND(),1)+CEILING(6*RAND(),1)+CEILING(6*RAND(),1)+CEILING(6*RAND(),1) -> 20 | J19: 0 | K19: =CEILING(6*RAND(),1)+CEILING(6*RAND(),1)+CEILING(6*RAND(),1)+CEILING(6*RAND(),1) -> 9 | L19: 0 | N19: 5 | O19: 1
B20: Red Zone | C20: 4 | D20: -4 | F20: 16 | G20: =CEILING(6*RAND(),1)+CEILING(6*RAND(),1)+CEILING(6*RAND(),1)+CEILING(6*RAND(),1)+CEILING(6*RAND(),1)+CEILING(6*RAND(),1)+CEILING(6*RAND(),1)+CEILING(6*RAND(),1)+CEILING(6*RAND(),1) -> 40 | H20: 0 | I20: =CEILING(6*RAND(),1)+CEILING(6*RAND(),1)+CEILING(6*RAND(),1)+CEILING(6*RAND(),1)+CEILING(6*RAND(),1)+CEILING(6*RAND(),1) -> 22 | J20: 0 | K20: =CEILING(6*RAND(),1)+CEILING(6*RAND(),1)+CEILING(6*RAND(),1)+CEILING(6*RAND(),1)+CEILING(6*RAND(),1) -> 20 | L20: 0 | N20: 6 | O20: 1
B21: No Classification | C21: 0 | D21: 0 | N21: 7 | O21: 1
N22: 8 | O22: 1
N23: 9 | O23: 1
B24: Freight Traffic | F24: Avaliable Freight Lots | N24: 10 | O24: 2
B25: World Type | C25: Current World | D25: Destination World | F25: Freight Traffic Value | G25: Incidental | H25: (plus/minus) | I25: Minor | J25: (plus/minus) | K25: Major | L25: (plus/minus)
B26: Agricultural | C26: 2 | D26: 1 | F26: 0 | G26: 0 | H26: 0 | I26: 0 | J26: 0 | K26: 0 | L26: 0
B27: Asteroid | C27: -3 | D27: 1 | F27: 1 | G27: 0 | H27: 0 | I27: =CEILING(6*RAND(),1) -> 1 | J27: -4 | K27: =CEILING(6*RAND(),1) -> 3 | L27: -4
B28: Barren | C28: -999 | D28: -5 | F28: 2 | G28: 0 | H28: 0 | I28: 5 | J28: -1 | K28: 3 | L28: -2
B29: Desert | C29: -3 | D29: 0 | F29: 3 | G29: 0 | H29: 0 | I29: 3 | J29: 0 | K29: 1 | L29: -1
B30: Fluid Oceans | C30: -3 | D30: 0 | F30: 4 | G30: 0 | H30: 0 | I30: 1 | J30: 1 | K30: 5 | L30: 0
B31: Garden | C31: 2 | D31: 1 | F31: 5 | G31: 0 | H31: 0 | I31: 5 | J31: 2 | K31: 6 | L31: 1
B32: High Population | C32: 2 | D32: 2 | F32: 6 | G32: 0 | H32: 0 | I32: 2 | J32: 3 | K32: 4 | L32: 2
B33: Ice-Capped | C33: -3 | D33: 0 | F33: 7 | G33: 0 | H33: 0 | I33: 5 | J33: 4 | K33: 1 | L33: 3
B34: Industrial | C34: 3 | D34: 2 | F34: 8 | G34: 0 | H34: 0 | I34: 3 | J34: 5 | K34: 2 | L34: 4
B35: Low Population | C35: -5 | D35: -5 | F35: 9 | G35: =CEILING(6*RAND(),1) -> 3 | H35: -2 | I35: 4 | J35: 6 | K35: 4 | L35: 5
B36: Non-Agricultural | C36: -3 | D36: 1 | F36: 10 | G36: 6 | H36: 0 | I36: 4 | J36: 7 | K36: 3 | L36: 6
B37: Non-Industrial | C37: -3 | D37: 1 | F37: 11 | G37: 2 | H37: 1 | I37: 2 | J37: 8 | K37: 2 | L37: 7
B38: Poor | C38: -3 | D38: -3 | F38: 12 | G38: 4 | H38: 2 | I38: 5 | J38: 9 | K38: 5 | L38: 8
B39: Rich | C39: 2 | D39: 2 | F39: 13 | G39: 6 | H39: 3 | I39: 2 | J39: 10 | K39: 1 | L39: 9
B40: Water World | C40: -3 | D40: 0 | F40: 14 | G40: 4 | H40: 4 | I40: 4 | J40: 12 | K40: 4 | L40: 10
B41: Amber Zone | C41: 5 | D41: -5 | F41: 15 | G41: 3 | H41: 5 | I41: 3 | J41: 14 | K41: 4 | L41: 11
B42: Red Zone | C42: -5 | D42: -999 | F42: 16 | G42: 4 | H42: 6 | I42: 1 | J42: 16 | K42: 3 | L42: 12
B43: No Classification | C43: 0 | D43: 0
B46: Trade Goods | F46: Trade Goods by World Type
B47: Roll | C47: Type | D47: Tons(1d6 x #) | F47: World Type | G47: Basic Electronics | H47: Basic Machine Parts | I47: Basic Manufactured Goods | J47: Basic Raw Materials | K47: Basic Consumables | L47: Basic Ore | M47: Advanced Electronics | N47: Advanced Machine Parts | O47: Advanced Manufactured Goods | P47: Advanced Weapons | Q47: Advanced Vehicles | R47: Biochemicals | S47: Crystals and Gems | T47: Cybernetices | U47: Live Animals | V47: Luxury Consumables | W47: Luxury Goods | X47: Medicals Supplies | Y47: Petrochemicals | Z47: Pharmaceuticals | AA47: Polymers | AB47: Precious Metals | AC47: Radioactives | AD47: Robots | AE47: Spices | AF47: Textiles | AG47: Uncommon Ore | AH47: Uncommon Raw Materials | AI47: Wood | AJ47: Vehicles | AK47: Illegal Biochemicals | AL47: Illegal Cybernetics | AM47: Illegal Drugs | AN47: Illegal Luxuries | AO47: Illegal Weapons | AP47: Exotics
B48: 11 | C48: Basic Electronics | D48: 10 | F48: Agricultural | G48: 1 | H48: 1 | I48: 1 | J48: 1 | K48: 1 | L48: 1 | M48: 0 | N48: 0 | O48: 0 | P48: 0 | Q48: 0 | R48: 1 | S48: 0 | T48: 0 | U48: 1 | V48: 1 | W48: 0 | X48: 0 | Y48: 0 | Z48: 0 | AA48: 0 | AB48: 0 | AC48: 0 | AD48: 0 | AE48: 0 | AF48: 1 | AG48: 0 | AH48: 1 | AI48: 1 | AJ48: 0 | AK48: 1 | AL48: 0 | AM48: 0 | AN48: 1 | AO48: 0 | AP48: 0
B49: 12 | C49: Basic Machine Parts | D49: 10 | F49: Asteroid | G49: 1 | H49: 1 | I49: 1 | J49: 1 | K49: 1 | L49: 1 | M49: 0 | N49: 0 | O49: 0 | P49: 0 | Q49: 0 | R49: 0 | S49: 1 | T49: 0 | U49: 0 | V49: 0 | W49: 0 | X49: 0 | Y49: 0 | Z49: 1 | AA49: 0 | AB49: 1 | AC49: 1 | AD49: 0 | AE49: 0 | AF49: 0 | AG49: 1 | AH49: 0 | AI49: 0 | AJ49: 0 | AK49: 0 | AL49: 0 | AM49: 1 | AN49: 0 | AO49: 0 | AP49: 0
B50: 13 | C50: Basic Manufactured Goods | D50: 10 | F50: Desert | G50: 1 | H50: 1 | I50: 1 | J50: 1 | K50: 1 | L50: 1 | M50: 0 | N50: 0 | O50: 0 | P50: 0 | Q50: 0 | R50: 0 | S50: 1 | T50: 0 | U50: 0 | V50: 0 | W50: 0 | X50: 0 | Y50: 1 | Z50: 1 | AA50: 0 | AB50: 1 | AC50: 1 | AD50: 0 | AE50: 1 | AF50: 0 | AG50: 0 | AH50: 1 | AI50: 0 | AJ50: 0 | AK50: 0 | AL50: 0 | AM50: 1 | AN50: 1 | AO50: 0 | AP50: 0
B51: 14 | C51: Basic Raw Materials | D51: 10 | F51: Fluid Oceans | G51: 1 | H51: 1 | I51: 1 | J51: 1 | K51: 1 | L51: 1 | M51: 0 | N51: 0 | O51: 0 | P51: 0 | Q51: 0 | R51: 0 | S51: 0 | T51: 0 | U51: 0 | V51: 0 | W51: 0 | X51: 0 | Y51: 1 | Z51: 0 | AA51: 0 | AB51: 1 | AC51: 0 | AD51: 0 | AE51: 0 | AF51: 0 | AG51: 0 | AH51: 0 | AI51: 0 | AJ51: 0 | AK51: 0 | AL51: 0 | AM51: 0 | AN51: 0 | AO51: 0 | AP51: 0
B52: 15 | C52: Basic Consumables | D52: 10 | F52: Garden | G52: 1 | H52: 1 | I52: 1 | J52: 1 | K52: 1 | L52: 1 | M52: 0 | N52: 0 | O52: 0 | P52: 0 | Q52: 0 | R52: 0 | S52: 0 | T52: 0 | U52: 1 | V52: 1 | W52: 0 | X52: 0 | Y52: 0 | Z52: 0 | AA52: 0 | AB52: 0 | AC52: 0 | AD52: 0 | AE52: 1 | AF52: 0 | AG52: 0 | AH52: 0 | AI52: 1 | AJ52: 0 | AK52: 0 | AL52: 0 | AM52: 0 | AN52: 0 | AO52: 0 | AP52: 0
B53: 16 | C53: Basic Ore | D53: 10 | F53: High Population | G53: 1 | H53: 1 | I53: 1 | J53: 1 | K53: 1 | L53: 1 | M53: 0 | N53: 0 | O53: 0 | P53: 0 | Q53: 0 | R53: 0 | S53: 0 | T53: 0 | U53: 0 | V53: 0 | W53: 1 | X53: 1 | Y53: 0 | Z53: 1 | AA53: 0 | AB53: 0 | AC53: 0 | AD53: 0 | AE53: 0 | AF53: 0 | AG53: 0 | AH53: 0 | AI53: 0 | AJ53: 0 | AK53: 0 | AL53: 0 | AM53: 1 | AN53: 0 | AO53: 0 | AP53: 0
B54: 21 | C54: Advanced Electronics | D54: 5 | F54: High Technology | G54: 1 | H54: 1 | I54: 1 | J54: 1 | K54: 1 | L54: 1 | M54: 1 | N54: 1 | O54: 1 | P54: 1 | Q54: 1 | R54: 0 | S54: 0 | T54: 1 | U54: 0 | V54: 0 | W54: 0 | X54: 1 | Y54: 0 | Z54: 0 | AA54: 0 | AB54: 0 | AC54: 0 | AD54: 1 | AE54: 0 | AF54: 0 | AG54: 0 | AH54: 0 | AI54: 0 | AJ54: 1 | AK54: 0 | AL54: 0 | AM54: 0 | AN54: 0 | AO54: 1 | AP54: 0
B55: 22 | C55: Advanced Machine Parts | D55: 5 | F55: Ice Capped | G55: 1 | H55: 1 | I55: 1 | J55: 1 | K55: 1 | L55: 1 | M55: 0 | N55: 0 | O55: 0 | P55: 0 | Q55: 0 | R55: 0 | S55: 1 | T55: 0 | U55: 0 | V55: 0 | W55: 0 | X55: 0 | Y55: 1 | Z55: 0 | AA55: 0 | AB55: 1 | AC55: 0 | AD55: 0 | AE55: 0 | AF55: 0 | AG55: 1 | AH55: 0 | AI55: 0 | AJ55: 0 | AK55: 0 | AL55: 0 | AM55: 0 | AN55: 0 | AO55: 0 | AP55: 0
B56: 23 | C56: Advanced Manufactured Goods | D56: 5 | F56: Industrial | G56: 1 | H56: 1 | I56: 1 | J56: 1 | K56: 1 | L56: 1 | M56: 1 | N56: 1 | O56: 1 | P56: 1 | Q56: 1 | R56: 0 | S56: 0 | T56: 0 | U56: 0 | V56: 0 | W56: 0 | X56: 0 | Y56: 0 | Z56: 0 | AA56: 1 | AB56: 0 | AC56: 0 | AD56: 1 | AE56: 0 | AF56: 0 | AG56: 0 | AH56: 0 | AI56: 0 | AJ56: 1 | AK56: 0 | AL56: 0 | AM56: 0 | AN56: 0 | AO56: 1 | AP56: 0
B57: 24 | C57: Advanced Weapons | D57: 5 | F57: Low Population | G57: 1 | H57: 1 | I57: 1 | J57: 1 | K57: 1 | L57: 1 | M57: 0 | N57: 0 | O57: 0 | P57: 0 | Q57: 0 | R57: 0 | S57: 0 | T57: 0 | U57: 0 | V57: 0 | W57: 0 | X57: 0 | Y57: 0 | Z57: 0 | AA57: 0 | AB57: 0 | AC57: 1 | AD57: 0 | AE57: 0 | AF57: 0 | AG57: 0 | AH57: 0 | AI57: 0 | AJ57: 0 | AK57: 0 | AL57: 0 | AM57: 0 | AN57: 0 | AO57: 0 | AP57: 0
B58: 25 | C58: Advanced Vehicles | D58: 5 | F58: Non-Industrial | G58: 1 | H58: 1 | I58: 1 | J58: 1 | K58: 1 | L58: 1 | M58: 0 | N58: 0 | O58: 0 | P58: 0 | Q58: 0 | R58: 0 | S58: 0 | T58: 0 | U58: 0 | V58: 0 | W58: 0 | X58: 0 | Y58: 0 | Z58: 0 | AA58: 0 | AB58: 0 | AC58: 0 | AD58: 0 | AE58: 0 | AF58: 1 | AG58: 0 | AH58: 0 | AI58: 0 | AJ58: 0 | AK58: 0 | AL58: 0 | AM58: 0 | AN58: 0 | AO58: 0 | AP58: 0
B59: 26 | C59: Biochemicals | D59: 5 | F59: Water World | G59: 1 | H59: 1 | I59: 1 | J59: 1 | K59: 1 | L59: 1 | M59: 0 | N59: 0 | O59: 0 | P59: 0 | Q59: 0 | R59: 1 | S59: 0 | T59: 0 | U59: 0 | V59: 1 | W59: 0 | X59: 0 | Y59: 1 | Z59: 1 | AA59: 0 | AB59: 0 | AC59: 0 | AD59: 0 | AE59: 1 | AF59: 0 | AG59: 0 | AH59: 1 | AI59: 0 | AJ59: 0 | AK59: 1 | AL59: 0 | AM59: 1 | AN59: 1 | AO59: 0 | AP59: 0
B60: 31 | C60: Crystals and Gems | D60: 5
B61: 32 | C61: Cybernetices | D61: 1
B62: 33 | C62: Live Animals | D62: 10 | F62: Trade Codes | G62: low | H62: high | I62: low | J62: high | K62: low | L62: high | M62: low | N62: high | O62: low | P62: high | Q62: low | R62: high | S62: low | T62: high
B63: 34 | C63: Luxury Consumables | D63: 10 | F63: Code | G63: Planet Size | I63: Atmosphere | K63: Hydro | M63: Population | O63: Government | Q63: Law Level | S63: Techlevel
B64: 35 | C64: Luxury Goods | D64: 1 | F64: Ag | G64: 0 | H64: 15 | I64: 4 | J64: 9 | K64: 4 | L64: 8 | M64: 5 | N64: 7 | O64: 0 | P64: 15 | Q64: 0 | R64: 15 | S64: 0 | T64: 15
B65: 36 | C65: Medicals Supplies | D65: 5 | F65: As | G65: 0 | H65: 0 | I65: 0 | J65: 0 | K65: 0 | L65: 0 | M65: 0 | N65: 15 | O65: 0 | P65: 15 | Q65: 0 | R65: 15 | S65: 0 | T65: 15
B66: 41 | C66: Petrochemicals | D66: 10 | F66: Ba | G66: 0 | H66: 15 | I66: 0 | M66: 0 | N66: 0 | O66: 0 | P66: 0 | Q66: 0 | R66: 0 | S66: 0 | T66: 15
B67: 42 | C67: Pharmaceuticals | D67: 1 | F67: De | G67: 0 | H67: 15 | I67: 2 | J67: 15 | K67: 0 | L67: 0 | M67: 0 | N67: 15 | O67: 0 | P67: 15 | Q67: 0 | R67: 15 | S67: 0 | T67: 15
B68: 43 | C68: Polymers | D68: 10 | F68: Fl | G68: 0 | H68: 15 | I68: 10 | J68: 15 | K68: 1 | L68: 15 | M68: 0 | N68: 15 | O68: 0 | P68: 15 | Q68: 0 | R68: 15 | S68: 0 | T68: 15
B69: 44 | C69: Precious Metals | D69: 1 | F69: Ga | G69: 5 | H69: 15 | I69: 4 | J69: 9 | K69: 4 | L69: 8 | M69: 0 | N69: 15 | O69: 0 | P69: 15 | Q69: 0 | R69: 15 | S69: 0 | T69: 15
B70: 45 | C70: Radioactives | D70: 1 | F70: Hi | G70: 0 | H70: 15 | I70: 0 | J70: 15 | K70: 0 | L70: 15 | M70: 9 | N70: 15 | O70: 0 | P70: 15 | Q70: 0 | R70: 15 | S70: 0 | T70: 15
B71: 46 | C71: Robots | D71: 5 | F71: Ht | G71: 0 | H71: 15 | I71: 0 | J71: 15 | K71: 0 | L71: 15 | M71: 0 | N71: 15 | O71: 0 | P71: 15 | Q71: 0 | R71: 15 | S71: 12 | T71: 15
B72: 51 | C72: Spices | D72: 5 | F72: IC | G72: 0 | H72: 15 | I72: 0 | J72: 1 | K72: 1 | L72: 15 | M72: 0 | N72: 15 | O72: 0 | P72: 15 | Q72: 0 | R72: 15 | S72: 0 | T72: 15
B73: 52 | C73: Textiles | D73: 10 | F73: In | G73: 0 | H73: 15 | I73: 0 | J73: 2 | K73: 0 | L73: 15 | M73: 9 | N73: 15 | O73: 0 | P73: 15 | Q73: 0 | R73: 15 | S73: 0 | T73: 15
B74: 53 | C74: Uncommon Ore | D74: 10 | F74: Lo | G74: 0 | H74: 15 | I74: 0 | J74: 15 | K74: 0 | L74: 15 | M74: 1 | N74: 3 | O74: 0 | P74: 15 | Q74: 0 | R74: 15 | S74: 0 | T74: 15
B75: 54 | C75: Uncommon Raw Materials | D75: 10 | F75: Lt | G75: 0 | H75: 15 | I75: 0 | J75: 15 | K75: 0 | L75: 15 | M75: 0 | N75: 15 | O75: 0 | P75: 15 | Q75: 0 | R75: 15 | S75: 0 | T75: 5
B76: 55 | C76: Wood | D76: 10 | F76: Na | G76: 0 | H76: 15 | I76: 0 | J76: 3 | K76: 0 | L76: 3 | M76: 6 | N76: 15 | O76: 0 | P76: 15 | Q76: 0 | R76: 15 | S76: 0 | T76: 15
B77: 56 | C77: Vehicles | D77: 10 | F77: NI | G77: 0 | H77: 15 | I77: 0 | J77: 15 | K77: 0 | L77: 15 | M77: 4 | N77: 6 | O77: 0 | P77: 15 | Q77: 0 | R77: 15 | S77: 0 | T77: 15
B78: 61 | C78: Illegal Biochemicals | D78: 5 | F78: Po | G78: 0 | H78: 15 | I78: 2 | J78: 5 | K78: 0 | L78: 3 | M78: 0 | N78: 15 | O78: 0 | P78: 15 | Q78: 0 | R78: 15 | S78: 0 | T78: 15
B79: 62 | C79: Illegal Cybernetics | D79: 1 | F79: Ri | G79: 0 | H79: 15 | I79: 6 | J79: 8 | K79: 0 | M79: 6 | N79: 8 | O79: 0 | P79: 15 | Q79: 0 | R79: 15 | S79: 0 | T79: 15
B80: 63 | C80: Illegal Drugs | D80: 1 | F80: Wa | G80: 0 | H80: 15 | I80: 0 | J80: 15 | K80: 10 | L80: 10 | M80: 0 | N80: 15 | O80: 0 | P80: 15 | Q80: 0 | R80: 15 | S80: 0 | T80: 15
B81: 64 | C81: Illegal Luxuries | D81: 1 | F81: Va | G81: 0 | H81: 15 | I81: 0 | J81: 0 | K81: 0 | L81: 15 | M81: 0 | N81: 15 | O81: 0 | P81: 15 | Q81: 0 | R81: 15 | S81: 0 | T81: 15
B82: 65 | C82: Illegal Weapons | D82: 5
B83: 66 | C83: Exotics | D83: 0
B86: Passengers
B87: Roll | C87: Passenger
B88: 11 | C88: Refugee - Political
B89: 12 | C89: Refugee - Economic
B90: 13 | C90: Starting a new life offworld
B91: 14 | C91: Mercenary
B92: 15 | C92: Spy
B93: 16 | C93: Corporate executive
B94: 21 | C94: Out to see the Universe
B95: 22 | C95: Tourist
B96: 23 | C96: Wide-eyed yokel
B97: 24 | C97: Adventurer
B98: 25 | C98: Explorer
B99: 26 | C99: Claustrophobic
B100: 31 | C100: Expectant mother
B101: 32 | C101: Wants to stowaway or join the crew
B102: 33 | C102: Possesses something dangerous or illegal
B103: 34 | C103: Causes Trouble
B104: 35 | C104: Unusually pretty or handsome
B105: 36 | C105: Engineer
B106: 41 | C106: Ex-Scout
B107: 42 | C107: Wanderer
B108: 43 | C108: Theif or other Criminal
B109: 44 | C109: Scientist
B110: 45 | C110: Journalist or researcher
B111: 46 | C111: Entertainer
B112: 51 | C112: Gambler
B113: 52 | C113: Rich noble - complains a lot
B114: 53 | C114: Rich noble - eccentric
B115: 54 | C115: Rich noble - raconteur
B116: 55 | C116: Diplomat on a mission
B117: 56 | C117: Agent on a mission
B118: 61 | C118: Patron
B119: 62 | C119: Alien
B120: 63 | C120: Bounty Hunter
B121: 64 | C121: On the run
B122: 65 | C122: Wants to be on board the PC's ship for some reason
B123: 66 | C123: Hijacker or pirate agent

Sheet World Tables
B2: Size Table | F2: Atmosphere Table
B3: Digit | C3: World Size (km) | D3: Surface Gravity | F3: Digit | G3: Atmosphere | H3: Pressure (Low) | I3: Pressure(High) | J3: Survival Gear Required
B4: 0 | C4: 800 | D4: 0 | F4: 0 | G4: None | H4: 0 | I4: 0 | J4: Vacc Suit
B5: 1 | C5: 1600 | D5: 0.05 | F5: 1 | G5: Trace | H5: 0.001 | I5: 0.09 | J5: Vacc Suit
B6: 2 | C6: 3200 | D6: 0.15 | F6: 2 | G6: Very Thin, Tainted | H6: 0.1 | I6: 0.42 | J6: Respirator, Filter
B7: 3 | C7: 4800 | D7: 0.25 | F7: 3 | G7: Very Thin | H7: 0.1 | I7: 0.42 | J7: Respirator
B8: 4 | C8: 6400 | D8: 0.35 | F8: 4 | G8: Thin, Tainted | H8: 0.43 | I8: 0.7 | J8: Filter
B9: 5 | C9: 8000 | D9: 0.45 | F9: 5 | G9: Thin | H9: 0.43 | I9: 0.7
B10: 6 | C10: 9600 | D10: 0.7 | F10: 6 | G10: Standard | H10: 0.71 | I10: 1.49
B11: 7 | C11: 11200 | D11: 0.9 | F11: 7 | G11: Standard, Tainted | H11: 0.71 | I11: 1.49 | J11: Filter
B12: 8 | C12: 12800 | D12: 1 | F12: 8 | G12: Dense | H12: 1.5 | I12: 2.49
B13: 9 | C13: 14400 | D13: 1.25 | F13: 9 | G13: Dense, Tainted | H13: 1.5 | I13: 2.49 | J13: Filter
B14: 10 | C14: 16000 | D14: 1.4 | F14: 10 | G14: Exotic | H14: 0.5 | I14: 2.5 | J14: Air Supply
B15: 11 | C15: 17600 | D15: 1.5 | F15: 11 | G15: Corrosive | H15: 0.5 | I15: 2.5 | J15: Vacc Suit
F16: 12 | G16: Insidious | H16: 0.5 | I16: 2.5 | J16: Vacc Suit
B17: Temperature Table | F17: 13 | G17: Dense, High | H17: 2.5 | I17: 4
B18: Roll | C18: Type | D18: Average Temp | F18: 14 | G18: Thin, Low | H18: 0 | I18: 0.5
B19: 0 | C19: Frozen | D19: -51 or less | F19: 15 | G19: Unusual | H19: 0.5 | I19: 2.5
B20: 1 | C20: Frozen | D20: -51 or less
B21: 2 | C21: Frozen | D21: -51 or less
B22: 3 | C22: Cold | D22: -51 to 0 | F22: Hydrographics Table
B23: 4 | C23: Cold | D23: -51 to 0 | F23: Digit | G23: Percentage (Low) | H23: Percentage (High)
B24: 5 | C24: Temperate | D24: 0 to 30 | F24: 0 | G24: 0 | H24: 5
B25: 6 | C25: Temperate | D25: 0 to 30 | F25: 1 | G25: 6 | H25: 15
B26: 7 | C26: Temperate | D26: 0 to 30 | F26: 2 | G26: 16 | H26: 25
B27: 8 | C27: Temperate | D27: 0 to 30 | F27: 3 | G27: 26 | H27: 35
B28: 9 | C28: Temperate | D28: 0 to 30 | F28: 4 | G28: 36 | H28: 45
B29: 10 | C29: Hot | D29: 31 to 80 | F29: 5 | G29: 46 | H29: 55
B30: 11 | C30: Hot | D30: 31 to 80 | F30: 6 | G30: 56 | H30: 65
B31: 12 | C31: Roasting | D31: 81+ | F31: 7 | G31: 66 | H31: 75
F32: 8 | G32: 76 | H32: 85
F33: 9 | G33: 86 | H33: 95
B34: Population Table | F34: 10 | G34: 96 | H34: 100
B35: Digit | C35: Population
B36: 0 | C36: 0
B37: 1 | C37: 1 | E37: Temperature DMs
B38: 2 | C38: 100 | E38: Atmosphere | F38: DM
B39: 3 | C39: 1000 | E39: 0 | F39: 0
B40: 4 | C40: 10000 | E40: 1 | F40: 0
B41: 5 | C41: 100000 | E41: 2 | F41: -2
B42: 6 | C42: 1000000 | E42: 3 | F42: -2
B43: 7 | C43: 10000000 | E43: 4 | F43: -1
B44: 8 | C44: 100000000 | E44: 5 | F44: -1
B45: 9 | C45: 1000000000 | E45: 6 | F45: 0
B46: 10 | C46: 10000000000 | E46: 7 | F46: 0
B47: 11 | C47: 100000000000 | E47: 8 | F47: 1
B48: 12 | C48: 1000000000000 | E48: 9 | F48: 1
E49: 10 | F49: 2
E50: 11 | F50: 6
E51: 12 | F51: 6
E52: 13 | F52: 2
E53: 14 | F53: -1
E54: 15 | F54: 2

Sheet Civilization Tables
B2: Faction Strength Table | E2: Government Table | G2: Contraband
B3: Roll | C3: Relative Strength | E3: Type | F3: Government | G3: Weapons | H3: Drugs | I3: Information | J3: Technology | K3: Travellers | L3: Psionics
B4: 1 | C4: Obscure | E4: 0 | F4: Anarchy | G4: 0 | H4: 0 | I4: 0 | J4: 0 | K4: 0 | L4: 0
B5: 2 | C5: Obscure | E5: 1 | F5: Company/Corporation | G5: 1 | H5: 1 | I5: 0 | J5: 0 | K5: 1 | L5: 0
B6: 3 | C6: Obscure | E6: 2 | F6: Participating Democracy | G6: 0 | H6: 1 | I6: 0 | J6: 0 | K6: 0 | L6: 0
B7: 4 | C7: Fringe | E7: 3 | F7: Self-Perpetuating Oligarchy | G7: 1 | H7: 0 | I7: 0 | J7: 1 | K7: 1 | L7: 0
B8: 5 | C8: Fringe | E8: 4 | F8: Representative Democracy | G8: 1 | H8: 1 | I8: 0 | J8: 0 | K8: 0 | L8: 1
B9: 6 | C9: Minor | E9: 5 | F9: Feudal Technocracy | G9: 1 | H9: 0 | I9: 1 | J9: 1 | K9: 0 | L9: 0
